Workbook

Sheet fnd budget
S1: =VLOOKUP(orderCHA,charterinfo_a,4) -> 479
S2: =VLOOKUP(orderCHA,charterinfo_a,5) -> 278
S3: =VLOOKUP(orderCHA,charterinfo_a,6) -> 117
A5: F Y 2 0 F O U N D A T I O N B U D G E T
A6: =VLOOKUP(orderCHA,charterinfo_a,2) -> 479 - PIONEER VALLEY PERFORMING ARTS Charter School - HADLEY pupils
C7: Items | D7: - A L L P U P I L S | L7: - S P E C I A L P O P U L A T I O N I N C R E M E N T S
C8: Adj by
C9: Wage | D9: Pre- | E9: -- Kindergarten -- | G9: Elem- | H9: Jr High/ | I9: High | J9: Voca- | L9: Spec Ed In | M9: Spec Ed | O9: English Learners
C10: Fctr = w | D10: School | E10: Half | F10: Full | G10: entary | H10: Middle | I10: School | J10: tional | L10: (3.79% of total) | M10: Out | N10: PK-5 | O10: 6-8 | P10: 9-12 | Q10: EcoDis | S10: TOTAL**
A12: F O U N D A T I O N E N R O L L M E N T | D12: =VLOOKUP(VLOOKUP(orderCHA,charterinfo_a,3), rate_chafnd,3) -> 0 | E12: =VLOOKUP(VLOOKUP(orderCHA,charterinfo_a,3),rate_chafnd,4) -> 0 | F12: =VLOOKUP(VLOOKUP(orderCHA,charterinfo_a,3),rate_chafnd,5) -> 0 | G12: =VLOOKUP(VLOOKUP(orderCHA,charterinfo_a,3),rate_chafnd,6) -> 0 | H12: =VLOOKUP(VLOOKUP(orderCHA,charterinfo_a,3),rate_chafnd,7) -> 3 | I12: =VLOOKUP(VLOOKUP(orderCHA,charterinfo_a,3),rate_chafnd,8) -> 8 | J12: =VLOOKUP(VLOOKUP(orderCHA,charterinfo_a,3),rate_chafnd,9) -> 0 | L12: =VLOOKUP(VLOOKUP(orderCHA,charterinfo_a,3),rate_chafnd,10) -> 0.4169 | M12: =VLOOKUP(VLOOKUP(orderCHA,charterinfo_a,3),rate_chafnd,11) -> 0 | N12: =VLOOKUP(VLOOKUP(orderCHA,charterinfo_a,3),rate_chafnd,12) -> 0 | O12: =VLOOKUP(VLOOKUP(orderCHA,charterinfo_a,3),rate_chafnd,13) -> 0 | P12: =VLOOKUP(VLOOKUP(orderCHA,charterinfo_a,3),rate_chafnd,14) -> 0 | Q12: =VLOOKUP(VLOOKUP(orderCHA,charterinfo_a,3),rate_chafnd,15) -> 2 | S12: =VLOOKUP(VLOOKUP(orderCHA,charterinfo_a,3),rate_chafnd,16) -> 11
A14: 1 | B14: Administration | C14: w | D14: ='fnd base rates'!$C110*$D$28*D$12 -> 0 | E14: ='fnd base rates'!$C111*$D$28*E$12 -> 0 | F14: ='fnd base rates'!$C112*$D$28*F$12 -> 0 | G14: ='fnd base rates'!$C113*$D$28*G$12 -> 0 | H14: ='fnd base rates'!$C114*$D$28*H$12 -> 1175.79 | I14: ='fnd base rates'!$C115*$D$28*I$12 -> 3135.44 | J14: ='fnd base rates'!$C119*$D$28*J$12 -> 0 | L14: ='fnd base rates'!$C120*$D$28*L$12 -> 1127.706162 | M14: ='fnd base rates'!$C121*$D$28*M$12 -> 0 | N14: ='fnd base rates'!$C122*$D$28*N$12 -> 0 | O14: ='fnd base rates'!$C123*$D$28*O$12 -> 0 | P14: ='fnd base rates'!$C124*$D$28*P$12 -> 0 | Q14: =VLOOKUP((VLOOKUP(VLOOKUP(orderCHA,charterinfo_a,3),rate_chafnd,18)+15),rate_basefnd,3)*$D$28*Q$12 -> 105.34 | S14: =SUM(D14:Q14) -> 5544.276162
A15: 2 | B15: Instructional Leadership | C15: w | D15: ='fnd base rates'!$D110*$D$28*D$12 -> 0 | E15: ='fnd base rates'!$D111*$D$28*E$12 -> 0 | F15: ='fnd base rates'!$D112*$D$28*F$12 -> 0 | G15: ='fnd base rates'!$D113*$D$28*G$12 -> 0 | H15: ='fnd base rates'!$D114*$D$28*H$12 -> 2123.58 | I15: ='fnd base rates'!$D115*$D$28*I$12 -> 5662.88 | J15: ='fnd base rates'!$D119*$D$28*J$12 -> 0 | L15: ='fnd base rates'!$D120*$D$28*L$12 -> 0 | M15: ='fnd base rates'!$D121*$D$28*M$12 -> 0 | N15: ='fnd base rates'!$D122*$D$28*N$12 -> 0 | O15: ='fnd base rates'!$D123*$D$28*O$12 -> 0 | P15: ='fnd base rates'!$D124*$D$28*P$12 -> 0 | Q15: =VLOOKUP((VLOOKUP(VLOOKUP(orderCHA,charterinfo_a,3),rate_chafnd,18)+15),rate_basefnd,4)*$D$28*Q$12 -> 499.08 | S15: 8285.54
A16: 3 | B16: Classroom and Specialist Teachers | C16: w | D16: ='fnd base rates'!$E110*$D$28*D$12 -> 0 | E16: ='fnd base rates'!$E111*$D$28*E$12 -> 0 | F16: ='fnd base rates'!$E112*$D$28*F$12 -> 0 | G16: ='fnd base rates'!$E113*$D$28*G$12 -> 0 | H16: ='fnd base rates'!$E114*$D$28*H$12 -> 8568.75 | I16: ='fnd base rates'!$E115*$D$28*I$12 -> 33602.72 | J16: ='fnd base rates'!$E119*$D$28*J$12 -> 0 | L16: ='fnd base rates'!$E120*$D$28*L$12 -> 3721.145175 | M16: ='fnd base rates'!$E121*$D$28*M$12 -> 0 | N16: ='fnd base rates'!$E122*$D$28*N$12 -> 0 | O16: ='fnd base rates'!$E123*$D$28*O$12 -> 0 | P16: ='fnd base rates'!$E124*$D$28*P$12 -> 0 | Q16: =VLOOKUP((VLOOKUP(VLOOKUP(orderCHA,charterinfo_a,3),rate_chafnd,18)+15),rate_basefnd,5)*$D$28*Q$12 -> 4872.06 | S16: 50764.67517
A17: 4 | B17: Other Teaching Services | C17: w | D17: ='fnd base rates'!$F110*$D$28*D$12 -> 0 | E17: ='fnd base rates'!$F111*$D$28*E$12 -> 0 | F17: ='fnd base rates'!$F112*$D$28*F$12 -> 0 | G17: ='fnd base rates'!$F113*$D$28*G$12 -> 0 | H17: ='fnd base rates'!$F114*$D$28*H$12 -> 1797.75 | I17: ='fnd base rates'!$F115*$D$28*I$12 -> 3991.04 | J17: ='fnd base rates'!$F119*$D$28*J$12 -> 0 | L17: ='fnd base rates'!$F120*$D$28*L$12 -> 3474.382065 | M17: ='fnd base rates'!$F121*$D$28*M$12 -> 0 | N17: ='fnd base rates'!$F122*$D$28*N$12 -> 0 | O17: ='fnd base rates'!$F123*$D$28*O$12 -> 0 | P17: ='fnd base rates'!$F124*$D$28*P$12 -> 0 | Q17: =VLOOKUP((VLOOKUP(VLOOKUP(orderCHA,charterinfo_a,3),rate_chafnd,18)+15),rate_basefnd,6)*$D$28*Q$12 -> 0 | S17: 9263.172065
A18: 5 | B18: Professional Development | C18: w | D18: ='fnd base rates'!$G110*$D$28*D$12 -> 0 | E18: ='fnd base rates'!$G111*$D$28*E$12 -> 0 | F18: ='fnd base rates'!$G112*$D$28*F$12 -> 0 | G18: ='fnd base rates'!$G113*$D$28*G$12 -> 0 | H18: ='fnd base rates'!$G114*$D$28*H$12 -> 417.72 | I18: ='fnd base rates'!$G115*$D$28*I$12 -> 1080.08 | J18: ='fnd base rates'!$G119*$D$28*J$12 -> 0 | L18: ='fnd base rates'!$G120*$D$28*L$12 -> 179.504633 | M18: ='fnd base rates'!$G121*$D$28*M$12 -> 0 | N18: ='fnd base rates'!$G122*$D$28*N$12 -> 0 | O18: ='fnd base rates'!$G123*$D$28*O$12 -> 0 | P18: ='fnd base rates'!$G124*$D$28*P$12 -> 0 | Q18: =VLOOKUP((VLOOKUP(VLOOKUP(orderCHA,charterinfo_a,3),rate_chafnd,18)+15),rate_basefnd,7)*$D$28*Q$12 -> 236.36 | S18: 1913.664633
A19: 6 | B19: Instructional Equipment & Tech | C19: nw | D19: ='fnd base rates'!$H110*D$12 -> 0 | E19: ='fnd base rates'!$H111*E$12 -> 0 | F19: ='fnd base rates'!$H112*F$12 -> 0 | G19: ='fnd base rates'!$H113*G$12 -> 0 | H19: ='fnd base rates'!$H114*H$12 -> 1409.34 | I19: ='fnd base rates'!$H115*I$12 -> 6013.2 | J19: ='fnd base rates'!$H119*J$12 -> 0 | L19: ='fnd base rates'!$H120*L$12 -> 156.679358 | M19: ='fnd base rates'!$H121*M$12 -> 0 | N19: ='fnd base rates'!$H122*N$12 -> 0 | O19: ='fnd base rates'!$H123*O$12 -> 0 | P19: ='fnd base rates'!$H124*P$12 -> 0 | Q19: =VLOOKUP((VLOOKUP(VLOOKUP(orderCHA,charterinfo_a,3),rate_chafnd,18)+15),rate_basefnd,8)*Q$12 -> 36.24 | S19: 7615.459358
A20: 7 | B20: Guidance and Pschological | C20: w | D20: ='fnd base rates'!$I110*$D$28*D$12 -> 0 | E20: ='fnd base rates'!$I111*$D$28*E$12 -> 0 | F20: ='fnd base rates'!$I112*$D$28*F$12 -> 0 | G20: ='fnd base rates'!$I113*$D$28*G$12 -> 0 | H20: ='fnd base rates'!$I114*$D$28*H$12 -> 943.14 | I20: ='fnd base rates'!$I115*$D$28*I$12 -> 3152.72 | J20: ='fnd base rates'!$I119*$D$28*J$12 -> 0 | L20: ='fnd base rates'!$I120*$D$28*L$12 -> 0 | M20: ='fnd base rates'!$I121*$D$28*M$12 -> 0 | N20: ='fnd base rates'!$I122*$D$28*N$12 -> 0 | O20: ='fnd base rates'!$I123*$D$28*O$12 -> 0 | P20: ='fnd base rates'!$I124*$D$28*P$12 -> 0 | Q20: =VLOOKUP((VLOOKUP(VLOOKUP(orderCHA,charterinfo_a,3),rate_chafnd,18)+15),rate_basefnd,9)*$D$28*Q$12 -> 197.28 | S20: 4293.14
A21: 8 | B21: Pupil Services | C21: w | D21: ='fnd base rates'!$J110*$D$28*D$12 -> 0 | E21: ='fnd base rates'!$J111*$D$28*E$12 -> 0 | F21: ='fnd base rates'!$J112*$D$28*F$12 -> 0 | G21: ='fnd base rates'!$J113*$D$28*G$12 -> 0 | H21: ='fnd base rates'!$J114*$D$28*H$12 -> 690.63 | I21: ='fnd base rates'!$J115*$D$28*I$12 -> 4246.8 | J21: ='fnd base rates'!$J119*$D$28*J$12 -> 0 | L21: ='fnd base rates'!$J120*$D$28*L$12 -> 0 | M21: ='fnd base rates'!$J121*$D$28*M$12 -> 0 | N21: ='fnd base rates'!$J122*$D$28*N$12 -> 0 | O21: ='fnd base rates'!$J123*$D$28*O$12 -> 0 | P21: ='fnd base rates'!$J124*$D$28*P$12 -> 0 | Q21: =VLOOKUP((VLOOKUP(VLOOKUP(orderCHA,charterinfo_a,3),rate_chafnd,18)+15),rate_basefnd,10)*$D$28*Q$12 -> 1025.14 | S21: 5962.57
A22: 9 | B22: Operations and Maintenance | C22: w | D22: ='fnd base rates'!$K110*$D$28*D$12 -> 0 | E22: ='fnd base rates'!$K111*$D$28*E$12 -> 0 | F22: ='fnd base rates'!$K112*$D$28*F$12 -> 0 | G22: ='fnd base rates'!$K113*$D$28*G$12 -> 0 | H22: ='fnd base rates'!$K114*$D$28*H$12 -> 2931.39 | I22: ='fnd base rates'!$K115*$D$28*I$12 -> 7579.44 | J22: ='fnd base rates'!$K119*$D$28*J$12 -> 0 | L22: ='fnd base rates'!$K120*$D$28*L$12 -> 1259.700871 | M22: ='fnd base rates'!$K121*$D$28*M$12 -> 0 | N22: ='fnd base rates'!$K122*$D$28*N$12 -> 0 | O22: ='fnd base rates'!$K123*$D$28*O$12 -> 0 | P22: ='fnd base rates'!$K124*$D$28*P$12 -> 0 | Q22: =VLOOKUP((VLOOKUP(VLOOKUP(orderCHA,charterinfo_a,3),rate_chafnd,18)+15),rate_basefnd,11)*$D$28*Q$12 -> 0 | S22: 11770.53087
A23: 10 | B23: Employee Benefits & Fixed Charges | C23: nw | D23: ='fnd base rates'!$L110*D$12 -> 0 | E23: ='fnd base rates'!$L111*E$12 -> 0 | F23: ='fnd base rates'!$L112*F$12 -> 0 | G23: ='fnd base rates'!$L113*G$12 -> 0 | H23: ='fnd base rates'!$L114*H$12 -> 3209.355869 | I23: ='fnd base rates'!$L115*I$12 -> 7742.828453 | J23: ='fnd base rates'!$L119*J$12 -> 0 | L23: ='fnd base rates'!$L120*L$12 -> 1406.967517 | M23: ='fnd base rates'!$L121*M$12 -> 0 | N23: ='fnd base rates'!$L122*N$12 -> 0 | O23: ='fnd base rates'!$L123*O$12 -> 0 | P23: ='fnd base rates'!$L124*P$12 -> 0 | Q23: =VLOOKUP((VLOOKUP(VLOOKUP(orderCHA,charterinfo_a,3),rate_chafnd,18)+15),rate_basefnd,12)*Q$12 -> 788.1 | S23: 13147.25184
A24: 11 | B24: Special Ed Tuition | C24: nw | D24: ='fnd base rates'!$M110*D$12 -> 0 | E24: ='fnd base rates'!$M111*E$12 -> 0 | F24: ='fnd base rates'!$M112*F$12 -> 0 | G24: ='fnd base rates'!$M113*G$12 -> 0 | H24: ='fnd base rates'!$M114*H$12 -> 0 | I24: ='fnd base rates'!$M115*I$12 -> 0 | J24: ='fnd base rates'!$M119*J$12 -> 0 | L24: ='fnd base rates'!$M120*L$12 -> 0 | M24: ='fnd base rates'!$M121*M$12 -> 0 | N24: ='fnd base rates'!$M122*N$12 -> 0 | O24: ='fnd base rates'!$M123*O$12 -> 0 | P24: ='fnd base rates'!$M124*P$12 -> 0 | Q24: =VLOOKUP((VLOOKUP(VLOOKUP(orderCHA,charterinfo_a,3),rate_chafnd,18)+15),rate_basefnd,13)*Q$12 -> 0 | S24: 0
A26: 12 | B26: Total | D26: =SUM(D14:D24) -> 0 | E26: 0 | F26: 0 | G26: 0 | H26: =SUM(H14:H24) -> 23267.44587 | I26: 76207.14845 | J26: 0 | K26: 0 | L26: 11326.08578 | M26: 0 | N26: 0 | O26: 0 | P26: 0 | Q26: 7759.6 | R26: =SUM(R14:R24) -> 0 | S26: =SUM(S14:S24) -> 118560.2801
A28: 13 | B28: Wage Adjustment Factor | D28: =VLOOKUP(orderCHA,charterinfo_a,8) -> 1 | Q28: F O U N D A T I O N T U I T I O N R A T E | S28: =IF(S12=0,0,ROUND(S26/S12,0)) -> 10778
A29: 14 | B29: Low Income Decile | D29: =VLOOKUP(orderCHA,charterinfo_a,9) -> 4
A30: C A V E A T S
A31: - Charter schools do not send special education pupils to other districts or private programs; this category is removed from the calculation. | L31: English Learners as a % of Total Full Rate and Budget | S31: =SUM(N26:P26)/S26 -> 0
A32: The in-district special education increment uses an "assumed" enrollment | L32: Economically Disadvantaged Proportion of Full Rate and Budget | S32: =Q26/S26 -> 0.06544856332
A33: percentage of 3.79 percent, as outlined in the SWM budget proposal.
A34: - Total foundation enrollment includes only the All Pupils section. Special Population Increments enrollment has already been counted in All Pupils cohorts.
A35: - Pre-kindergarten and half-time kindergarten pupils count as one-half in totals for ELL, EcoDis low income, and total foundation enrollment.
A36: - Each component of the foundation budget represents the enrollment on line 1 multiplied by the appropriate state-wide foundation allotment.
A37: - The wage adjustment factor is applied to the underlying base rates in all functions except instructional equipment, benefits, and special education.
A38: - October 2018 enrollment is being used to generate the FY20 rate.

Sheet fnd base rates (hidden)
A4: FY19 Base Rates
H5: Instruction- | I5: Guid- | K5: Opera- | L5: Employee | N5: Total
E6: Classroom | F6: Other | G6: Profess- | H6: al Materials, | I6: ance & | K6: tions & | L6: Benefits | N6: Opera-
C7: Admini- | D7: Instructional | E7: & Specialist | F7: Teaching | G7: ional Dev- | H7: Equipment & | I7: Psycho- | J7: Pupil | K7: Maint- | L7: & Fixed | M7: Sped | N7: ting Exp-
A8: Foundation Subsets | C8: stration | D8: Leadership | E8: Teachers | F8: Services | G8: elopment | H8: Technology | I8: logical | J8: Services | K8: enance | L8: Charges | M8: Tuition | N8: enditures
A10: 1 | B10: Pre-School | C10: 188.89 | D10: 341.14 | E10: 1564.22 | F10: 401.18 | G10: 61.86 | H10: 226.4 | I10: 113.81 | J10: 45.26 | K10: 434.37 | L10: 481.69 | N10: 3858.82
A11: 2 | B11: Kindergarten-Half | C11: 188.89 | D11: 341.14 | E11: 1564.22 | F11: 401.18 | G11: 61.86 | H11: 226.4 | I11: 113.81 | J11: 45.26 | K11: 434.37 | L11: 481.69 | N11: 3858.82
A12: 3 | B12: Kindergarten-Full | C12: 377.76 | D12: 682.27 | E12: 3128.44 | F12: 802.38 | G12: 123.78 | H12: 452.8 | I12: 227.65 | J12: 90.57 | K12: 868.72 | L12: 963.36 | N12: 7717.73
A13: 4 | B13: Elementary | C13: 377.76 | D13: 682.27 | E13: 3128.4 | F13: 802.38 | G13: 123.8 | H13: 452.8 | I13: 227.65 | J13: 135.84 | K13: 868.72 | L13: 963.4 | N13: 7763.02
A14: 5 | B14: Junior/Middle | C14: 377.76 | D14: 682.27 | E14: 2753.01 | F14: 577.59 | G14: 134.21 | H14: 452.8 | I14: 303.02 | J14: 221.89 | K14: 941.81 | L14: 979.63 | N14: 7423.99
A15: 6 | B15: High School | C15: 377.76 | D15: 682.27 | E15: 4048.52 | F15: 480.85 | G15: 130.13 | H15: 724.48 | I15: 379.85 | J15: 511.66 | K15: 913.19 | L15: 892.16 | N15: 9140.87
A16: 7 | B16: Special Ed-In School | C16: 2607.21 | E16: 8603.13 | F16: 8032.63 | G16: 415.01 | H16: 362.24 | K16: 2912.38 | L16: 3371.83 | N16: 26304.43
A17: 8 | B17: Special Ed-Tuitioned Out | C17: 2607.21 | F17: 39.83 | M17: 24754.08 | N17: 27401.12
A18: 9 | B18: Limited English PK | C18: 44.69 | D18: 78.21 | E18: 536.31 | F18: 78.21 | G18: 22.35 | H18: 55.87 | I18: 33.52 | J18: 11.17 | K18: 134.08 | L18: 122.91 | N18: 1117.32
A19: 10 | B19: Limited English K Half Time | C19: 44.69 | D19: 78.21 | E19: 536.31 | F19: 78.21 | G19: 22.35 | H19: 55.87 | I19: 33.52 | J19: 11.17 | K19: 134.08 | L19: 122.91 | N19: 1117.32
A20: 11 | B20: Limited English K Full | C20: 89.04 | D20: 155.82 | E20: 1090.73 | F20: 155.82 | G20: 44.52 | H20: 111.3 | I20: 66.78 | J20: 22.26 | K20: 267.12 | L20: 244.86 | N20: 2248.25
A21: 12 | B21: Limited English Elem | C21: 88.41 | D21: 154.71 | E21: 1082.96 | F21: 154.71 | G21: 44.2 | H21: 110.51 | I21: 66.3 | J21: 22.1 | K21: 265.22 | L21: 243.11 | N21: 2232.23
A22: 13 | B22: Limited English Junior/Middle | C22: 93.24 | D22: 163.17 | E22: 1142.22 | F22: 163.17 | G22: 46.62 | H22: 116.55 | I22: 69.93 | J22: 23.31 | K22: 279.73 | L22: 256.42 | N22: 2354.36
A23: 14 | B23: Limited English High School | C23: 69.11 | D23: 120.94 | E23: 846.55 | F23: 120.94 | G23: 34.55 | H23: 86.38 | I23: 51.83 | J23: 17.28 | K23: 207.32 | L23: 190.04 | N23: 1744.94
A24: 15 | B24: Limited English Vocational | C24: 60.61 | D24: 106.06 | E24: 742.45 | F24: 106.06 | G24: 30.3 | H24: 75.76 | I24: 45.46 | J24: 15.15 | K24: 181.82 | L24: 166.67 | N24: 1530.34
A25: 16 | B25: Vocational | C25: 377.76 | D25: 682.27 | E25: 6882.53 | F25: 480.85 | G25: 215.14 | H25: 1267.83 | I25: 379.85 | J25: 511.66 | K25: 1709.06 | L25: 1330.21 | N25: 13837.16
A26: 17 | B26: Low Income 1 | E26: 2823.2646 | G26: 72.3914 | K26: 434.3484 | L26: 289.5656 | N26: 3619.57
A27: 18 | B27: Low Income 2 | E27: 2854.4646 | G27: 73.1914 | K27: 439.1484 | L27: 292.7656 | N27: 3659.57
A28: 19 | B28: Low Income 3 | E28: 2885.6646 | G28: 73.9914 | K28: 443.9484 | L28: 295.9656 | N28: 3699.57
A29: 20 | B29: Low Income 4 | E29: 2916.8646 | G29: 74.7914 | K29: 448.7484 | L29: 299.1656 | N29: 3739.57
A30: 21 | B30: Low Income 5 | E30: 2948.0646 | G30: 75.5914 | K30: 453.5484 | L30: 302.3656 | N30: 3779.57
A31: 22 | B31: Low Income 6 | E31: 2979.2646 | G31: 76.3914 | K31: 458.3484 | L31: 305.5656 | N31: 3819.57
A32: 23 | B32: Low Income 7 | E32: 3010.4646 | G32: 77.1914 | K32: 463.1484 | L32: 308.7656 | N32: 3859.57
A33: 24 | B33: Low Income 8 | E33: 3041.6646 | G33: 77.9914 | K33: 467.9484 | L33: 311.9656 | N33: 3899.57
A34: 25 | B34: Low Income 9 | E34: 3072.8646 | G34: 78.7914 | K34: 472.7484 | L34: 315.1656 | N34: 3939.57
A35: 26 | B35: Low Income 10 | E35: 3104.0646 | G35: 79.5914 | K35: 477.5484 | L35: 318.3656 | N35: 3979.57
B99: Inflation Adjustment
B100: FY19 inflation index | C100: 1
B101: FY20 inflation | C101: 0.0375
B102: FY20 adjustment | C102: =C100+C101 -> 1.0375 | J102: Rates shaded in olive are values, not changed by formula. See notes.
A104: FY20 Proposed Foundation Budget Rates
H105: Instruction- | I105: Guid- | K105: Opera- | L105: Employee | N105: Total
E106: Classroom | F106: Other | G106: Profess- | H106: al Materials, | I106: ance & | K106: tions & | L106: Benefits | N106: Opera-
C107: Admini- | D107: Instructional | E107: & Specialist | F107: Teaching | G107: ional Dev- | H107: Equipment & | I107: Psycho- | J107: Pupil | K107: Maint- | L107: & Fixed | M107: Sped | N107: ting Exp- | P107: current | R107: SWM | T107: HWM | V107: House1
A108: Adjusted Foundation Budget | C108: stration | D108: Leadership | E108: Teachers | F108: Services | G108: elopment | H108: Technology | I108: logical | J108: Services | K108: enance | L108: Charges | M108: Tuition | N108: enditures | P108: diff | R108: rates | T108: rates | V108: rates
C109: 3 | D109: 4 | E109: 5 | F109: 6 | G109: 7 | H109: 8 | I109: 9 | J109: 10 | K109: 11 | L109: 12 | M109: 13 | N109: 14
A110: 1 | B110: Pre-School | C110: =IF(C10>0,ROUND(C10*inflat,2),0) -> 195.97 | D110: 353.93 | E110: 1622.88 | F110: 416.22 | G110: 64.18 | H110: 234.89 | I110: 118.08 | J110: 46.96 | K110: 450.66 | L110: 519.3835991 | N110: =SUM(C110:M110) -> 4023.153599 | P110: =N110-R110 -> 0 | R110: 4023.153599 | T110: 4029.435866 | V110: 4023.153599
A111: 2 | B111: Kindergarten-Half | C111: =IF(C11>0,ROUND(C11*inflat,2),0) -> 195.97 | D111: 353.93 | E111: 1622.88 | F111: 416.22 | G111: 64.18 | H111: 234.89 | I111: 118.08 | J111: 46.96 | K111: 450.66 | L111: 519.3835991 | N111: =SUM(C111:M111) -> 4023.153599 | P111: =N111-R111 -> 0 | R111: 4023.153599 | T111: 4029.435866 | V111: 4023.153599
A112: 3 | B112: Kindergarten-Full | C112: =IF(C12>0,ROUND(C12*inflat,2),0) -> 391.93 | D112: 707.86 | E112: 3245.76 | F112: 832.47 | G112: 128.42 | H112: 469.78 | I112: 236.19 | J112: 93.97 | K112: 901.3 | L112: 1038.750055 | N112: 8046.430055 | P112: 0 | R112: 8046.430055 | T112: 8058.995065 | V112: 8046.430055
A113: 4 | B113: Elementary | C113: =IF(C13>0,ROUND(C13*inflat,2),0) -> 391.93 | D113: 707.86 | E113: 3245.72 | F113: 832.47 | G113: 128.44 | H113: 469.78 | I113: 236.19 | J113: 140.93 | K113: 901.3 | L113: 1038.784341 | N113: 8093.404341 | P113: 0 | R113: 8093.404341 | T113: 8105.968398 | V113: 8093.404341
A114: 5 | B114: Junior/Middle | C114: =IF(C14>0,ROUND(C14*inflat,2),0) -> 391.93 | D114: 707.86 | E114: 2856.25 | F114: 599.25 | G114: 139.24 | H114: 469.78 | I114: 314.38 | J114: 230.21 | K114: 977.13 | L114: 1069.78529 | N114: 7755.81529 | P114: 0 | R114: 7755.81529 | T114: 7770.841171 | V114: 7755.81529
A115: 6 | B115: High School | C115: =IF(C15>0,ROUND(C15*inflat,2),0) -> 391.93 | D115: 707.86 | E115: 4200.34 | F115: 498.88 | G115: 135.01 | H115: 751.65 | I115: 394.09 | J115: 530.85 | K115: 947.43 | L115: 967.8535567 | N115: 9525.893557 | P115: 0 | R115: 9525.893557 | T115: 9538.509149 | V115: 9525.893557
A116: 7 | B116: Blank | C116: 0 | D116: 0 | E116: 0 | F116: 0 | G116: 0 | H116: 0 | I116: 0 | J116: 0 | K116: 0 | L116: 0 | M116: 0 | N116: =SUM(C116:M116) -> 0 | P116: 0 | R116: 0 | T116: 0 | V116: 10575.88356
A117: 8 | B117: Blank | P117: 0
A118: 9 | B118: Blank | P118: 0
A119: 10 | B119: Vocational | C119: =IF(C25>0,ROUND(C25*inflat,2),0) -> 391.93 | D119: 707.86 | E119: 7140.62 | F119: 498.88 | G119: 223.21 | H119: 1315.37 | I119: 394.09 | J119: 530.85 | K119: 1773.15 | L119: 1395.837255 | N119: =SUM(C119:M119) -> 14371.79726 | P119: 0 | R119: 14371.79726 | T119: 14382.73513 | V119: 14371.79726
A120: 11 | B120: Special Ed-In School | C120: 2704.98 | D120: 0 | E120: 8925.75 | F120: 8333.85 | G120: 430.57 | H120: 375.82 | I120: 0 | J120: 0 | K120: 3021.59 | L120: 3374.832136 | M120: 0 | N120: 27167.39214 | P120: 0 | R120: 27167.39214 | T120: 27167.89249 | V120: 27167.39214
A121: 12 | B121: Special Ed-Tuitioned Out | C121: 2802.91 | D121: 0 | E121: 0 | F121: 42.82 | G121: 0 | H121: 0 | I121: 0 | J121: 0 | K121: 0 | L121: 0 | M121: 26612.12 | N121: 29457.85 | P121: 0 | R121: 29457.85 | T121: 29629.38 | V121: 29457.85
A122: 13 | B122: EL PK-5 | C122: 90.14 | D122: 157.74 | E122: 1104.11 | F122: 157.74 | G122: 45.06 | H122: 112.66 | I122: 67.6 | J122: 22.54 | K122: 270.4 | L122: 247.86 | M122: 0 | N122: 2275.85 | P122: 0 | R122: 2275.85 | T122: 2177.17 | V122: 2177.17
A123: 14 | B123: EL jr/middle | C123: 94.28 | D123: 164.99 | E123: 1154.9 | F123: 164.99 | G123: 47.13 | H123: 117.84 | I123: 70.71 | J123: 23.57 | K123: 282.83 | L123: 259.26 | M123: 0 | N123: 2380.5 | P123: 0 | R123: 2380.5 | T123: 2721.46 | V123: 2721.46
A124: 15 | B124: EL high | C124: 73.59 | D124: 128.79 | E124: 901.48 | F124: 128.79 | G124: 36.79 | H124: 91.98 | I124: 55.19 | J124: 18.4 | K124: 220.77 | L124: 202.37 | M124: 0 | N124: 1858.15 | P124: 0 | R124: 1858.15 | T124: 3265.74 | V124: 3265.74
A125: 16 | B125: Low Income 1 | C125: 50.98 | D125: 241.54 | E125: 2357.86 | F125: 0 | G125: 114.39 | H125: 17.54 | I125: 95.48 | J125: 496.13 | K125: 0 | L125: 381.4 | M125: 0 | N125: 3755.32 | P125: 0 | R125: 3755.32 | T125: 3755.32 | V125: 3755.32
A126: 17 | B126: Low Income 2 | C126: 51.54 | D126: 244.2 | E126: 2383.92 | F126: 0 | G126: 115.66 | H126: 17.73 | I126: 96.53 | J126: 501.61 | K126: 0 | L126: 385.62 | M126: 0 | N126: 3796.81 | P126: 0 | R126: 3796.81 | T126: 3796.81 | V126: 3796.81
A127: 18 | B127: Low Income 3 | C127: 52.1 | D127: 246.87 | E127: 2409.97 | F127: 0 | G127: 116.92 | H127: 17.92 | I127: 97.59 | J127: 507.09 | K127: 0 | L127: 389.83 | M127: 0 | N127: 3838.29 | P127: 0 | R127: 3838.29 | T127: 3838.29 | V127: 3838.29
A128: 19 | B128: Low Income 4 | C128: 52.67 | D128: 249.54 | E128: 2436.03 | F128: 0 | G128: 118.18 | H128: 18.12 | I128: 98.64 | J128: 512.57 | K128: 0 | L128: 394.05 | M128: 0 | N128: 3879.8 | P128: 0 | R128: 3879.8 | T128: 3879.8 | V128: 3879.8
A129: 20 | B129: Low Income 5 | C129: 53.23 | D129: 252.21 | E129: 2462.09 | F129: 0 | G129: 119.45 | H129: 18.31 | I129: 99.7 | J129: 518.06 | K129: 0 | L129: 398.26 | M129: 0 | N129: 3921.31 | P129: 0 | R129: 3921.31 | T129: 3921.31 | V129: 3921.31
A130: 21 | B130: Low Income 6 | C130: 56.89 | D130: 269.52 | E130: 2631.09 | F130: 0 | G130: 127.65 | H130: 19.57 | I130: 106.54 | J130: 553.62 | K130: 0 | L130: 425.6 | M130: 0 | N130: 4190.48 | P130: 0 | R130: 4190.48 | T130: 3972.06 | V130: 3970.72
A131: 22 | B131: Low Income 7 | C131: 58.24 | D131: 275.94 | E131: 2693.72 | F131: 0 | G131: 130.69 | H131: 20.03 | I131: 109.08 | J131: 566.8 | K131: 0 | L131: 435.73 | M131: 0 | N131: 4290.23 | P131: 0 | R131: 4290.23 | T131: 4026.04 | V131: 4022.93
A132: 23 | B132: Low Income 8 | C132: 59.59 | D132: 282.36 | E132: 2756.36 | F132: 0 | G132: 133.72 | H132: 20.5 | I132: 111.61 | J132: 579.97 | K132: 0 | L132: 445.86 | M132: 0 | N132: 4389.97 | P132: 0 | R132: 4389.97 | T132: 4083.29 | V132: 4077.93
A133: 24 | B133: Low Income 9 | C133: 60.95 | D133: 288.77 | E133: 2818.99 | F133: 0 | G133: 136.76 | H133: 20.96 | I133: 114.15 | J133: 593.15 | K133: 0 | L133: 455.99 | M133: 0 | N133: 4489.72 | P133: 0 | R133: 4489.72 | T133: 4143.73 | V133: 4135.68
A134: 25 | B134: Low Income 10 | C134: 62.3 | D134: 295.19 | E134: 2881.62 | F134: 0 | G134: 139.8 | H134: 21.43 | I134: 116.69 | J134: 606.33 | K134: 0 | L134: 466.13 | M134: 0 | N134: 4589.49 | P134: 0 | R134: 4589.49 | T134: 4207.44 | V134: 4196.19
A135: 26 | B135: blank | C135: 0 | D135: 0 | E135: 0 | F135: 0 | G135: 0 | H135: 0 | I135: 0 | J135: 0 | K135: 0 | L135: 0 | M135: 0 | N135: 0 | P135: 0 | R135: 0 | T135: 0 | V135: 25.94
H306: Instruction- | I306: Guid- | K306: Opera- | L306: Employee | N306: Total
E307: Classroom | F307: Other | G307: Profess- | H307: al Materials, | I307: ance & | K307: tions & | L307: Benefits | N307: Opera-
C308: Admini- | D308: Instructional | E308: & Specialist | F308: Teaching | G308: ional Dev- | H308: Equipment & | I308: Psycho- | J308: Pupil | K308: Maint- | L308: & Fixed | M308: Sped | N308: ting Exp-
A309: Adjusted Foundation Budget | C309: stration | D309: Leadership | E309: Teachers | F309: Services | G309: elopment | H309: Technology | I309: logical | J309: Services | K309: enance | L309: Charges | M309: Tuition | N309: enditures
B310: =B110=B210 -> FALSE | C310: =C110=C210 -> FALSE | D310: FALSE | E310: FALSE | F310: FALSE | G310: FALSE | H310: FALSE | I310: FALSE | J310: FALSE | K310: FALSE | L310: FALSE | M310: TRUE | N310: FALSE
B311: =B111=B211 -> FALSE | C311: FALSE | D311: FALSE | E311: FALSE | F311: FALSE | G311: FALSE | H311: FALSE | I311: FALSE | J311: FALSE | K311: FALSE | L311: FALSE | M311: TRUE | N311: FALSE
B312: =B112=B212 -> FALSE | C312: FALSE | D312: FALSE | E312: FALSE | F312: FALSE | G312: FALSE | H312: FALSE | I312: FALSE | J312: FALSE | K312: FALSE | L312: FALSE | M312: TRUE | N312: FALSE
B313: =B113=B213 -> FALSE | C313: FALSE | D313: FALSE | E313: FALSE | F313: FALSE | G313: FALSE | H313: FALSE | I313: FALSE | J313: FALSE | K313: FALSE | L313: FALSE | M313: TRUE | N313: FALSE
B314: =B114=B214 -> FALSE | C314: FALSE | D314: FALSE | E314: FALSE | F314: FALSE | G314: FALSE | H314: FALSE | I314: FALSE | J314: FALSE | K314: FALSE | L314: FALSE | M314: TRUE | N314: FALSE
B315: =B115=B215 -> FALSE | C315: FALSE | D315: FALSE | E315: FALSE | F315: FALSE | G315: FALSE | H315: FALSE | I315: FALSE | J315: FALSE | K315: FALSE | L315: FALSE | M315: TRUE | N315: FALSE
B316: =B116=B216 -> FALSE | C316: TRUE | D316: TRUE | E316: TRUE | F316: TRUE | G316: TRUE | H316: TRUE | I316: TRUE | J316: TRUE | K316: TRUE | L316: TRUE | M316: TRUE | N316: TRUE
B317: =B117=B217 -> FALSE | C317: TRUE | D317: TRUE | E317: TRUE | F317: TRUE | G317: TRUE | H317: TRUE | I317: TRUE | J317: TRUE | K317: TRUE | L317: TRUE | M317: TRUE | N317: TRUE
B318: =B118=B218 -> FALSE | C318: TRUE | D318: TRUE | E318: TRUE | F318: TRUE | G318: TRUE | H318: TRUE | I318: TRUE | J318: TRUE | K318: TRUE | L318: TRUE | M318: TRUE | N318: TRUE
B319: =B119=B219 -> FALSE | C319: FALSE | D319: FALSE | E319: FALSE | F319: FALSE | G319: FALSE | H319: FALSE | I319: FALSE | J319: FALSE | K319: FALSE | L319: FALSE | M319: TRUE | N319: FALSE
B320: =B120=B220 -> FALSE | C320: FALSE | D320: TRUE | E320: FALSE | F320: FALSE | G320: FALSE | H320: FALSE | I320: TRUE | J320: TRUE | K320: FALSE | L320: FALSE | M320: TRUE | N320: FALSE
B321: =B121=B221 -> FALSE | C321: FALSE | D321: TRUE | E321: TRUE | F321: FALSE | G321: TRUE | H321: TRUE | I321: TRUE | J321: TRUE | K321: TRUE | L321: TRUE | M321: FALSE | N321: FALSE
B322: =B122=B222 -> FALSE | C322: FALSE | D322: FALSE | E322: FALSE | F322: FALSE | G322: FALSE | H322: FALSE | I322: FALSE | J322: FALSE | K322: FALSE | L322: FALSE | M322: TRUE | N322: FALSE
B323: =B123=B223 -> FALSE | C323: FALSE | D323: FALSE | E323: FALSE | F323: FALSE | G323: FALSE | H323: FALSE | I323: FALSE | J323: FALSE | K323: FALSE | L323: FALSE | M323: TRUE | N323: FALSE
B324: =B124=B224 -> FALSE | C324: FALSE | D324: FALSE | E324: FALSE | F324: FALSE | G324: FALSE | H324: FALSE | I324: FALSE | J324: FALSE | K324: FALSE | L324: FALSE | M324: TRUE | N324: FALSE
B325: =B125=B225 -> FALSE | C325: FALSE | D325: FALSE | E325: FALSE | F325: TRUE | G325: FALSE | H325: FALSE | I325: FALSE | J325: FALSE | K325: TRUE | L325: FALSE | M325: TRUE | N325: FALSE
B326: =B126=B226 -> FALSE | C326: FALSE | D326: FALSE | E326: FALSE | F326: TRUE | G326: FALSE | H326: FALSE | I326: FALSE | J326: FALSE | K326: TRUE | L326: FALSE | M326: TRUE | N326: FALSE
B327: =B127=B227 -> FALSE | C327: FALSE | D327: FALSE | E327: FALSE | F327: TRUE | G327: FALSE | H327: FALSE | I327: FALSE | J327: FALSE | K327: TRUE | L327: FALSE | M327: TRUE | N327: FALSE
B328: =B128=B228 -> FALSE | C328: FALSE | D328: FALSE | E328: FALSE | F328: TRUE | G328: FALSE | H328: FALSE | I328: FALSE | J328: FALSE | K328: TRUE | L328: FALSE | M328: TRUE | N328: FALSE
B329: =B129=B229 -> FALSE | C329: FALSE | D329: FALSE | E329: FALSE | F329: TRUE | G329: FALSE | H329: FALSE | I329: FALSE | J329: FALSE | K329: TRUE | L329: FALSE | M329: TRUE | N329: FALSE
B330: =B130=B230 -> FALSE | C330: FALSE | D330: FALSE | E330: FALSE | F330: TRUE | G330: FALSE | H330: FALSE | I330: FALSE | J330: FALSE | K330: TRUE | L330: FALSE | M330: TRUE | N330: FALSE
B331: =B131=B231 -> FALSE | C331: FALSE | D331: FALSE | E331: FALSE | F331: TRUE | G331: FALSE | H331: FALSE | I331: FALSE | J331: FALSE | K331: TRUE | L331: FALSE | M331: TRUE | N331: FALSE
B332: =B132=B232 -> FALSE | C332: FALSE | D332: FALSE | E332: FALSE | F332: TRUE | G332: FALSE | H332: FALSE | I332: FALSE | J332: FALSE | K332: TRUE | L332: FALSE | M332: TRUE | N332: FALSE
B333: =B133=B233 -> FALSE | C333: FALSE | D333: FALSE | E333: FALSE | F333: TRUE | G333: FALSE | H333: FALSE | I333: FALSE | J333: FALSE | K333: TRUE | L333: FALSE | M333: TRUE | N333: FALSE
B334: =B134=B234 -> FALSE | C334: FALSE | D334: FALSE | E334: FALSE | F334: TRUE | G334: FALSE | H334: FALSE | I334: FALSE | J334: FALSE | K334: TRUE | L334: FALSE | M334: TRUE | N334: FALSE
B335: =B135=B235 -> FALSE | C335: TRUE | D335: TRUE | E335: TRUE | F335: TRUE | G335: TRUE | H335: TRUE | I335: TRUE | J335: TRUE | K335: TRUE | L335: TRUE | M335: TRUE | N335: TRUE

Sheet pre fnd budg (hidden)
A1: a | B1: 1 | C1: 2 | D1: 3 | E1: 4 | F1: 5 | G1: 6 | H1: 7 | I1: 8 | J1: 9 | K1: 10 | L1: 11 | M1: 12 | N1: 13 | O1: 14 | P1: 15 | Q1: 16 | R1: 17 | S1: 18 | T1: 19 | U1: 20 | V1: 21 | W1: 22 | X1: 23 | Y1: 24 | Z1: 25 | AA1: 26 | AB1: 27 | AC1: 28 | AD1: 29 | AE1: 30 | AF1: 31 | AG1: 32 | AH1: 33 | AI1: 34 | AJ1: 35 | AK1: 36 | AL1: 37 | AM1: 38 | AN1: 39 | AO1: 40 | AP1: 41 | AQ1: 42 | AR1: 43 | AS1: # of rates | AT1: =COUNTA(AZ10:AZ911) -> 902 | AU1: greater than 0 | AV1: =COUNTIF($AZ$10:$AZ$911,">0") -> 458 | AX1: High concentral HS EL schools have largest decline
AS2: less than $0 | AT2: =COUNTIF($AZ$10:$AZ$911,"<0") -> 437 | AU2: = $0 | AV2: =COUNTIF($AZ$10:$AZ$911,"=0") -> 7 | AX2: HS/JR El schools have consistent declines
B3: Insert chalocsend & school name from the FND ENRO sheet | U3: w | V3: w | W3: w | X3: w | Y3: w | Z3: nw | AA3: w | AB3: w | AC3: w | AD3: nw | AE3: nw | AS3: < $20 | AT3: =COUNTIF($AZ$10:$AZ$911,"<0")-AT4-AT5-AT6-AT7 -> 395 | AU3: > $20 | AV3: =COUNTIF($AZ$10:$AZ$911,">0")-AV4-AV5-AV6-AV7 -> 39 | AX3: Elementary schools with EL/Low Inc have the higher gains (lots of 1 kid rates)
K4: =SUM(K10:K911) -> 1628.9799 | O4: =SUM(M10:O911) -> 5761 | P4: =SUM(P10:P911) -> 20762 | AS4: < $50 | AT4: =COUNTIF($AZ$10:$AZ$911,"<-49.999")-AT5-AT6-AT7 -> 11 | AU4: > $50 | AV4: =COUNTIF($AZ$10:$AZ$911,">49.9999")-AV5-AV6-AV7 -> 62
Z5: Instruction- | AA5: Guid- | AC5: Opera- | AD5: Employee | AS5: < $100 | AT5: =COUNTIF($AZ$10:$AZ$911,"<-99.9999")-AT6-AT7 -> 21 | AU5: > $100 | AV5: =COUNTIF($AZ$10:$AZ$911,">99.9999")-AV6-AV7 -> 102
K6: Assumed | L6: Assumed | Q6: Total | W6: Classroom | X6: Other | Y6: Profess- | Z6: al Materials, | AA6: ance & | AC6: tions & | AD6: Benefits | AF6: Found- | AL6: wage | AM6: =SUM(AM10:AM1000000) -> 43274 | AS6: < $500 | AT6: =COUNTIF($AZ$10:$AZ$911,"<-499.9999")-AT7 -> 5 | AU6: > $200 | AV6: =COUNTIF($AZ$10:$AZ$911,">199.9999")-AV7 -> 105
H7: Junior | I7: High | K7: Special Ed | L7: Special Ed | M7: EL | N7: EL | O7: EL | P7: Ecodis | Q7: Found | R7: WAF | S7: Decile | U7: Admini- | V7: Instructional | W7: & Specialist | X7: Teaching | Y7: s | Z7: Equipment & | AA7: Psycho- | AB7: Pupil | AC7: Maint- | AD7: & Fixed | AE7: Sped | AF7: ation | AI7: Cha | AJ7: Loc | AK7: Sending | AL7: fct check | AS7: < $1000 | AT7: =COUNTIF($AZ$10:$AZ$911,"<-999.9999") -> 5 | AU7: > $500 | AV7: =COUNTIF($AZ$10:$AZ$911,">299.9999") -> 150
A8: chalea | B8: chalocsend | C8: Charter | D8: PK | E8: KP | F8: KF | G8: Elem | H8: Middle | I8: School | J8: voke | K8: In School | L8: Tuitioned | M8: PK-5 | N8: 6-8 | O8: 9-12 | P8: Low Inc | Q8: Enro | R8: Adjusted | U8: stration | V8: Leadership | W8: Teachers | X8: Services | Y8: elopment | Z8: Technology | AA8: logical | AB8: Services | AC8: enance | AD8: Charges | AE8: Tuition | AF8: Budget | AH8: chalocsend | AI8: LEA | AJ8: LEA | AK8: LEA | AL8: 1=good | AM8: enro | AN8: fnd budget | AO8: rate | AP8: diff | AQ8: rate check | AW8: projd | AX8: diff | AY8: projc | AZ8: diff | BA8: projb | BB8: diff | BC8: proja-3
AP9: x | AR9: x | AX9: x | AZ9: x | BB9: x
A10: 409 | B10: 409201072 | C10: ALMA DEL MAR | D10: ='fnd enro'!D10 -> 0 | E10: ='fnd enro'!E10 -> 0 | F10: ='fnd enro'!F10 -> 0 | G10: ='fnd enro'!G10 -> 2 | H10: ='fnd enro'!H10 -> 0 | I10: ='fnd enro'!I10 -> 0 | J10: ='fnd enro'!J10 -> 0 | K10: ='fnd enro'!K10 -> 0.0758 | L10: ='fnd enro'!L10 -> 0 | M10: ='fnd enro'!M10+'fnd enro'!N10 -> 0 | N10: ='fnd enro'!O10 -> 0 | O10: ='fnd enro'!P10 -> 0 | P10: ='fnd enro'!Q10+'fnd enro'!R10 -> 1 | Q10: ='fnd enro'!T10 -> 2 | R10: =VLOOKUP(B10,charterinfo_b,6) -> 1 | S10: =VALUE('fnd enro'!S10) -> 10 | U10: =(($D10*'fnd base rates'!C$110) +($E10*'fnd base rates'!C$111) +($F10*'fnd base rates'!C$112) +($G10*'fnd base rates'!C$113) +($H10*'fnd base rates'!C$114) +($I10*'fnd base rates'!C$115) +($J10*'fnd base rates'!C$119) +($K10*'fnd base rates'!C$120) +($M10*'fnd base rates'!C$122) +($N10*'fnd base rates'!C$123) +($O10*'fnd base rates'!C$124) +($P10*VLOOKUP($S10+15,rate_basefnd,3))) *$R10 -> 1051.197484 | V10: =(($D10*'fnd base rates'!D$110) +($E10*'fnd base rates'!D$111) +($F10*'fnd base rates'!D$112) +($G10*'fnd base rates'!D$113) +($H10*'fnd base rates'!D$114) +($I10*'fnd base rates'!D$115) +($J10*'fnd base rates'!D$119) +($K10*'fnd base rates'!D$120) +($M10*'fnd base rates'!D$122) +($N10*'fnd base rates'!D$123) +($O10*'fnd base rates'!D$124) +($P10*VLOOKUP($S10+15,rate_basefnd,4))) *$R10 -> 1710.91 | W10: =(($D10*'fnd base rates'!E$110) +($E10*'fnd base rates'!E$111) +($F10*'fnd base rates'!E$112) +($G10*'fnd base rates'!E$113) +($H10*'fnd base rates'!E$114) +($I10*'fnd base rates'!E$115) +($J10*'fnd base rates'!E$119) +($K10*'fnd base rates'!E$120) +($M10*'fnd base rates'!E$122) +($N10*'fnd base rates'!E$123) +($O10*'fnd base rates'!E$124) +($P10*VLOOKUP($S10+15,rate_basefnd,5))) *$R10 -> 10049.63185 | X10: =(($D10*'fnd base rates'!F$110) +($E10*'fnd base rates'!F$111) +($F10*'fnd base rates'!F$112) +($G10*'fnd base rates'!F$113) +($H10*'fnd base rates'!F$114) +($I10*'fnd base rates'!F$115) +($J10*'fnd base rates'!F$119) +($K10*'fnd base rates'!F$120) +($M10*'fnd base rates'!F$122) +($N10*'fnd base rates'!F$123) +($O10*'fnd base rates'!F$124) +($P10*VLOOKUP($S10+15,rate_basefnd,6))) *$R10 -> 2296.64583 | Y10: =(($D10*'fnd base rates'!G$110) +($E10*'fnd base rates'!G$111) +($F10*'fnd base rates'!G$112) +($G10*'fnd base rates'!G$113) +($H10*'fnd base rates'!G$114) +($I10*'fnd base rates'!G$115) +($J10*'fnd base rates'!G$119) +($K10*'fnd base rates'!G$120) +($M10*'fnd base rates'!G$122) +($N10*'fnd base rates'!G$123) +($O10*'fnd base rates'!G$124) +($P10*VLOOKUP($S10+15,rate_basefnd,7))) *$R10 -> 429.317206 | Z10: =(($D10*'fnd base rates'!H$110) +($E10*'fnd base rates'!H$111) +($F10*'fnd base rates'!H$112) +($G10*'fnd base rates'!H$113) +($H10*'fnd base rates'!H$114) +($I10*'fnd base rates'!H$115) +($J10*'fnd base rates'!H$119) +($K10*'fnd base rates'!H$120) +($M10*'fnd base rates'!H$122) +($N10*'fnd base rates'!H$123) +($O10*'fnd base rates'!H$124) +($P10*VLOOKUP($S10+15,rate_basefnd,8))) -> 989.477156 | AA10: =(($D10*'fnd base rates'!I$110) +($E10*'fnd base rates'!I$111) +($F10*'fnd base rates'!I$112) +($G10*'fnd base rates'!I$113) +($H10*'fnd base rates'!I$114) +($I10*'fnd base rates'!I$115) +($J10*'fnd base rates'!I$119) +($K10*'fnd base rates'!I$120) +($M10*'fnd base rates'!I$122) +($N10*'fnd base rates'!I$123) +($O10*'fnd base rates'!I$124) +($P10*VLOOKUP($S10+15,rate_basefnd,9))) *$R10 -> 589.07 | AB10: =(($D10*'fnd base rates'!J$110) +($E10*'fnd base rates'!J$111) +($F10*'fnd base rates'!J$112) +($G10*'fnd base rates'!J$113) +($H10*'fnd base rates'!J$114) +($I10*'fnd base rates'!J$115) +($J10*'fnd base rates'!J$119) +($K10*'fnd base rates'!J$120) +($M10*'fnd base rates'!J$122) +($N10*'fnd base rates'!J$123) +($O10*'fnd base rates'!J$124) +($P10*VLOOKUP($S10+15,rate_basefnd,10))) *$R10 -> 888.19 | AC10: =(($D10*'fnd base rates'!K$110) +($E10*'fnd base rates'!K$111) +($F10*'fnd base rates'!K$112) +($G10*'fnd base rates'!K$113) +($H10*'fnd base rates'!K$114) +($I10*'fnd base rates'!K$115) +($J10*'fnd base rates'!K$119) +($K10*'fnd base rates'!K$120) +($M10*'fnd base rates'!K$122) +($N10*'fnd base rates'!K$123) +($O10*'fnd base rates'!K$124) +($P10*VLOOKUP($S10+15,rate_basefnd,11))) *$R10 -> 2031.636522 | AD10: =(($D10*'fnd base rates'!L$110) +($E10*'fnd base rates'!L$111) +($F10*'fnd base rates'!L$112) +($G10*'fnd base rates'!L$113) +($H10*'fnd base rates'!L$114) +($I10*'fnd base rates'!L$115) +($J10*'fnd base rates'!L$119) +($K10*'fnd base rates'!L$120) +($M10*'fnd base rates'!L$122) +($N10*'fnd base rates'!L$123) +($O10*'fnd base rates'!L$124) +($P10*VLOOKUP($S10+15,rate_basefnd,12))) -> 2799.510958 | AE10: =(($D10*'fnd base rates'!M$110) +($E10*'fnd base rates'!M$111) +($F10*'fnd base rates'!M$112) +($G10*'fnd base rates'!M$113) +($H10*'fnd base rates'!M$114) +($I10*'fnd base rates'!M$115) +($J10*'fnd base rates'!M$119) +($K10*'fnd base rates'!M$120) +($M10*'fnd base rates'!M$122) +($N10*'fnd base rates'!M$123) +($O10*'fnd base rates'!M$124) +($P10*VLOOKUP($S10+15,rate_basefnd,13))) -> 0 | AF10: =SUM(U10:AE10) -> 22835.58701 | AH10: =B10 -> 409201072 | AI10: =IF($B10<499999999,MID($B10,1,3),MID($B10,1,4)) -> 409 | AJ10: =IF($B10<499999999,MID($B10,4,3),MID($B10,5,3)) -> 201 | AK10: =IF($B10<499999999,MID($B10,7,3),MID($B10,8,3)) -> 072 | AL10: =IF(VLOOKUP(VALUE(IF(AH10<499999999,MID(AH10,4,3),MID(AH10,5,3))),distinfo,4)=R10,1,0) -> 1 | AM10: =enro -> 2 | AN10: =AF10 -> 22835.58701 | AO10: =IF(OR(AF10=0,AM10=0),0,ROUND(AN10/AM10,0)) -> 11418 | AP10: =AO10-AQ10 -> 0 | AQ10: 11418 | AW10: 11418 | AX10: =AW10-AY10 -> 0 | AY10: 11418 | AZ10: =AY10-BA10 -> 190 | BA10: 11228 | BB10: 18 | BC10: 11210
A11: 409 | B11: 409201094 | C11: ALMA DEL MAR | D11: ='fnd enro'!D11 -> 0 | E11: ='fnd enro'!E11 -> 0 | F11: ='fnd enro'!F11 -> 0 | G11: ='fnd enro'!G11 -> 1 | H11: ='fnd enro'!H11 -> 0 | I11: ='fnd enro'!I11 -> 0 | J11: ='fnd enro'!J11 -> 0 | K11: ='fnd enro'!K11 -> 0.0379 | L11: ='fnd enro'!L11 -> 0 | M11: ='fnd enro'!M11+'fnd enro'!N11 -> 0 | N11: ='fnd enro'!O11 -> 0 | O11: ='fnd enro'!P11 -> 0 | P11: ='fnd enro'!Q11+'fnd enro'!R11 -> 1 | Q11: ='fnd enro'!T11 -> 1 | R11: 1 | S11: =VALUE('fnd enro'!S11) -> 10 | U11: =(($D11*'fnd base rates'!C$110) +($E11*'fnd base rates'!C$111) +($F11*'fnd base rates'!C$112) +($G11*'fnd base rates'!C$113) +($H11*'fnd base rates'!C$114) +($I11*'fnd base rates'!C$115) +($J11*'fnd base rates'!C$119) +($K11*'fnd base rates'!C$120) +($M11*'fnd base rates'!C$122) +($N11*'fnd base rates'!C$123) +($O11*'fnd base rates'!C$124) +($P11*VLOOKUP($S11+15,rate_basefnd,3))) *$R11 -> 556.748742 | V11: =(($D11*'fnd base rates'!D$110) +($E11*'fnd base rates'!D$111) +($F11*'fnd base rates'!D$112) +($G11*'fnd base rates'!D$113) +($H11*'fnd base rates'!D$114) +($I11*'fnd base rates'!D$115) +($J11*'fnd base rates'!D$119) +($K11*'fnd base rates'!D$120) +($M11*'fnd base rates'!D$122) +($N11*'fnd base rates'!D$123) +($O11*'fnd base rates'!D$124) +($P11*VLOOKUP($S11+15,rate_basefnd,4))) *$R11 -> 1003.05 | W11: =(($D11*'fnd base rates'!E$110) +($E11*'fnd base rates'!E$111) +($F11*'fnd base rates'!E$112) +($G11*'fnd base rates'!E$113) +($H11*'fnd base rates'!E$114) +($I11*'fnd base rates'!E$115) +($J11*'fnd base rates'!E$119) +($K11*'fnd base rates'!E$120) +($M11*'fnd base rates'!E$122) +($N11*'fnd base rates'!E$123) +($O11*'fnd base rates'!E$124) +($P11*VLOOKUP($S11+15,rate_basefnd,5))) *$R11 -> 6465.625925 | X11: =(($D11*'fnd base rates'!F$110) +($E11*'fnd base rates'!F$111) +($F11*'fnd base rates'!F$112) +($G11*'fnd base rates'!F$113) +($H11*'fnd base rates'!F$114) +($I11*'fnd base rates'!F$115) +($J11*'fnd base rates'!F$119) +($K11*'fnd base rates'!F$120) +($M11*'fnd base rates'!F$122) +($N11*'fnd base rates'!F$123) +($O11*'fnd base rates'!F$124) +($P11*VLOOKUP($S11+15,rate_basefnd,6))) *$R11 -> 1148.322915 | Y11: =(($D11*'fnd base rates'!G$110) +($E11*'fnd base rates'!G$111) +($F11*'fnd base rates'!G$112) +($G11*'fnd base rates'!G$113) +($H11*'fnd base rates'!G$114) +($I11*'fnd base rates'!G$115) +($J11*'fnd base rates'!G$119) +($K11*'fnd base rates'!G$120) +($M11*'fnd base rates'!G$122) +($N11*'fnd base rates'!G$123) +($O11*'fnd base rates'!G$124) +($P11*VLOOKUP($S11+15,rate_basefnd,7))) *$R11 -> 284.558603 | Z11: =(($D11*'fnd base rates'!H$110) +($E11*'fnd base rates'!H$111) +($F11*'fnd base rates'!H$112) +($G11*'fnd base rates'!H$113) +($H11*'fnd base rates'!H$114) +($I11*'fnd base rates'!H$115) +($J11*'fnd base rates'!H$119) +($K11*'fnd base rates'!H$120) +($M11*'fnd base rates'!H$122) +($N11*'fnd base rates'!H$123) +($O11*'fnd base rates'!H$124) +($P11*VLOOKUP($S11+15,rate_basefnd,8))) -> 505.453578 | AA11: =(($D11*'fnd base rates'!I$110) +($E11*'fnd base rates'!I$111) +($F11*'fnd base rates'!I$112) +($G11*'fnd base rates'!I$113) +($H11*'fnd base rates'!I$114) +($I11*'fnd base rates'!I$115) +($J11*'fnd base rates'!I$119) +($K11*'fnd base rates'!I$120) +($M11*'fnd base rates'!I$122) +($N11*'fnd base rates'!I$123) +($O11*'fnd base rates'!I$124) +($P11*VLOOKUP($S11+15,rate_basefnd,9))) *$R11 -> 352.88 | AB11: =(($D11*'fnd base rates'!J$110) +($E11*'fnd base rates'!J$111) +($F11*'fnd base rates'!J$112) +($G11*'fnd base rates'!J$113) +($H11*'fnd base rates'!J$114) +($I11*'fnd base rates'!J$115) +($J11*'fnd base rates'!J$119) +($K11*'fnd base rates'!J$120) +($M11*'fnd base rates'!J$122) +($N11*'fnd base rates'!J$123) +($O11*'fnd base rates'!J$124) +($P11*VLOOKUP($S11+15,rate_basefnd,10))) *$R11 -> 747.26 | AC11: =(($D11*'fnd base rates'!K$110) +($E11*'fnd base rates'!K$111) +($F11*'fnd base rates'!K$112) +($G11*'fnd base rates'!K$113) +($H11*'fnd base rates'!K$114) +($I11*'fnd base rates'!K$115) +($J11*'fnd base rates'!K$119) +($K11*'fnd base rates'!K$120) +($M11*'fnd base rates'!K$122) +($N11*'fnd base rates'!K$123) +($O11*'fnd base rates'!K$124) +($P11*VLOOKUP($S11+15,rate_basefnd,11))) *$R11 -> 1015.818261 | AD11: =(($D11*'fnd base rates'!L$110) +($E11*'fnd base rates'!L$111) +($F11*'fnd base rates'!L$112) +($G11*'fnd base rates'!L$113) +($H11*'fnd base rates'!L$114) +($I11*'fnd base rates'!L$115) +($J11*'fnd base rates'!L$119) +($K11*'fnd base rates'!L$120) +($M11*'fnd base rates'!L$122) +($N11*'fnd base rates'!L$123) +($O11*'fnd base rates'!L$124) +($P11*VLOOKUP($S11+15,rate_basefnd,12))) -> 1632.820479 | AE11: =(($D11*'fnd base rates'!M$110) +($E11*'fnd base rates'!M$111) +($F11*'fnd base rates'!M$112) +($G11*'fnd base rates'!M$113) +($H11*'fnd base rates'!M$114) +($I11*'fnd base rates'!M$115) +($J11*'fnd base rates'!M$119) +($K11*'fnd base rates'!M$120) +($M11*'fnd base rates'!M$122) +($N11*'fnd base rates'!M$123) +($O11*'fnd base rates'!M$124) +($P11*VLOOKUP($S11+15,rate_basefnd,13))) -> 0 | AF11: =SUM(U11:AE11) -> 13712.5385 | AH11: 409201094 | AI11: =IF($B11<499999999,MID($B11,1,3),MID($B11,1,4)) -> 409 | AJ11: =IF($B11<499999999,MID($B11,4,3),MID($B11,5,3)) -> 201 | AK11: =IF($B11<499999999,MID($B11,7,3),MID($B11,8,3)) -> 094 | AL11: =IF(VLOOKUP(VALUE(IF(AH11<499999999,MID(AH11,4,3),MID(AH11,5,3))),distinfo,4)=R11,1,0) -> 1 | AM11: 1 | AN11: =AF11 -> 13712.5385 | AO11: =IF(OR(AF11=0,AM11=0),0,ROUND(AN11/AM11,0)) -> 13713 | AP11: 0 | AQ11: 13713 | AW11: 13713 | AX11: =AW11-AY11 -> 0 | AY11: 13713 | AZ11: =AY11-BA11 -> 381 | BA11: 13332 | BB11: 24 | BC11: 13308
A12: 409 | B12: 409201095 | C12: ALMA DEL MAR | D12: ='fnd enro'!D12 -> 0 | E12: ='fnd enro'!E12 -> 0 | F12: ='fnd enro'!F12 -> 0 | G12: ='fnd enro'!G12 -> 0 | H12: ='fnd enro'!H12 -> 1 | I12: ='fnd enro'!I12 -> 0 | J12: ='fnd enro'!J12 -> 0 | K12: ='fnd enro'!K12 -> 0.0379 | L12: ='fnd enro'!L12 -> 0 | M12: ='fnd enro'!M12+'fnd enro'!N12 -> 0 | N12: ='fnd enro'!O12 -> 0 | O12: ='fnd enro'!P12 -> 0 | P12: ='fnd enro'!Q12+'fnd enro'!R12 -> 1 | Q12: ='fnd enro'!T12 -> 1 | R12: 1 | S12: =VALUE('fnd enro'!S12) -> 10 | U12: =(($D12*'fnd base rates'!C$110) +($E12*'fnd base rates'!C$111) +($F12*'fnd base rates'!C$112) +($G12*'fnd base rates'!C$113) +($H12*'fnd base rates'!C$114) +($I12*'fnd base rates'!C$115) +($J12*'fnd base rates'!C$119) +($K12*'fnd base rates'!C$120) +($M12*'fnd base rates'!C$122) +($N12*'fnd base rates'!C$123) +($O12*'fnd base rates'!C$124) +($P12*VLOOKUP($S12+15,rate_basefnd,3))) *$R12 -> 556.748742 | V12: =(($D12*'fnd base rates'!D$110) +($E12*'fnd base rates'!D$111) +($F12*'fnd base rates'!D$112) +($G12*'fnd base rates'!D$113) +($H12*'fnd base rates'!D$114) +($I12*'fnd base rates'!D$115) +($J12*'fnd base rates'!D$119) +($K12*'fnd base rates'!D$120) +($M12*'fnd base rates'!D$122) +($N12*'fnd base rates'!D$123) +($O12*'fnd base rates'!D$124) +($P12*VLOOKUP($S12+15,rate_basefnd,4))) *$R12 -> 1003.05 | W12: =(($D12*'fnd base rates'!E$110) +($E12*'fnd base rates'!E$111) +($F12*'fnd base rates'!E$112) +($G12*'fnd base rates'!E$113) +($H12*'fnd base rates'!E$114) +($I12*'fnd base rates'!E$115) +($J12*'fnd base rates'!E$119) +($K12*'fnd base rates'!E$120) +($M12*'fnd base rates'!E$122) +($N12*'fnd base rates'!E$123) +($O12*'fnd base rates'!E$124) +($P12*VLOOKUP($S12+15,rate_basefnd,5))) *$R12 -> 6076.155925 | X12: =(($D12*'fnd base rates'!F$110) +($E12*'fnd base rates'!F$111) +($F12*'fnd base rates'!F$112) +($G12*'fnd base rates'!F$113) +($H12*'fnd base rates'!F$114) +($I12*'fnd base rates'!F$115) +($J12*'fnd base rates'!F$119) +($K12*'fnd base rates'!F$120) +($M12*'fnd base rates'!F$122) +($N12*'fnd base rates'!F$123) +($O12*'fnd base rates'!F$124) +($P12*VLOOKUP($S12+15,rate_basefnd,6))) *$R12 -> 915.102915 | Y12: =(($D12*'fnd base rates'!G$110) +($E12*'fnd base rates'!G$111) +($F12*'fnd base rates'!G$112) +($G12*'fnd base rates'!G$113) +($H12*'fnd base rates'!G$114) +($I12*'fnd base rates'!G$115) +($J12*'fnd base rates'!G$119) +($K12*'fnd base rates'!G$120) +($M12*'fnd base rates'!G$122) +($N12*'fnd base rates'!G$123) +($O12*'fnd base rates'!G$124) +($P12*VLOOKUP($S12+15,rate_basefnd,7))) *$R12 -> 295.358603 | Z12: =(($D12*'fnd base rates'!H$110) +($E12*'fnd base rates'!H$111) +($F12*'fnd base rates'!H$112) +($G12*'fnd base rates'!H$113) +($H12*'fnd base rates'!H$114) +($I12*'fnd base rates'!H$115) +($J12*'fnd base rates'!H$119) +($K12*'fnd base rates'!H$120) +($M12*'fnd base rates'!H$122) +($N12*'fnd base rates'!H$123) +($O12*'fnd base rates'!H$124) +($P12*VLOOKUP($S12+15,rate_basefnd,8))) -> 505.453578 | AA12: =(($D12*'fnd base rates'!I$110) +($E12*'fnd base rates'!I$111) +($F12*'fnd base rates'!I$112) +($G12*'fnd base rates'!I$113) +($H12*'fnd base rates'!I$114) +($I12*'fnd base rates'!I$115) +($J12*'fnd base rates'!I$119) +($K12*'fnd base rates'!I$120) +($M12*'fnd base rates'!I$122) +($N12*'fnd base rates'!I$123) +($O12*'fnd base rates'!I$124) +($P12*VLOOKUP($S12+15,rate_basefnd,9))) *$R12 -> 431.07 | AB12: =(($D12*'fnd base rates'!J$110) +($E12*'fnd base rates'!J$111) +($F12*'fnd base rates'!J$112) +($G12*'fnd base rates'!J$113) +($H12*'fnd base rates'!J$114) +($I12*'fnd base rates'!J$115) +($J12*'fnd base rates'!J$119) +($K12*'fnd base rates'!J$120) +($M12*'fnd base rates'!J$122) +($N12*'fnd base rates'!J$123) +($O12*'fnd base rates'!J$124) +($P12*VLOOKUP($S12+15,rate_basefnd,10))) *$R12 -> 836.54 | AC12: =(($D12*'fnd base rates'!K$110) +($E12*'fnd base rates'!K$111) +($F12*'fnd base rates'!K$112) +($G12*'fnd base rates'!K$113) +($H12*'fnd base rates'!K$114) +($I12*'fnd base rates'!K$115) +($J12*'fnd base rates'!K$119) +($K12*'fnd base rates'!K$120) +($M12*'fnd base rates'!K$122) +($N12*'fnd base rates'!K$123) +($O12*'fnd base rates'!K$124) +($P12*VLOOKUP($S12+15,rate_basefnd,11))) *$R12 -> 1091.648261 | AD12: =(($D12*'fnd base rates'!L$110) +($E12*'fnd base rates'!L$111) +($F12*'fnd base rates'!L$112) +($G12*'fnd base rates'!L$113) +($H12*'fnd base rates'!L$114) +($I12*'fnd base rates'!L$115) +($J12*'fnd base rates'!L$119) +($K12*'fnd base rates'!L$120) +($M12*'fnd base rates'!L$122) +($N12*'fnd base rates'!L$123) +($O12*'fnd base rates'!L$124) +($P12*VLOOKUP($S12+15,rate_basefnd,12))) -> 1663.821427 | AE12: =(($D12*'fnd base rates'!M$110) +($E12*'fnd base rates'!M$111) +($F12*'fnd base rates'!M$112) +($G12*'fnd base rates'!M$113) +($H12*'fnd base rates'!M$114) +($I12*'fnd base rates'!M$115) +($J12*'fnd base rates'!M$119) +($K12*'fnd base rates'!M$120) +($M12*'fnd base rates'!M$122) +($N12*'fnd base rates'!M$123) +($O12*'fnd base rates'!M$124) +($P12*VLOOKUP($S12+15,rate_basefnd,13))) -> 0 | AF12: 13374.94945 | AH12: 409201095 | AI12: 409 | AJ12: 201 | AK12: 095 | AL12: 1 | AM12: 1 | AN12: 13374.94945 | AO12: 13375 | AP12: 0 | AQ12: 13375 | AW12: 13375 | AX12: 0 | AY12: 13375 | AZ12: 378 | BA12: 12997 | BB12: 26 | BC12: 12971
A13: 409 | B13: 409201201 | C13: ALMA DEL MAR | D13: ='fnd enro'!D13 -> 0 | E13: ='fnd enro'!E13 -> 0 | F13: ='fnd enro'!F13 -> 53 | G13: ='fnd enro'!G13 -> 246 | H13: ='fnd enro'!H13 -> 135 | I13: ='fnd enro'!I13 -> 0 | J13: ='fnd enro'!J13 -> 0 | K13: ='fnd enro'!K13 -> 16.4486 | L13: ='fnd enro'!L13 -> 0 | M13: ='fnd enro'!M13+'fnd enro'!N13 -> 98 | N13: ='fnd enro'!O13 -> 9 | O13: ='fnd enro'!P13 -> 0 | P13: ='fnd enro'!Q13+'fnd enro'!R13 -> 296 | Q13: ='fnd enro'!T13 -> 434 | R13: 1 | S13: =VALUE('fnd enro'!S13) -> 10 | U13: =(($D13*'fnd base rates'!C$110) +($E13*'fnd base rates'!C$111) +($F13*'fnd base rates'!C$112) +($G13*'fnd base rates'!C$113) +($H13*'fnd base rates'!C$114) +($I13*'fnd base rates'!C$115) +($J13*'fnd base rates'!C$119) +($K13*'fnd base rates'!C$120) +($M13*'fnd base rates'!C$122) +($N13*'fnd base rates'!C$123) +($O13*'fnd base rates'!C$124) +($P13*VLOOKUP($S13+15,rate_basefnd,3))) *$R13 -> 242713.794 | V13: =(($D13*'fnd base rates'!D$110) +($E13*'fnd base rates'!D$111) +($F13*'fnd base rates'!D$112) +($G13*'fnd base rates'!D$113) +($H13*'fnd base rates'!D$114) +($I13*'fnd base rates'!D$115) +($J13*'fnd base rates'!D$119) +($K13*'fnd base rates'!D$120) +($M13*'fnd base rates'!D$122) +($N13*'fnd base rates'!D$123) +($O13*'fnd base rates'!D$124) +($P13*VLOOKUP($S13+15,rate_basefnd,4))) *$R13 -> 411530.91 | W13: =(($D13*'fnd base rates'!E$110) +($E13*'fnd base rates'!E$111) +($F13*'fnd base rates'!E$112) +($G13*'fnd base rates'!E$113) +($H13*'fnd base rates'!E$114) +($I13*'fnd base rates'!E$115) +($J13*'fnd base rates'!E$119) +($K13*'fnd base rates'!E$120) +($M13*'fnd base rates'!E$122) +($N13*'fnd base rates'!E$123) +($O13*'fnd base rates'!E$124) +($P13*VLOOKUP($S13+15,rate_basefnd,5))) *$R13 -> 2474438.641 | X13: =(($D13*'fnd base rates'!F$110) +($E13*'fnd base rates'!F$111) +($F13*'fnd base rates'!F$112) +($G13*'fnd base rates'!F$113) +($H13*'fnd base rates'!F$114) +($I13*'fnd base rates'!F$115) +($J13*'fnd base rates'!F$119) +($K13*'fnd base rates'!F$120) +($M13*'fnd base rates'!F$122) +($N13*'fnd base rates'!F$123) +($O13*'fnd base rates'!F$124) +($P13*VLOOKUP($S13+15,rate_basefnd,6))) *$R13 -> 483830.8751 | Y13: =(($D13*'fnd base rates'!G$110) +($E13*'fnd base rates'!G$111) +($F13*'fnd base rates'!G$112) +($G13*'fnd base rates'!G$113) +($H13*'fnd base rates'!G$114) +($I13*'fnd base rates'!G$115) +($J13*'fnd base rates'!G$119) +($K13*'fnd base rates'!G$120) +($M13*'fnd base rates'!G$122) +($N13*'fnd base rates'!G$123) +($O13*'fnd base rates'!G$124) +($P13*VLOOKUP($S13+15,rate_basefnd,7))) *$R13 -> 110503.0237 | Z13: =(($D13*'fnd base rates'!H$110) +($E13*'fnd base rates'!H$111) +($F13*'fnd base rates'!H$112) +($G13*'fnd base rates'!H$113) +($H13*'fnd base rates'!H$114) +($I13*'fnd base rates'!H$115) +($J13*'fnd base rates'!H$119) +($K13*'fnd base rates'!H$120) +($M13*'fnd base rates'!H$122) +($N13*'fnd base rates'!H$123) +($O13*'fnd base rates'!H$124) +($P13*VLOOKUP($S13+15,rate_basefnd,8))) -> 228510.7529 | AA13: =(($D13*'fnd base rates'!I$110) +($E13*'fnd base rates'!I$111) +($F13*'fnd base rates'!I$112) +($G13*'fnd base rates'!I$113) +($H13*'fnd base rates'!I$114) +($I13*'fnd base rates'!I$115) +($J13*'fnd base rates'!I$119) +($K13*'fnd base rates'!I$120) +($M13*'fnd base rates'!I$122) +($N13*'fnd base rates'!I$123) +($O13*'fnd base rates'!I$124) +($P13*VLOOKUP($S13+15,rate_basefnd,9))) *$R13 -> 154863.54 | AB13: =(($D13*'fnd base rates'!J$110) +($E13*'fnd base rates'!J$111) +($F13*'fnd base rates'!J$112) +($G13*'fnd base rates'!J$113) +($H13*'fnd base rates'!J$114) +($I13*'fnd base rates'!J$115) +($J13*'fnd base rates'!J$119) +($K13*'fnd base rates'!J$120) +($M13*'fnd base rates'!J$122) +($N13*'fnd base rates'!J$123) +($O13*'fnd base rates'!J$124) +($P13*VLOOKUP($S13+15,rate_basefnd,10))) *$R13 -> 252622.27 | AC13: =(($D13*'fnd base rates'!K$110) +($E13*'fnd base rates'!K$111) +($F13*'fnd base rates'!K$112) +($G13*'fnd base rates'!K$113) +($H13*'fnd base rates'!K$114) +($I13*'fnd base rates'!K$115) +($J13*'fnd base rates'!K$119) +($K13*'fnd base rates'!K$120) +($M13*'fnd base rates'!K$122) +($N13*'fnd base rates'!K$123) +($O13*'fnd base rates'!K$124) +($P13*VLOOKUP($S13+15,rate_basefnd,11))) *$R13 -> 480146.8453 | AD13: =(($D13*'fnd base rates'!L$110) +($E13*'fnd base rates'!L$111) +($F13*'fnd base rates'!L$112) +($G13*'fnd base rates'!L$113) +($H13*'fnd base rates'!L$114) +($I13*'fnd base rates'!L$115) +($J13*'fnd base rates'!L$119) +($K13*'fnd base rates'!L$120) +($M13*'fnd base rates'!L$122) +($N13*'fnd base rates'!L$123) +($O13*'fnd base rates'!L$124) +($P13*VLOOKUP($S13+15,rate_basefnd,12))) -> 675125.0788 | AE13: =(($D13*'fnd base rates'!M$110) +($E13*'fnd base rates'!M$111) +($F13*'fnd base rates'!M$112) +($G13*'fnd base rates'!M$113) +($H13*'fnd base rates'!M$114) +($I13*'fnd base rates'!M$115) +($J13*'fnd base rates'!M$119) +($K13*'fnd base rates'!M$120) +($M13*'fnd base rates'!M$122) +($N13*'fnd base rates'!M$123) +($O13*'fnd base rates'!M$124) +($P13*VLOOKUP($S13+15,rate_basefnd,13))) -> 0 | AF13: 5514285.731 | AH13: 409201201 | AI13: 409 | AJ13: 201 | AK13: 201 | AL13: 1 | AM13: 434 | AN13: 5514285.731 | AO13: 12706 | AP13: 0 | AQ13: 12706 | AW13: 12706 | AX13: 0 | AY13: 12706 | AZ13: 274 | BA13: 12432 | BB13: 49 | BC13: 12383
A14: 409 | B14: 409201293 | C14: ALMA DEL MAR | D14: ='fnd enro'!D14 -> 0 | E14: ='fnd enro'!E14 -> 0 | F14: ='fnd enro'!F14 -> 0 | G14: ='fnd enro'!G14 -> 1 | H14: ='fnd enro'!H14 -> 0 | I14: ='fnd enro'!I14 -> 0 | J14: ='fnd enro'!J14 -> 0 | K14: ='fnd enro'!K14 -> 0.0379 | L14: ='fnd enro'!L14 -> 0 | M14: ='fnd enro'!M14+'fnd enro'!N14 -> 0 | N14: ='fnd enro'!O14 -> 0 | O14: ='fnd enro'!P14 -> 0 | P14: ='fnd enro'!Q14+'fnd enro'!R14 -> 0 | Q14: ='fnd enro'!T14 -> 1 | R14: 1 | S14: =VALUE('fnd enro'!S14) -> 1 | U14: =(($D14*'fnd base rates'!C$110) +($E14*'fnd base rates'!C$111) +($F14*'fnd base rates'!C$112) +($G14*'fnd base rates'!C$113) +($H14*'fnd base rates'!C$114) +($I14*'fnd base rates'!C$115) +($J14*'fnd base rates'!C$119) +($K14*'fnd base rates'!C$120) +($M14*'fnd base rates'!C$122) +($N14*'fnd base rates'!C$123) +($O14*'fnd base rates'!C$124) +($P14*VLOOKUP($S14+15,rate_basefnd,3))) *$R14 -> 494.448742 | V14: =(($D14*'fnd base rates'!D$110) +($E14*'fnd base rates'!D$111) +($F14*'fnd base rates'!D$112) +($G14*'fnd base rates'!D$113) +($H14*'fnd base rates'!D$114) +($I14*'fnd base rates'!D$115) +($J14*'fnd base rates'!D$119) +($K14*'fnd base rates'!D$120) +($M14*'fnd base rates'!D$122) +($N14*'fnd base rates'!D$123) +($O14*'fnd base rates'!D$124) +($P14*VLOOKUP($S14+15,rate_basefnd,4))) *$R14 -> 707.86 | W14: =(($D14*'fnd base rates'!E$110) +($E14*'fnd base rates'!E$111) +($F14*'fnd base rates'!E$112) +($G14*'fnd base rates'!E$113) +($H14*'fnd base rates'!E$114) +($I14*'fnd base rates'!E$115) +($J14*'fnd base rates'!E$119) +($K14*'fnd base rates'!E$120) +($M14*'fnd base rates'!E$122) +($N14*'fnd base rates'!E$123) +($O14*'fnd base rates'!E$124) +($P14*VLOOKUP($S14+15,rate_basefnd,5))) *$R14 -> 3584.005925 | X14: =(($D14*'fnd base rates'!F$110) +($E14*'fnd base rates'!F$111) +($F14*'fnd base rates'!F$112) +($G14*'fnd base rates'!F$113) +($H14*'fnd base rates'!F$114) +($I14*'fnd base rates'!F$115) +($J14*'fnd base rates'!F$119) +($K14*'fnd base rates'!F$120) +($M14*'fnd base rates'!F$122) +($N14*'fnd base rates'!F$123) +($O14*'fnd base rates'!F$124) +($P14*VLOOKUP($S14+15,rate_basefnd,6))) *$R14 -> 1148.322915 | Y14: =(($D14*'fnd base rates'!G$110) +($E14*'fnd base rates'!G$111) +($F14*'fnd base rates'!G$112) +($G14*'fnd base rates'!G$113) +($H14*'fnd base rates'!G$114) +($I14*'fnd base rates'!G$115) +($J14*'fnd base rates'!G$119) +($K14*'fnd base rates'!G$120) +($M14*'fnd base rates'!G$122) +($N14*'fnd base rates'!G$123) +($O14*'fnd base rates'!G$124) +($P14*VLOOKUP($S14+15,rate_basefnd,7))) *$R14 -> 144.758603 | Z14: =(($D14*'fnd base rates'!H$110) +($E14*'fnd base rates'!H$111) +($F14*'fnd base rates'!H$112) +($G14*'fnd base rates'!H$113) +($H14*'fnd base rates'!H$114) +($I14*'fnd base rates'!H$115) +($J14*'fnd base rates'!H$119) +($K14*'fnd base rates'!H$120) +($M14*'fnd base rates'!H$122) +($N14*'fnd base rates'!H$123) +($O14*'fnd base rates'!H$124) +($P14*VLOOKUP($S14+15,rate_basefnd,8))) -> 484.023578 | AA14: =(($D14*'fnd base rates'!I$110) +($E14*'fnd base rates'!I$111) +($F14*'fnd base rates'!I$112) +($G14*'fnd base rates'!I$113) +($H14*'fnd base rates'!I$114) +($I14*'fnd base rates'!I$115) +($J14*'fnd base rates'!I$119) +($K14*'fnd base rates'!I$120) +($M14*'fnd base rates'!I$122) +($N14*'fnd base rates'!I$123) +($O14*'fnd base rates'!I$124) +($P14*VLOOKUP($S14+15,rate_basefnd,9))) *$R14 -> 236.19 | AB14: =(($D14*'fnd base rates'!J$110) +($E14*'fnd base rates'!J$111) +($F14*'fnd base rates'!J$112) +($G14*'fnd base rates'!J$113) +($H14*'fnd base rates'!J$114) +($I14*'fnd base rates'!J$115) +($J14*'fnd base rates'!J$119) +($K14*'fnd base rates'!J$120) +($M14*'fnd base rates'!J$122) +($N14*'fnd base rates'!J$123) +($O14*'fnd base rates'!J$124) +($P14*VLOOKUP($S14+15,rate_basefnd,10))) *$R14 -> 140.93 | AC14: =(($D14*'fnd base rates'!K$110) +($E14*'fnd base rates'!K$111) +($F14*'fnd base rates'!K$112) +($G14*'fnd base rates'!K$113) +($H14*'fnd base rates'!K$114) +($I14*'fnd base rates'!K$115) +($J14*'fnd base rates'!K$119) +($K14*'fnd base rates'!K$120) +($M14*'fnd base rates'!K$122) +($N14*'fnd base rates'!K$123) +($O14*'fnd base rates'!K$124) +($P14*VLOOKUP($S14+15,rate_basefnd,11))) *$R14 -> 1015.818261 | AD14: =(($D14*'fnd base rates'!L$110) +($E14*'fnd base rates'!L$111) +($F14*'fnd base rates'!L$112) +($G14*'fnd base rates'!L$113) +($H14*'fnd base rates'!L$114) +($I14*'fnd base rates'!L$115) +($J14*'fnd base rates'!L$119) +($K14*'fnd base rates'!L$120) +($M14*'fnd base rates'!L$122) +($N14*'fnd base rates'!L$123) +($O14*'fnd base rates'!L$124) +($P14*VLOOKUP($S14+15,rate_basefnd,12))) -> 1166.690479 | AE14: =(($D14*'fnd base rates'!M$110) +($E14*'fnd base rates'!M$111) +($F14*'fnd base rates'!M$112) +($G14*'fnd base rates'!M$113) +($H14*'fnd base rates'!M$114) +($I14*'fnd base rates'!M$115) +($J14*'fnd base rates'!M$119) +($K14*'fnd base rates'!M$120) +($M14*'fnd base rates'!M$122) +($N14*'fnd base rates'!M$123) +($O14*'fnd base rates'!M$124) +($P14*VLOOKUP($S14+15,rate_basefnd,13))) -> 0 | AF14: 9123.048503 | AH14: 409201293 | AI14: 409 | AJ14: 201 | AK14: 293 | AL14: 1 | AM14: 1 | AN14: 9123.048503 | AO14: 9123 | AP14: 0 | AQ14: 9123 | AW14: 9123 | AX14: 0 | AY14: 9123 | AZ14: -2 | BA14: 9125 | BB14: 13 | BC14: 9112
A15: 409 | B15: 409201331 | C15: ALMA DEL MAR | D15: ='fnd enro'!D15 -> 0 | E15: ='fnd enro'!E15 -> 0 | F15: ='fnd enro'!F15 -> 0 | G15: ='fnd enro'!G15 -> 1 | H15: ='fnd enro'!H15 -> 1 | I15: ='fnd enro'!I15 -> 0 | J15: ='fnd enro'!J15 -> 0 | K15: ='fnd enro'!K15 -> 0.0758 | L15: ='fnd enro'!L15 -> 0 | M15: ='fnd enro'!M15+'fnd enro'!N15 -> 0 | N15: ='fnd enro'!O15 -> 0 | O15: ='fnd enro'!P15 -> 0 | P15: ='fnd enro'!Q15+'fnd enro'!R15 -> 0 | Q15: ='fnd enro'!T15 -> 2 | R15: 1 | S15: =VALUE('fnd enro'!S15) -> 1 | U15: =(($D15*'fnd base rates'!C$110) +($E15*'fnd base rates'!C$111) +($F15*'fnd base rates'!C$112) +($G15*'fnd base rates'!C$113) +($H15*'fnd base rates'!C$114) +($I15*'fnd base rates'!C$115) +($J15*'fnd base rates'!C$119) +($K15*'fnd base rates'!C$120) +($M15*'fnd base rates'!C$122) +($N15*'fnd base rates'!C$123) +($O15*'fnd base rates'!C$124) +($P15*VLOOKUP($S15+15,rate_basefnd,3))) *$R15 -> 988.897484 | V15: =(($D15*'fnd base rates'!D$110) +($E15*'fnd base rates'!D$111) +($F15*'fnd base rates'!D$112) +($G15*'fnd base rates'!D$113) +($H15*'fnd base rates'!D$114) +($I15*'fnd base rates'!D$115) +($J15*'fnd base rates'!D$119) +($K15*'fnd base rates'!D$120) +($M15*'fnd base rates'!D$122) +($N15*'fnd base rates'!D$123) +($O15*'fnd base rates'!D$124) +($P15*VLOOKUP($S15+15,rate_basefnd,4))) *$R15 -> 1415.72 | W15: =(($D15*'fnd base rates'!E$110) +($E15*'fnd base rates'!E$111) +($F15*'fnd base rates'!E$112) +($G15*'fnd base rates'!E$113) +($H15*'fnd base rates'!E$114) +($I15*'fnd base rates'!E$115) +($J15*'fnd base rates'!E$119) +($K15*'fnd base rates'!E$120) +($M15*'fnd base rates'!E$122) +($N15*'fnd base rates'!E$123) +($O15*'fnd base rates'!E$124) +($P15*VLOOKUP($S15+15,rate_basefnd,5))) *$R15 -> 6778.54185 | X15: =(($D15*'fnd base rates'!F$110) +($E15*'fnd base rates'!F$111) +($F15*'fnd base rates'!F$112) +($G15*'fnd base rates'!F$113) +($H15*'fnd base rates'!F$114) +($I15*'fnd base rates'!F$115) +($J15*'fnd base rates'!F$119) +($K15*'fnd base rates'!F$120) +($M15*'fnd base rates'!F$122) +($N15*'fnd base rates'!F$123) +($O15*'fnd base rates'!F$124) +($P15*VLOOKUP($S15+15,rate_basefnd,6))) *$R15 -> 2063.42583 | Y15: =(($D15*'fnd base rates'!G$110) +($E15*'fnd base rates'!G$111) +($F15*'fnd base rates'!G$112) +($G15*'fnd base rates'!G$113) +($H15*'fnd base rates'!G$114) +($I15*'fnd base rates'!G$115) +($J15*'fnd base rates'!G$119) +($K15*'fnd base rates'!G$120) +($M15*'fnd base rates'!G$122) +($N15*'fnd base rates'!G$123) +($O15*'fnd base rates'!G$124) +($P15*VLOOKUP($S15+15,rate_basefnd,7))) *$R15 -> 300.317206 | Z15: =(($D15*'fnd base rates'!H$110) +($E15*'fnd base rates'!H$111) +($F15*'fnd base rates'!H$112) +($G15*'fnd base rates'!H$113) +($H15*'fnd base rates'!H$114) +($I15*'fnd base rates'!H$115) +($J15*'fnd base rates'!H$119) +($K15*'fnd base rates'!H$120) +($M15*'fnd base rates'!H$122) +($N15*'fnd base rates'!H$123) +($O15*'fnd base rates'!H$124) +($P15*VLOOKUP($S15+15,rate_basefnd,8))) -> 968.047156 | AA15: =(($D15*'fnd base rates'!I$110) +($E15*'fnd base rates'!I$111) +($F15*'fnd base rates'!I$112) +($G15*'fnd base rates'!I$113) +($H15*'fnd base rates'!I$114) +($I15*'fnd base rates'!I$115) +($J15*'fnd base rates'!I$119) +($K15*'fnd base rates'!I$120) +($M15*'fnd base rates'!I$122) +($N15*'fnd base rates'!I$123) +($O15*'fnd base rates'!I$124) +($P15*VLOOKUP($S15+15,rate_basefnd,9))) *$R15 -> 550.57 | AB15: =(($D15*'fnd base rates'!J$110) +($E15*'fnd base rates'!J$111) +($F15*'fnd base rates'!J$112) +($G15*'fnd base rates'!J$113) +($H15*'fnd base rates'!J$114) +($I15*'fnd base rates'!J$115) +($J15*'fnd base rates'!J$119) +($K15*'fnd base rates'!J$120) +($M15*'fnd base rates'!J$122) +($N15*'fnd base rates'!J$123) +($O15*'fnd base rates'!J$124) +($P15*VLOOKUP($S15+15,rate_basefnd,10))) *$R15 -> 371.14 | AC15: =(($D15*'fnd base rates'!K$110) +($E15*'fnd base rates'!K$111) +($F15*'fnd base rates'!K$112) +($G15*'fnd base rates'!K$113) +($H15*'fnd base rates'!K$114) +($I15*'fnd base rates'!K$115) +($J15*'fnd base rates'!K$119) +($K15*'fnd base rates'!K$120) +($M15*'fnd base rates'!K$122) +($N15*'fnd base rates'!K$123) +($O15*'fnd base rates'!K$124) +($P15*VLOOKUP($S15+15,rate_basefnd,11))) *$R15 -> 2107.466522 | AD15: =(($D15*'fnd base rates'!L$110) +($E15*'fnd base rates'!L$111) +($F15*'fnd base rates'!L$112) +($G15*'fnd base rates'!L$113) +($H15*'fnd base rates'!L$114) +($I15*'fnd base rates'!L$115) +($J15*'fnd base rates'!L$119) +($K15*'fnd base rates'!L$120) +($M15*'fnd base rates'!L$122) +($N15*'fnd base rates'!L$123) +($O15*'fnd base rates'!L$124) +($P15*VLOOKUP($S15+15,rate_basefnd,12))) -> 2364.381906 | AE15: =(($D15*'fnd base rates'!M$110) +($E15*'fnd base rates'!M$111) +($F15*'fnd base rates'!M$112) +($G15*'fnd base rates'!M$113) +($H15*'fnd base rates'!M$114) +($I15*'fnd base rates'!M$115) +($J15*'fnd base rates'!M$119) +($K15*'fnd base rates'!M$120) +($M15*'fnd base rates'!M$122) +($N15*'fnd base rates'!M$123) +($O15*'fnd base rates'!M$124) +($P15*VLOOKUP($S15+15,rate_basefnd,13))) -> 0 | AF15: 17908.50795 | AH15: 409201331 | AI15: 409 | AJ15: 201 | AK15: 331 | AL15: 1 | AM15: 2 | AN15: 17908.50795 | AO15: 8954 | AP15: 0 | AQ15: 8954 | AW15: 8954 | AX15: 0 | AY15: 8954 | AZ15: -3 | BA15: 8957 | BB15: 14 | BC15: 8943
A16: 410 | B16: 410035035 | C16: EXCEL ACADEMY | D16: ='fnd enro'!D16 -> 0 | E16: ='fnd enro'!E16 -> 0 | F16: ='fnd enro'!F16 -> 0 | G16: ='fnd enro'!G16 -> 93 | H16: ='fnd enro'!H16 -> 221 | I16: ='fnd enro'!I16 -> 256 | J16: ='fnd enro'!J16 -> 0 | K16: ='fnd enro'!K16 -> 21.603 | L16: ='fnd enro'!L16 -> 0 | M16: ='fnd enro'!M16+'fnd enro'!N16 -> 29 | N16: ='fnd enro'!O16 -> 24 | O16: ='fnd enro'!P16 -> 29 | P16: ='fnd enro'!Q16+'fnd enro'!R16 -> 297 | Q16: ='fnd enro'!T16 -> 570 | R16: 1.081 | S16: =VALUE('fnd enro'!S16) -> 10 | U16: =(($D16*'fnd base rates'!C$110) +($E16*'fnd base rates'!C$111) +($F16*'fnd base rates'!C$112) +($G16*'fnd base rates'!C$113) +($H16*'fnd base rates'!C$114) +($I16*'fnd base rates'!C$115) +($J16*'fnd base rates'!C$119) +($K16*'fnd base rates'!C$120) +($M16*'fnd base rates'!C$122) +($N16*'fnd base rates'!C$123) +($O16*'fnd base rates'!C$124) +($P16*VLOOKUP($S16+15,rate_basefnd,3))) *$R16 -> 332245.1045 | V16: =(($D16*'fnd base rates'!D$110) +($E16*'fnd base rates'!D$111) +($F16*'fnd base rates'!D$112) +($G16*'fnd base rates'!D$113) +($H16*'fnd base rates'!D$114) +($I16*'fnd base rates'!D$115) +($J16*'fnd base rates'!D$119) +($K16*'fnd base rates'!D$120) +($M16*'fnd base rates'!D$122) +($N16*'fnd base rates'!D$123) +($O16*'fnd base rates'!D$124) +($P16*VLOOKUP($S16+15,rate_basefnd,4))) *$R16 -> 544197.8416 | W16: =(($D16*'fnd base rates'!E$110) +($E16*'fnd base rates'!E$111) +($F16*'fnd base rates'!E$112) +($G16*'fnd base rates'!E$113) +($H16*'fnd base rates'!E$114) +($I16*'fnd base rates'!E$115) +($J16*'fnd base rates'!E$119) +($K16*'fnd base rates'!E$120) +($M16*'fnd base rates'!E$122) +($N16*'fnd base rates'!E$123) +($O16*'fnd base rates'!E$124) +($P16*VLOOKUP($S16+15,rate_basefnd,5))) *$R16 -> 3397490.118 | X16: =(($D16*'fnd base rates'!F$110) +($E16*'fnd base rates'!F$111) +($F16*'fnd base rates'!F$112) +($G16*'fnd base rates'!F$113) +($H16*'fnd base rates'!F$114) +($I16*'fnd base rates'!F$115) +($J16*'fnd base rates'!F$119) +($K16*'fnd base rates'!F$120) +($M16*'fnd base rates'!F$122) +($N16*'fnd base rates'!F$123) +($O16*'fnd base rates'!F$124) +($P16*VLOOKUP($S16+15,rate_basefnd,6))) *$R16 -> 572792.2066 | Y16: =(($D16*'fnd base rates'!G$110) +($E16*'fnd base rates'!G$111) +($F16*'fnd base rates'!G$112) +($G16*'fnd base rates'!G$113) +($H16*'fnd base rates'!G$114) +($I16*'fnd base rates'!G$115) +($J16*'fnd base rates'!G$119) +($K16*'fnd base rates'!G$120) +($M16*'fnd base rates'!G$122) +($N16*'fnd base rates'!G$123) +($O16*'fnd base rates'!G$124) +($P16*VLOOKUP($S16+15,rate_basefnd,7))) *$R16 -> 142266.6197 | Z16: =(($D16*'fnd base rates'!H$110) +($E16*'fnd base rates'!H$111) +($F16*'fnd base rates'!H$112) +($G16*'fnd base rates'!H$113) +($H16*'fnd base rates'!H$114) +($I16*'fnd base rates'!H$115) +($J16*'fnd base rates'!H$119) +($K16*'fnd base rates'!H$120) +($M16*'fnd base rates'!H$122) +($N16*'fnd base rates'!H$123) +($O16*'fnd base rates'!H$124) +($P16*VLOOKUP($S16+15,rate_basefnd,8))) -> 363179.5895 | AA16: =(($D16*'fnd base rates'!I$110) +($E16*'fnd base rates'!I$111) +($F16*'fnd base rates'!I$112) +($G16*'fnd base rates'!I$113) +($H16*'fnd base rates'!I$114) +($I16*'fnd base rates'!I$115) +($J16*'fnd base rates'!I$119) +($K16*'fnd base rates'!I$120) +($M16*'fnd base rates'!I$122) +($N16*'fnd base rates'!I$123) +($O16*'fnd base rates'!I$124) +($P16*VLOOKUP($S16+15,rate_basefnd,9))) *$R16 -> 251057.4612 | AB16: =(($D16*'fnd base rates'!J$110) +($E16*'fnd base rates'!J$111) +($F16*'fnd base rates'!J$112) +($G16*'fnd base rates'!J$113) +($H16*'fnd base rates'!J$114) +($I16*'fnd base rates'!J$115) +($J16*'fnd base rates'!J$119) +($K16*'fnd base rates'!J$120) +($M16*'fnd base rates'!J$122) +($N16*'fnd base rates'!J$123) +($O16*'fnd base rates'!J$124) +($P16*VLOOKUP($S16+15,rate_basefnd,10))) *$R16 -> 412632.2394 | AC16: =(($D16*'fnd base rates'!K$110) +($E16*'fnd base rates'!K$111) +($F16*'fnd base rates'!K$112) +($G16*'fnd base rates'!K$113) +($H16*'fnd base rates'!K$114) +($I16*'fnd base rates'!K$115) +($J16*'fnd base rates'!K$119) +($K16*'fnd base rates'!K$120) +($M16*'fnd base rates'!K$122) +($N16*'fnd base rates'!K$123) +($O16*'fnd base rates'!K$124) +($P16*VLOOKUP($S16+15,rate_basefnd,11))) *$R16 -> 679533.8622 | AD16: =(($D16*'fnd base rates'!L$110) +($E16*'fnd base rates'!L$111) +($F16*'fnd base rates'!L$112) +($G16*'fnd base rates'!L$113) +($H16*'fnd base rates'!L$114) +($I16*'fnd base rates'!L$115) +($J16*'fnd base rates'!L$119) +($K16*'fnd base rates'!L$120) +($M16*'fnd base rates'!L$122) +($N16*'fnd base rates'!L$123) +($O16*'fnd base rates'!L$124) +($P16*VLOOKUP($S16+15,rate_basefnd,12))) -> 811426.0218 | AE16: =(($D16*'fnd base rates'!M$110) +($E16*'fnd base rates'!M$111) +($F16*'fnd base rates'!M$112) +($G16*'fnd base rates'!M$113) +($H16*'fnd base rates'!M$114) +($I16*'fnd base rates'!M$115) +($J16*'fnd base rates'!M$119) +($K16*'fnd base rates'!M$120) +($M16*'fnd base rates'!M$122) +($N16*'fnd base rates'!M$123) +($O16*'fnd base rates'!M$124) +($P16*VLOOKUP($S16+15,rate_basefnd,13))) -> 0 | AF16: 7506821.064 | AH16: 410035035 | AI16: 410 | AJ16: 035 | AK16: 035 | AL16: 1 | AM16: 570 | AN16: 7506821.064 | AO16: 13170 | AP16: 0 | AQ16: 13170 | AW16: 13170 | AX16: 0 | AY16: 13170 | AZ16: 125 | BA16: 13045 | BB16: 113 | BC16: 12932
A17: 410 | B17: 410035057 | C17: EXCEL ACADEMY | D17: ='fnd enro'!D17 -> 0 | E17: ='fnd enro'!E17 -> 0 | F17: ='fnd enro'!F17 -> 0 | G17: ='fnd enro'!G17 -> 18 | H17: ='fnd enro'!H17 -> 107 | I17: ='fnd enro'!I17 -> 271 | J17: ='fnd enro'!J17 -> 0 | K17: ='fnd enro'!K17 -> 15.0084 | L17: ='fnd enro'!L17 -> 0 | M17: ='fnd enro'!M17+'fnd enro'!N17 -> 4 | N17: ='fnd enro'!O17 -> 7 | O17: ='fnd enro'!P17 -> 16 | P17: ='fnd enro'!Q17+'fnd enro'!R17 -> 223 | Q17: ='fnd enro'!T17 -> 396 | R17: 1.081 | S17: =VALUE('fnd enro'!S17) -> 10 | U17: =(($D17*'fnd base rates'!C$110) +($E17*'fnd base rates'!C$111) +($F17*'fnd base rates'!C$112) +($G17*'fnd base rates'!C$113) +($H17*'fnd base rates'!C$114) +($I17*'fnd base rates'!C$115) +($J17*'fnd base rates'!C$119) +($K17*'fnd base rates'!C$120) +($M17*'fnd base rates'!C$122) +($N17*'fnd base rates'!C$123) +($O17*'fnd base rates'!C$124) +($P17*VLOOKUP($S17+15,rate_basefnd,3))) *$R17 -> 229055.8593 | V17: =(($D17*'fnd base rates'!D$110) +($E17*'fnd base rates'!D$111) +($F17*'fnd base rates'!D$112) +($G17*'fnd base rates'!D$113) +($H17*'fnd base rates'!D$114) +($I17*'fnd base rates'!D$115) +($J17*'fnd base rates'!D$119) +($K17*'fnd base rates'!D$120) +($M17*'fnd base rates'!D$122) +($N17*'fnd base rates'!D$123) +($O17*'fnd base rates'!D$124) +($P17*VLOOKUP($S17+15,rate_basefnd,4))) *$R17 -> 378335.3633 | W17: =(($D17*'fnd base rates'!E$110) +($E17*'fnd base rates'!E$111) +($F17*'fnd base rates'!E$112) +($G17*'fnd base rates'!E$113) +($H17*'fnd base rates'!E$114) +($I17*'fnd base rates'!E$115) +($J17*'fnd base rates'!E$119) +($K17*'fnd base rates'!E$120) +($M17*'fnd base rates'!E$122) +($N17*'fnd base rates'!E$123) +($O17*'fnd base rates'!E$124) +($P17*VLOOKUP($S17+15,rate_basefnd,5))) *$R17 -> 2492592.238 | X17: =(($D17*'fnd base rates'!F$110) +($E17*'fnd base rates'!F$111) +($F17*'fnd base rates'!F$112) +($G17*'fnd base rates'!F$113) +($H17*'fnd base rates'!F$114) +($I17*'fnd base rates'!F$115) +($J17*'fnd base rates'!F$119) +($K17*'fnd base rates'!F$120) +($M17*'fnd base rates'!F$122) +($N17*'fnd base rates'!F$123) +($O17*'fnd base rates'!F$124) +($P17*VLOOKUP($S17+15,rate_basefnd,6))) *$R17 -> 371026.1973 | Y17: =(($D17*'fnd base rates'!G$110) +($E17*'fnd base rates'!G$111) +($F17*'fnd base rates'!G$112) +($G17*'fnd base rates'!G$113) +($H17*'fnd base rates'!G$114) +($I17*'fnd base rates'!G$115) +($J17*'fnd base rates'!G$119) +($K17*'fnd base rates'!G$120) +($M17*'fnd base rates'!G$122) +($N17*'fnd base rates'!G$123) +($O17*'fnd base rates'!G$124) +($P17*VLOOKUP($S17+15,rate_basefnd,7))) *$R17 -> 100029.9748 | Z17: =(($D17*'fnd base rates'!H$110) +($E17*'fnd base rates'!H$111) +($F17*'fnd base rates'!H$112) +($G17*'fnd base rates'!H$113) +($H17*'fnd base rates'!H$114) +($I17*'fnd base rates'!H$115) +($J17*'fnd base rates'!H$119) +($K17*'fnd base rates'!H$120) +($M17*'fnd base rates'!H$122) +($N17*'fnd base rates'!H$123) +($O17*'fnd base rates'!H$124) +($P17*VLOOKUP($S17+15,rate_basefnd,8))) -> 275586.1969 | AA17: =(($D17*'fnd base rates'!I$110) +($E17*'fnd base rates'!I$111) +($F17*'fnd base rates'!I$112) +($G17*'fnd base rates'!I$113) +($H17*'fnd base rates'!I$114) +($I17*'fnd base rates'!I$115) +($J17*'fnd base rates'!I$119) +($K17*'fnd base rates'!I$120) +($M17*'fnd base rates'!I$122) +($N17*'fnd base rates'!I$123) +($O17*'fnd base rates'!I$124) +($P17*VLOOKUP($S17+15,rate_basefnd,9))) *$R17 -> 186319.8087 | AB17: =(($D17*'fnd base rates'!J$110) +($E17*'fnd base rates'!J$111) +($F17*'fnd base rates'!J$112) +($G17*'fnd base rates'!J$113) +($H17*'fnd base rates'!J$114) +($I17*'fnd base rates'!J$115) +($J17*'fnd base rates'!J$119) +($K17*'fnd base rates'!J$120) +($M17*'fnd base rates'!J$122) +($N17*'fnd base rates'!J$123) +($O17*'fnd base rates'!J$124) +($P17*VLOOKUP($S17+15,rate_basefnd,10))) *$R17 -> 331640.7467 | AC17: =(($D17*'fnd base rates'!K$110) +($E17*'fnd base rates'!K$111) +($F17*'fnd base rates'!K$112) +($G17*'fnd base rates'!K$113) +($H17*'fnd base rates'!K$114) +($I17*'fnd base rates'!K$115) +($J17*'fnd base rates'!K$119) +($K17*'fnd base rates'!K$120) +($M17*'fnd base rates'!K$122) +($N17*'fnd base rates'!K$123) +($O17*'fnd base rates'!K$124) +($P17*VLOOKUP($S17+15,rate_basefnd,11))) *$R17 -> 464260.0983 | AD17: =(($D17*'fnd base rates'!L$110) +($E17*'fnd base rates'!L$111) +($F17*'fnd base rates'!L$112) +($G17*'fnd base rates'!L$113) +($H17*'fnd base rates'!L$114) +($I17*'fnd base rates'!L$115) +($J17*'fnd base rates'!L$119) +($K17*'fnd base rates'!L$120) +($M17*'fnd base rates'!L$122) +($N17*'fnd base rates'!L$123) +($O17*'fnd base rates'!L$124) +($P17*VLOOKUP($S17+15,rate_basefnd,12))) -> 556095.4586 | AE17: =(($D17*'fnd base rates'!M$110) +($E17*'fnd base rates'!M$111) +($F17*'fnd base rates'!M$112) +($G17*'fnd base rates'!M$113) +($H17*'fnd base rates'!M$114) +($I17*'fnd base rates'!M$115) +($J17*'fnd base rates'!M$119) +($K17*'fnd base rates'!M$120) +($M17*'fnd base rates'!M$122) +($N17*'fnd base rates'!M$123) +($O17*'fnd base rates'!M$124) +($P17*VLOOKUP($S17+15,rate_basefnd,13))) -> 0 | AF17: 5384941.941 | AH17: 410035057 | AI17: 410 | AJ17: 035 | AK17: 057 | AL17: 1 | AM17: 396 | AN17: 5384941.941 | AO17: 13598 | AP17: 0 | AQ17: 13598 | AW17: 13598 | AX17: 0 | AY17: 13598 | AZ17: 163 | BA17: 13435 | BB17: 39 | BC17: 13396
A18: 410 | B18: 410035071 | C18: EXCEL ACADEMY | D18: ='fnd enro'!D18 -> 0 | E18: ='fnd enro'!E18 -> 0 | F18: ='fnd enro'!F18 -> 0 | G18: ='fnd enro'!G18 -> 0 | H18: ='fnd enro'!H18 -> 1 | I18: ='fnd enro'!I18 -> 0 | J18: ='fnd enro'!J18 -> 0 | K18: ='fnd enro'!K18 -> 0.0379 | L18: ='fnd enro'!L18 -> 0 | M18: ='fnd enro'!M18+'fnd enro'!N18 -> 0 | N18: ='fnd enro'!O18 -> 0 | O18: ='fnd enro'!P18 -> 0 | P18: ='fnd enro'!Q18+'fnd enro'!R18 -> 0 | Q18: ='fnd enro'!T18 -> 1 | R18: 1.081 | S18: =VALUE('fnd enro'!S18) -> 1 | U18: =(($D18*'fnd base rates'!C$110) +($E18*'fnd base rates'!C$111) +($F18*'fnd base rates'!C$112) +($G18*'fnd base rates'!C$113) +($H18*'fnd base rates'!C$114) +($I18*'fnd base rates'!C$115) +($J18*'fnd base rates'!C$119) +($K18*'fnd base rates'!C$120) +($M18*'fnd base rates'!C$122) +($N18*'fnd base rates'!C$123) +($O18*'fnd base rates'!C$124) +($P18*VLOOKUP($S18+15,rate_basefnd,3))) *$R18 -> 534.4990901 | V18: =(($D18*'fnd base rates'!D$110) +($E18*'fnd base rates'!D$111) +($F18*'fnd base rates'!D$112) +($G18*'fnd base rates'!D$113) +($H18*'fnd base rates'!D$114) +($I18*'fnd base rates'!D$115) +($J18*'fnd base rates'!D$119) +($K18*'fnd base rates'!D$120) +($M18*'fnd base rates'!D$122) +($N18*'fnd base rates'!D$123) +($O18*'fnd base rates'!D$124) +($P18*VLOOKUP($S18+15,rate_basefnd,4))) *$R18 -> 765.19666 | W18: =(($D18*'fnd base rates'!E$110) +($E18*'fnd base rates'!E$111) +($F18*'fnd base rates'!E$112) +($G18*'fnd base rates'!E$113) +($H18*'fnd base rates'!E$114) +($I18*'fnd base rates'!E$115) +($J18*'fnd base rates'!E$119) +($K18*'fnd base rates'!E$120) +($M18*'fnd base rates'!E$122) +($N18*'fnd base rates'!E$123) +($O18*'fnd base rates'!E$124) +($P18*VLOOKUP($S18+15,rate_basefnd,5))) *$R18 -> 3453.293335 | X18: =(($D18*'fnd base rates'!F$110) +($E18*'fnd base rates'!F$111) +($F18*'fnd base rates'!F$112) +($G18*'fnd base rates'!F$113) +($H18*'fnd base rates'!F$114) +($I18*'fnd base rates'!F$115) +($J18*'fnd base rates'!F$119) +($K18*'fnd base rates'!F$120) +($M18*'fnd base rates'!F$122) +($N18*'fnd base rates'!F$123) +($O18*'fnd base rates'!F$124) +($P18*VLOOKUP($S18+15,rate_basefnd,6))) *$R18 -> 989.2262511 | Y18: =(($D18*'fnd base rates'!G$110) +($E18*'fnd base rates'!G$111) +($F18*'fnd base rates'!G$112) +($G18*'fnd base rates'!G$113) +($H18*'fnd base rates'!G$114) +($I18*'fnd base rates'!G$115) +($J18*'fnd base rates'!G$119) +($K18*'fnd base rates'!G$120) +($M18*'fnd base rates'!G$122) +($N18*'fnd base rates'!G$123) +($O18*'fnd base rates'!G$124) +($P18*VLOOKUP($S18+15,rate_basefnd,7))) *$R18 -> 168.1588498 | Z18: =(($D18*'fnd base rates'!H$110) +($E18*'fnd base rates'!H$111) +($F18*'fnd base rates'!H$112) +($G18*'fnd base rates'!H$113) +($H18*'fnd base rates'!H$114) +($I18*'fnd base rates'!H$115) +($J18*'fnd base rates'!H$119) +($K18*'fnd base rates'!H$120) +($M18*'fnd base rates'!H$122) +($N18*'fnd base rates'!H$123) +($O18*'fnd base rates'!H$124) +($P18*VLOOKUP($S18+15,rate_basefnd,8))) -> 484.023578 | AA18: =(($D18*'fnd base rates'!I$110) +($E18*'fnd base rates'!I$111) +($F18*'fnd base rates'!I$112) +($G18*'fnd base rates'!I$113) +($H18*'fnd base rates'!I$114) +($I18*'fnd base rates'!I$115) +($J18*'fnd base rates'!I$119) +($K18*'fnd base rates'!I$120) +($M18*'fnd base rates'!I$122) +($N18*'fnd base rates'!I$123) +($O18*'fnd base rates'!I$124) +($P18*VLOOKUP($S18+15,rate_basefnd,9))) *$R18 -> 339.84478 | AB18: =(($D18*'fnd base rates'!J$110) +($E18*'fnd base rates'!J$111) +($F18*'fnd base rates'!J$112) +($G18*'fnd base rates'!J$113) +($H18*'fnd base rates'!J$114) +($I18*'fnd base rates'!J$115) +($J18*'fnd base rates'!J$119) +($K18*'fnd base rates'!J$120) +($M18*'fnd base rates'!J$122) +($N18*'fnd base rates'!J$123) +($O18*'fnd base rates'!J$124) +($P18*VLOOKUP($S18+15,rate_basefnd,10))) *$R18 -> 248.85701 | AC18: =(($D18*'fnd base rates'!K$110) +($E18*'fnd base rates'!K$111) +($F18*'fnd base rates'!K$112) +($G18*'fnd base rates'!K$113) +($H18*'fnd base rates'!K$114) +($I18*'fnd base rates'!K$115) +($J18*'fnd base rates'!K$119) +($K18*'fnd base rates'!K$120) +($M18*'fnd base rates'!K$122) +($N18*'fnd base rates'!K$123) +($O18*'fnd base rates'!K$124) +($P18*VLOOKUP($S18+15,rate_basefnd,11))) *$R18 -> 1180.07177 | AD18: =(($D18*'fnd base rates'!L$110) +($E18*'fnd base rates'!L$111) +($F18*'fnd base rates'!L$112) +($G18*'fnd base rates'!L$113) +($H18*'fnd base rates'!L$114) +($I18*'fnd base rates'!L$115) +($J18*'fnd base rates'!L$119) +($K18*'fnd base rates'!L$120) +($M18*'fnd base rates'!L$122) +($N18*'fnd base rates'!L$123) +($O18*'fnd base rates'!L$124) +($P18*VLOOKUP($S18+15,rate_basefnd,12))) -> 1197.691427 | AE18: =(($D18*'fnd base rates'!M$110) +($E18*'fnd base rates'!M$111) +($F18*'fnd base rates'!M$112) +($G18*'fnd base rates'!M$113) +($H18*'fnd base rates'!M$114) +($I18*'fnd base rates'!M$115) +($J18*'fnd base rates'!M$119) +($K18*'fnd base rates'!M$120) +($M18*'fnd base rates'!M$122) +($N18*'fnd base rates'!M$123) +($O18*'fnd base rates'!M$124) +($P18*VLOOKUP($S18+15,rate_basefnd,13))) -> 0 | AF18: 9360.862752 | AH18: 410035071 | AI18: 410 | AJ18: 035 | AK18: 071 | AL18: 1 | AM18: 1 | AN18: 9360.862752 | AO18: 9361 | AP18: 0 | AQ18: 9361 | AW18: 9361 | AX18: 0 | AY18: 9361 | AZ18: -3 | BA18: 9364 | BB18: 15 | BC18: 9349
A19: 410 | B19: 410035093 | C19: EXCEL ACADEMY | D19: ='fnd enro'!D19 -> 0 | E19: ='fnd enro'!E19 -> 0 | F19: ='fnd enro'!F19 -> 0 | G19: ='fnd enro'!G19 -> 0 | H19: ='fnd enro'!H19 -> 3 | I19: ='fnd enro'!I19 -> 8 | J19: ='fnd enro'!J19 -> 0 | K19: ='fnd enro'!K19 -> 0.4169 | L19: ='fnd enro'!L19 -> 0 | M19: ='fnd enro'!M19+'fnd enro'!N19 -> 0 | N19: ='fnd enro'!O19 -> 0 | O19: ='fnd enro'!P19 -> 0 | P19: ='fnd enro'!Q19+'fnd enro'!R19 -> 5 | Q19: ='fnd enro'!T19 -> 11 | R19: 1.081 | S19: =VALUE('fnd enro'!S19) -> 9 | U19: =(($D19*'fnd base rates'!C$110) +($E19*'fnd base rates'!C$111) +($F19*'fnd base rates'!C$112) +($G19*'fnd base rates'!C$113) +($H19*'fnd base rates'!C$114) +($I19*'fnd base rates'!C$115) +($J19*'fnd base rates'!C$119) +($K19*'fnd base rates'!C$120) +($M19*'fnd base rates'!C$122) +($N19*'fnd base rates'!C$123) +($O19*'fnd base rates'!C$124) +($P19*VLOOKUP($S19+15,rate_basefnd,3))) *$R19 -> 6208.924741 | V19: =(($D19*'fnd base rates'!D$110) +($E19*'fnd base rates'!D$111) +($F19*'fnd base rates'!D$112) +($G19*'fnd base rates'!D$113) +($H19*'fnd base rates'!D$114) +($I19*'fnd base rates'!D$115) +($J19*'fnd base rates'!D$119) +($K19*'fnd base rates'!D$120) +($M19*'fnd base rates'!D$122) +($N19*'fnd base rates'!D$123) +($O19*'fnd base rates'!D$124) +($P19*VLOOKUP($S19+15,rate_basefnd,4))) *$R19 -> 9977.96511 | W19: =(($D19*'fnd base rates'!E$110) +($E19*'fnd base rates'!E$111) +($F19*'fnd base rates'!E$112) +($G19*'fnd base rates'!E$113) +($H19*'fnd base rates'!E$114) +($I19*'fnd base rates'!E$115) +($J19*'fnd base rates'!E$119) +($K19*'fnd base rates'!E$120) +($M19*'fnd base rates'!E$122) +($N19*'fnd base rates'!E$123) +($O19*'fnd base rates'!E$124) +($P19*VLOOKUP($S19+15,rate_basefnd,5))) *$R19 -> 64846.55795 | X19: =(($D19*'fnd base rates'!F$110) +($E19*'fnd base rates'!F$111) +($F19*'fnd base rates'!F$112) +($G19*'fnd base rates'!F$113) +($H19*'fnd base rates'!F$114) +($I19*'fnd base rates'!F$115) +($J19*'fnd base rates'!F$119) +($K19*'fnd base rates'!F$120) +($M19*'fnd base rates'!F$122) +($N19*'fnd base rates'!F$123) +($O19*'fnd base rates'!F$124) +($P19*VLOOKUP($S19+15,rate_basefnd,6))) *$R19 -> 10013.489 | Y19: =(($D19*'fnd base rates'!G$110) +($E19*'fnd base rates'!G$111) +($F19*'fnd base rates'!G$112) +($G19*'fnd base rates'!G$113) +($H19*'fnd base rates'!G$114) +($I19*'fnd base rates'!G$115) +($J19*'fnd base rates'!G$119) +($K19*'fnd base rates'!G$120) +($M19*'fnd base rates'!G$122) +($N19*'fnd base rates'!G$123) +($O19*'fnd base rates'!G$124) +($P19*VLOOKUP($S19+15,rate_basefnd,7))) *$R19 -> 2552.354108 | Z19: =(($D19*'fnd base rates'!H$110) +($E19*'fnd base rates'!H$111) +($F19*'fnd base rates'!H$112) +($G19*'fnd base rates'!H$113) +($H19*'fnd base rates'!H$114) +($I19*'fnd base rates'!H$115) +($J19*'fnd base rates'!H$119) +($K19*'fnd base rates'!H$120) +($M19*'fnd base rates'!H$122) +($N19*'fnd base rates'!H$123) +($O19*'fnd base rates'!H$124) +($P19*VLOOKUP($S19+15,rate_basefnd,8))) -> 7684.019358 | AA19: =(($D19*'fnd base rates'!I$110) +($E19*'fnd base rates'!I$111) +($F19*'fnd base rates'!I$112) +($G19*'fnd base rates'!I$113) +($H19*'fnd base rates'!I$114) +($I19*'fnd base rates'!I$115) +($J19*'fnd base rates'!I$119) +($K19*'fnd base rates'!I$120) +($M19*'fnd base rates'!I$122) +($N19*'fnd base rates'!I$123) +($O19*'fnd base rates'!I$124) +($P19*VLOOKUP($S19+15,rate_basefnd,9))) *$R19 -> 5044.60541 | AB19: =(($D19*'fnd base rates'!J$110) +($E19*'fnd base rates'!J$111) +($F19*'fnd base rates'!J$112) +($G19*'fnd base rates'!J$113) +($H19*'fnd base rates'!J$114) +($I19*'fnd base rates'!J$115) +($J19*'fnd base rates'!J$119) +($K19*'fnd base rates'!J$120) +($M19*'fnd base rates'!J$122) +($N19*'fnd base rates'!J$123) +($O19*'fnd base rates'!J$124) +($P19*VLOOKUP($S19+15,rate_basefnd,10))) *$R19 -> 8543.33758 | AC19: =(($D19*'fnd base rates'!K$110) +($E19*'fnd base rates'!K$111) +($F19*'fnd base rates'!K$112) +($G19*'fnd base rates'!K$113) +($H19*'fnd base rates'!K$114) +($I19*'fnd base rates'!K$115) +($J19*'fnd base rates'!K$119) +($K19*'fnd base rates'!K$120) +($M19*'fnd base rates'!K$122) +($N19*'fnd base rates'!K$123) +($O19*'fnd base rates'!K$124) +($P19*VLOOKUP($S19+15,rate_basefnd,11))) *$R19 -> 12723.94387 | AD19: =(($D19*'fnd base rates'!L$110) +($E19*'fnd base rates'!L$111) +($F19*'fnd base rates'!L$112) +($G19*'fnd base rates'!L$113) +($H19*'fnd base rates'!L$114) +($I19*'fnd base rates'!L$115) +($J19*'fnd base rates'!L$119) +($K19*'fnd base rates'!L$120) +($M19*'fnd base rates'!L$122) +($N19*'fnd base rates'!L$123) +($O19*'fnd base rates'!L$124) +($P19*VLOOKUP($S19+15,rate_basefnd,12))) -> 14639.10184 | AE19: =(($D19*'fnd base rates'!M$110) +($E19*'fnd base rates'!M$111) +($F19*'fnd base rates'!M$112) +($G19*'fnd base rates'!M$113) +($H19*'fnd base rates'!M$114) +($I19*'fnd base rates'!M$115) +($J19*'fnd base rates'!M$119) +($K19*'fnd base rates'!M$120) +($M19*'fnd base rates'!M$122) +($N19*'fnd base rates'!M$123) +($O19*'fnd base rates'!M$124) +($P19*VLOOKUP($S19+15,rate_basefnd,13))) -> 0 | AF19: 142234.299 | AH19: 410035093 | AI19: 410 | AJ19: 035 | AK19: 093 | AL19: 1 | AM19: 11 | AN19: 142234.299 | AO19: 12930 | AP19: 0 | AQ19: 12930 | AW19: 12930 | AX19: 0 | AY19: 12930 | AZ19: 167 | BA19: 12763 | BB19: 4 | BC19: 12759
A20: 410 | B20: 410035155 | C20: EXCEL ACADEMY | D20: ='fnd enro'!D20 -> 0 | E20: ='fnd enro'!E20 -> 0 | F20: ='fnd enro'!F20 -> 0 | G20: ='fnd enro'!G20 -> 0 | H20: ='fnd enro'!H20 -> 0 | I20: ='fnd enro'!I20 -> 1 | J20: ='fnd enro'!J20 -> 0 | K20: ='fnd enro'!K20 -> 0.0379 | L20: ='fnd enro'!L20 -> 0 | M20: ='fnd enro'!M20+'fnd enro'!N20 -> 0 | N20: ='fnd enro'!O20 -> 0 | O20: ='fnd enro'!P20 -> 0 | P20: ='fnd enro'!Q20+'fnd enro'!R20 -> 0 | Q20: ='fnd enro'!T20 -> 1 | R20: 1.081 | S20: =VALUE('fnd enro'!S20) -> 1 | U20: =(($D20*'fnd base rates'!C$110) +($E20*'fnd base rates'!C$111) +($F20*'fnd base rates'!C$112) +($G20*'fnd base rates'!C$113) +($H20*'fnd base rates'!C$114) +($I20*'fnd base rates'!C$115) +($J20*'fnd base rates'!C$119) +($K20*'fnd base rates'!C$120) +($M20*'fnd base rates'!C$122) +($N20*'fnd base rates'!C$123) +($O20*'fnd base rates'!C$124) +($P20*VLOOKUP($S20+15,rate_basefnd,3))) *$R20 -> 534.4990901 | V20: =(($D20*'fnd base rates'!D$110) +($E20*'fnd base rates'!D$111) +($F20*'fnd base rates'!D$112) +($G20*'fnd base rates'!D$113) +($H20*'fnd base rates'!D$114) +($I20*'fnd base rates'!D$115) +($J20*'fnd base rates'!D$119) +($K20*'fnd base rates'!D$120) +($M20*'fnd base rates'!D$122) +($N20*'fnd base rates'!D$123) +($O20*'fnd base rates'!D$124) +($P20*VLOOKUP($S20+15,rate_basefnd,4))) *$R20 -> 765.19666 | W20: =(($D20*'fnd base rates'!E$110) +($E20*'fnd base rates'!E$111) +($F20*'fnd base rates'!E$112) +($G20*'fnd base rates'!E$113) +($H20*'fnd base rates'!E$114) +($I20*'fnd base rates'!E$115) +($J20*'fnd base rates'!E$119) +($K20*'fnd base rates'!E$120) +($M20*'fnd base rates'!E$122) +($N20*'fnd base rates'!E$123) +($O20*'fnd base rates'!E$124) +($P20*VLOOKUP($S20+15,rate_basefnd,5))) *$R20 -> 4906.254625 | X20: =(($D20*'fnd base rates'!F$110) +($E20*'fnd base rates'!F$111) +($F20*'fnd base rates'!F$112) +($G20*'fnd base rates'!F$113) +($H20*'fnd base rates'!F$114) +($I20*'fnd base rates'!F$115) +($J20*'fnd base rates'!F$119) +($K20*'fnd base rates'!F$120) +($M20*'fnd base rates'!F$122) +($N20*'fnd base rates'!F$123) +($O20*'fnd base rates'!F$124) +($P20*VLOOKUP($S20+15,rate_basefnd,6))) *$R20 -> 880.7262811 | Y20: =(($D20*'fnd base rates'!G$110) +($E20*'fnd base rates'!G$111) +($F20*'fnd base rates'!G$112) +($G20*'fnd base rates'!G$113) +($H20*'fnd base rates'!G$114) +($I20*'fnd base rates'!G$115) +($J20*'fnd base rates'!G$119) +($K20*'fnd base rates'!G$120) +($M20*'fnd base rates'!G$122) +($N20*'fnd base rates'!G$123) +($O20*'fnd base rates'!G$124) +($P20*VLOOKUP($S20+15,rate_basefnd,7))) *$R20 -> 163.5862198 | Z20: =(($D20*'fnd base rates'!H$110) +($E20*'fnd base rates'!H$111) +($F20*'fnd base rates'!H$112) +($G20*'fnd base rates'!H$113) +($H20*'fnd base rates'!H$114) +($I20*'fnd base rates'!H$115) +($J20*'fnd base rates'!H$119) +($K20*'fnd base rates'!H$120) +($M20*'fnd base rates'!H$122) +($N20*'fnd base rates'!H$123) +($O20*'fnd base rates'!H$124) +($P20*VLOOKUP($S20+15,rate_basefnd,8))) -> 765.893578 | AA20: =(($D20*'fnd base rates'!I$110) +($E20*'fnd base rates'!I$111) +($F20*'fnd base rates'!I$112) +($G20*'fnd base rates'!I$113) +($H20*'fnd base rates'!I$114) +($I20*'fnd base rates'!I$115) +($J20*'fnd base rates'!I$119) +($K20*'fnd base rates'!I$120) +($M20*'fnd base rates'!I$122) +($N20*'fnd base rates'!I$123) +($O20*'fnd base rates'!I$124) +($P20*VLOOKUP($S20+15,rate_basefnd,9))) *$R20 -> 426.01129 | AB20: =(($D20*'fnd base rates'!J$110) +($E20*'fnd base rates'!J$111) +($F20*'fnd base rates'!J$112) +($G20*'fnd base rates'!J$113) +($H20*'fnd base rates'!J$114) +($I20*'fnd base rates'!J$115) +($J20*'fnd base rates'!J$119) +($K20*'fnd base rates'!J$120) +($M20*'fnd base rates'!J$122) +($N20*'fnd base rates'!J$123) +($O20*'fnd base rates'!J$124) +($P20*VLOOKUP($S20+15,rate_basefnd,10))) *$R20 -> 573.84885 | AC20: =(($D20*'fnd base rates'!K$110) +($E20*'fnd base rates'!K$111) +($F20*'fnd base rates'!K$112) +($G20*'fnd base rates'!K$113) +($H20*'fnd base rates'!K$114) +($I20*'fnd base rates'!K$115) +($J20*'fnd base rates'!K$119) +($K20*'fnd base rates'!K$120) +($M20*'fnd base rates'!K$122) +($N20*'fnd base rates'!K$123) +($O20*'fnd base rates'!K$124) +($P20*VLOOKUP($S20+15,rate_basefnd,11))) *$R20 -> 1147.96607 | AD20: =(($D20*'fnd base rates'!L$110) +($E20*'fnd base rates'!L$111) +($F20*'fnd base rates'!L$112) +($G20*'fnd base rates'!L$113) +($H20*'fnd base rates'!L$114) +($I20*'fnd base rates'!L$115) +($J20*'fnd base rates'!L$119) +($K20*'fnd base rates'!L$120) +($M20*'fnd base rates'!L$122) +($N20*'fnd base rates'!L$123) +($O20*'fnd base rates'!L$124) +($P20*VLOOKUP($S20+15,rate_basefnd,12))) -> 1095.759695 | AE20: =(($D20*'fnd base rates'!M$110) +($E20*'fnd base rates'!M$111) +($F20*'fnd base rates'!M$112) +($G20*'fnd base rates'!M$113) +($H20*'fnd base rates'!M$114) +($I20*'fnd base rates'!M$115) +($J20*'fnd base rates'!M$119) +($K20*'fnd base rates'!M$120) +($M20*'fnd base rates'!M$122) +($N20*'fnd base rates'!M$123) +($O20*'fnd base rates'!M$124) +($P20*VLOOKUP($S20+15,rate_basefnd,13))) -> 0 | AF20: 11259.74236 | AH20: 410035155 | AI20: 410 | AJ20: 035 | AK20: 155 | AL20: 1 | AM20: 1 | AN20: 11259.74236 | AO20: 11260 | AP20: 0 | AQ20: 11260 | AW20: 11260 | AX20: 0 | AY20: 11260 | AZ20: -1 | BA20: 11261 | BB20: 13 | BC20: 11248
A21: 410 | B21: 410035163 | C21: EXCEL ACADEMY | D21: ='fnd enro'!D21 -> 0 | E21: ='fnd enro'!E21 -> 0 | F21: ='fnd enro'!F21 -> 0 | G21: ='fnd enro'!G21 -> 1 | H21: ='fnd enro'!H21 -> 3 | I21: ='fnd enro'!I21 -> 15 | J21: ='fnd enro'!J21 -> 0 | K21: ='fnd enro'!K21 -> 0.7201 | L21: ='fnd enro'!L21 -> 0 | M21: ='fnd enro'!M21+'fnd enro'!N21 -> 0 | N21: ='fnd enro'!O21 -> 0 | O21: ='fnd enro'!P21 -> 0 | P21: ='fnd enro'!Q21+'fnd enro'!R21 -> 5 | Q21: ='fnd enro'!T21 -> 19 | R21: 1.081 | S21: =VALUE('fnd enro'!S21) -> 5 | U21: =(($D21*'fnd base rates'!C$110) +($E21*'fnd base rates'!C$111) +($F21*'fnd base rates'!C$112) +($G21*'fnd base rates'!C$113) +($H21*'fnd base rates'!C$114) +($I21*'fnd base rates'!C$115) +($J21*'fnd base rates'!C$119) +($K21*'fnd base rates'!C$120) +($M21*'fnd base rates'!C$122) +($N21*'fnd base rates'!C$123) +($O21*'fnd base rates'!C$124) +($P21*VLOOKUP($S21+15,rate_basefnd,3))) *$R21 -> 10443.19086 | V21: =(($D21*'fnd base rates'!D$110) +($E21*'fnd base rates'!D$111) +($F21*'fnd base rates'!D$112) +($G21*'fnd base rates'!D$113) +($H21*'fnd base rates'!D$114) +($I21*'fnd base rates'!D$115) +($J21*'fnd base rates'!D$119) +($K21*'fnd base rates'!D$120) +($M21*'fnd base rates'!D$122) +($N21*'fnd base rates'!D$123) +($O21*'fnd base rates'!D$124) +($P21*VLOOKUP($S21+15,rate_basefnd,4))) *$R21 -> 15901.93159 | W21: =(($D21*'fnd base rates'!E$110) +($E21*'fnd base rates'!E$111) +($F21*'fnd base rates'!E$112) +($G21*'fnd base rates'!E$113) +($H21*'fnd base rates'!E$114) +($I21*'fnd base rates'!E$115) +($J21*'fnd base rates'!E$119) +($K21*'fnd base rates'!E$120) +($M21*'fnd base rates'!E$122) +($N21*'fnd base rates'!E$123) +($O21*'fnd base rates'!E$124) +($P21*VLOOKUP($S21+15,rate_basefnd,5))) *$R21 -> 101135.6062 | X21: =(($D21*'fnd base rates'!F$110) +($E21*'fnd base rates'!F$111) +($F21*'fnd base rates'!F$112) +($G21*'fnd base rates'!F$113) +($H21*'fnd base rates'!F$114) +($I21*'fnd base rates'!F$115) +($J21*'fnd base rates'!F$119) +($K21*'fnd base rates'!F$120) +($M21*'fnd base rates'!F$122) +($N21*'fnd base rates'!F$123) +($O21*'fnd base rates'!F$124) +($P21*VLOOKUP($S21+15,rate_basefnd,6))) *$R21 -> 17419.91004 | Y21: =(($D21*'fnd base rates'!G$110) +($E21*'fnd base rates'!G$111) +($F21*'fnd base rates'!G$112) +($G21*'fnd base rates'!G$113) +($H21*'fnd base rates'!G$114) +($I21*'fnd base rates'!G$115) +($J21*'fnd base rates'!G$119) +($K21*'fnd base rates'!G$120) +($M21*'fnd base rates'!G$122) +($N21*'fnd base rates'!G$123) +($O21*'fnd base rates'!G$124) +($P21*VLOOKUP($S21+15,rate_basefnd,7))) *$R21 -> 3760.381147 | Z21: =(($D21*'fnd base rates'!H$110) +($E21*'fnd base rates'!H$111) +($F21*'fnd base rates'!H$112) +($G21*'fnd base rates'!H$113) +($H21*'fnd base rates'!H$114) +($I21*'fnd base rates'!H$115) +($J21*'fnd base rates'!H$119) +($K21*'fnd base rates'!H$120) +($M21*'fnd base rates'!H$122) +($N21*'fnd base rates'!H$123) +($O21*'fnd base rates'!H$124) +($P21*VLOOKUP($S21+15,rate_basefnd,8))) -> 13516.04798 | AA21: =(($D21*'fnd base rates'!I$110) +($E21*'fnd base rates'!I$111) +($F21*'fnd base rates'!I$112) +($G21*'fnd base rates'!I$113) +($H21*'fnd base rates'!I$114) +($I21*'fnd base rates'!I$115) +($J21*'fnd base rates'!I$119) +($K21*'fnd base rates'!I$120) +($M21*'fnd base rates'!I$122) +($N21*'fnd base rates'!I$123) +($O21*'fnd base rates'!I$124) +($P21*VLOOKUP($S21+15,rate_basefnd,9))) *$R21 -> 8203.90358 | AB21: =(($D21*'fnd base rates'!J$110) +($E21*'fnd base rates'!J$111) +($F21*'fnd base rates'!J$112) +($G21*'fnd base rates'!J$113) +($H21*'fnd base rates'!J$114) +($I21*'fnd base rates'!J$115) +($J21*'fnd base rates'!J$119) +($K21*'fnd base rates'!J$120) +($M21*'fnd base rates'!J$122) +($N21*'fnd base rates'!J$123) +($O21*'fnd base rates'!J$124) +($P21*VLOOKUP($S21+15,rate_basefnd,10))) *$R21 -> 12306.76341 | AC21: =(($D21*'fnd base rates'!K$110) +($E21*'fnd base rates'!K$111) +($F21*'fnd base rates'!K$112) +($G21*'fnd base rates'!K$113) +($H21*'fnd base rates'!K$114) +($I21*'fnd base rates'!K$115) +($J21*'fnd base rates'!K$119) +($K21*'fnd base rates'!K$120) +($M21*'fnd base rates'!K$122) +($N21*'fnd base rates'!K$123) +($O21*'fnd base rates'!K$124) +($P21*VLOOKUP($S21+15,rate_basefnd,11))) *$R21 -> 21857.8059 | AD21: =(($D21*'fnd base rates'!L$110) +($E21*'fnd base rates'!L$111) +($F21*'fnd base rates'!L$112) +($G21*'fnd base rates'!L$113) +($H21*'fnd base rates'!L$114) +($I21*'fnd base rates'!L$115) +($J21*'fnd base rates'!L$119) +($K21*'fnd base rates'!L$120) +($M21*'fnd base rates'!L$122) +($N21*'fnd base rates'!L$123) +($O21*'fnd base rates'!L$124) +($P21*VLOOKUP($S21+15,rate_basefnd,12))) -> 23187.46018 | AE21: =(($D21*'fnd base rates'!M$110) +($E21*'fnd base rates'!M$111) +($F21*'fnd base rates'!M$112) +($G21*'fnd base rates'!M$113) +($H21*'fnd base rates'!M$114) +($I21*'fnd base rates'!M$115) +($J21*'fnd base rates'!M$119) +($K21*'fnd base rates'!M$120) +($M21*'fnd base rates'!M$122) +($N21*'fnd base rates'!M$123) +($O21*'fnd base rates'!M$124) +($P21*VLOOKUP($S21+15,rate_basefnd,13))) -> 0 | AF21: 227733.0009 | AH21: 410035163 | AI21: 410 | AJ21: 035 | AK21: 163 | AL21: 1 | AM21: 19 | AN21: 227733.0009 | AO21: 11986 | AP21: 0 | AQ21: 11986 | AW21: 11986 | AX21: 0 | AY21: 11986 | AZ21: -1 | BA21: 11987 | BB21: 5 | BC21: 11982
A22: 410 | B22: 410035165 | C22: EXCEL ACADEMY | D22: ='fnd enro'!D22 -> 0 | E22: ='fnd enro'!E22 -> 0 | F22: ='fnd enro'!F22 -> 0 | G22: ='fnd enro'!G22 -> 1 | H22: ='fnd enro'!H22 -> 1 | I22: ='fnd enro'!I22 -> 2 | J22: ='fnd enro'!J22 -> 0 | K22: ='fnd enro'!K22 -> 0.1516 | L22: ='fnd enro'!L22 -> 0 | M22: ='fnd enro'!M22+'fnd enro'!N22 -> 0 | N22: ='fnd enro'!O22 -> 0 | O22: ='fnd enro'!P22 -> 0 | P22: ='fnd enro'!Q22+'fnd enro'!R22 -> 0 | Q22: ='fnd enro'!T22 -> 4 | R22: 1.081 | S22: =VALUE('fnd enro'!S22) -> 1 | U22: =(($D22*'fnd base rates'!C$110) +($E22*'fnd base rates'!C$111) +($F22*'fnd base rates'!C$112) +($G22*'fnd base rates'!C$113) +($H22*'fnd base rates'!C$114) +($I22*'fnd base rates'!C$115) +($J22*'fnd base rates'!C$119) +($K22*'fnd base rates'!C$120) +($M22*'fnd base rates'!C$122) +($N22*'fnd base rates'!C$123) +($O22*'fnd base rates'!C$124) +($P22*VLOOKUP($S22+15,rate_basefnd,3))) *$R22 -> 2137.99636 | V22: =(($D22*'fnd base rates'!D$110) +($E22*'fnd base rates'!D$111) +($F22*'fnd base rates'!D$112) +($G22*'fnd base rates'!D$113) +($H22*'fnd base rates'!D$114) +($I22*'fnd base rates'!D$115) +($J22*'fnd base rates'!D$119) +($K22*'fnd base rates'!D$120) +($M22*'fnd base rates'!D$122) +($N22*'fnd base rates'!D$123) +($O22*'fnd base rates'!D$124) +($P22*VLOOKUP($S22+15,rate_basefnd,4))) *$R22 -> 3060.78664 | W22: =(($D22*'fnd base rates'!E$110) +($E22*'fnd base rates'!E$111) +($F22*'fnd base rates'!E$112) +($G22*'fnd base rates'!E$113) +($H22*'fnd base rates'!E$114) +($I22*'fnd base rates'!E$115) +($J22*'fnd base rates'!E$119) +($K22*'fnd base rates'!E$120) +($M22*'fnd base rates'!E$122) +($N22*'fnd base rates'!E$123) +($O22*'fnd base rates'!E$124) +($P22*VLOOKUP($S22+15,rate_basefnd,5))) *$R22 -> 17140.11299 | X22: =(($D22*'fnd base rates'!F$110) +($E22*'fnd base rates'!F$111) +($F22*'fnd base rates'!F$112) +($G22*'fnd base rates'!F$113) +($H22*'fnd base rates'!F$114) +($I22*'fnd base rates'!F$115) +($J22*'fnd base rates'!F$119) +($K22*'fnd base rates'!F$120) +($M22*'fnd base rates'!F$122) +($N22*'fnd base rates'!F$123) +($O22*'fnd base rates'!F$124) +($P22*VLOOKUP($S22+15,rate_basefnd,6))) *$R22 -> 3992.015884 | Y22: =(($D22*'fnd base rates'!G$110) +($E22*'fnd base rates'!G$111) +($F22*'fnd base rates'!G$112) +($G22*'fnd base rates'!G$113) +($H22*'fnd base rates'!G$114) +($I22*'fnd base rates'!G$115) +($J22*'fnd base rates'!G$119) +($K22*'fnd base rates'!G$120) +($M22*'fnd base rates'!G$122) +($N22*'fnd base rates'!G$123) +($O22*'fnd base rates'!G$124) +($P22*VLOOKUP($S22+15,rate_basefnd,7))) *$R22 -> 651.8153394 | Z22: =(($D22*'fnd base rates'!H$110) +($E22*'fnd base rates'!H$111) +($F22*'fnd base rates'!H$112) +($G22*'fnd base rates'!H$113) +($H22*'fnd base rates'!H$114) +($I22*'fnd base rates'!H$115) +($J22*'fnd base rates'!H$119) +($K22*'fnd base rates'!H$120) +($M22*'fnd base rates'!H$122) +($N22*'fnd base rates'!H$123) +($O22*'fnd base rates'!H$124) +($P22*VLOOKUP($S22+15,rate_basefnd,8))) -> 2499.834312 | AA22: =(($D22*'fnd base rates'!I$110) +($E22*'fnd base rates'!I$111) +($F22*'fnd base rates'!I$112) +($G22*'fnd base rates'!I$113) +($H22*'fnd base rates'!I$114) +($I22*'fnd base rates'!I$115) +($J22*'fnd base rates'!I$119) +($K22*'fnd base rates'!I$120) +($M22*'fnd base rates'!I$122) +($N22*'fnd base rates'!I$123) +($O22*'fnd base rates'!I$124) +($P22*VLOOKUP($S22+15,rate_basefnd,9))) *$R22 -> 1447.18875 | AB22: =(($D22*'fnd base rates'!J$110) +($E22*'fnd base rates'!J$111) +($F22*'fnd base rates'!J$112) +($G22*'fnd base rates'!J$113) +($H22*'fnd base rates'!J$114) +($I22*'fnd base rates'!J$115) +($J22*'fnd base rates'!J$119) +($K22*'fnd base rates'!J$120) +($M22*'fnd base rates'!J$122) +($N22*'fnd base rates'!J$123) +($O22*'fnd base rates'!J$124) +($P22*VLOOKUP($S22+15,rate_basefnd,10))) *$R22 -> 1548.90004 | AC22: =(($D22*'fnd base rates'!K$110) +($E22*'fnd base rates'!K$111) +($F22*'fnd base rates'!K$112) +($G22*'fnd base rates'!K$113) +($H22*'fnd base rates'!K$114) +($I22*'fnd base rates'!K$115) +($J22*'fnd base rates'!K$119) +($K22*'fnd base rates'!K$120) +($M22*'fnd base rates'!K$122) +($N22*'fnd base rates'!K$123) +($O22*'fnd base rates'!K$124) +($P22*VLOOKUP($S22+15,rate_basefnd,11))) *$R22 -> 4574.103451 | AD22: =(($D22*'fnd base rates'!L$110) +($E22*'fnd base rates'!L$111) +($F22*'fnd base rates'!L$112) +($G22*'fnd base rates'!L$113) +($H22*'fnd base rates'!L$114) +($I22*'fnd base rates'!L$115) +($J22*'fnd base rates'!L$119) +($K22*'fnd base rates'!L$120) +($M22*'fnd base rates'!L$122) +($N22*'fnd base rates'!L$123) +($O22*'fnd base rates'!L$124) +($P22*VLOOKUP($S22+15,rate_basefnd,12))) -> 4555.901296 | AE22: =(($D22*'fnd base rates'!M$110) +($E22*'fnd base rates'!M$111) +($F22*'fnd base rates'!M$112) +($G22*'fnd base rates'!M$113) +($H22*'fnd base rates'!M$114) +($I22*'fnd base rates'!M$115) +($J22*'fnd base rates'!M$119) +($K22*'fnd base rates'!M$120) +($M22*'fnd base rates'!M$122) +($N22*'fnd base rates'!M$123) +($O22*'fnd base rates'!M$124) +($P22*VLOOKUP($S22+15,rate_basefnd,13))) -> 0 | AF22: 41608.65506 | AH22: 410035165 | AI22: 410 | AJ22: 035 | AK22: 165 | AL22: 1 | AM22: 4 | AN22: 41608.65506 | AO22: 10402 | AP22: 0 | AQ22: 10402 | AW22: 10402 | AX22: 0 | AY22: 10402 | AZ22: -2 | BA22: 10404 | BB22: 13 | BC22: 10391
A23: 410 | B23: 410035176 | C23: EXCEL ACADEMY | D23: ='fnd enro'!D23 -> 0 | E23: ='fnd enro'!E23 -> 0 | F23: ='fnd enro'!F23 -> 0 | G23: ='fnd enro'!G23 -> 0 | H23: ='fnd enro'!H23 -> 0 | I23: ='fnd enro'!I23 -> 2 | J23: ='fnd enro'!J23 -> 0 | K23: ='fnd enro'!K23 -> 0.0758 | L23: ='fnd enro'!L23 -> 0 | M23: ='fnd enro'!M23+'fnd enro'!N23 -> 0 | N23: ='fnd enro'!O23 -> 0 | O23: ='fnd enro'!P23 -> 0 | P23: ='fnd enro'!Q23+'fnd enro'!R23 -> 2 | Q23: ='fnd enro'!T23 -> 2 | R23: 1.081 | S23: =VALUE('fnd enro'!S23) -> 10 | U23: =(($D23*'fnd base rates'!C$110) +($E23*'fnd base rates'!C$111) +($F23*'fnd base rates'!C$112) +($G23*'fnd base rates'!C$113) +($H23*'fnd base rates'!C$114) +($I23*'fnd base rates'!C$115) +($J23*'fnd base rates'!C$119) +($K23*'fnd base rates'!C$120) +($M23*'fnd base rates'!C$122) +($N23*'fnd base rates'!C$123) +($O23*'fnd base rates'!C$124) +($P23*VLOOKUP($S23+15,rate_basefnd,3))) *$R23 -> 1203.69078 | V23: =(($D23*'fnd base rates'!D$110) +($E23*'fnd base rates'!D$111) +($F23*'fnd base rates'!D$112) +($G23*'fnd base rates'!D$113) +($H23*'fnd base rates'!D$114) +($I23*'fnd base rates'!D$115) +($J23*'fnd base rates'!D$119) +($K23*'fnd base rates'!D$120) +($M23*'fnd base rates'!D$122) +($N23*'fnd base rates'!D$123) +($O23*'fnd base rates'!D$124) +($P23*VLOOKUP($S23+15,rate_basefnd,4))) *$R23 -> 2168.5941 | W23: =(($D23*'fnd base rates'!E$110) +($E23*'fnd base rates'!E$111) +($F23*'fnd base rates'!E$112) +($G23*'fnd base rates'!E$113) +($H23*'fnd base rates'!E$114) +($I23*'fnd base rates'!E$115) +($J23*'fnd base rates'!E$119) +($K23*'fnd base rates'!E$120) +($M23*'fnd base rates'!E$122) +($N23*'fnd base rates'!E$123) +($O23*'fnd base rates'!E$124) +($P23*VLOOKUP($S23+15,rate_basefnd,5))) *$R23 -> 16042.57169 | X23: =(($D23*'fnd base rates'!F$110) +($E23*'fnd base rates'!F$111) +($F23*'fnd base rates'!F$112) +($G23*'fnd base rates'!F$113) +($H23*'fnd base rates'!F$114) +($I23*'fnd base rates'!F$115) +($J23*'fnd base rates'!F$119) +($K23*'fnd base rates'!F$120) +($M23*'fnd base rates'!F$122) +($N23*'fnd base rates'!F$123) +($O23*'fnd base rates'!F$124) +($P23*VLOOKUP($S23+15,rate_basefnd,6))) *$R23 -> 1761.452562 | Y23: =(($D23*'fnd base rates'!G$110) +($E23*'fnd base rates'!G$111) +($F23*'fnd base rates'!G$112) +($G23*'fnd base rates'!G$113) +($H23*'fnd base rates'!G$114) +($I23*'fnd base rates'!G$115) +($J23*'fnd base rates'!G$119) +($K23*'fnd base rates'!G$120) +($M23*'fnd base rates'!G$122) +($N23*'fnd base rates'!G$123) +($O23*'fnd base rates'!G$124) +($P23*VLOOKUP($S23+15,rate_basefnd,7))) *$R23 -> 629.4200397 | Z23: =(($D23*'fnd base rates'!H$110) +($E23*'fnd base rates'!H$111) +($F23*'fnd base rates'!H$112) +($G23*'fnd base rates'!H$113) +($H23*'fnd base rates'!H$114) +($I23*'fnd base rates'!H$115) +($J23*'fnd base rates'!H$119) +($K23*'fnd base rates'!H$120) +($M23*'fnd base rates'!H$122) +($N23*'fnd base rates'!H$123) +($O23*'fnd base rates'!H$124) +($P23*VLOOKUP($S23+15,rate_basefnd,8))) -> 1574.647156 | AA23: =(($D23*'fnd base rates'!I$110) +($E23*'fnd base rates'!I$111) +($F23*'fnd base rates'!I$112) +($G23*'fnd base rates'!I$113) +($H23*'fnd base rates'!I$114) +($I23*'fnd base rates'!I$115) +($J23*'fnd base rates'!I$119) +($K23*'fnd base rates'!I$120) +($M23*'fnd base rates'!I$122) +($N23*'fnd base rates'!I$123) +($O23*'fnd base rates'!I$124) +($P23*VLOOKUP($S23+15,rate_basefnd,9))) *$R23 -> 1104.30636 | AB23: =(($D23*'fnd base rates'!J$110) +($E23*'fnd base rates'!J$111) +($F23*'fnd base rates'!J$112) +($G23*'fnd base rates'!J$113) +($H23*'fnd base rates'!J$114) +($I23*'fnd base rates'!J$115) +($J23*'fnd base rates'!J$119) +($K23*'fnd base rates'!J$120) +($M23*'fnd base rates'!J$122) +($N23*'fnd base rates'!J$123) +($O23*'fnd base rates'!J$124) +($P23*VLOOKUP($S23+15,rate_basefnd,10))) *$R23 -> 2458.58316 | AC23: =(($D23*'fnd base rates'!K$110) +($E23*'fnd base rates'!K$111) +($F23*'fnd base rates'!K$112) +($G23*'fnd base rates'!K$113) +($H23*'fnd base rates'!K$114) +($I23*'fnd base rates'!K$115) +($J23*'fnd base rates'!K$119) +($K23*'fnd base rates'!K$120) +($M23*'fnd base rates'!K$122) +($N23*'fnd base rates'!K$123) +($O23*'fnd base rates'!K$124) +($P23*VLOOKUP($S23+15,rate_basefnd,11))) *$R23 -> 2295.93214 | AD23: =(($D23*'fnd base rates'!L$110) +($E23*'fnd base rates'!L$111) +($F23*'fnd base rates'!L$112) +($G23*'fnd base rates'!L$113) +($H23*'fnd base rates'!L$114) +($I23*'fnd base rates'!L$115) +($J23*'fnd base rates'!L$119) +($K23*'fnd base rates'!L$120) +($M23*'fnd base rates'!L$122) +($N23*'fnd base rates'!L$123) +($O23*'fnd base rates'!L$124) +($P23*VLOOKUP($S23+15,rate_basefnd,12))) -> 3123.779389 | AE23: =(($D23*'fnd base rates'!M$110) +($E23*'fnd base rates'!M$111) +($F23*'fnd base rates'!M$112) +($G23*'fnd base rates'!M$113) +($H23*'fnd base rates'!M$114) +($I23*'fnd base rates'!M$115) +($J23*'fnd base rates'!M$119) +($K23*'fnd base rates'!M$120) +($M23*'fnd base rates'!M$122) +($N23*'fnd base rates'!M$123) +($O23*'fnd base rates'!M$124) +($P23*VLOOKUP($S23+15,rate_basefnd,13))) -> 0 | AF23: 32362.97738 | AH23: 410035176 | AI23: 410 | AJ23: 035 | AK23: 176 | AL23: 1 | AM23: 2 | AN23: 32362.97738 | AO23: 16181 | AP23: 0 | AQ23: 16181 | AW23: 16181 | AX23: 0 | AY23: 16181 | AZ23: 408 | BA23: 15773 | BB23: 25 | BC23: 15748
A24: 410 | B24: 410035217 | C24: EXCEL ACADEMY | D24: ='fnd enro'!D24 -> 0 | E24: ='fnd enro'!E24 -> 0 | F24: ='fnd enro'!F24 -> 0 | G24: ='fnd enro'!G24 -> 0 | H24: ='fnd enro'!H24 -> 0 | I24: ='fnd enro'!I24 -> 1 | J24: ='fnd enro'!J24 -> 0 | K24: ='fnd enro'!K24 -> 0.0379 | L24: ='fnd enro'!L24 -> 0 | M24: ='fnd enro'!M24+'fnd enro'!N24 -> 0 | N24: ='fnd enro'!O24 -> 0 | O24: ='fnd enro'!P24 -> 0 | P24: ='fnd enro'!Q24+'fnd enro'!R24 -> 0 | Q24: ='fnd enro'!T24 -> 1 | R24: 1.081 | S24: =VALUE('fnd enro'!S24) -> 1 | U24: =(($D24*'fnd base rates'!C$110) +($E24*'fnd base rates'!C$111) +($F24*'fnd base rates'!C$112) +($G24*'fnd base rates'!C$113) +($H24*'fnd base rates'!C$114) +($I24*'fnd base rates'!C$115) +($J24*'fnd base rates'!C$119) +($K24*'fnd base rates'!C$120) +($M24*'fnd base rates'!C$122) +($N24*'fnd base rates'!C$123) +($O24*'fnd base rates'!C$124) +($P24*VLOOKUP($S24+15,rate_basefnd,3))) *$R24 -> 534.4990901 | V24: =(($D24*'fnd base rates'!D$110) +($E24*'fnd base rates'!D$111) +($F24*'fnd base rates'!D$112) +($G24*'fnd base rates'!D$113) +($H24*'fnd base rates'!D$114) +($I24*'fnd base rates'!D$115) +($J24*'fnd base rates'!D$119) +($K24*'fnd base rates'!D$120) +($M24*'fnd base rates'!D$122) +($N24*'fnd base rates'!D$123) +($O24*'fnd base rates'!D$124) +($P24*VLOOKUP($S24+15,rate_basefnd,4))) *$R24 -> 765.19666 | W24: =(($D24*'fnd base rates'!E$110) +($E24*'fnd base rates'!E$111) +($F24*'fnd base rates'!E$112) +($G24*'fnd base rates'!E$113) +($H24*'fnd base rates'!E$114) +($I24*'fnd base rates'!E$115) +($J24*'fnd base rates'!E$119) +($K24*'fnd base rates'!E$120) +($M24*'fnd base rates'!E$122) +($N24*'fnd base rates'!E$123) +($O24*'fnd base rates'!E$124) +($P24*VLOOKUP($S24+15,rate_basefnd,5))) *$R24 -> 4906.254625 | X24: =(($D24*'fnd base rates'!F$110) +($E24*'fnd base rates'!F$111) +($F24*'fnd base rates'!F$112) +($G24*'fnd base rates'!F$113) +($H24*'fnd base rates'!F$114) +($I24*'fnd base rates'!F$115) +($J24*'fnd base rates'!F$119) +($K24*'fnd base rates'!F$120) +($M24*'fnd base rates'!F$122) +($N24*'fnd base rates'!F$123) +($O24*'fnd base rates'!F$124) +($P24*VLOOKUP($S24+15,rate_basefnd,6))) *$R24 -> 880.7262811 | Y24: =(($D24*'fnd base rates'!G$110) +($E24*'fnd base rates'!G$111) +($F24*'fnd base rates'!G$112) +($G24*'fnd base rates'!G$113) +($H24*'fnd base rates'!G$114) +($I24*'fnd base rates'!G$115) +($J24*'fnd base rates'!G$119) +($K24*'fnd base rates'!G$120) +($M24*'fnd base rates'!G$122) +($N24*'fnd base rates'!G$123) +($O24*'fnd base rates'!G$124) +($P24*VLOOKUP($S24+15,rate_basefnd,7))) *$R24 -> 163.5862198 | Z24: =(($D24*'fnd base rates'!H$110) +($E24*'fnd base rates'!H$111) +($F24*'fnd base rates'!H$112) +($G24*'fnd base rates'!H$113) +($H24*'fnd base rates'!H$114) +($I24*'fnd base rates'!H$115) +($J24*'fnd base rates'!H$119) +($K24*'fnd base rates'!H$120) +($M24*'fnd base rates'!H$122) +($N24*'fnd base rates'!H$123) +($O24*'fnd base rates'!H$124) +($P24*VLOOKUP($S24+15,rate_basefnd,8))) -> 765.893578 | AA24: =(($D24*'fnd base rates'!I$110) +($E24*'fnd base rates'!I$111) +($F24*'fnd base rates'!I$112) +($G24*'fnd base rates'!I$113) +($H24*'fnd base rates'!I$114) +($I24*'fnd base rates'!I$115) +($J24*'fnd base rates'!I$119) +($K24*'fnd base rates'!I$120) +($M24*'fnd base rates'!I$122) +($N24*'fnd base rates'!I$123) +($O24*'fnd base rates'!I$124) +($P24*VLOOKUP($S24+15,rate_basefnd,9))) *$R24 -> 426.01129 | AB24: =(($D24*'fnd base rates'!J$110) +($E24*'fnd base rates'!J$111) +($F24*'fnd base rates'!J$112) +($G24*'fnd base rates'!J$113) +($H24*'fnd base rates'!J$114) +($I24*'fnd base rates'!J$115) +($J24*'fnd base rates'!J$119) +($K24*'fnd base rates'!J$120) +($M24*'fnd base rates'!J$122) +($N24*'fnd base rates'!J$123) +($O24*'fnd base rates'!J$124) +($P24*VLOOKUP($S24+15,rate_basefnd,10))) *$R24 -> 573.84885 | AC24: =(($D24*'fnd base rates'!K$110) +($E24*'fnd base rates'!K$111) +($F24*'fnd base rates'!K$112) +($G24*'fnd base rates'!K$113) +($H24*'fnd base rates'!K$114) +($I24*'fnd base rates'!K$115) +($J24*'fnd base rates'!K$119) +($K24*'fnd base rates'!K$120) +($M24*'fnd base rates'!K$122) +($N24*'fnd base rates'!K$123) +($O24*'fnd base rates'!K$124) +($P24*VLOOKUP($S24+15,rate_basefnd,11))) *$R24 -> 1147.96607 | AD24: =(($D24*'fnd base rates'!L$110) +($E24*'fnd base rates'!L$111) +($F24*'fnd base rates'!L$112) +($G24*'fnd base rates'!L$113) +($H24*'fnd base rates'!L$114) +($I24*'fnd base rates'!L$115) +($J24*'fnd base rates'!L$119) +($K24*'fnd base rates'!L$120) +($M24*'fnd base rates'!L$122) +($N24*'fnd base rates'!L$123) +($O24*'fnd base rates'!L$124) +($P24*VLOOKUP($S24+15,rate_basefnd,12))) -> 1095.759695 | AE24: =(($D24*'fnd base rates'!M$110) +($E24*'fnd base rates'!M$111) +($F24*'fnd base rates'!M$112) +($G24*'fnd base rates'!M$113) +($H24*'fnd base rates'!M$114) +($I24*'fnd base rates'!M$115) +($J24*'fnd base rates'!M$119) +($K24*'fnd base rates'!M$120) +($M24*'fnd base rates'!M$122) +($N24*'fnd base rates'!M$123) +($O24*'fnd base rates'!M$124) +($P24*VLOOKUP($S24+15,rate_basefnd,13))) -> 0 | AF24: 11259.74236 | AH24: 410035217 | AI24: 410 | AJ24: 035 | AK24: 217 | AL24: 1 | AM24: 1 | AN24: 11259.74236 | AO24: 11260 | AP24: 0 | AQ24: 11260 | AW24: 11260 | AX24: 0 | AY24: 11260 | AZ24: -1 | BA24: 11261 | BB24: 13 | BC24: 11248
A25: 410 | B25: 410035248 | C25: EXCEL ACADEMY | D25: ='fnd enro'!D25 -> 0 | E25: ='fnd enro'!E25 -> 0 | F25: ='fnd enro'!F25 -> 0 | G25: ='fnd enro'!G25 -> 2 | H25: ='fnd enro'!H25 -> 13 | I25: ='fnd enro'!I25 -> 26 | J25: ='fnd enro'!J25 -> 0 | K25: ='fnd enro'!K25 -> 1.5539 | L25: ='fnd enro'!L25 -> 0 | M25: ='fnd enro'!M25+'fnd enro'!N25 -> 2 | N25: ='fnd enro'!O25 -> 2 | O25: ='fnd enro'!P25 -> 3 | P25: ='fnd enro'!Q25+'fnd enro'!R25 -> 16 | Q25: ='fnd enro'!T25 -> 41 | R25: 1.081 | S25: =VALUE('fnd enro'!S25) -> 8 | U25: =(($D25*'fnd base rates'!C$110) +($E25*'fnd base rates'!C$111) +($F25*'fnd base rates'!C$112) +($G25*'fnd base rates'!C$113) +($H25*'fnd base rates'!C$114) +($I25*'fnd base rates'!C$115) +($J25*'fnd base rates'!C$119) +($K25*'fnd base rates'!C$120) +($M25*'fnd base rates'!C$122) +($N25*'fnd base rates'!C$123) +($O25*'fnd base rates'!C$124) +($P25*VLOOKUP($S25+15,rate_basefnd,3))) *$R25 -> 23582.49974 | V25: =(($D25*'fnd base rates'!D$110) +($E25*'fnd base rates'!D$111) +($F25*'fnd base rates'!D$112) +($G25*'fnd base rates'!D$113) +($H25*'fnd base rates'!D$114) +($I25*'fnd base rates'!D$115) +($J25*'fnd base rates'!D$119) +($K25*'fnd base rates'!D$120) +($M25*'fnd base rates'!D$122) +($N25*'fnd base rates'!D$123) +($O25*'fnd base rates'!D$124) +($P25*VLOOKUP($S25+15,rate_basefnd,4))) *$R25 -> 37372.16985 | W25: =(($D25*'fnd base rates'!E$110) +($E25*'fnd base rates'!E$111) +($F25*'fnd base rates'!E$112) +($G25*'fnd base rates'!E$113) +($H25*'fnd base rates'!E$114) +($I25*'fnd base rates'!E$115) +($J25*'fnd base rates'!E$119) +($K25*'fnd base rates'!E$120) +($M25*'fnd base rates'!E$122) +($N25*'fnd base rates'!E$123) +($O25*'fnd base rates'!E$124) +($P25*VLOOKUP($S25+15,rate_basefnd,5))) *$R25 -> 235685.5362 | X25: =(($D25*'fnd base rates'!F$110) +($E25*'fnd base rates'!F$111) +($F25*'fnd base rates'!F$112) +($G25*'fnd base rates'!F$113) +($H25*'fnd base rates'!F$114) +($I25*'fnd base rates'!F$115) +($J25*'fnd base rates'!F$119) +($K25*'fnd base rates'!F$120) +($M25*'fnd base rates'!F$122) +($N25*'fnd base rates'!F$123) +($O25*'fnd base rates'!F$124) +($P25*VLOOKUP($S25+15,rate_basefnd,6))) *$R25 -> 39356.90695 | Y25: =(($D25*'fnd base rates'!G$110) +($E25*'fnd base rates'!G$111) +($F25*'fnd base rates'!G$112) +($G25*'fnd base rates'!G$113) +($H25*'fnd base rates'!G$114) +($I25*'fnd base rates'!G$115) +($J25*'fnd base rates'!G$119) +($K25*'fnd base rates'!G$120) +($M25*'fnd base rates'!G$122) +($N25*'fnd base rates'!G$123) +($O25*'fnd base rates'!G$124) +($P25*VLOOKUP($S25+15,rate_basefnd,7))) *$R25 -> 9383.720734 | Z25: =(($D25*'fnd base rates'!H$110) +($E25*'fnd base rates'!H$111) +($F25*'fnd base rates'!H$112) +($G25*'fnd base rates'!H$113) +($H25*'fnd base rates'!H$114) +($I25*'fnd base rates'!H$115) +($J25*'fnd base rates'!H$119) +($K25*'fnd base rates'!H$120) +($M25*'fnd base rates'!H$122) +($N25*'fnd base rates'!H$123) +($O25*'fnd base rates'!H$124) +($P25*VLOOKUP($S25+15,rate_basefnd,8))) -> 28238.5267 | AA25: =(($D25*'fnd base rates'!I$110) +($E25*'fnd base rates'!I$111) +($F25*'fnd base rates'!I$112) +($G25*'fnd base rates'!I$113) +($H25*'fnd base rates'!I$114) +($I25*'fnd base rates'!I$115) +($J25*'fnd base rates'!I$119) +($K25*'fnd base rates'!I$120) +($M25*'fnd base rates'!I$122) +($N25*'fnd base rates'!I$123) +($O25*'fnd base rates'!I$124) +($P25*VLOOKUP($S25+15,rate_basefnd,9))) *$R25 -> 18413.33241 | AB25: =(($D25*'fnd base rates'!J$110) +($E25*'fnd base rates'!J$111) +($F25*'fnd base rates'!J$112) +($G25*'fnd base rates'!J$113) +($H25*'fnd base rates'!J$114) +($I25*'fnd base rates'!J$115) +($J25*'fnd base rates'!J$119) +($K25*'fnd base rates'!J$120) +($M25*'fnd base rates'!J$122) +($N25*'fnd base rates'!J$123) +($O25*'fnd base rates'!J$124) +($P25*VLOOKUP($S25+15,rate_basefnd,10))) *$R25 -> 28650.42403 | AC25: =(($D25*'fnd base rates'!K$110) +($E25*'fnd base rates'!K$111) +($F25*'fnd base rates'!K$112) +($G25*'fnd base rates'!K$113) +($H25*'fnd base rates'!K$114) +($I25*'fnd base rates'!K$115) +($J25*'fnd base rates'!K$119) +($K25*'fnd base rates'!K$120) +($M25*'fnd base rates'!K$122) +($N25*'fnd base rates'!K$123) +($O25*'fnd base rates'!K$124) +($P25*VLOOKUP($S25+15,rate_basefnd,11))) *$R25 -> 49296.29029 | AD25: =(($D25*'fnd base rates'!L$110) +($E25*'fnd base rates'!L$111) +($F25*'fnd base rates'!L$112) +($G25*'fnd base rates'!L$113) +($H25*'fnd base rates'!L$114) +($I25*'fnd base rates'!L$115) +($J25*'fnd base rates'!L$119) +($K25*'fnd base rates'!L$120) +($M25*'fnd base rates'!L$122) +($N25*'fnd base rates'!L$123) +($O25*'fnd base rates'!L$124) +($P25*VLOOKUP($S25+15,rate_basefnd,12))) -> 55148.23158 | AE25: =(($D25*'fnd base rates'!M$110) +($E25*'fnd base rates'!M$111) +($F25*'fnd base rates'!M$112) +($G25*'fnd base rates'!M$113) +($H25*'fnd base rates'!M$114) +($I25*'fnd base rates'!M$115) +($J25*'fnd base rates'!M$119) +($K25*'fnd base rates'!M$120) +($M25*'fnd base rates'!M$122) +($N25*'fnd base rates'!M$123) +($O25*'fnd base rates'!M$124) +($P25*VLOOKUP($S25+15,rate_basefnd,13))) -> 0 | AF25: 525127.6385 | AH25: 410035248 | AI25: 410 | AJ25: 035 | AK25: 248 | AL25: 1 | AM25: 41 | AN25: 525127.6385 | AO25: 12808 | AP25: 0 | AQ25: 12808 | AW25: 12808 | AX25: 0 | AY25: 12808 | AZ25: 4 | BA25: 12804 | BB25: 90 | BC25: 12714
A26: 410 | B26: 410035262 | C26: EXCEL ACADEMY | D26: ='fnd enro'!D26 -> 0 | E26: ='fnd enro'!E26 -> 0 | F26: ='fnd enro'!F26 -> 0 | G26: ='fnd enro'!G26 -> 0 | H26: ='fnd enro'!H26 -> 3 | I26: ='fnd enro'!I26 -> 6 | J26: ='fnd enro'!J26 -> 0 | K26: ='fnd enro'!K26 -> 0.3411 | L26: ='fnd enro'!L26 -> 0 | M26: ='fnd enro'!M26+'fnd enro'!N26 -> 0 | N26: ='fnd enro'!O26 -> 0 | O26: ='fnd enro'!P26 -> 0 | P26: ='fnd enro'!Q26+'fnd enro'!R26 -> 6 | Q26: ='fnd enro'!T26 -> 9 | R26: 1.081 | S26: =VALUE('fnd enro'!S26) -> 10 | U26: =(($D26*'fnd base rates'!C$110) +($E26*'fnd base rates'!C$111) +($F26*'fnd base rates'!C$112) +($G26*'fnd base rates'!C$113) +($H26*'fnd base rates'!C$114) +($I26*'fnd base rates'!C$115) +($J26*'fnd base rates'!C$119) +($K26*'fnd base rates'!C$120) +($M26*'fnd base rates'!C$122) +($N26*'fnd base rates'!C$123) +($O26*'fnd base rates'!C$124) +($P26*VLOOKUP($S26+15,rate_basefnd,3))) *$R26 -> 5214.569611 | V26: =(($D26*'fnd base rates'!D$110) +($E26*'fnd base rates'!D$111) +($F26*'fnd base rates'!D$112) +($G26*'fnd base rates'!D$113) +($H26*'fnd base rates'!D$114) +($I26*'fnd base rates'!D$115) +($J26*'fnd base rates'!D$119) +($K26*'fnd base rates'!D$120) +($M26*'fnd base rates'!D$122) +($N26*'fnd base rates'!D$123) +($O26*'fnd base rates'!D$124) +($P26*VLOOKUP($S26+15,rate_basefnd,4))) *$R26 -> 8801.37228 | W26: =(($D26*'fnd base rates'!E$110) +($E26*'fnd base rates'!E$111) +($F26*'fnd base rates'!E$112) +($G26*'fnd base rates'!E$113) +($H26*'fnd base rates'!E$114) +($I26*'fnd base rates'!E$115) +($J26*'fnd base rates'!E$119) +($K26*'fnd base rates'!E$120) +($M26*'fnd base rates'!E$122) +($N26*'fnd base rates'!E$123) +($O26*'fnd base rates'!E$124) +($P26*VLOOKUP($S26+15,rate_basefnd,5))) *$R26 -> 58487.59507 | X26: =(($D26*'fnd base rates'!F$110) +($E26*'fnd base rates'!F$111) +($F26*'fnd base rates'!F$112) +($G26*'fnd base rates'!F$113) +($H26*'fnd base rates'!F$114) +($I26*'fnd base rates'!F$115) +($J26*'fnd base rates'!F$119) +($K26*'fnd base rates'!F$120) +($M26*'fnd base rates'!F$122) +($N26*'fnd base rates'!F$123) +($O26*'fnd base rates'!F$124) +($P26*VLOOKUP($S26+15,rate_basefnd,6))) *$R26 -> 8252.03644 | Y26: =(($D26*'fnd base rates'!G$110) +($E26*'fnd base rates'!G$111) +($F26*'fnd base rates'!G$112) +($G26*'fnd base rates'!G$113) +($H26*'fnd base rates'!G$114) +($I26*'fnd base rates'!G$115) +($J26*'fnd base rates'!G$119) +($K26*'fnd base rates'!G$120) +($M26*'fnd base rates'!G$122) +($N26*'fnd base rates'!G$123) +($O26*'fnd base rates'!G$124) +($P26*VLOOKUP($S26+15,rate_basefnd,7))) *$R26 -> 2392.736669 | Z26: =(($D26*'fnd base rates'!H$110) +($E26*'fnd base rates'!H$111) +($F26*'fnd base rates'!H$112) +($G26*'fnd base rates'!H$113) +($H26*'fnd base rates'!H$114) +($I26*'fnd base rates'!H$115) +($J26*'fnd base rates'!H$119) +($K26*'fnd base rates'!H$120) +($M26*'fnd base rates'!H$122) +($N26*'fnd base rates'!H$123) +($O26*'fnd base rates'!H$124) +($P26*VLOOKUP($S26+15,rate_basefnd,8))) -> 6176.012202 | AA26: =(($D26*'fnd base rates'!I$110) +($E26*'fnd base rates'!I$111) +($F26*'fnd base rates'!I$112) +($G26*'fnd base rates'!I$113) +($H26*'fnd base rates'!I$114) +($I26*'fnd base rates'!I$115) +($J26*'fnd base rates'!I$119) +($K26*'fnd base rates'!I$120) +($M26*'fnd base rates'!I$122) +($N26*'fnd base rates'!I$123) +($O26*'fnd base rates'!I$124) +($P26*VLOOKUP($S26+15,rate_basefnd,9))) *$R26 -> 4332.45342 | AB26: =(($D26*'fnd base rates'!J$110) +($E26*'fnd base rates'!J$111) +($F26*'fnd base rates'!J$112) +($G26*'fnd base rates'!J$113) +($H26*'fnd base rates'!J$114) +($I26*'fnd base rates'!J$115) +($J26*'fnd base rates'!J$119) +($K26*'fnd base rates'!J$120) +($M26*'fnd base rates'!J$122) +($N26*'fnd base rates'!J$123) +($O26*'fnd base rates'!J$124) +($P26*VLOOKUP($S26+15,rate_basefnd,10))) *$R26 -> 8122.32051 | AC26: =(($D26*'fnd base rates'!K$110) +($E26*'fnd base rates'!K$111) +($F26*'fnd base rates'!K$112) +($G26*'fnd base rates'!K$113) +($H26*'fnd base rates'!K$114) +($I26*'fnd base rates'!K$115) +($J26*'fnd base rates'!K$119) +($K26*'fnd base rates'!K$120) +($M26*'fnd base rates'!K$122) +($N26*'fnd base rates'!K$123) +($O26*'fnd base rates'!K$124) +($P26*VLOOKUP($S26+15,rate_basefnd,11))) *$R26 -> 10428.01173 | AD26: =(($D26*'fnd base rates'!L$110) +($E26*'fnd base rates'!L$111) +($F26*'fnd base rates'!L$112) +($G26*'fnd base rates'!L$113) +($H26*'fnd base rates'!L$114) +($I26*'fnd base rates'!L$115) +($J26*'fnd base rates'!L$119) +($K26*'fnd base rates'!L$120) +($M26*'fnd base rates'!L$122) +($N26*'fnd base rates'!L$123) +($O26*'fnd base rates'!L$124) +($P26*VLOOKUP($S26+15,rate_basefnd,12))) -> 12964.41245 | AE26: =(($D26*'fnd base rates'!M$110) +($E26*'fnd base rates'!M$111) +($F26*'fnd base rates'!M$112) +($G26*'fnd base rates'!M$113) +($H26*'fnd base rates'!M$114) +($I26*'fnd base rates'!M$115) +($J26*'fnd base rates'!M$119) +($K26*'fnd base rates'!M$120) +($M26*'fnd base rates'!M$122) +($N26*'fnd base rates'!M$123) +($O26*'fnd base rates'!M$124) +($P26*VLOOKUP($S26+15,rate_basefnd,13))) -> 0 | AF26: 125171.5204 | AH26: 410035262 | AI26: 410 | AJ26: 035 | AK26: 262 | AL26: 1 | AM26: 9 | AN26: 125171.5204 | AO26: 13908 | AP26: 0 | AQ26: 13908 | AW26: 13908 | AX26: 0 | AY26: 13908 | AZ26: 271 | BA26: 13637 | BB26: 22 | BC26: 13615
A27: 410 | B27: 410035274 | C27: EXCEL ACADEMY | D27: ='fnd enro'!D27 -> 0 | E27: ='fnd enro'!E27 -> 0 | F27: ='fnd enro'!F27 -> 0 | G27: ='fnd enro'!G27 -> 0 | H27: ='fnd enro'!H27 -> 0 | I27: ='fnd enro'!I27 -> 1 | J27: ='fnd enro'!J27 -> 0 | K27: ='fnd enro'!K27 -> 0.0379 | L27: ='fnd enro'!L27 -> 0 | M27: ='fnd enro'!M27+'fnd enro'!N27 -> 0 | N27: ='fnd enro'!O27 -> 0 | O27: ='fnd enro'!P27 -> 0 | P27: ='fnd enro'!Q27+'fnd enro'!R27 -> 1 | Q27: ='fnd enro'!T27 -> 1 | R27: 1.081 | S27: =VALUE('fnd enro'!S27) -> 10 | U27: =(($D27*'fnd base rates'!C$110) +($E27*'fnd base rates'!C$111) +($F27*'fnd base rates'!C$112) +($G27*'fnd base rates'!C$113) +($H27*'fnd base rates'!C$114) +($I27*'fnd base rates'!C$115) +($J27*'fnd base rates'!C$119) +($K27*'fnd base rates'!C$120) +($M27*'fnd base rates'!C$122) +($N27*'fnd base rates'!C$123) +($O27*'fnd base rates'!C$124) +($P27*VLOOKUP($S27+15,rate_basefnd,3))) *$R27 -> 601.8453901 | V27: =(($D27*'fnd base rates'!D$110) +($E27*'fnd base rates'!D$111) +($F27*'fnd base rates'!D$112) +($G27*'fnd base rates'!D$113) +($H27*'fnd base rates'!D$114) +($I27*'fnd base rates'!D$115) +($J27*'fnd base rates'!D$119) +($K27*'fnd base rates'!D$120) +($M27*'fnd base rates'!D$122) +($N27*'fnd base rates'!D$123) +($O27*'fnd base rates'!D$124) +($P27*VLOOKUP($S27+15,rate_basefnd,4))) *$R27 -> 1084.29705 | W27: =(($D27*'fnd base rates'!E$110) +($E27*'fnd base rates'!E$111) +($F27*'fnd base rates'!E$112) +($G27*'fnd base rates'!E$113) +($H27*'fnd base rates'!E$114) +($I27*'fnd base rates'!E$115) +($J27*'fnd base rates'!E$119) +($K27*'fnd base rates'!E$120) +($M27*'fnd base rates'!E$122) +($N27*'fnd base rates'!E$123) +($O27*'fnd base rates'!E$124) +($P27*VLOOKUP($S27+15,rate_basefnd,5))) *$R27 -> 8021.285845 | X27: =(($D27*'fnd base rates'!F$110) +($E27*'fnd base rates'!F$111) +($F27*'fnd base rates'!F$112) +($G27*'fnd base rates'!F$113) +($H27*'fnd base rates'!F$114) +($I27*'fnd base rates'!F$115) +($J27*'fnd base rates'!F$119) +($K27*'fnd base rates'!F$120) +($M27*'fnd base rates'!F$122) +($N27*'fnd base rates'!F$123) +($O27*'fnd base rates'!F$124) +($P27*VLOOKUP($S27+15,rate_basefnd,6))) *$R27 -> 880.7262811 | Y27: =(($D27*'fnd base rates'!G$110) +($E27*'fnd base rates'!G$111) +($F27*'fnd base rates'!G$112) +($G27*'fnd base rates'!G$113) +($H27*'fnd base rates'!G$114) +($I27*'fnd base rates'!G$115) +($J27*'fnd base rates'!G$119) +($K27*'fnd base rates'!G$120) +($M27*'fnd base rates'!G$122) +($N27*'fnd base rates'!G$123) +($O27*'fnd base rates'!G$124) +($P27*VLOOKUP($S27+15,rate_basefnd,7))) *$R27 -> 314.7100198 | Z27: =(($D27*'fnd base rates'!H$110) +($E27*'fnd base rates'!H$111) +($F27*'fnd base rates'!H$112) +($G27*'fnd base rates'!H$113) +($H27*'fnd base rates'!H$114) +($I27*'fnd base rates'!H$115) +($J27*'fnd base rates'!H$119) +($K27*'fnd base rates'!H$120) +($M27*'fnd base rates'!H$122) +($N27*'fnd base rates'!H$123) +($O27*'fnd base rates'!H$124) +($P27*VLOOKUP($S27+15,rate_basefnd,8))) -> 787.323578 | AA27: =(($D27*'fnd base rates'!I$110) +($E27*'fnd base rates'!I$111) +($F27*'fnd base rates'!I$112) +($G27*'fnd base rates'!I$113) +($H27*'fnd base rates'!I$114) +($I27*'fnd base rates'!I$115) +($J27*'fnd base rates'!I$119) +($K27*'fnd base rates'!I$120) +($M27*'fnd base rates'!I$122) +($N27*'fnd base rates'!I$123) +($O27*'fnd base rates'!I$124) +($P27*VLOOKUP($S27+15,rate_basefnd,9))) *$R27 -> 552.15318 | AB27: =(($D27*'fnd base rates'!J$110) +($E27*'fnd base rates'!J$111) +($F27*'fnd base rates'!J$112) +($G27*'fnd base rates'!J$113) +($H27*'fnd base rates'!J$114) +($I27*'fnd base rates'!J$115) +($J27*'fnd base rates'!J$119) +($K27*'fnd base rates'!J$120) +($M27*'fnd base rates'!J$122) +($N27*'fnd base rates'!J$123) +($O27*'fnd base rates'!J$124) +($P27*VLOOKUP($S27+15,rate_basefnd,10))) *$R27 -> 1229.29158 | AC27: =(($D27*'fnd base rates'!K$110) +($E27*'fnd base rates'!K$111) +($F27*'fnd base rates'!K$112) +($G27*'fnd base rates'!K$113) +($H27*'fnd base rates'!K$114) +($I27*'fnd base rates'!K$115) +($J27*'fnd base rates'!K$119) +($K27*'fnd base rates'!K$120) +($M27*'fnd base rates'!K$122) +($N27*'fnd base rates'!K$123) +($O27*'fnd base rates'!K$124) +($P27*VLOOKUP($S27+15,rate_basefnd,11))) *$R27 -> 1147.96607 | AD27: =(($D27*'fnd base rates'!L$110) +($E27*'fnd base rates'!L$111) +($F27*'fnd base rates'!L$112) +($G27*'fnd base rates'!L$113) +($H27*'fnd base rates'!L$114) +($I27*'fnd base rates'!L$115) +($J27*'fnd base rates'!L$119) +($K27*'fnd base rates'!L$120) +($M27*'fnd base rates'!L$122) +($N27*'fnd base rates'!L$123) +($O27*'fnd base rates'!L$124) +($P27*VLOOKUP($S27+15,rate_basefnd,12))) -> 1561.889695 | AE27: =(($D27*'fnd base rates'!M$110) +($E27*'fnd base rates'!M$111) +($F27*'fnd base rates'!M$112) +($G27*'fnd base rates'!M$113) +($H27*'fnd base rates'!M$114) +($I27*'fnd base rates'!M$115) +($J27*'fnd base rates'!M$119) +($K27*'fnd base rates'!M$120) +($M27*'fnd base rates'!M$122) +($N27*'fnd base rates'!M$123) +($O27*'fnd base rates'!M$124) +($P27*VLOOKUP($S27+15,rate_basefnd,13))) -> 0 | AF27: 16181.48869 | AH27: 410035274 | AI27: 410 | AJ27: 035 | AK27: 274 | AL27: 1 | AM27: 1 | AN27: 16181.48869 | AO27: 16181 | AP27: 0 | AQ27: 16181 | AW27: 16181 | AX27: 0 | AY27: 16181 | AZ27: 408 | BA27: 15773 | BB27: -3 | BC27: 15776
A28: 410 | B28: 410035346 | C28: EXCEL ACADEMY | D28: ='fnd enro'!D28 -> 0 | E28: ='fnd enro'!E28 -> 0 | F28: ='fnd enro'!F28 -> 0 | G28: ='fnd enro'!G28 -> 0 | H28: ='fnd enro'!H28 -> 3 | I28: ='fnd enro'!I28 -> 8 | J28: ='fnd enro'!J28 -> 0 | K28: ='fnd enro'!K28 -> 0.4169 | L28: ='fnd enro'!L28 -> 0 | M28: ='fnd enro'!M28+'fnd enro'!N28 -> 0 | N28: ='fnd enro'!O28 -> 0 | O28: ='fnd enro'!P28 -> 2 | P28: ='fnd enro'!Q28+'fnd enro'!R28 -> 5 | Q28: ='fnd enro'!T28 -> 11 | R28: 1.081 | S28: =VALUE('fnd enro'!S28) -> 9 | U28: =(($D28*'fnd base rates'!C$110) +($E28*'fnd base rates'!C$111) +($F28*'fnd base rates'!C$112) +($G28*'fnd base rates'!C$113) +($H28*'fnd base rates'!C$114) +($I28*'fnd base rates'!C$115) +($J28*'fnd base rates'!C$119) +($K28*'fnd base rates'!C$120) +($M28*'fnd base rates'!C$122) +($N28*'fnd base rates'!C$123) +($O28*'fnd base rates'!C$124) +($P28*VLOOKUP($S28+15,rate_basefnd,3))) *$R28 -> 6368.026321 | V28: =(($D28*'fnd base rates'!D$110) +($E28*'fnd base rates'!D$111) +($F28*'fnd base rates'!D$112) +($G28*'fnd base rates'!D$113) +($H28*'fnd base rates'!D$114) +($I28*'fnd base rates'!D$115) +($J28*'fnd base rates'!D$119) +($K28*'fnd base rates'!D$120) +($M28*'fnd base rates'!D$122) +($N28*'fnd base rates'!D$123) +($O28*'fnd base rates'!D$124) +($P28*VLOOKUP($S28+15,rate_basefnd,4))) *$R28 -> 10256.40909 | W28: =(($D28*'fnd base rates'!E$110) +($E28*'fnd base rates'!E$111) +($F28*'fnd base rates'!E$112) +($G28*'fnd base rates'!E$113) +($H28*'fnd base rates'!E$114) +($I28*'fnd base rates'!E$115) +($J28*'fnd base rates'!E$119) +($K28*'fnd base rates'!E$120) +($M28*'fnd base rates'!E$122) +($N28*'fnd base rates'!E$123) +($O28*'fnd base rates'!E$124) +($P28*VLOOKUP($S28+15,rate_basefnd,5))) *$R28 -> 66795.55771 | X28: =(($D28*'fnd base rates'!F$110) +($E28*'fnd base rates'!F$111) +($F28*'fnd base rates'!F$112) +($G28*'fnd base rates'!F$113) +($H28*'fnd base rates'!F$114) +($I28*'fnd base rates'!F$115) +($J28*'fnd base rates'!F$119) +($K28*'fnd base rates'!F$120) +($M28*'fnd base rates'!F$122) +($N28*'fnd base rates'!F$123) +($O28*'fnd base rates'!F$124) +($P28*VLOOKUP($S28+15,rate_basefnd,6))) *$R28 -> 10291.93298 | Y28: =(($D28*'fnd base rates'!G$110) +($E28*'fnd base rates'!G$111) +($F28*'fnd base rates'!G$112) +($G28*'fnd base rates'!G$113) +($H28*'fnd base rates'!G$114) +($I28*'fnd base rates'!G$115) +($J28*'fnd base rates'!G$119) +($K28*'fnd base rates'!G$120) +($M28*'fnd base rates'!G$122) +($N28*'fnd base rates'!G$123) +($O28*'fnd base rates'!G$124) +($P28*VLOOKUP($S28+15,rate_basefnd,7))) *$R28 -> 2631.894088 | Z28: =(($D28*'fnd base rates'!H$110) +($E28*'fnd base rates'!H$111) +($F28*'fnd base rates'!H$112) +($G28*'fnd base rates'!H$113) +($H28*'fnd base rates'!H$114) +($I28*'fnd base rates'!H$115) +($J28*'fnd base rates'!H$119) +($K28*'fnd base rates'!H$120) +($M28*'fnd base rates'!H$122) +($N28*'fnd base rates'!H$123) +($O28*'fnd base rates'!H$124) +($P28*VLOOKUP($S28+15,rate_basefnd,8))) -> 7867.979358 | AA28: =(($D28*'fnd base rates'!I$110) +($E28*'fnd base rates'!I$111) +($F28*'fnd base rates'!I$112) +($G28*'fnd base rates'!I$113) +($H28*'fnd base rates'!I$114) +($I28*'fnd base rates'!I$115) +($J28*'fnd base rates'!I$119) +($K28*'fnd base rates'!I$120) +($M28*'fnd base rates'!I$122) +($N28*'fnd base rates'!I$123) +($O28*'fnd base rates'!I$124) +($P28*VLOOKUP($S28+15,rate_basefnd,9))) *$R28 -> 5163.92619 | AB28: =(($D28*'fnd base rates'!J$110) +($E28*'fnd base rates'!J$111) +($F28*'fnd base rates'!J$112) +($G28*'fnd base rates'!J$113) +($H28*'fnd base rates'!J$114) +($I28*'fnd base rates'!J$115) +($J28*'fnd base rates'!J$119) +($K28*'fnd base rates'!J$120) +($M28*'fnd base rates'!J$122) +($N28*'fnd base rates'!J$123) +($O28*'fnd base rates'!J$124) +($P28*VLOOKUP($S28+15,rate_basefnd,10))) *$R28 -> 8583.11838 | AC28: =(($D28*'fnd base rates'!K$110) +($E28*'fnd base rates'!K$111) +($F28*'fnd base rates'!K$112) +($G28*'fnd base rates'!K$113) +($H28*'fnd base rates'!K$114) +($I28*'fnd base rates'!K$115) +($J28*'fnd base rates'!K$119) +($K28*'fnd base rates'!K$120) +($M28*'fnd base rates'!K$122) +($N28*'fnd base rates'!K$123) +($O28*'fnd base rates'!K$124) +($P28*VLOOKUP($S28+15,rate_basefnd,11))) *$R28 -> 13201.24861 | AD28: =(($D28*'fnd base rates'!L$110) +($E28*'fnd base rates'!L$111) +($F28*'fnd base rates'!L$112) +($G28*'fnd base rates'!L$113) +($H28*'fnd base rates'!L$114) +($I28*'fnd base rates'!L$115) +($J28*'fnd base rates'!L$119) +($K28*'fnd base rates'!L$120) +($M28*'fnd base rates'!L$122) +($N28*'fnd base rates'!L$123) +($O28*'fnd base rates'!L$124) +($P28*VLOOKUP($S28+15,rate_basefnd,12))) -> 15043.84184 | AE28: =(($D28*'fnd base rates'!M$110) +($E28*'fnd base rates'!M$111) +($F28*'fnd base rates'!M$112) +($G28*'fnd base rates'!M$113) +($H28*'fnd base rates'!M$114) +($I28*'fnd base rates'!M$115) +($J28*'fnd base rates'!M$119) +($K28*'fnd base rates'!M$120) +($M28*'fnd base rates'!M$122) +($N28*'fnd base rates'!M$123) +($O28*'fnd base rates'!M$124) +($P28*VLOOKUP($S28+15,rate_basefnd,13))) -> 0 | AF28: 146203.9346 | AH28: 410035346 | AI28: 410 | AJ28: 035 | AK28: 346 | AL28: 1 | AM28: 11 | AN28: 146203.9346 | AO28: 13291 | AP28: 0 | AQ28: 13291 | AW28: 13291 | AX28: 0 | AY28: 13291 | AZ28: -107 | BA28: 13398 | BB28: 18 | BC28: 13380
A29: 410 | B29: 410057035 | C29: EXCEL ACADEMY | D29: ='fnd enro'!D29 -> 0 | E29: ='fnd enro'!E29 -> 0 | F29: ='fnd enro'!F29 -> 0 | G29: ='fnd enro'!G29 -> 0 | H29: ='fnd enro'!H29 -> 9 | I29: ='fnd enro'!I29 -> 0 | J29: ='fnd enro'!J29 -> 0 | K29: ='fnd enro'!K29 -> 0.3411 | L29: ='fnd enro'!L29 -> 0 | M29: ='fnd enro'!M29+'fnd enro'!N29 -> 0 | N29: ='fnd enro'!O29 -> 4 | O29: ='fnd enro'!P29 -> 0 | P29: ='fnd enro'!Q29+'fnd enro'!R29 -> 7 | Q29: ='fnd enro'!T29 -> 9 | R29: 1.037 | S29: =VALUE('fnd enro'!S29) -> 10 | U29: =(($D29*'fnd base rates'!C$110) +($E29*'fnd base rates'!C$111) +($F29*'fnd base rates'!C$112) +($G29*'fnd base rates'!C$113) +($H29*'fnd base rates'!C$114) +($I29*'fnd base rates'!C$115) +($J29*'fnd base rates'!C$119) +($K29*'fnd base rates'!C$120) +($M29*'fnd base rates'!C$122) +($N29*'fnd base rates'!C$123) +($O29*'fnd base rates'!C$124) +($P29*VLOOKUP($S29+15,rate_basefnd,3))) *$R29 -> 5457.999249 | V29: =(($D29*'fnd base rates'!D$110) +($E29*'fnd base rates'!D$111) +($F29*'fnd base rates'!D$112) +($G29*'fnd base rates'!D$113) +($H29*'fnd base rates'!D$114) +($I29*'fnd base rates'!D$115) +($J29*'fnd base rates'!D$119) +($K29*'fnd base rates'!D$120) +($M29*'fnd base rates'!D$122) +($N29*'fnd base rates'!D$123) +($O29*'fnd base rates'!D$124) +($P29*VLOOKUP($S29+15,rate_basefnd,4))) *$R29 -> 9433.62011 | W29: =(($D29*'fnd base rates'!E$110) +($E29*'fnd base rates'!E$111) +($F29*'fnd base rates'!E$112) +($G29*'fnd base rates'!E$113) +($H29*'fnd base rates'!E$114) +($I29*'fnd base rates'!E$115) +($J29*'fnd base rates'!E$119) +($K29*'fnd base rates'!E$120) +($M29*'fnd base rates'!E$122) +($N29*'fnd base rates'!E$123) +($O29*'fnd base rates'!E$124) +($P29*VLOOKUP($S29+15,rate_basefnd,5))) *$R29 -> 55522.80857 | X29: =(($D29*'fnd base rates'!F$110) +($E29*'fnd base rates'!F$111) +($F29*'fnd base rates'!F$112) +($G29*'fnd base rates'!F$113) +($H29*'fnd base rates'!F$114) +($I29*'fnd base rates'!F$115) +($J29*'fnd base rates'!F$119) +($K29*'fnd base rates'!F$120) +($M29*'fnd base rates'!F$122) +($N29*'fnd base rates'!F$123) +($O29*'fnd base rates'!F$124) +($P29*VLOOKUP($S29+15,rate_basefnd,6))) *$R29 -> 9225.034026 | Y29: =(($D29*'fnd base rates'!G$110) +($E29*'fnd base rates'!G$111) +($F29*'fnd base rates'!G$112) +($G29*'fnd base rates'!G$113) +($H29*'fnd base rates'!G$114) +($I29*'fnd base rates'!G$115) +($J29*'fnd base rates'!G$119) +($K29*'fnd base rates'!G$120) +($M29*'fnd base rates'!G$122) +($N29*'fnd base rates'!G$123) +($O29*'fnd base rates'!G$124) +($P29*VLOOKUP($S29+15,rate_basefnd,7))) *$R29 -> 2662.131882 | Z29: =(($D29*'fnd base rates'!H$110) +($E29*'fnd base rates'!H$111) +($F29*'fnd base rates'!H$112) +($G29*'fnd base rates'!H$113) +($H29*'fnd base rates'!H$114) +($I29*'fnd base rates'!H$115) +($J29*'fnd base rates'!H$119) +($K29*'fnd base rates'!H$120) +($M29*'fnd base rates'!H$122) +($N29*'fnd base rates'!H$123) +($O29*'fnd base rates'!H$124) +($P29*VLOOKUP($S29+15,rate_basefnd,8))) -> 4977.582202 | AA29: =(($D29*'fnd base rates'!I$110) +($E29*'fnd base rates'!I$111) +($F29*'fnd base rates'!I$112) +($G29*'fnd base rates'!I$113) +($H29*'fnd base rates'!I$114) +($I29*'fnd base rates'!I$115) +($J29*'fnd base rates'!I$119) +($K29*'fnd base rates'!I$120) +($M29*'fnd base rates'!I$122) +($N29*'fnd base rates'!I$123) +($O29*'fnd base rates'!I$124) +($P29*VLOOKUP($S29+15,rate_basefnd,9))) *$R29 -> 4074.46633 | AB29: =(($D29*'fnd base rates'!J$110) +($E29*'fnd base rates'!J$111) +($F29*'fnd base rates'!J$112) +($G29*'fnd base rates'!J$113) +($H29*'fnd base rates'!J$114) +($I29*'fnd base rates'!J$115) +($J29*'fnd base rates'!J$119) +($K29*'fnd base rates'!J$120) +($M29*'fnd base rates'!J$122) +($N29*'fnd base rates'!J$123) +($O29*'fnd base rates'!J$124) +($P29*VLOOKUP($S29+15,rate_basefnd,10))) *$R29 -> 6647.66776 | AC29: =(($D29*'fnd base rates'!K$110) +($E29*'fnd base rates'!K$111) +($F29*'fnd base rates'!K$112) +($G29*'fnd base rates'!K$113) +($H29*'fnd base rates'!K$114) +($I29*'fnd base rates'!K$115) +($J29*'fnd base rates'!K$119) +($K29*'fnd base rates'!K$120) +($M29*'fnd base rates'!K$122) +($N29*'fnd base rates'!K$123) +($O29*'fnd base rates'!K$124) +($P29*VLOOKUP($S29+15,rate_basefnd,11))) *$R29 -> 11361.53206 | AD29: =(($D29*'fnd base rates'!L$110) +($E29*'fnd base rates'!L$111) +($F29*'fnd base rates'!L$112) +($G29*'fnd base rates'!L$113) +($H29*'fnd base rates'!L$114) +($I29*'fnd base rates'!L$115) +($J29*'fnd base rates'!L$119) +($K29*'fnd base rates'!L$120) +($M29*'fnd base rates'!L$122) +($N29*'fnd base rates'!L$123) +($O29*'fnd base rates'!L$124) +($P29*VLOOKUP($S29+15,rate_basefnd,12))) -> 15079.17285 | AE29: =(($D29*'fnd base rates'!M$110) +($E29*'fnd base rates'!M$111) +($F29*'fnd base rates'!M$112) +($G29*'fnd base rates'!M$113) +($H29*'fnd base rates'!M$114) +($I29*'fnd base rates'!M$115) +($J29*'fnd base rates'!M$119) +($K29*'fnd base rates'!M$120) +($M29*'fnd base rates'!M$122) +($N29*'fnd base rates'!M$123) +($O29*'fnd base rates'!M$124) +($P29*VLOOKUP($S29+15,rate_basefnd,13))) -> 0 | AF29: 124442.015 | AH29: 410057035 | AI29: 410 | AJ29: 057 | AK29: 035 | AL29: 1 | AM29: 9 | AN29: 124442.015 | AO29: 13827 | AP29: 0 | AQ29: 13827 | AW29: 13827 | AX29: 0 | AY29: 13827 | AZ29: 147 | BA29: 13680 | BB29: 315 | BC29: 13365
A30: 410 | B30: 410057057 | C30: EXCEL ACADEMY | D30: ='fnd enro'!D30 -> 0 | E30: ='fnd enro'!E30 -> 0 | F30: ='fnd enro'!F30 -> 0 | G30: ='fnd enro'!G30 -> 55 | H30: ='fnd enro'!H30 -> 147 | I30: ='fnd enro'!I30 -> 0 | J30: ='fnd enro'!J30 -> 0 | K30: ='fnd enro'!K30 -> 7.6558 | L30: ='fnd enro'!L30 -> 0 | M30: ='fnd enro'!M30+'fnd enro'!N30 -> 10 | N30: ='fnd enro'!O30 -> 22 | O30: ='fnd enro'!P30 -> 0 | P30: ='fnd enro'!Q30+'fnd enro'!R30 -> 125 | Q30: ='fnd enro'!T30 -> 202 | R30: 1.037 | S30: =VALUE('fnd enro'!S30) -> 10 | U30: =(($D30*'fnd base rates'!C$110) +($E30*'fnd base rates'!C$111) +($F30*'fnd base rates'!C$112) +($G30*'fnd base rates'!C$113) +($H30*'fnd base rates'!C$114) +($I30*'fnd base rates'!C$115) +($J30*'fnd base rates'!C$119) +($K30*'fnd base rates'!C$120) +($M30*'fnd base rates'!C$122) +($N30*'fnd base rates'!C$123) +($O30*'fnd base rates'!C$124) +($P30*VLOOKUP($S30+15,rate_basefnd,3))) *$R30 -> 114735.449 | V30: =(($D30*'fnd base rates'!D$110) +($E30*'fnd base rates'!D$111) +($F30*'fnd base rates'!D$112) +($G30*'fnd base rates'!D$113) +($H30*'fnd base rates'!D$114) +($I30*'fnd base rates'!D$115) +($J30*'fnd base rates'!D$119) +($K30*'fnd base rates'!D$120) +($M30*'fnd base rates'!D$122) +($N30*'fnd base rates'!D$123) +($O30*'fnd base rates'!D$124) +($P30*VLOOKUP($S30+15,rate_basefnd,4))) *$R30 -> 191942.115 | W30: =(($D30*'fnd base rates'!E$110) +($E30*'fnd base rates'!E$111) +($F30*'fnd base rates'!E$112) +($G30*'fnd base rates'!E$113) +($H30*'fnd base rates'!E$114) +($I30*'fnd base rates'!E$115) +($J30*'fnd base rates'!E$119) +($K30*'fnd base rates'!E$120) +($M30*'fnd base rates'!E$122) +($N30*'fnd base rates'!E$123) +($O30*'fnd base rates'!E$124) +($P30*VLOOKUP($S30+15,rate_basefnd,5))) *$R30 -> 1102713.142 | X30: =(($D30*'fnd base rates'!F$110) +($E30*'fnd base rates'!F$111) +($F30*'fnd base rates'!F$112) +($G30*'fnd base rates'!F$113) +($H30*'fnd base rates'!F$114) +($I30*'fnd base rates'!F$115) +($J30*'fnd base rates'!F$119) +($K30*'fnd base rates'!F$120) +($M30*'fnd base rates'!F$122) +($N30*'fnd base rates'!F$123) +($O30*'fnd base rates'!F$124) +($P30*VLOOKUP($S30+15,rate_basefnd,6))) *$R30 -> 210391.8164 | Y30: =(($D30*'fnd base rates'!G$110) +($E30*'fnd base rates'!G$111) +($F30*'fnd base rates'!G$112) +($G30*'fnd base rates'!G$113) +($H30*'fnd base rates'!G$114) +($I30*'fnd base rates'!G$115) +($J30*'fnd base rates'!G$119) +($K30*'fnd base rates'!G$120) +($M30*'fnd base rates'!G$122) +($N30*'fnd base rates'!G$123) +($O30*'fnd base rates'!G$124) +($P30*VLOOKUP($S30+15,rate_basefnd,7))) *$R30 -> 51633.57582 | Z30: =(($D30*'fnd base rates'!H$110) +($E30*'fnd base rates'!H$111) +($F30*'fnd base rates'!H$112) +($G30*'fnd base rates'!H$113) +($H30*'fnd base rates'!H$114) +($I30*'fnd base rates'!H$115) +($J30*'fnd base rates'!H$119) +($K30*'fnd base rates'!H$120) +($M30*'fnd base rates'!H$122) +($N30*'fnd base rates'!H$123) +($O30*'fnd base rates'!H$124) +($P30*VLOOKUP($S30+15,rate_basefnd,8))) -> 104170.5928 | AA30: =(($D30*'fnd base rates'!I$110) +($E30*'fnd base rates'!I$111) +($F30*'fnd base rates'!I$112) +($G30*'fnd base rates'!I$113) +($H30*'fnd base rates'!I$114) +($I30*'fnd base rates'!I$115) +($J30*'fnd base rates'!I$119) +($K30*'fnd base rates'!I$120) +($M30*'fnd base rates'!I$122) +($N30*'fnd base rates'!I$123) +($O30*'fnd base rates'!I$124) +($P30*VLOOKUP($S30+15,rate_basefnd,9))) *$R30 -> 78835.00066 | AB30: =(($D30*'fnd base rates'!J$110) +($E30*'fnd base rates'!J$111) +($F30*'fnd base rates'!J$112) +($G30*'fnd base rates'!J$113) +($H30*'fnd base rates'!J$114) +($I30*'fnd base rates'!J$115) +($J30*'fnd base rates'!J$119) +($K30*'fnd base rates'!J$120) +($M30*'fnd base rates'!J$122) +($N30*'fnd base rates'!J$123) +($O30*'fnd base rates'!J$124) +($P30*VLOOKUP($S30+15,rate_basefnd,10))) *$R30 -> 122497.9168 | AC30: =(($D30*'fnd base rates'!K$110) +($E30*'fnd base rates'!K$111) +($F30*'fnd base rates'!K$112) +($G30*'fnd base rates'!K$113) +($H30*'fnd base rates'!K$114) +($I30*'fnd base rates'!K$115) +($J30*'fnd base rates'!K$119) +($K30*'fnd base rates'!K$120) +($M30*'fnd base rates'!K$122) +($N30*'fnd base rates'!K$123) +($O30*'fnd base rates'!K$124) +($P30*VLOOKUP($S30+15,rate_basefnd,11))) *$R30 -> 233603.4954 | AD30: =(($D30*'fnd base rates'!L$110) +($E30*'fnd base rates'!L$111) +($F30*'fnd base rates'!L$112) +($G30*'fnd base rates'!L$113) +($H30*'fnd base rates'!L$114) +($I30*'fnd base rates'!L$115) +($J30*'fnd base rates'!L$119) +($K30*'fnd base rates'!L$120) +($M30*'fnd base rates'!L$122) +($N30*'fnd base rates'!L$123) +($O30*'fnd base rates'!L$124) +($P30*VLOOKUP($S30+15,rate_basefnd,12))) -> 306677.1862 | AE30: =(($D30*'fnd base rates'!M$110) +($E30*'fnd base rates'!M$111) +($F30*'fnd base rates'!M$112) +($G30*'fnd base rates'!M$113) +($H30*'fnd base rates'!M$114) +($I30*'fnd base rates'!M$115) +($J30*'fnd base rates'!M$119) +($K30*'fnd base rates'!M$120) +($M30*'fnd base rates'!M$122) +($N30*'fnd base rates'!M$123) +($O30*'fnd base rates'!M$124) +($P30*VLOOKUP($S30+15,rate_basefnd,13))) -> 0 | AF30: 2517200.29 | AH30: 410057057 | AI30: 410 | AJ30: 057 | AK30: 057 | AL30: 1 | AM30: 202 | AN30: 2517200.29 | AO30: 12461 | AP30: 0 | AQ30: 12461 | AW30: 12461 | AX30: 0 | AY30: 12461 | AZ30: 207 | BA30: 12254 | BB30: 114 | BC30: 12140
A31: 410 | B31: 410057093 | C31: EXCEL ACADEMY | D31: ='fnd enro'!D31 -> 0 | E31: ='fnd enro'!E31 -> 0 | F31: ='fnd enro'!F31 -> 0 | G31: ='fnd enro'!G31 -> 0 | H31: ='fnd enro'!H31 -> 6 | I31: ='fnd enro'!I31 -> 0 | J31: ='fnd enro'!J31 -> 0 | K31: ='fnd enro'!K31 -> 0.2274 | L31: ='fnd enro'!L31 -> 0 | M31: ='fnd enro'!M31+'fnd enro'!N31 -> 0 | N31: ='fnd enro'!O31 -> 1 | O31: ='fnd enro'!P31 -> 0 | P31: ='fnd enro'!Q31+'fnd enro'!R31 -> 4 | Q31: ='fnd enro'!T31 -> 6 | R31: 1.037 | S31: =VALUE('fnd enro'!S31) -> 10 | U31: =(($D31*'fnd base rates'!C$110) +($E31*'fnd base rates'!C$111) +($F31*'fnd base rates'!C$112) +($G31*'fnd base rates'!C$113) +($H31*'fnd base rates'!C$114) +($I31*'fnd base rates'!C$115) +($J31*'fnd base rates'!C$119) +($K31*'fnd base rates'!C$120) +($M31*'fnd base rates'!C$122) +($N31*'fnd base rates'!C$123) +($O31*'fnd base rates'!C$124) +($P31*VLOOKUP($S31+15,rate_basefnd,3))) *$R31 -> 3432.648833 | V31: =(($D31*'fnd base rates'!D$110) +($E31*'fnd base rates'!D$111) +($F31*'fnd base rates'!D$112) +($G31*'fnd base rates'!D$113) +($H31*'fnd base rates'!D$114) +($I31*'fnd base rates'!D$115) +($J31*'fnd base rates'!D$119) +($K31*'fnd base rates'!D$120) +($M31*'fnd base rates'!D$122) +($N31*'fnd base rates'!D$123) +($O31*'fnd base rates'!D$124) +($P31*VLOOKUP($S31+15,rate_basefnd,4))) *$R31 -> 5799.84767 | W31: =(($D31*'fnd base rates'!E$110) +($E31*'fnd base rates'!E$111) +($F31*'fnd base rates'!E$112) +($G31*'fnd base rates'!E$113) +($H31*'fnd base rates'!E$114) +($I31*'fnd base rates'!E$115) +($J31*'fnd base rates'!E$119) +($K31*'fnd base rates'!E$120) +($M31*'fnd base rates'!E$122) +($N31*'fnd base rates'!E$123) +($O31*'fnd base rates'!E$124) +($P31*VLOOKUP($S31+15,rate_basefnd,5))) *$R31 -> 33026.99359 | X31: =(($D31*'fnd base rates'!F$110) +($E31*'fnd base rates'!F$111) +($F31*'fnd base rates'!F$112) +($G31*'fnd base rates'!F$113) +($H31*'fnd base rates'!F$114) +($I31*'fnd base rates'!F$115) +($J31*'fnd base rates'!F$119) +($K31*'fnd base rates'!F$120) +($M31*'fnd base rates'!F$122) +($N31*'fnd base rates'!F$123) +($O31*'fnd base rates'!F$124) +($P31*VLOOKUP($S31+15,rate_basefnd,6))) *$R31 -> 5864.864967 | Y31: =(($D31*'fnd base rates'!G$110) +($E31*'fnd base rates'!G$111) +($F31*'fnd base rates'!G$112) +($G31*'fnd base rates'!G$113) +($H31*'fnd base rates'!G$114) +($I31*'fnd base rates'!G$115) +($J31*'fnd base rates'!G$119) +($K31*'fnd base rates'!G$120) +($M31*'fnd base rates'!G$122) +($N31*'fnd base rates'!G$123) +($O31*'fnd base rates'!G$124) +($P31*VLOOKUP($S31+15,rate_basefnd,7))) *$R31 -> 1596.649838 | Z31: =(($D31*'fnd base rates'!H$110) +($E31*'fnd base rates'!H$111) +($F31*'fnd base rates'!H$112) +($G31*'fnd base rates'!H$113) +($H31*'fnd base rates'!H$114) +($I31*'fnd base rates'!H$115) +($J31*'fnd base rates'!H$119) +($K31*'fnd base rates'!H$120) +($M31*'fnd base rates'!H$122) +($N31*'fnd base rates'!H$123) +($O31*'fnd base rates'!H$124) +($P31*VLOOKUP($S31+15,rate_basefnd,8))) -> 3107.701468 | AA31: =(($D31*'fnd base rates'!I$110) +($E31*'fnd base rates'!I$111) +($F31*'fnd base rates'!I$112) +($G31*'fnd base rates'!I$113) +($H31*'fnd base rates'!I$114) +($I31*'fnd base rates'!I$115) +($J31*'fnd base rates'!I$119) +($K31*'fnd base rates'!I$120) +($M31*'fnd base rates'!I$122) +($N31*'fnd base rates'!I$123) +($O31*'fnd base rates'!I$124) +($P31*VLOOKUP($S31+15,rate_basefnd,9))) *$R31 -> 2513.42875 | AB31: =(($D31*'fnd base rates'!J$110) +($E31*'fnd base rates'!J$111) +($F31*'fnd base rates'!J$112) +($G31*'fnd base rates'!J$113) +($H31*'fnd base rates'!J$114) +($I31*'fnd base rates'!J$115) +($J31*'fnd base rates'!J$119) +($K31*'fnd base rates'!J$120) +($M31*'fnd base rates'!J$122) +($N31*'fnd base rates'!J$123) +($O31*'fnd base rates'!J$124) +($P31*VLOOKUP($S31+15,rate_basefnd,10))) *$R31 -> 3971.86555 | AC31: =(($D31*'fnd base rates'!K$110) +($E31*'fnd base rates'!K$111) +($F31*'fnd base rates'!K$112) +($G31*'fnd base rates'!K$113) +($H31*'fnd base rates'!K$114) +($I31*'fnd base rates'!K$115) +($J31*'fnd base rates'!K$119) +($K31*'fnd base rates'!K$120) +($M31*'fnd base rates'!K$122) +($N31*'fnd base rates'!K$123) +($O31*'fnd base rates'!K$124) +($P31*VLOOKUP($S31+15,rate_basefnd,11))) *$R31 -> 7085.53019 | AD31: =(($D31*'fnd base rates'!L$110) +($E31*'fnd base rates'!L$111) +($F31*'fnd base rates'!L$112) +($G31*'fnd base rates'!L$113) +($H31*'fnd base rates'!L$114) +($I31*'fnd base rates'!L$115) +($J31*'fnd base rates'!L$119) +($K31*'fnd base rates'!L$120) +($M31*'fnd base rates'!L$122) +($N31*'fnd base rates'!L$123) +($O31*'fnd base rates'!L$124) +($P31*VLOOKUP($S31+15,rate_basefnd,12))) -> 9309.928565 | AE31: =(($D31*'fnd base rates'!M$110) +($E31*'fnd base rates'!M$111) +($F31*'fnd base rates'!M$112) +($G31*'fnd base rates'!M$113) +($H31*'fnd base rates'!M$114) +($I31*'fnd base rates'!M$115) +($J31*'fnd base rates'!M$119) +($K31*'fnd base rates'!M$120) +($M31*'fnd base rates'!M$122) +($N31*'fnd base rates'!M$123) +($O31*'fnd base rates'!M$124) +($P31*VLOOKUP($S31+15,rate_basefnd,13))) -> 0 | AF31: 75709.45942 | AH31: 410057093 | AI31: 410 | AJ31: 057 | AK31: 093 | AL31: 1 | AM31: 6 | AN31: 75709.45942 | AO31: 12618 | AP31: 0 | AQ31: 12618 | AW31: 12618 | AX31: 0 | AY31: 12618 | AZ31: 200 | BA31: 12418 | BB31: 473 | BC31: 11945
A32: 410 | B32: 410057163 | C32: EXCEL ACADEMY | D32: ='fnd enro'!D32 -> 0 | E32: ='fnd enro'!E32 -> 0 | F32: ='fnd enro'!F32 -> 0 | G32: ='fnd enro'!G32 -> 2 | H32: ='fnd enro'!H32 -> 3 | I32: ='fnd enro'!I32 -> 0 | J32: ='fnd enro'!J32 -> 0 | K32: ='fnd enro'!K32 -> 0.1895 | L32: ='fnd enro'!L32 -> 0 | M32: ='fnd enro'!M32+'fnd enro'!N32 -> 0 | N32: ='fnd enro'!O32 -> 0 | O32: ='fnd enro'!P32 -> 0 | P32: ='fnd enro'!Q32+'fnd enro'!R32 -> 2 | Q32: ='fnd enro'!T32 -> 5 | R32: 1.037 | S32: =VALUE('fnd enro'!S32) -> 8 | U32: =(($D32*'fnd base rates'!C$110) +($E32*'fnd base rates'!C$111) +($F32*'fnd base rates'!C$112) +($G32*'fnd base rates'!C$113) +($H32*'fnd base rates'!C$114) +($I32*'fnd base rates'!C$115) +($J32*'fnd base rates'!C$119) +($K32*'fnd base rates'!C$120) +($M32*'fnd base rates'!C$122) +($N32*'fnd base rates'!C$123) +($O32*'fnd base rates'!C$124) +($P32*VLOOKUP($S32+15,rate_basefnd,3))) *$R32 -> 2687.306387 | V32: =(($D32*'fnd base rates'!D$110) +($E32*'fnd base rates'!D$111) +($F32*'fnd base rates'!D$112) +($G32*'fnd base rates'!D$113) +($H32*'fnd base rates'!D$114) +($I32*'fnd base rates'!D$115) +($J32*'fnd base rates'!D$119) +($K32*'fnd base rates'!D$120) +($M32*'fnd base rates'!D$122) +($N32*'fnd base rates'!D$123) +($O32*'fnd base rates'!D$124) +($P32*VLOOKUP($S32+15,rate_basefnd,4))) *$R32 -> 4255.86874 | W32: =(($D32*'fnd base rates'!E$110) +($E32*'fnd base rates'!E$111) +($F32*'fnd base rates'!E$112) +($G32*'fnd base rates'!E$113) +($H32*'fnd base rates'!E$114) +($I32*'fnd base rates'!E$115) +($J32*'fnd base rates'!E$119) +($K32*'fnd base rates'!E$120) +($M32*'fnd base rates'!E$122) +($N32*'fnd base rates'!E$123) +($O32*'fnd base rates'!E$124) +($P32*VLOOKUP($S32+15,rate_basefnd,5))) *$R32 -> 23088.12019 | X32: =(($D32*'fnd base rates'!F$110) +($E32*'fnd base rates'!F$111) +($F32*'fnd base rates'!F$112) +($G32*'fnd base rates'!F$113) +($H32*'fnd base rates'!F$114) +($I32*'fnd base rates'!F$115) +($J32*'fnd base rates'!F$119) +($K32*'fnd base rates'!F$120) +($M32*'fnd base rates'!F$122) +($N32*'fnd base rates'!F$123) +($O32*'fnd base rates'!F$124) +($P32*VLOOKUP($S32+15,rate_basefnd,6))) *$R32 -> 5228.506894 | Y32: =(($D32*'fnd base rates'!G$110) +($E32*'fnd base rates'!G$111) +($F32*'fnd base rates'!G$112) +($G32*'fnd base rates'!G$113) +($H32*'fnd base rates'!G$114) +($I32*'fnd base rates'!G$115) +($J32*'fnd base rates'!G$119) +($K32*'fnd base rates'!G$120) +($M32*'fnd base rates'!G$122) +($N32*'fnd base rates'!G$123) +($O32*'fnd base rates'!G$124) +($P32*VLOOKUP($S32+15,rate_basefnd,7))) *$R32 -> 1061.507437 | Z32: =(($D32*'fnd base rates'!H$110) +($E32*'fnd base rates'!H$111) +($F32*'fnd base rates'!H$112) +($G32*'fnd base rates'!H$113) +($H32*'fnd base rates'!H$114) +($I32*'fnd base rates'!H$115) +($J32*'fnd base rates'!H$119) +($K32*'fnd base rates'!H$120) +($M32*'fnd base rates'!H$122) +($N32*'fnd base rates'!H$123) +($O32*'fnd base rates'!H$124) +($P32*VLOOKUP($S32+15,rate_basefnd,8))) -> 2461.11789 | AA32: =(($D32*'fnd base rates'!I$110) +($E32*'fnd base rates'!I$111) +($F32*'fnd base rates'!I$112) +($G32*'fnd base rates'!I$113) +($H32*'fnd base rates'!I$114) +($I32*'fnd base rates'!I$115) +($J32*'fnd base rates'!I$119) +($K32*'fnd base rates'!I$120) +($M32*'fnd base rates'!I$122) +($N32*'fnd base rates'!I$123) +($O32*'fnd base rates'!I$124) +($P32*VLOOKUP($S32+15,rate_basefnd,9))) *$R32 -> 1699.37338 | AB32: =(($D32*'fnd base rates'!J$110) +($E32*'fnd base rates'!J$111) +($F32*'fnd base rates'!J$112) +($G32*'fnd base rates'!J$113) +($H32*'fnd base rates'!J$114) +($I32*'fnd base rates'!J$115) +($J32*'fnd base rates'!J$119) +($K32*'fnd base rates'!J$120) +($M32*'fnd base rates'!J$122) +($N32*'fnd base rates'!J$123) +($O32*'fnd base rates'!J$124) +($P32*VLOOKUP($S32+15,rate_basefnd,10))) *$R32 -> 2211.32991 | AC32: =(($D32*'fnd base rates'!K$110) +($E32*'fnd base rates'!K$111) +($F32*'fnd base rates'!K$112) +($G32*'fnd base rates'!K$113) +($H32*'fnd base rates'!K$114) +($I32*'fnd base rates'!K$115) +($J32*'fnd base rates'!K$119) +($K32*'fnd base rates'!K$120) +($M32*'fnd base rates'!K$122) +($N32*'fnd base rates'!K$123) +($O32*'fnd base rates'!K$124) +($P32*VLOOKUP($S32+15,rate_basefnd,11))) *$R32 -> 5502.924813 | AD32: =(($D32*'fnd base rates'!L$110) +($E32*'fnd base rates'!L$111) +($F32*'fnd base rates'!L$112) +($G32*'fnd base rates'!L$113) +($H32*'fnd base rates'!L$114) +($I32*'fnd base rates'!L$115) +($J32*'fnd base rates'!L$119) +($K32*'fnd base rates'!L$120) +($M32*'fnd base rates'!L$122) +($N32*'fnd base rates'!L$123) +($O32*'fnd base rates'!L$124) +($P32*VLOOKUP($S32+15,rate_basefnd,12))) -> 6818.17524 | AE32: =(($D32*'fnd base rates'!M$110) +($E32*'fnd base rates'!M$111) +($F32*'fnd base rates'!M$112) +($G32*'fnd base rates'!M$113) +($H32*'fnd base rates'!M$114) +($I32*'fnd base rates'!M$115) +($J32*'fnd base rates'!M$119) +($K32*'fnd base rates'!M$120) +($M32*'fnd base rates'!M$122) +($N32*'fnd base rates'!M$123) +($O32*'fnd base rates'!M$124) +($P32*VLOOKUP($S32+15,rate_basefnd,13))) -> 0 | AF32: 55014.23088 | AH32: 410057163 | AI32: 410 | AJ32: 057 | AK32: 163 | AL32: 1 | AM32: 5 | AN32: 55014.23088 | AO32: 11003 | AP32: 0 | AQ32: 11003 | AW32: 11003 | AX32: 0 | AY32: 11003 | AZ32: 124 | BA32: 10879 | BB32: 6 | BC32: 10873
A33: 410 | B33: 410057176 | C33: EXCEL ACADEMY | D33: ='fnd enro'!D33 -> 0 | E33: ='fnd enro'!E33 -> 0 | F33: ='fnd enro'!F33 -> 0 | G33: ='fnd enro'!G33 -> 1 | H33: ='fnd enro'!H33 -> 0 | I33: ='fnd enro'!I33 -> 0 | J33: ='fnd enro'!J33 -> 0 | K33: ='fnd enro'!K33 -> 0.0379 | L33: ='fnd enro'!L33 -> 0 | M33: ='fnd enro'!M33+'fnd enro'!N33 -> 0 | N33: ='fnd enro'!O33 -> 0 | O33: ='fnd enro'!P33 -> 0 | P33: ='fnd enro'!Q33+'fnd enro'!R33 -> 1 | Q33: ='fnd enro'!T33 -> 1 | R33: 1.037 | S33: =VALUE('fnd enro'!S33) -> 10 | U33: =(($D33*'fnd base rates'!C$110) +($E33*'fnd base rates'!C$111) +($F33*'fnd base rates'!C$112) +($G33*'fnd base rates'!C$113) +($H33*'fnd base rates'!C$114) +($I33*'fnd base rates'!C$115) +($J33*'fnd base rates'!C$119) +($K33*'fnd base rates'!C$120) +($M33*'fnd base rates'!C$122) +($N33*'fnd base rates'!C$123) +($O33*'fnd base rates'!C$124) +($P33*VLOOKUP($S33+15,rate_basefnd,3))) *$R33 -> 577.3484455 | V33: =(($D33*'fnd base rates'!D$110) +($E33*'fnd base rates'!D$111) +($F33*'fnd base rates'!D$112) +($G33*'fnd base rates'!D$113) +($H33*'fnd base rates'!D$114) +($I33*'fnd base rates'!D$115) +($J33*'fnd base rates'!D$119) +($K33*'fnd base rates'!D$120) +($M33*'fnd base rates'!D$122) +($N33*'fnd base rates'!D$123) +($O33*'fnd base rates'!D$124) +($P33*VLOOKUP($S33+15,rate_basefnd,4))) *$R33 -> 1040.16285 | W33: =(($D33*'fnd base rates'!E$110) +($E33*'fnd base rates'!E$111) +($F33*'fnd base rates'!E$112) +($G33*'fnd base rates'!E$113) +($H33*'fnd base rates'!E$114) +($I33*'fnd base rates'!E$115) +($J33*'fnd base rates'!E$119) +($K33*'fnd base rates'!E$120) +($M33*'fnd base rates'!E$122) +($N33*'fnd base rates'!E$123) +($O33*'fnd base rates'!E$124) +($P33*VLOOKUP($S33+15,rate_basefnd,5))) *$R33 -> 6704.854084 | X33: =(($D33*'fnd base rates'!F$110) +($E33*'fnd base rates'!F$111) +($F33*'fnd base rates'!F$112) +($G33*'fnd base rates'!F$113) +($H33*'fnd base rates'!F$114) +($I33*'fnd base rates'!F$115) +($J33*'fnd base rates'!F$119) +($K33*'fnd base rates'!F$120) +($M33*'fnd base rates'!F$122) +($N33*'fnd base rates'!F$123) +($O33*'fnd base rates'!F$124) +($P33*VLOOKUP($S33+15,rate_basefnd,6))) *$R33 -> 1190.810863 | Y33: =(($D33*'fnd base rates'!G$110) +($E33*'fnd base rates'!G$111) +($F33*'fnd base rates'!G$112) +($G33*'fnd base rates'!G$113) +($H33*'fnd base rates'!G$114) +($I33*'fnd base rates'!G$115) +($J33*'fnd base rates'!G$119) +($K33*'fnd base rates'!G$120) +($M33*'fnd base rates'!G$122) +($N33*'fnd base rates'!G$123) +($O33*'fnd base rates'!G$124) +($P33*VLOOKUP($S33+15,rate_basefnd,7))) *$R33 -> 295.0872713 | Z33: =(($D33*'fnd base rates'!H$110) +($E33*'fnd base rates'!H$111) +($F33*'fnd base rates'!H$112) +($G33*'fnd base rates'!H$113) +($H33*'fnd base rates'!H$114) +($I33*'fnd base rates'!H$115) +($J33*'fnd base rates'!H$119) +($K33*'fnd base rates'!H$120) +($M33*'fnd base rates'!H$122) +($N33*'fnd base rates'!H$123) +($O33*'fnd base rates'!H$124) +($P33*VLOOKUP($S33+15,rate_basefnd,8))) -> 505.453578 | AA33: =(($D33*'fnd base rates'!I$110) +($E33*'fnd base rates'!I$111) +($F33*'fnd base rates'!I$112) +($G33*'fnd base rates'!I$113) +($H33*'fnd base rates'!I$114) +($I33*'fnd base rates'!I$115) +($J33*'fnd base rates'!I$119) +($K33*'fnd base rates'!I$120) +($M33*'fnd base rates'!I$122) +($N33*'fnd base rates'!I$123) +($O33*'fnd base rates'!I$124) +($P33*VLOOKUP($S33+15,rate_basefnd,9))) *$R33 -> 365.93656 | AB33: =(($D33*'fnd base rates'!J$110) +($E33*'fnd base rates'!J$111) +($F33*'fnd base rates'!J$112) +($G33*'fnd base rates'!J$113) +($H33*'fnd base rates'!J$114) +($I33*'fnd base rates'!J$115) +($J33*'fnd base rates'!J$119) +($K33*'fnd base rates'!J$120) +($M33*'fnd base rates'!J$122) +($N33*'fnd base rates'!J$123) +($O33*'fnd base rates'!J$124) +($P33*VLOOKUP($S33+15,rate_basefnd,10))) *$R33 -> 774.90862 | AC33: =(($D33*'fnd base rates'!K$110) +($E33*'fnd base rates'!K$111) +($F33*'fnd base rates'!K$112) +($G33*'fnd base rates'!K$113) +($H33*'fnd base rates'!K$114) +($I33*'fnd base rates'!K$115) +($J33*'fnd base rates'!K$119) +($K33*'fnd base rates'!K$120) +($M33*'fnd base rates'!K$122) +($N33*'fnd base rates'!K$123) +($O33*'fnd base rates'!K$124) +($P33*VLOOKUP($S33+15,rate_basefnd,11))) *$R33 -> 1053.403537 | AD33: =(($D33*'fnd base rates'!L$110) +($E33*'fnd base rates'!L$111) +($F33*'fnd base rates'!L$112) +($G33*'fnd base rates'!L$113) +($H33*'fnd base rates'!L$114) +($I33*'fnd base rates'!L$115) +($J33*'fnd base rates'!L$119) +($K33*'fnd base rates'!L$120) +($M33*'fnd base rates'!L$122) +($N33*'fnd base rates'!L$123) +($O33*'fnd base rates'!L$124) +($P33*VLOOKUP($S33+15,rate_basefnd,12))) -> 1632.820479 | AE33: =(($D33*'fnd base rates'!M$110) +($E33*'fnd base rates'!M$111) +($F33*'fnd base rates'!M$112) +($G33*'fnd base rates'!M$113) +($H33*'fnd base rates'!M$114) +($I33*'fnd base rates'!M$115) +($J33*'fnd base rates'!M$119) +($K33*'fnd base rates'!M$120) +($M33*'fnd base rates'!M$122) +($N33*'fnd base rates'!M$123) +($O33*'fnd base rates'!M$124) +($P33*VLOOKUP($S33+15,rate_basefnd,13))) -> 0 | AF33: 14140.78629 | AH33: 410057176 | AI33: 410 | AJ33: 057 | AK33: 176 | AL33: 1 | AM33: 1 | AN33: 14140.78629 | AO33: 14141 | AP33: 0 | AQ33: 14141 | AW33: 14141 | AX33: 0 | AY33: 14141 | AZ33: 394 | BA33: 13747 | BB33: 24 | BC33: 13723
A34: 410 | B34: 410057248 | C34: EXCEL ACADEMY | D34: ='fnd enro'!D34 -> 0 | E34: ='fnd enro'!E34 -> 0 | F34: ='fnd enro'!F34 -> 0 | G34: ='fnd enro'!G34 -> 0 | H34: ='fnd enro'!H34 -> 6 | I34: ='fnd enro'!I34 -> 0 | J34: ='fnd enro'!J34 -> 0 | K34: ='fnd enro'!K34 -> 0.2274 | L34: ='fnd enro'!L34 -> 0 | M34: ='fnd enro'!M34+'fnd enro'!N34 -> 0 | N34: ='fnd enro'!O34 -> 0 | O34: ='fnd enro'!P34 -> 0 | P34: ='fnd enro'!Q34+'fnd enro'!R34 -> 1 | Q34: ='fnd enro'!T34 -> 6 | R34: 1.037 | S34: =VALUE('fnd enro'!S34) -> 3 | U34: =(($D34*'fnd base rates'!C$110) +($E34*'fnd base rates'!C$111) +($F34*'fnd base rates'!C$112) +($G34*'fnd base rates'!C$113) +($H34*'fnd base rates'!C$114) +($I34*'fnd base rates'!C$115) +($J34*'fnd base rates'!C$119) +($K34*'fnd base rates'!C$120) +($M34*'fnd base rates'!C$122) +($N34*'fnd base rates'!C$123) +($O34*'fnd base rates'!C$124) +($P34*VLOOKUP($S34+15,rate_basefnd,3))) *$R34 -> 3130.487773 | V34: =(($D34*'fnd base rates'!D$110) +($E34*'fnd base rates'!D$111) +($F34*'fnd base rates'!D$112) +($G34*'fnd base rates'!D$113) +($H34*'fnd base rates'!D$114) +($I34*'fnd base rates'!D$115) +($J34*'fnd base rates'!D$119) +($K34*'fnd base rates'!D$120) +($M34*'fnd base rates'!D$122) +($N34*'fnd base rates'!D$123) +($O34*'fnd base rates'!D$124) +($P34*VLOOKUP($S34+15,rate_basefnd,4))) *$R34 -> 4660.30911 | W34: =(($D34*'fnd base rates'!E$110) +($E34*'fnd base rates'!E$111) +($F34*'fnd base rates'!E$112) +($G34*'fnd base rates'!E$113) +($H34*'fnd base rates'!E$114) +($I34*'fnd base rates'!E$115) +($J34*'fnd base rates'!E$119) +($K34*'fnd base rates'!E$120) +($M34*'fnd base rates'!E$122) +($N34*'fnd base rates'!E$123) +($O34*'fnd base rates'!E$124) +($P34*VLOOKUP($S34+15,rate_basefnd,5))) *$R34 -> 22375.54142 | X34: =(($D34*'fnd base rates'!F$110) +($E34*'fnd base rates'!F$111) +($F34*'fnd base rates'!F$112) +($G34*'fnd base rates'!F$113) +($H34*'fnd base rates'!F$114) +($I34*'fnd base rates'!F$115) +($J34*'fnd base rates'!F$119) +($K34*'fnd base rates'!F$120) +($M34*'fnd base rates'!F$122) +($N34*'fnd base rates'!F$123) +($O34*'fnd base rates'!F$124) +($P34*VLOOKUP($S34+15,rate_basefnd,6))) *$R34 -> 5693.770337 | Y34: =(($D34*'fnd base rates'!G$110) +($E34*'fnd base rates'!G$111) +($F34*'fnd base rates'!G$112) +($G34*'fnd base rates'!G$113) +($H34*'fnd base rates'!G$114) +($I34*'fnd base rates'!G$115) +($J34*'fnd base rates'!G$119) +($K34*'fnd base rates'!G$120) +($M34*'fnd base rates'!G$122) +($N34*'fnd base rates'!G$123) +($O34*'fnd base rates'!G$124) +($P34*VLOOKUP($S34+15,rate_basefnd,7))) *$R34 -> 1089.131668 | Z34: =(($D34*'fnd base rates'!H$110) +($E34*'fnd base rates'!H$111) +($F34*'fnd base rates'!H$112) +($G34*'fnd base rates'!H$113) +($H34*'fnd base rates'!H$114) +($I34*'fnd base rates'!H$115) +($J34*'fnd base rates'!H$119) +($K34*'fnd base rates'!H$120) +($M34*'fnd base rates'!H$122) +($N34*'fnd base rates'!H$123) +($O34*'fnd base rates'!H$124) +($P34*VLOOKUP($S34+15,rate_basefnd,8))) -> 2922.061468 | AA34: =(($D34*'fnd base rates'!I$110) +($E34*'fnd base rates'!I$111) +($F34*'fnd base rates'!I$112) +($G34*'fnd base rates'!I$113) +($H34*'fnd base rates'!I$114) +($I34*'fnd base rates'!I$115) +($J34*'fnd base rates'!I$119) +($K34*'fnd base rates'!I$120) +($M34*'fnd base rates'!I$122) +($N34*'fnd base rates'!I$123) +($O34*'fnd base rates'!I$124) +($P34*VLOOKUP($S34+15,rate_basefnd,9))) *$R34 -> 2057.27319 | AB34: =(($D34*'fnd base rates'!J$110) +($E34*'fnd base rates'!J$111) +($F34*'fnd base rates'!J$112) +($G34*'fnd base rates'!J$113) +($H34*'fnd base rates'!J$114) +($I34*'fnd base rates'!J$115) +($J34*'fnd base rates'!J$119) +($K34*'fnd base rates'!J$120) +($M34*'fnd base rates'!J$122) +($N34*'fnd base rates'!J$123) +($O34*'fnd base rates'!J$124) +($P34*VLOOKUP($S34+15,rate_basefnd,10))) *$R34 -> 1958.21895 | AC34: =(($D34*'fnd base rates'!K$110) +($E34*'fnd base rates'!K$111) +($F34*'fnd base rates'!K$112) +($G34*'fnd base rates'!K$113) +($H34*'fnd base rates'!K$114) +($I34*'fnd base rates'!K$115) +($J34*'fnd base rates'!K$119) +($K34*'fnd base rates'!K$120) +($M34*'fnd base rates'!K$122) +($N34*'fnd base rates'!K$123) +($O34*'fnd base rates'!K$124) +($P34*VLOOKUP($S34+15,rate_basefnd,11))) *$R34 -> 6792.23548 | AD34: =(($D34*'fnd base rates'!L$110) +($E34*'fnd base rates'!L$111) +($F34*'fnd base rates'!L$112) +($G34*'fnd base rates'!L$113) +($H34*'fnd base rates'!L$114) +($I34*'fnd base rates'!L$115) +($J34*'fnd base rates'!L$119) +($K34*'fnd base rates'!L$120) +($M34*'fnd base rates'!L$122) +($N34*'fnd base rates'!L$123) +($O34*'fnd base rates'!L$124) +($P34*VLOOKUP($S34+15,rate_basefnd,12))) -> 7575.978565 | AE34: =(($D34*'fnd base rates'!M$110) +($E34*'fnd base rates'!M$111) +($F34*'fnd base rates'!M$112) +($G34*'fnd base rates'!M$113) +($H34*'fnd base rates'!M$114) +($I34*'fnd base rates'!M$115) +($J34*'fnd base rates'!M$119) +($K34*'fnd base rates'!M$120) +($M34*'fnd base rates'!M$122) +($N34*'fnd base rates'!M$123) +($O34*'fnd base rates'!M$124) +($P34*VLOOKUP($S34+15,rate_basefnd,13))) -> 0 | AF34: 58255.00796 | AH34: 410057248 | AI34: 410 | AJ34: 057 | AK34: 248 | AL34: 1 | AM34: 6 | AN34: 58255.00796 | AO34: 9709 | AP34: 0 | AQ34: 9709 | AW34: 9709 | AX34: 0 | AY34: 9709 | AZ34: -4 | BA34: 9713 | BB34: 11 | BC34: 9702
A35: 410 | B35: 410057262 | C35: EXCEL ACADEMY | D35: ='fnd enro'!D35 -> 0 | E35: ='fnd enro'!E35 -> 0 | F35: ='fnd enro'!F35 -> 0 | G35: ='fnd enro'!G35 -> 0 | H35: ='fnd enro'!H35 -> 1 | I35: ='fnd enro'!I35 -> 0 | J35: ='fnd enro'!J35 -> 0 | K35: ='fnd enro'!K35 -> 0.0379 | L35: ='fnd enro'!L35 -> 0 | M35: ='fnd enro'!M35+'fnd enro'!N35 -> 0 | N35: ='fnd enro'!O35 -> 0 | O35: ='fnd enro'!P35 -> 0 | P35: ='fnd enro'!Q35+'fnd enro'!R35 -> 0 | Q35: ='fnd enro'!T35 -> 1 | R35: 1.037 | S35: =VALUE('fnd enro'!S35) -> 1 | U35: =(($D35*'fnd base rates'!C$110) +($E35*'fnd base rates'!C$111) +($F35*'fnd base rates'!C$112) +($G35*'fnd base rates'!C$113) +($H35*'fnd base rates'!C$114) +($I35*'fnd base rates'!C$115) +($J35*'fnd base rates'!C$119) +($K35*'fnd base rates'!C$120) +($M35*'fnd base rates'!C$122) +($N35*'fnd base rates'!C$123) +($O35*'fnd base rates'!C$124) +($P35*VLOOKUP($S35+15,rate_basefnd,3))) *$R35 -> 512.7433455 | V35: =(($D35*'fnd base rates'!D$110) +($E35*'fnd base rates'!D$111) +($F35*'fnd base rates'!D$112) +($G35*'fnd base rates'!D$113) +($H35*'fnd base rates'!D$114) +($I35*'fnd base rates'!D$115) +($J35*'fnd base rates'!D$119) +($K35*'fnd base rates'!D$120) +($M35*'fnd base rates'!D$122) +($N35*'fnd base rates'!D$123) +($O35*'fnd base rates'!D$124) +($P35*VLOOKUP($S35+15,rate_basefnd,4))) *$R35 -> 734.05082 | W35: =(($D35*'fnd base rates'!E$110) +($E35*'fnd base rates'!E$111) +($F35*'fnd base rates'!E$112) +($G35*'fnd base rates'!E$113) +($H35*'fnd base rates'!E$114) +($I35*'fnd base rates'!E$115) +($J35*'fnd base rates'!E$119) +($K35*'fnd base rates'!E$120) +($M35*'fnd base rates'!E$122) +($N35*'fnd base rates'!E$123) +($O35*'fnd base rates'!E$124) +($P35*VLOOKUP($S35+15,rate_basefnd,5))) *$R35 -> 3312.733754 | X35: =(($D35*'fnd base rates'!F$110) +($E35*'fnd base rates'!F$111) +($F35*'fnd base rates'!F$112) +($G35*'fnd base rates'!F$113) +($H35*'fnd base rates'!F$114) +($I35*'fnd base rates'!F$115) +($J35*'fnd base rates'!F$119) +($K35*'fnd base rates'!F$120) +($M35*'fnd base rates'!F$122) +($N35*'fnd base rates'!F$123) +($O35*'fnd base rates'!F$124) +($P35*VLOOKUP($S35+15,rate_basefnd,6))) *$R35 -> 948.9617229 | Y35: =(($D35*'fnd base rates'!G$110) +($E35*'fnd base rates'!G$111) +($F35*'fnd base rates'!G$112) +($G35*'fnd base rates'!G$113) +($H35*'fnd base rates'!G$114) +($I35*'fnd base rates'!G$115) +($J35*'fnd base rates'!G$119) +($K35*'fnd base rates'!G$120) +($M35*'fnd base rates'!G$122) +($N35*'fnd base rates'!G$123) +($O35*'fnd base rates'!G$124) +($P35*VLOOKUP($S35+15,rate_basefnd,7))) *$R35 -> 161.3142713 | Z35: =(($D35*'fnd base rates'!H$110) +($E35*'fnd base rates'!H$111) +($F35*'fnd base rates'!H$112) +($G35*'fnd base rates'!H$113) +($H35*'fnd base rates'!H$114) +($I35*'fnd base rates'!H$115) +($J35*'fnd base rates'!H$119) +($K35*'fnd base rates'!H$120) +($M35*'fnd base rates'!H$122) +($N35*'fnd base rates'!H$123) +($O35*'fnd base rates'!H$124) +($P35*VLOOKUP($S35+15,rate_basefnd,8))) -> 484.023578 | AA35: =(($D35*'fnd base rates'!I$110) +($E35*'fnd base rates'!I$111) +($F35*'fnd base rates'!I$112) +($G35*'fnd base rates'!I$113) +($H35*'fnd base rates'!I$114) +($I35*'fnd base rates'!I$115) +($J35*'fnd base rates'!I$119) +($K35*'fnd base rates'!I$120) +($M35*'fnd base rates'!I$122) +($N35*'fnd base rates'!I$123) +($O35*'fnd base rates'!I$124) +($P35*VLOOKUP($S35+15,rate_basefnd,9))) *$R35 -> 326.01206 | AB35: =(($D35*'fnd base rates'!J$110) +($E35*'fnd base rates'!J$111) +($F35*'fnd base rates'!J$112) +($G35*'fnd base rates'!J$113) +($H35*'fnd base rates'!J$114) +($I35*'fnd base rates'!J$115) +($J35*'fnd base rates'!J$119) +($K35*'fnd base rates'!J$120) +($M35*'fnd base rates'!J$122) +($N35*'fnd base rates'!J$123) +($O35*'fnd base rates'!J$124) +($P35*VLOOKUP($S35+15,rate_basefnd,10))) *$R35 -> 238.72777 | AC35: =(($D35*'fnd base rates'!K$110) +($E35*'fnd base rates'!K$111) +($F35*'fnd base rates'!K$112) +($G35*'fnd base rates'!K$113) +($H35*'fnd base rates'!K$114) +($I35*'fnd base rates'!K$115) +($J35*'fnd base rates'!K$119) +($K35*'fnd base rates'!K$120) +($M35*'fnd base rates'!K$122) +($N35*'fnd base rates'!K$123) +($O35*'fnd base rates'!K$124) +($P35*VLOOKUP($S35+15,rate_basefnd,11))) *$R35 -> 1132.039247 | AD35: =(($D35*'fnd base rates'!L$110) +($E35*'fnd base rates'!L$111) +($F35*'fnd base rates'!L$112) +($G35*'fnd base rates'!L$113) +($H35*'fnd base rates'!L$114) +($I35*'fnd base rates'!L$115) +($J35*'fnd base rates'!L$119) +($K35*'fnd base rates'!L$120) +($M35*'fnd base rates'!L$122) +($N35*'fnd base rates'!L$123) +($O35*'fnd base rates'!L$124) +($P35*VLOOKUP($S35+15,rate_basefnd,12))) -> 1197.691427 | AE35: =(($D35*'fnd base rates'!M$110) +($E35*'fnd base rates'!M$111) +($F35*'fnd base rates'!M$112) +($G35*'fnd base rates'!M$113) +($H35*'fnd base rates'!M$114) +($I35*'fnd base rates'!M$115) +($J35*'fnd base rates'!M$119) +($K35*'fnd base rates'!M$120) +($M35*'fnd base rates'!M$122) +($N35*'fnd base rates'!M$123) +($O35*'fnd base rates'!M$124) +($P35*VLOOKUP($S35+15,rate_basefnd,13))) -> 0 | AF35: 9048.297996 | AH35: 410057262 | AI35: 410 | AJ35: 057 | AK35: 262 | AL35: 1 | AM35: 1 | AN35: 9048.297996 | AO35: 9048 | AP35: 0 | AQ35: 9048 | AW35: 9048 | AX35: 0 | AY35: 9048 | AZ35: -4 | BA35: 9052 | BB35: 15 | BC35: 9037
A36: 412 | B36: 412035016 | C36: ACADEMY OF THE PACIFIC RIM | D36: ='fnd enro'!D36 -> 0 | E36: ='fnd enro'!E36 -> 0 | F36: ='fnd enro'!F36 -> 0 | G36: ='fnd enro'!G36 -> 0 | H36: ='fnd enro'!H36 -> 0 | I36: ='fnd enro'!I36 -> 2 | J36: ='fnd enro'!J36 -> 0 | K36: ='fnd enro'!K36 -> 0.0758 | L36: ='fnd enro'!L36 -> 0 | M36: ='fnd enro'!M36+'fnd enro'!N36 -> 0 | N36: ='fnd enro'!O36 -> 0 | O36: ='fnd enro'!P36 -> 0 | P36: ='fnd enro'!Q36+'fnd enro'!R36 -> 1 | Q36: ='fnd enro'!T36 -> 2 | R36: 1.081 | S36: =VALUE('fnd enro'!S36) -> 10 | U36: =(($D36*'fnd base rates'!C$110) +($E36*'fnd base rates'!C$111) +($F36*'fnd base rates'!C$112) +($G36*'fnd base rates'!C$113) +($H36*'fnd base rates'!C$114) +($I36*'fnd base rates'!C$115) +($J36*'fnd base rates'!C$119) +($K36*'fnd base rates'!C$120) +($M36*'fnd base rates'!C$122) +($N36*'fnd base rates'!C$123) +($O36*'fnd base rates'!C$124) +($P36*VLOOKUP($S36+15,rate_basefnd,3))) *$R36 -> 1136.34448 | V36: =(($D36*'fnd base rates'!D$110) +($E36*'fnd base rates'!D$111) +($F36*'fnd base rates'!D$112) +($G36*'fnd base rates'!D$113) +($H36*'fnd base rates'!D$114) +($I36*'fnd base rates'!D$115) +($J36*'fnd base rates'!D$119) +($K36*'fnd base rates'!D$120) +($M36*'fnd base rates'!D$122) +($N36*'fnd base rates'!D$123) +($O36*'fnd base rates'!D$124) +($P36*VLOOKUP($S36+15,rate_basefnd,4))) *$R36 -> 1849.49371 | W36: =(($D36*'fnd base rates'!E$110) +($E36*'fnd base rates'!E$111) +($F36*'fnd base rates'!E$112) +($G36*'fnd base rates'!E$113) +($H36*'fnd base rates'!E$114) +($I36*'fnd base rates'!E$115) +($J36*'fnd base rates'!E$119) +($K36*'fnd base rates'!E$120) +($M36*'fnd base rates'!E$122) +($N36*'fnd base rates'!E$123) +($O36*'fnd base rates'!E$124) +($P36*VLOOKUP($S36+15,rate_basefnd,5))) *$R36 -> 12927.54047 | X36: =(($D36*'fnd base rates'!F$110) +($E36*'fnd base rates'!F$111) +($F36*'fnd base rates'!F$112) +($G36*'fnd base rates'!F$113) +($H36*'fnd base rates'!F$114) +($I36*'fnd base rates'!F$115) +($J36*'fnd base rates'!F$119) +($K36*'fnd base rates'!F$120) +($M36*'fnd base rates'!F$122) +($N36*'fnd base rates'!F$123) +($O36*'fnd base rates'!F$124) +($P36*VLOOKUP($S36+15,rate_basefnd,6))) *$R36 -> 1761.452562 | Y36: =(($D36*'fnd base rates'!G$110) +($E36*'fnd base rates'!G$111) +($F36*'fnd base rates'!G$112) +($G36*'fnd base rates'!G$113) +($H36*'fnd base rates'!G$114) +($I36*'fnd base rates'!G$115) +($J36*'fnd base rates'!G$119) +($K36*'fnd base rates'!G$120) +($M36*'fnd base rates'!G$122) +($N36*'fnd base rates'!G$123) +($O36*'fnd base rates'!G$124) +($P36*VLOOKUP($S36+15,rate_basefnd,7))) *$R36 -> 478.2962397 | Z36: =(($D36*'fnd base rates'!H$110) +($E36*'fnd base rates'!H$111) +($F36*'fnd base rates'!H$112) +($G36*'fnd base rates'!H$113) +($H36*'fnd base rates'!H$114) +($I36*'fnd base rates'!H$115) +($J36*'fnd base rates'!H$119) +($K36*'fnd base rates'!H$120) +($M36*'fnd base rates'!H$122) +($N36*'fnd base rates'!H$123) +($O36*'fnd base rates'!H$124) +($P36*VLOOKUP($S36+15,rate_basefnd,8))) -> 1553.217156 | AA36: =(($D36*'fnd base rates'!I$110) +($E36*'fnd base rates'!I$111) +($F36*'fnd base rates'!I$112) +($G36*'fnd base rates'!I$113) +($H36*'fnd base rates'!I$114) +($I36*'fnd base rates'!I$115) +($J36*'fnd base rates'!I$119) +($K36*'fnd base rates'!I$120) +($M36*'fnd base rates'!I$122) +($N36*'fnd base rates'!I$123) +($O36*'fnd base rates'!I$124) +($P36*VLOOKUP($S36+15,rate_basefnd,9))) *$R36 -> 978.16447 | AB36: =(($D36*'fnd base rates'!J$110) +($E36*'fnd base rates'!J$111) +($F36*'fnd base rates'!J$112) +($G36*'fnd base rates'!J$113) +($H36*'fnd base rates'!J$114) +($I36*'fnd base rates'!J$115) +($J36*'fnd base rates'!J$119) +($K36*'fnd base rates'!J$120) +($M36*'fnd base rates'!J$122) +($N36*'fnd base rates'!J$123) +($O36*'fnd base rates'!J$124) +($P36*VLOOKUP($S36+15,rate_basefnd,10))) *$R36 -> 1803.14043 | AC36: =(($D36*'fnd base rates'!K$110) +($E36*'fnd base rates'!K$111) +($F36*'fnd base rates'!K$112) +($G36*'fnd base rates'!K$113) +($H36*'fnd base rates'!K$114) +($I36*'fnd base rates'!K$115) +($J36*'fnd base rates'!K$119) +($K36*'fnd base rates'!K$120) +($M36*'fnd base rates'!K$122) +($N36*'fnd base rates'!K$123) +($O36*'fnd base rates'!K$124) +($P36*VLOOKUP($S36+15,rate_basefnd,11))) *$R36 -> 2295.93214 | AD36: =(($D36*'fnd base rates'!L$110) +($E36*'fnd base rates'!L$111) +($F36*'fnd base rates'!L$112) +($G36*'fnd base rates'!L$113) +($H36*'fnd base rates'!L$114) +($I36*'fnd base rates'!L$115) +($J36*'fnd base rates'!L$119) +($K36*'fnd base rates'!L$120) +($M36*'fnd base rates'!L$122) +($N36*'fnd base rates'!L$123) +($O36*'fnd base rates'!L$124) +($P36*VLOOKUP($S36+15,rate_basefnd,12))) -> 2657.649389 | AE36: =(($D36*'fnd base rates'!M$110) +($E36*'fnd base rates'!M$111) +($F36*'fnd base rates'!M$112) +($G36*'fnd base rates'!M$113) +($H36*'fnd base rates'!M$114) +($I36*'fnd base rates'!M$115) +($J36*'fnd base rates'!M$119) +($K36*'fnd base rates'!M$120) +($M36*'fnd base rates'!M$122) +($N36*'fnd base rates'!M$123) +($O36*'fnd base rates'!M$124) +($P36*VLOOKUP($S36+15,rate_basefnd,13))) -> 0 | AF36: 27441.23105 | AH36: 412035016 | AI36: 412 | AJ36: 035 | AK36: 016 | AL36: 1 | AM36: 2 | AN36: 27441.23105 | AO36: 13721 | AP36: 0 | AQ36: 13721 | AW36: 13721 | AX36: 0 | AY36: 13721 | AZ36: 204 | BA36: 13517 | BB36: 19 | BC36: 13498
A37: 412 | B37: 412035035 | C37: ACADEMY OF THE PACIFIC RIM | D37: ='fnd enro'!D37 -> 0 | E37: ='fnd enro'!E37 -> 0 | F37: ='fnd enro'!F37 -> 0 | G37: ='fnd enro'!G37 -> 69 | H37: ='fnd enro'!H37 -> 221 | I37: ='fnd enro'!I37 -> 198 | J37: ='fnd enro'!J37 -> 0 | K37: ='fnd enro'!K37 -> 18.4952 | L37: ='fnd enro'!L37 -> 0 | M37: ='fnd enro'!M37+'fnd enro'!N37 -> 19 | N37: ='fnd enro'!O37 -> 29 | O37: ='fnd enro'!P37 -> 13 | P37: ='fnd enro'!Q37+'fnd enro'!R37 -> 247 | Q37: ='fnd enro'!T37 -> 488 | R37: 1.081 | S37: =VALUE('fnd enro'!S37) -> 10 | U37: =(($D37*'fnd base rates'!C$110) +($E37*'fnd base rates'!C$111) +($F37*'fnd base rates'!C$112) +($G37*'fnd base rates'!C$113) +($H37*'fnd base rates'!C$114) +($I37*'fnd base rates'!C$115) +($J37*'fnd base rates'!C$119) +($K37*'fnd base rates'!C$120) +($M37*'fnd base rates'!C$122) +($N37*'fnd base rates'!C$123) +($O37*'fnd base rates'!C$124) +($P37*VLOOKUP($S37+15,rate_basefnd,3))) *$R37 -> 283311.2215 | V37: =(($D37*'fnd base rates'!D$110) +($E37*'fnd base rates'!D$111) +($F37*'fnd base rates'!D$112) +($G37*'fnd base rates'!D$113) +($H37*'fnd base rates'!D$114) +($I37*'fnd base rates'!D$115) +($J37*'fnd base rates'!D$119) +($K37*'fnd base rates'!D$120) +($M37*'fnd base rates'!D$122) +($N37*'fnd base rates'!D$123) +($O37*'fnd base rates'!D$124) +($P37*VLOOKUP($S37+15,rate_basefnd,4))) *$R37 -> 462455.7456 | W37: =(($D37*'fnd base rates'!E$110) +($E37*'fnd base rates'!E$111) +($F37*'fnd base rates'!E$112) +($G37*'fnd base rates'!E$113) +($H37*'fnd base rates'!E$114) +($I37*'fnd base rates'!E$115) +($J37*'fnd base rates'!E$119) +($K37*'fnd base rates'!E$120) +($M37*'fnd base rates'!E$122) +($N37*'fnd base rates'!E$123) +($O37*'fnd base rates'!E$124) +($P37*VLOOKUP($S37+15,rate_basefnd,5))) *$R37 -> 2842907.146 | X37: =(($D37*'fnd base rates'!F$110) +($E37*'fnd base rates'!F$111) +($F37*'fnd base rates'!F$112) +($G37*'fnd base rates'!F$113) +($H37*'fnd base rates'!F$114) +($I37*'fnd base rates'!F$115) +($J37*'fnd base rates'!F$119) +($K37*'fnd base rates'!F$120) +($M37*'fnd base rates'!F$122) +($N37*'fnd base rates'!F$123) +($O37*'fnd base rates'!F$124) +($P37*VLOOKUP($S37+15,rate_basefnd,6))) *$R37 -> 488877.0423 | Y37: =(($D37*'fnd base rates'!G$110) +($E37*'fnd base rates'!G$111) +($F37*'fnd base rates'!G$112) +($G37*'fnd base rates'!G$113) +($H37*'fnd base rates'!G$114) +($I37*'fnd base rates'!G$115) +($J37*'fnd base rates'!G$119) +($K37*'fnd base rates'!G$120) +($M37*'fnd base rates'!G$122) +($N37*'fnd base rates'!G$123) +($O37*'fnd base rates'!G$124) +($P37*VLOOKUP($S37+15,rate_basefnd,7))) *$R37 -> 120598.131 | Z37: =(($D37*'fnd base rates'!H$110) +($E37*'fnd base rates'!H$111) +($F37*'fnd base rates'!H$112) +($G37*'fnd base rates'!H$113) +($H37*'fnd base rates'!H$114) +($I37*'fnd base rates'!H$115) +($J37*'fnd base rates'!H$119) +($K37*'fnd base rates'!H$120) +($M37*'fnd base rates'!H$122) +($N37*'fnd base rates'!H$123) +($O37*'fnd base rates'!H$124) +($P37*VLOOKUP($S37+15,rate_basefnd,8))) -> 304060.6161 | AA37: =(($D37*'fnd base rates'!I$110) +($E37*'fnd base rates'!I$111) +($F37*'fnd base rates'!I$112) +($G37*'fnd base rates'!I$113) +($H37*'fnd base rates'!I$114) +($I37*'fnd base rates'!I$115) +($J37*'fnd base rates'!I$119) +($K37*'fnd base rates'!I$120) +($M37*'fnd base rates'!I$122) +($N37*'fnd base rates'!I$123) +($O37*'fnd base rates'!I$124) +($P37*VLOOKUP($S37+15,rate_basefnd,9))) *$R37 -> 212610.8638 | AB37: =(($D37*'fnd base rates'!J$110) +($E37*'fnd base rates'!J$111) +($F37*'fnd base rates'!J$112) +($G37*'fnd base rates'!J$113) +($H37*'fnd base rates'!J$114) +($I37*'fnd base rates'!J$115) +($J37*'fnd base rates'!J$119) +($K37*'fnd base rates'!J$120) +($M37*'fnd base rates'!J$122) +($N37*'fnd base rates'!J$123) +($O37*'fnd base rates'!J$124) +($P37*VLOOKUP($S37+15,rate_basefnd,10))) *$R37 -> 342486.0738 | AC37: =(($D37*'fnd base rates'!K$110) +($E37*'fnd base rates'!K$111) +($F37*'fnd base rates'!K$112) +($G37*'fnd base rates'!K$113) +($H37*'fnd base rates'!K$114) +($I37*'fnd base rates'!K$115) +($J37*'fnd base rates'!K$119) +($K37*'fnd base rates'!K$120) +($M37*'fnd base rates'!K$122) +($N37*'fnd base rates'!K$123) +($O37*'fnd base rates'!K$124) +($P37*VLOOKUP($S37+15,rate_basefnd,11))) *$R37 -> 581384.6754 | AD37: =(($D37*'fnd base rates'!L$110) +($E37*'fnd base rates'!L$111) +($F37*'fnd base rates'!L$112) +($G37*'fnd base rates'!L$113) +($H37*'fnd base rates'!L$114) +($I37*'fnd base rates'!L$115) +($J37*'fnd base rates'!L$119) +($K37*'fnd base rates'!L$120) +($M37*'fnd base rates'!L$122) +($N37*'fnd base rates'!L$123) +($O37*'fnd base rates'!L$124) +($P37*VLOOKUP($S37+15,rate_basefnd,12))) -> 692144.6681 | AE37: =(($D37*'fnd base rates'!M$110) +($E37*'fnd base rates'!M$111) +($F37*'fnd base rates'!M$112) +($G37*'fnd base rates'!M$113) +($H37*'fnd base rates'!M$114) +($I37*'fnd base rates'!M$115) +($J37*'fnd base rates'!M$119) +($K37*'fnd base rates'!M$120) +($M37*'fnd base rates'!M$122) +($N37*'fnd base rates'!M$123) +($O37*'fnd base rates'!M$124) +($P37*VLOOKUP($S37+15,rate_basefnd,13))) -> 0 | AF37: 6330836.183 | AH37: 412035035 | AI37: 412 | AJ37: 035 | AK37: 035 | AL37: 1 | AM37: 488 | AN37: 6330836.183 | AO37: 12973 | AP37: 0 | AQ37: 12973 | AW37: 12973 | AX37: 0 | AY37: 12973 | AZ37: 148 | BA37: 12825 | BB37: 16 | BC37: 12809
A38: 412 | B38: 412035044 | C38: ACADEMY OF THE PACIFIC RIM | D38: ='fnd enro'!D38 -> 0 | E38: ='fnd enro'!E38 -> 0 | F38: ='fnd enro'!F38 -> 0 | G38: ='fnd enro'!G38 -> 0 | H38: ='fnd enro'!H38 -> 3 | I38: ='fnd enro'!I38 -> 3 | J38: ='fnd enro'!J38 -> 0 | K38: ='fnd enro'!K38 -> 0.2274 | L38: ='fnd enro'!L38 -> 0 | M38: ='fnd enro'!M38+'fnd enro'!N38 -> 0 | N38: ='fnd enro'!O38 -> 0 | O38: ='fnd enro'!P38 -> 0 | P38: ='fnd enro'!Q38+'fnd enro'!R38 -> 3 | Q38: ='fnd enro'!T38 -> 6 | R38: 1.081 | S38: =VALUE('fnd enro'!S38) -> 10 | U38: =(($D38*'fnd base rates'!C$110) +($E38*'fnd base rates'!C$111) +($F38*'fnd base rates'!C$112) +($G38*'fnd base rates'!C$113) +($H38*'fnd base rates'!C$114) +($I38*'fnd base rates'!C$115) +($J38*'fnd base rates'!C$119) +($K38*'fnd base rates'!C$120) +($M38*'fnd base rates'!C$122) +($N38*'fnd base rates'!C$123) +($O38*'fnd base rates'!C$124) +($P38*VLOOKUP($S38+15,rate_basefnd,3))) *$R38 -> 3409.033441 | V38: =(($D38*'fnd base rates'!D$110) +($E38*'fnd base rates'!D$111) +($F38*'fnd base rates'!D$112) +($G38*'fnd base rates'!D$113) +($H38*'fnd base rates'!D$114) +($I38*'fnd base rates'!D$115) +($J38*'fnd base rates'!D$119) +($K38*'fnd base rates'!D$120) +($M38*'fnd base rates'!D$122) +($N38*'fnd base rates'!D$123) +($O38*'fnd base rates'!D$124) +($P38*VLOOKUP($S38+15,rate_basefnd,4))) *$R38 -> 5548.48113 | W38: =(($D38*'fnd base rates'!E$110) +($E38*'fnd base rates'!E$111) +($F38*'fnd base rates'!E$112) +($G38*'fnd base rates'!E$113) +($H38*'fnd base rates'!E$114) +($I38*'fnd base rates'!E$115) +($J38*'fnd base rates'!E$119) +($K38*'fnd base rates'!E$120) +($M38*'fnd base rates'!E$122) +($N38*'fnd base rates'!E$123) +($O38*'fnd base rates'!E$124) +($P38*VLOOKUP($S38+15,rate_basefnd,5))) *$R38 -> 34423.73754 | X38: =(($D38*'fnd base rates'!F$110) +($E38*'fnd base rates'!F$111) +($F38*'fnd base rates'!F$112) +($G38*'fnd base rates'!F$113) +($H38*'fnd base rates'!F$114) +($I38*'fnd base rates'!F$115) +($J38*'fnd base rates'!F$119) +($K38*'fnd base rates'!F$120) +($M38*'fnd base rates'!F$122) +($N38*'fnd base rates'!F$123) +($O38*'fnd base rates'!F$124) +($P38*VLOOKUP($S38+15,rate_basefnd,6))) *$R38 -> 5609.857597 | Y38: =(($D38*'fnd base rates'!G$110) +($E38*'fnd base rates'!G$111) +($F38*'fnd base rates'!G$112) +($G38*'fnd base rates'!G$113) +($H38*'fnd base rates'!G$114) +($I38*'fnd base rates'!G$115) +($J38*'fnd base rates'!G$119) +($K38*'fnd base rates'!G$120) +($M38*'fnd base rates'!G$122) +($N38*'fnd base rates'!G$123) +($O38*'fnd base rates'!G$124) +($P38*VLOOKUP($S38+15,rate_basefnd,7))) *$R38 -> 1448.606609 | Z38: =(($D38*'fnd base rates'!H$110) +($E38*'fnd base rates'!H$111) +($F38*'fnd base rates'!H$112) +($G38*'fnd base rates'!H$113) +($H38*'fnd base rates'!H$114) +($I38*'fnd base rates'!H$115) +($J38*'fnd base rates'!H$119) +($K38*'fnd base rates'!H$120) +($M38*'fnd base rates'!H$122) +($N38*'fnd base rates'!H$123) +($O38*'fnd base rates'!H$124) +($P38*VLOOKUP($S38+15,rate_basefnd,8))) -> 3814.041468 | AA38: =(($D38*'fnd base rates'!I$110) +($E38*'fnd base rates'!I$111) +($F38*'fnd base rates'!I$112) +($G38*'fnd base rates'!I$113) +($H38*'fnd base rates'!I$114) +($I38*'fnd base rates'!I$115) +($J38*'fnd base rates'!I$119) +($K38*'fnd base rates'!I$120) +($M38*'fnd base rates'!I$122) +($N38*'fnd base rates'!I$123) +($O38*'fnd base rates'!I$124) +($P38*VLOOKUP($S38+15,rate_basefnd,9))) *$R38 -> 2675.99388 | AB38: =(($D38*'fnd base rates'!J$110) +($E38*'fnd base rates'!J$111) +($F38*'fnd base rates'!J$112) +($G38*'fnd base rates'!J$113) +($H38*'fnd base rates'!J$114) +($I38*'fnd base rates'!J$115) +($J38*'fnd base rates'!J$119) +($K38*'fnd base rates'!J$120) +($M38*'fnd base rates'!J$122) +($N38*'fnd base rates'!J$123) +($O38*'fnd base rates'!J$124) +($P38*VLOOKUP($S38+15,rate_basefnd,10))) *$R38 -> 4434.44577 | AC38: =(($D38*'fnd base rates'!K$110) +($E38*'fnd base rates'!K$111) +($F38*'fnd base rates'!K$112) +($G38*'fnd base rates'!K$113) +($H38*'fnd base rates'!K$114) +($I38*'fnd base rates'!K$115) +($J38*'fnd base rates'!K$119) +($K38*'fnd base rates'!K$120) +($M38*'fnd base rates'!K$122) +($N38*'fnd base rates'!K$123) +($O38*'fnd base rates'!K$124) +($P38*VLOOKUP($S38+15,rate_basefnd,11))) *$R38 -> 6984.113521 | AD38: =(($D38*'fnd base rates'!L$110) +($E38*'fnd base rates'!L$111) +($F38*'fnd base rates'!L$112) +($G38*'fnd base rates'!L$113) +($H38*'fnd base rates'!L$114) +($I38*'fnd base rates'!L$115) +($J38*'fnd base rates'!L$119) +($K38*'fnd base rates'!L$120) +($M38*'fnd base rates'!L$122) +($N38*'fnd base rates'!L$123) +($O38*'fnd base rates'!L$124) +($P38*VLOOKUP($S38+15,rate_basefnd,12))) -> 8278.743366 | AE38: =(($D38*'fnd base rates'!M$110) +($E38*'fnd base rates'!M$111) +($F38*'fnd base rates'!M$112) +($G38*'fnd base rates'!M$113) +($H38*'fnd base rates'!M$114) +($I38*'fnd base rates'!M$115) +($J38*'fnd base rates'!M$119) +($K38*'fnd base rates'!M$120) +($M38*'fnd base rates'!M$122) +($N38*'fnd base rates'!M$123) +($O38*'fnd base rates'!M$124) +($P38*VLOOKUP($S38+15,rate_basefnd,13))) -> 0 | AF38: 76627.05432 | AH38: 412035044 | AI38: 412 | AJ38: 035 | AK38: 044 | AL38: 1 | AM38: 6 | AN38: 76627.05432 | AO38: 12771 | AP38: 0 | AQ38: 12771 | AW38: 12771 | AX38: 0 | AY38: 12771 | AZ38: 202 | BA38: 12569 | BB38: 6 | BC38: 12563
A39: 412 | B39: 412035057 | C39: ACADEMY OF THE PACIFIC RIM | D39: ='fnd enro'!D39 -> 0 | E39: ='fnd enro'!E39 -> 0 | F39: ='fnd enro'!F39 -> 0 | G39: ='fnd enro'!G39 -> 0 | H39: ='fnd enro'!H39 -> 0 | I39: ='fnd enro'!I39 -> 2 | J39: ='fnd enro'!J39 -> 0 | K39: ='fnd enro'!K39 -> 0.0758 | L39: ='fnd enro'!L39 -> 0 | M39: ='fnd enro'!M39+'fnd enro'!N39 -> 0 | N39: ='fnd enro'!O39 -> 0 | O39: ='fnd enro'!P39 -> 0 | P39: ='fnd enro'!Q39+'fnd enro'!R39 -> 2 | Q39: ='fnd enro'!T39 -> 2 | R39: 1.081 | S39: =VALUE('fnd enro'!S39) -> 10 | U39: =(($D39*'fnd base rates'!C$110) +($E39*'fnd base rates'!C$111) +($F39*'fnd base rates'!C$112) +($G39*'fnd base rates'!C$113) +($H39*'fnd base rates'!C$114) +($I39*'fnd base rates'!C$115) +($J39*'fnd base rates'!C$119) +($K39*'fnd base rates'!C$120) +($M39*'fnd base rates'!C$122) +($N39*'fnd base rates'!C$123) +($O39*'fnd base rates'!C$124) +($P39*VLOOKUP($S39+15,rate_basefnd,3))) *$R39 -> 1203.69078 | V39: =(($D39*'fnd base rates'!D$110) +($E39*'fnd base rates'!D$111) +($F39*'fnd base rates'!D$112) +($G39*'fnd base rates'!D$113) +($H39*'fnd base rates'!D$114) +($I39*'fnd base rates'!D$115) +($J39*'fnd base rates'!D$119) +($K39*'fnd base rates'!D$120) +($M39*'fnd base rates'!D$122) +($N39*'fnd base rates'!D$123) +($O39*'fnd base rates'!D$124) +($P39*VLOOKUP($S39+15,rate_basefnd,4))) *$R39 -> 2168.5941 | W39: =(($D39*'fnd base rates'!E$110) +($E39*'fnd base rates'!E$111) +($F39*'fnd base rates'!E$112) +($G39*'fnd base rates'!E$113) +($H39*'fnd base rates'!E$114) +($I39*'fnd base rates'!E$115) +($J39*'fnd base rates'!E$119) +($K39*'fnd base rates'!E$120) +($M39*'fnd base rates'!E$122) +($N39*'fnd base rates'!E$123) +($O39*'fnd base rates'!E$124) +($P39*VLOOKUP($S39+15,rate_basefnd,5))) *$R39 -> 16042.57169 | X39: =(($D39*'fnd base rates'!F$110) +($E39*'fnd base rates'!F$111) +($F39*'fnd base rates'!F$112) +($G39*'fnd base rates'!F$113) +($H39*'fnd base rates'!F$114) +($I39*'fnd base rates'!F$115) +($J39*'fnd base rates'!F$119) +($K39*'fnd base rates'!F$120) +($M39*'fnd base rates'!F$122) +($N39*'fnd base rates'!F$123) +($O39*'fnd base rates'!F$124) +($P39*VLOOKUP($S39+15,rate_basefnd,6))) *$R39 -> 1761.452562 | Y39: =(($D39*'fnd base rates'!G$110) +($E39*'fnd base rates'!G$111) +($F39*'fnd base rates'!G$112) +($G39*'fnd base rates'!G$113) +($H39*'fnd base rates'!G$114) +($I39*'fnd base rates'!G$115) +($J39*'fnd base rates'!G$119) +($K39*'fnd base rates'!G$120) +($M39*'fnd base rates'!G$122) +($N39*'fnd base rates'!G$123) +($O39*'fnd base rates'!G$124) +($P39*VLOOKUP($S39+15,rate_basefnd,7))) *$R39 -> 629.4200397 | Z39: =(($D39*'fnd base rates'!H$110) +($E39*'fnd base rates'!H$111) +($F39*'fnd base rates'!H$112) +($G39*'fnd base rates'!H$113) +($H39*'fnd base rates'!H$114) +($I39*'fnd base rates'!H$115) +($J39*'fnd base rates'!H$119) +($K39*'fnd base rates'!H$120) +($M39*'fnd base rates'!H$122) +($N39*'fnd base rates'!H$123) +($O39*'fnd base rates'!H$124) +($P39*VLOOKUP($S39+15,rate_basefnd,8))) -> 1574.647156 | AA39: =(($D39*'fnd base rates'!I$110) +($E39*'fnd base rates'!I$111) +($F39*'fnd base rates'!I$112) +($G39*'fnd base rates'!I$113) +($H39*'fnd base rates'!I$114) +($I39*'fnd base rates'!I$115) +($J39*'fnd base rates'!I$119) +($K39*'fnd base rates'!I$120) +($M39*'fnd base rates'!I$122) +($N39*'fnd base rates'!I$123) +($O39*'fnd base rates'!I$124) +($P39*VLOOKUP($S39+15,rate_basefnd,9))) *$R39 -> 1104.30636 | AB39: =(($D39*'fnd base rates'!J$110) +($E39*'fnd base rates'!J$111) +($F39*'fnd base rates'!J$112) +($G39*'fnd base rates'!J$113) +($H39*'fnd base rates'!J$114) +($I39*'fnd base rates'!J$115) +($J39*'fnd base rates'!J$119) +($K39*'fnd base rates'!J$120) +($M39*'fnd base rates'!J$122) +($N39*'fnd base rates'!J$123) +($O39*'fnd base rates'!J$124) +($P39*VLOOKUP($S39+15,rate_basefnd,10))) *$R39 -> 2458.58316 | AC39: =(($D39*'fnd base rates'!K$110) +($E39*'fnd base rates'!K$111) +($F39*'fnd base rates'!K$112) +($G39*'fnd base rates'!K$113) +($H39*'fnd base rates'!K$114) +($I39*'fnd base rates'!K$115) +($J39*'fnd base rates'!K$119) +($K39*'fnd base rates'!K$120) +($M39*'fnd base rates'!K$122) +($N39*'fnd base rates'!K$123) +($O39*'fnd base rates'!K$124) +($P39*VLOOKUP($S39+15,rate_basefnd,11))) *$R39 -> 2295.93214 | AD39: =(($D39*'fnd base rates'!L$110) +($E39*'fnd base rates'!L$111) +($F39*'fnd base rates'!L$112) +($G39*'fnd base rates'!L$113) +($H39*'fnd base rates'!L$114) +($I39*'fnd base rates'!L$115) +($J39*'fnd base rates'!L$119) +($K39*'fnd base rates'!L$120) +($M39*'fnd base rates'!L$122) +($N39*'fnd base rates'!L$123) +($O39*'fnd base rates'!L$124) +($P39*VLOOKUP($S39+15,rate_basefnd,12))) -> 3123.779389 | AE39: =(($D39*'fnd base rates'!M$110) +($E39*'fnd base rates'!M$111) +($F39*'fnd base rates'!M$112) +($G39*'fnd base rates'!M$113) +($H39*'fnd base rates'!M$114) +($I39*'fnd base rates'!M$115) +($J39*'fnd base rates'!M$119) +($K39*'fnd base rates'!M$120) +($M39*'fnd base rates'!M$122) +($N39*'fnd base rates'!M$123) +($O39*'fnd base rates'!M$124) +($P39*VLOOKUP($S39+15,rate_basefnd,13))) -> 0 | AF39: 32362.97738 | AH39: 412035057 | AI39: 412 | AJ39: 035 | AK39: 057 | AL39: 1 | AM39: 2 | AN39: 32362.97738 | AO39: 16181 | AP39: 0 | AQ39: 16181 | AW39: 16181 | AX39: 0 | AY39: 16181 | AZ39: 408 | BA39: 15773 | BB39: -3 | BC39: 15776
A40: 412 | B40: 412035073 | C40: ACADEMY OF THE PACIFIC RIM | D40: ='fnd enro'!D40 -> 0 | E40: ='fnd enro'!E40 -> 0 | F40: ='fnd enro'!F40 -> 0 | G40: ='fnd enro'!G40 -> 0 | H40: ='fnd enro'!H40 -> 0 | I40: ='fnd enro'!I40 -> 1 | J40: ='fnd enro'!J40 -> 0 | K40: ='fnd enro'!K40 -> 0.0379 | L40: ='fnd enro'!L40 -> 0 | M40: ='fnd enro'!M40+'fnd enro'!N40 -> 0 | N40: ='fnd enro'!O40 -> 0 | O40: ='fnd enro'!P40 -> 0 | P40: ='fnd enro'!Q40+'fnd enro'!R40 -> 1 | Q40: ='fnd enro'!T40 -> 1 | R40: 1.081 | S40: =VALUE('fnd enro'!S40) -> 10 | U40: =(($D40*'fnd base rates'!C$110) +($E40*'fnd base rates'!C$111) +($F40*'fnd base rates'!C$112) +($G40*'fnd base rates'!C$113) +($H40*'fnd base rates'!C$114) +($I40*'fnd base rates'!C$115) +($J40*'fnd base rates'!C$119) +($K40*'fnd base rates'!C$120) +($M40*'fnd base rates'!C$122) +($N40*'fnd base rates'!C$123) +($O40*'fnd base rates'!C$124) +($P40*VLOOKUP($S40+15,rate_basefnd,3))) *$R40 -> 601.8453901 | V40: =(($D40*'fnd base rates'!D$110) +($E40*'fnd base rates'!D$111) +($F40*'fnd base rates'!D$112) +($G40*'fnd base rates'!D$113) +($H40*'fnd base rates'!D$114) +($I40*'fnd base rates'!D$115) +($J40*'fnd base rates'!D$119) +($K40*'fnd base rates'!D$120) +($M40*'fnd base rates'!D$122) +($N40*'fnd base rates'!D$123) +($O40*'fnd base rates'!D$124) +($P40*VLOOKUP($S40+15,rate_basefnd,4))) *$R40 -> 1084.29705 | W40: =(($D40*'fnd base rates'!E$110) +($E40*'fnd base rates'!E$111) +($F40*'fnd base rates'!E$112) +($G40*'fnd base rates'!E$113) +($H40*'fnd base rates'!E$114) +($I40*'fnd base rates'!E$115) +($J40*'fnd base rates'!E$119) +($K40*'fnd base rates'!E$120) +($M40*'fnd base rates'!E$122) +($N40*'fnd base rates'!E$123) +($O40*'fnd base rates'!E$124) +($P40*VLOOKUP($S40+15,rate_basefnd,5))) *$R40 -> 8021.285845 | X40: =(($D40*'fnd base rates'!F$110) +($E40*'fnd base rates'!F$111) +($F40*'fnd base rates'!F$112) +($G40*'fnd base rates'!F$113) +($H40*'fnd base rates'!F$114) +($I40*'fnd base rates'!F$115) +($J40*'fnd base rates'!F$119) +($K40*'fnd base rates'!F$120) +($M40*'fnd base rates'!F$122) +($N40*'fnd base rates'!F$123) +($O40*'fnd base rates'!F$124) +($P40*VLOOKUP($S40+15,rate_basefnd,6))) *$R40 -> 880.7262811 | Y40: =(($D40*'fnd base rates'!G$110) +($E40*'fnd base rates'!G$111) +($F40*'fnd base rates'!G$112) +($G40*'fnd base rates'!G$113) +($H40*'fnd base rates'!G$114) +($I40*'fnd base rates'!G$115) +($J40*'fnd base rates'!G$119) +($K40*'fnd base rates'!G$120) +($M40*'fnd base rates'!G$122) +($N40*'fnd base rates'!G$123) +($O40*'fnd base rates'!G$124) +($P40*VLOOKUP($S40+15,rate_basefnd,7))) *$R40 -> 314.7100198 | Z40: =(($D40*'fnd base rates'!H$110) +($E40*'fnd base rates'!H$111) +($F40*'fnd base rates'!H$112) +($G40*'fnd base rates'!H$113) +($H40*'fnd base rates'!H$114) +($I40*'fnd base rates'!H$115) +($J40*'fnd base rates'!H$119) +($K40*'fnd base rates'!H$120) +($M40*'fnd base rates'!H$122) +($N40*'fnd base rates'!H$123) +($O40*'fnd base rates'!H$124) +($P40*VLOOKUP($S40+15,rate_basefnd,8))) -> 787.323578 | AA40: =(($D40*'fnd base rates'!I$110) +($E40*'fnd base rates'!I$111) +($F40*'fnd base rates'!I$112) +($G40*'fnd base rates'!I$113) +($H40*'fnd base rates'!I$114) +($I40*'fnd base rates'!I$115) +($J40*'fnd base rates'!I$119) +($K40*'fnd base rates'!I$120) +($M40*'fnd base rates'!I$122) +($N40*'fnd base rates'!I$123) +($O40*'fnd base rates'!I$124) +($P40*VLOOKUP($S40+15,rate_basefnd,9))) *$R40 -> 552.15318 | AB40: =(($D40*'fnd base rates'!J$110) +($E40*'fnd base rates'!J$111) +($F40*'fnd base rates'!J$112) +($G40*'fnd base rates'!J$113) +($H40*'fnd base rates'!J$114) +($I40*'fnd base rates'!J$115) +($J40*'fnd base rates'!J$119) +($K40*'fnd base rates'!J$120) +($M40*'fnd base rates'!J$122) +($N40*'fnd base rates'!J$123) +($O40*'fnd base rates'!J$124) +($P40*VLOOKUP($S40+15,rate_basefnd,10))) *$R40 -> 1229.29158 | AC40: =(($D40*'fnd base rates'!K$110) +($E40*'fnd base rates'!K$111) +($F40*'fnd base rates'!K$112) +($G40*'fnd base rates'!K$113) +($H40*'fnd base rates'!K$114) +($I40*'fnd base rates'!K$115) +($J40*'fnd base rates'!K$119) +($K40*'fnd base rates'!K$120) +($M40*'fnd base rates'!K$122) +($N40*'fnd base rates'!K$123) +($O40*'fnd base rates'!K$124) +($P40*VLOOKUP($S40+15,rate_basefnd,11))) *$R40 -> 1147.96607 | AD40: =(($D40*'fnd base rates'!L$110) +($E40*'fnd base rates'!L$111) +($F40*'fnd base rates'!L$112) +($G40*'fnd base rates'!L$113) +($H40*'fnd base rates'!L$114) +($I40*'fnd base rates'!L$115) +($J40*'fnd base rates'!L$119) +($K40*'fnd base rates'!L$120) +($M40*'fnd base rates'!L$122) +($N40*'fnd base rates'!L$123) +($O40*'fnd base rates'!L$124) +($P40*VLOOKUP($S40+15,rate_basefnd,12))) -> 1561.889695 | AE40: =(($D40*'fnd base rates'!M$110) +($E40*'fnd base rates'!M$111) +($F40*'fnd base rates'!M$112) +($G40*'fnd base rates'!M$113) +($H40*'fnd base rates'!M$114) +($I40*'fnd base rates'!M$115) +($J40*'fnd base rates'!M$119) +($K40*'fnd base rates'!M$120) +($M40*'fnd base rates'!M$122) +($N40*'fnd base rates'!M$123) +($O40*'fnd base rates'!M$124) +($P40*VLOOKUP($S40+15,rate_basefnd,13))) -> 0 | AF40: 16181.48869 | AH40: 412035073 | AI40: 412 | AJ40: 035 | AK40: 073 | AL40: 1 | AM40: 1 | AN40: 16181.48869 | AO40: 16181 | AP40: 0 | AQ40: 16181 | AW40: 16181 | AX40: 0 | AY40: 16181 | AZ40: 408 | BA40: 15773 | BB40: 25 | BC40: 15748
A41: 412 | B41: 412035189 | C41: ACADEMY OF THE PACIFIC RIM | D41: ='fnd enro'!D41 -> 0 | E41: ='fnd enro'!E41 -> 0 | F41: ='fnd enro'!F41 -> 0 | G41: ='fnd enro'!G41 -> 1 | H41: ='fnd enro'!H41 -> 0 | I41: ='fnd enro'!I41 -> 1 | J41: ='fnd enro'!J41 -> 0 | K41: ='fnd enro'!K41 -> 0.0758 | L41: ='fnd enro'!L41 -> 0 | M41: ='fnd enro'!M41+'fnd enro'!N41 -> 0 | N41: ='fnd enro'!O41 -> 0 | O41: ='fnd enro'!P41 -> 0 | P41: ='fnd enro'!Q41+'fnd enro'!R41 -> 1 | Q41: ='fnd enro'!T41 -> 2 | R41: 1.081 | S41: =VALUE('fnd enro'!S41) -> 10 | U41: =(($D41*'fnd base rates'!C$110) +($E41*'fnd base rates'!C$111) +($F41*'fnd base rates'!C$112) +($G41*'fnd base rates'!C$113) +($H41*'fnd base rates'!C$114) +($I41*'fnd base rates'!C$115) +($J41*'fnd base rates'!C$119) +($K41*'fnd base rates'!C$120) +($M41*'fnd base rates'!C$122) +($N41*'fnd base rates'!C$123) +($O41*'fnd base rates'!C$124) +($P41*VLOOKUP($S41+15,rate_basefnd,3))) *$R41 -> 1136.34448 | V41: =(($D41*'fnd base rates'!D$110) +($E41*'fnd base rates'!D$111) +($F41*'fnd base rates'!D$112) +($G41*'fnd base rates'!D$113) +($H41*'fnd base rates'!D$114) +($I41*'fnd base rates'!D$115) +($J41*'fnd base rates'!D$119) +($K41*'fnd base rates'!D$120) +($M41*'fnd base rates'!D$122) +($N41*'fnd base rates'!D$123) +($O41*'fnd base rates'!D$124) +($P41*VLOOKUP($S41+15,rate_basefnd,4))) *$R41 -> 1849.49371 | W41: =(($D41*'fnd base rates'!E$110) +($E41*'fnd base rates'!E$111) +($F41*'fnd base rates'!E$112) +($G41*'fnd base rates'!E$113) +($H41*'fnd base rates'!E$114) +($I41*'fnd base rates'!E$115) +($J41*'fnd base rates'!E$119) +($K41*'fnd base rates'!E$120) +($M41*'fnd base rates'!E$122) +($N41*'fnd base rates'!E$123) +($O41*'fnd base rates'!E$124) +($P41*VLOOKUP($S41+15,rate_basefnd,5))) *$R41 -> 11895.59625 | X41: =(($D41*'fnd base rates'!F$110) +($E41*'fnd base rates'!F$111) +($F41*'fnd base rates'!F$112) +($G41*'fnd base rates'!F$113) +($H41*'fnd base rates'!F$114) +($I41*'fnd base rates'!F$115) +($J41*'fnd base rates'!F$119) +($K41*'fnd base rates'!F$120) +($M41*'fnd base rates'!F$122) +($N41*'fnd base rates'!F$123) +($O41*'fnd base rates'!F$124) +($P41*VLOOKUP($S41+15,rate_basefnd,6))) *$R41 -> 2122.063352 | Y41: =(($D41*'fnd base rates'!G$110) +($E41*'fnd base rates'!G$111) +($F41*'fnd base rates'!G$112) +($G41*'fnd base rates'!G$113) +($H41*'fnd base rates'!G$114) +($I41*'fnd base rates'!G$115) +($J41*'fnd base rates'!G$119) +($K41*'fnd base rates'!G$120) +($M41*'fnd base rates'!G$122) +($N41*'fnd base rates'!G$123) +($O41*'fnd base rates'!G$124) +($P41*VLOOKUP($S41+15,rate_basefnd,7))) *$R41 -> 471.1940697 | Z41: =(($D41*'fnd base rates'!H$110) +($E41*'fnd base rates'!H$111) +($F41*'fnd base rates'!H$112) +($G41*'fnd base rates'!H$113) +($H41*'fnd base rates'!H$114) +($I41*'fnd base rates'!H$115) +($J41*'fnd base rates'!H$119) +($K41*'fnd base rates'!H$120) +($M41*'fnd base rates'!H$122) +($N41*'fnd base rates'!H$123) +($O41*'fnd base rates'!H$124) +($P41*VLOOKUP($S41+15,rate_basefnd,8))) -> 1271.347156 | AA41: =(($D41*'fnd base rates'!I$110) +($E41*'fnd base rates'!I$111) +($F41*'fnd base rates'!I$112) +($G41*'fnd base rates'!I$113) +($H41*'fnd base rates'!I$114) +($I41*'fnd base rates'!I$115) +($J41*'fnd base rates'!I$119) +($K41*'fnd base rates'!I$120) +($M41*'fnd base rates'!I$122) +($N41*'fnd base rates'!I$123) +($O41*'fnd base rates'!I$124) +($P41*VLOOKUP($S41+15,rate_basefnd,9))) *$R41 -> 807.47457 | AB41: =(($D41*'fnd base rates'!J$110) +($E41*'fnd base rates'!J$111) +($F41*'fnd base rates'!J$112) +($G41*'fnd base rates'!J$113) +($H41*'fnd base rates'!J$114) +($I41*'fnd base rates'!J$115) +($J41*'fnd base rates'!J$119) +($K41*'fnd base rates'!J$120) +($M41*'fnd base rates'!J$122) +($N41*'fnd base rates'!J$123) +($O41*'fnd base rates'!J$124) +($P41*VLOOKUP($S41+15,rate_basefnd,10))) *$R41 -> 1381.63691 | AC41: =(($D41*'fnd base rates'!K$110) +($E41*'fnd base rates'!K$111) +($F41*'fnd base rates'!K$112) +($G41*'fnd base rates'!K$113) +($H41*'fnd base rates'!K$114) +($I41*'fnd base rates'!K$115) +($J41*'fnd base rates'!K$119) +($K41*'fnd base rates'!K$120) +($M41*'fnd base rates'!K$122) +($N41*'fnd base rates'!K$123) +($O41*'fnd base rates'!K$124) +($P41*VLOOKUP($S41+15,rate_basefnd,11))) *$R41 -> 2246.06561 | AD41: =(($D41*'fnd base rates'!L$110) +($E41*'fnd base rates'!L$111) +($F41*'fnd base rates'!L$112) +($G41*'fnd base rates'!L$113) +($H41*'fnd base rates'!L$114) +($I41*'fnd base rates'!L$115) +($J41*'fnd base rates'!L$119) +($K41*'fnd base rates'!L$120) +($M41*'fnd base rates'!L$122) +($N41*'fnd base rates'!L$123) +($O41*'fnd base rates'!L$124) +($P41*VLOOKUP($S41+15,rate_basefnd,12))) -> 2728.580174 | AE41: =(($D41*'fnd base rates'!M$110) +($E41*'fnd base rates'!M$111) +($F41*'fnd base rates'!M$112) +($G41*'fnd base rates'!M$113) +($H41*'fnd base rates'!M$114) +($I41*'fnd base rates'!M$115) +($J41*'fnd base rates'!M$119) +($K41*'fnd base rates'!M$120) +($M41*'fnd base rates'!M$122) +($N41*'fnd base rates'!M$123) +($O41*'fnd base rates'!M$124) +($P41*VLOOKUP($S41+15,rate_basefnd,13))) -> 0 | AF41: 25909.79628 | AH41: 412035189 | AI41: 412 | AJ41: 035 | AK41: 189 | AL41: 1 | AM41: 2 | AN41: 25909.79628 | AO41: 12955 | AP41: 0 | AQ41: 12955 | AW41: 12955 | AX41: 0 | AY41: 12955 | AZ41: 204 | BA41: 12751 | BB41: 19 | BC41: 12732
A42: 412 | B42: 412035220 | C42: ACADEMY OF THE PACIFIC RIM | D42: ='fnd enro'!D42 -> 0 | E42: ='fnd enro'!E42 -> 0 | F42: ='fnd enro'!F42 -> 0 | G42: ='fnd enro'!G42 -> 1 | H42: ='fnd enro'!H42 -> 0 | I42: ='fnd enro'!I42 -> 5 | J42: ='fnd enro'!J42 -> 0 | K42: ='fnd enro'!K42 -> 0.2274 | L42: ='fnd enro'!L42 -> 0 | M42: ='fnd enro'!M42+'fnd enro'!N42 -> 0 | N42: ='fnd enro'!O42 -> 0 | O42: ='fnd enro'!P42 -> 0 | P42: ='fnd enro'!Q42+'fnd enro'!R42 -> 2 | Q42: ='fnd enro'!T42 -> 6 | R42: 1.081 | S42: =VALUE('fnd enro'!S42) -> 7 | U42: =(($D42*'fnd base rates'!C$110) +($E42*'fnd base rates'!C$111) +($F42*'fnd base rates'!C$112) +($G42*'fnd base rates'!C$113) +($H42*'fnd base rates'!C$114) +($I42*'fnd base rates'!C$115) +($J42*'fnd base rates'!C$119) +($K42*'fnd base rates'!C$120) +($M42*'fnd base rates'!C$122) +($N42*'fnd base rates'!C$123) +($O42*'fnd base rates'!C$124) +($P42*VLOOKUP($S42+15,rate_basefnd,3))) *$R42 -> 3332.909421 | V42: =(($D42*'fnd base rates'!D$110) +($E42*'fnd base rates'!D$111) +($F42*'fnd base rates'!D$112) +($G42*'fnd base rates'!D$113) +($H42*'fnd base rates'!D$114) +($I42*'fnd base rates'!D$115) +($J42*'fnd base rates'!D$119) +($K42*'fnd base rates'!D$120) +($M42*'fnd base rates'!D$122) +($N42*'fnd base rates'!D$123) +($O42*'fnd base rates'!D$124) +($P42*VLOOKUP($S42+15,rate_basefnd,4))) *$R42 -> 5187.76224 | W42: =(($D42*'fnd base rates'!E$110) +($E42*'fnd base rates'!E$111) +($F42*'fnd base rates'!E$112) +($G42*'fnd base rates'!E$113) +($H42*'fnd base rates'!E$114) +($I42*'fnd base rates'!E$115) +($J42*'fnd base rates'!E$119) +($K42*'fnd base rates'!E$120) +($M42*'fnd base rates'!E$122) +($N42*'fnd base rates'!E$123) +($O42*'fnd base rates'!E$124) +($P42*VLOOKUP($S42+15,rate_basefnd,5))) *$R42 -> 34229.40617 | X42: =(($D42*'fnd base rates'!F$110) +($E42*'fnd base rates'!F$111) +($F42*'fnd base rates'!F$112) +($G42*'fnd base rates'!F$113) +($H42*'fnd base rates'!F$114) +($I42*'fnd base rates'!F$115) +($J42*'fnd base rates'!F$119) +($K42*'fnd base rates'!F$120) +($M42*'fnd base rates'!F$122) +($N42*'fnd base rates'!F$123) +($O42*'fnd base rates'!F$124) +($P42*VLOOKUP($S42+15,rate_basefnd,6))) *$R42 -> 5644.968477 | Y42: =(($D42*'fnd base rates'!G$110) +($E42*'fnd base rates'!G$111) +($F42*'fnd base rates'!G$112) +($G42*'fnd base rates'!G$113) +($H42*'fnd base rates'!G$114) +($I42*'fnd base rates'!G$115) +($J42*'fnd base rates'!G$119) +($K42*'fnd base rates'!G$120) +($M42*'fnd base rates'!G$122) +($N42*'fnd base rates'!G$123) +($O42*'fnd base rates'!G$124) +($P42*VLOOKUP($S42+15,rate_basefnd,7))) *$R42 -> 1256.966929 | Z42: =(($D42*'fnd base rates'!H$110) +($E42*'fnd base rates'!H$111) +($F42*'fnd base rates'!H$112) +($G42*'fnd base rates'!H$113) +($H42*'fnd base rates'!H$114) +($I42*'fnd base rates'!H$115) +($J42*'fnd base rates'!H$119) +($K42*'fnd base rates'!H$120) +($M42*'fnd base rates'!H$122) +($N42*'fnd base rates'!H$123) +($O42*'fnd base rates'!H$124) +($P42*VLOOKUP($S42+15,rate_basefnd,8))) -> 4353.551468 | AA42: =(($D42*'fnd base rates'!I$110) +($E42*'fnd base rates'!I$111) +($F42*'fnd base rates'!I$112) +($G42*'fnd base rates'!I$113) +($H42*'fnd base rates'!I$114) +($I42*'fnd base rates'!I$115) +($J42*'fnd base rates'!I$119) +($K42*'fnd base rates'!I$120) +($M42*'fnd base rates'!I$122) +($N42*'fnd base rates'!I$123) +($O42*'fnd base rates'!I$124) +($P42*VLOOKUP($S42+15,rate_basefnd,9))) *$R42 -> 2621.2088 | AB42: =(($D42*'fnd base rates'!J$110) +($E42*'fnd base rates'!J$111) +($F42*'fnd base rates'!J$112) +($G42*'fnd base rates'!J$113) +($H42*'fnd base rates'!J$114) +($I42*'fnd base rates'!J$115) +($J42*'fnd base rates'!J$119) +($K42*'fnd base rates'!J$120) +($M42*'fnd base rates'!J$122) +($N42*'fnd base rates'!J$123) +($O42*'fnd base rates'!J$124) +($P42*VLOOKUP($S42+15,rate_basefnd,10))) *$R42 -> 4247.01118 | AC42: =(($D42*'fnd base rates'!K$110) +($E42*'fnd base rates'!K$111) +($F42*'fnd base rates'!K$112) +($G42*'fnd base rates'!K$113) +($H42*'fnd base rates'!K$114) +($I42*'fnd base rates'!K$115) +($J42*'fnd base rates'!K$119) +($K42*'fnd base rates'!K$120) +($M42*'fnd base rates'!K$122) +($N42*'fnd base rates'!K$123) +($O42*'fnd base rates'!K$124) +($P42*VLOOKUP($S42+15,rate_basefnd,11))) *$R42 -> 6837.929891 | AD42: =(($D42*'fnd base rates'!L$110) +($E42*'fnd base rates'!L$111) +($F42*'fnd base rates'!L$112) +($G42*'fnd base rates'!L$113) +($H42*'fnd base rates'!L$114) +($I42*'fnd base rates'!L$115) +($J42*'fnd base rates'!L$119) +($K42*'fnd base rates'!L$120) +($M42*'fnd base rates'!L$122) +($N42*'fnd base rates'!L$123) +($O42*'fnd base rates'!L$124) +($P42*VLOOKUP($S42+15,rate_basefnd,12))) -> 7516.948952 | AE42: =(($D42*'fnd base rates'!M$110) +($E42*'fnd base rates'!M$111) +($F42*'fnd base rates'!M$112) +($G42*'fnd base rates'!M$113) +($H42*'fnd base rates'!M$114) +($I42*'fnd base rates'!M$115) +($J42*'fnd base rates'!M$119) +($K42*'fnd base rates'!M$120) +($M42*'fnd base rates'!M$122) +($N42*'fnd base rates'!M$123) +($O42*'fnd base rates'!M$124) +($P42*VLOOKUP($S42+15,rate_basefnd,13))) -> 0 | AF42: 75228.66353 | AH42: 412035220 | AI42: 412 | AJ42: 035 | AK42: 220 | AL42: 1 | AM42: 6 | AN42: 75228.66353 | AO42: 12538 | AP42: 0 | AQ42: 12538 | AW42: 12538 | AX42: 0 | AY42: 12538 | AZ42: 93 | BA42: 12445 | BB42: 14 | BC42: 12431
A43: 412 | B43: 412035244 | C43: ACADEMY OF THE PACIFIC RIM | D43: ='fnd enro'!D43 -> 0 | E43: ='fnd enro'!E43 -> 0 | F43: ='fnd enro'!F43 -> 0 | G43: ='fnd enro'!G43 -> 1 | H43: ='fnd enro'!H43 -> 0 | I43: ='fnd enro'!I43 -> 8 | J43: ='fnd enro'!J43 -> 0 | K43: ='fnd enro'!K43 -> 0.3411 | L43: ='fnd enro'!L43 -> 0 | M43: ='fnd enro'!M43+'fnd enro'!N43 -> 0 | N43: ='fnd enro'!O43 -> 0 | O43: ='fnd enro'!P43 -> 1 | P43: ='fnd enro'!Q43+'fnd enro'!R43 -> 5 | Q43: ='fnd enro'!T43 -> 9 | R43: 1.081 | S43: =VALUE('fnd enro'!S43) -> 10 | U43: =(($D43*'fnd base rates'!C$110) +($E43*'fnd base rates'!C$111) +($F43*'fnd base rates'!C$112) +($G43*'fnd base rates'!C$113) +($H43*'fnd base rates'!C$114) +($I43*'fnd base rates'!C$115) +($J43*'fnd base rates'!C$119) +($K43*'fnd base rates'!C$120) +($M43*'fnd base rates'!C$122) +($N43*'fnd base rates'!C$123) +($O43*'fnd base rates'!C$124) +($P43*VLOOKUP($S43+15,rate_basefnd,3))) *$R43 -> 5226.774101 | V43: =(($D43*'fnd base rates'!D$110) +($E43*'fnd base rates'!D$111) +($F43*'fnd base rates'!D$112) +($G43*'fnd base rates'!D$113) +($H43*'fnd base rates'!D$114) +($I43*'fnd base rates'!D$115) +($J43*'fnd base rates'!D$119) +($K43*'fnd base rates'!D$120) +($M43*'fnd base rates'!D$122) +($N43*'fnd base rates'!D$123) +($O43*'fnd base rates'!D$124) +($P43*VLOOKUP($S43+15,rate_basefnd,4))) *$R43 -> 8621.49388 | W43: =(($D43*'fnd base rates'!E$110) +($E43*'fnd base rates'!E$111) +($F43*'fnd base rates'!E$112) +($G43*'fnd base rates'!E$113) +($H43*'fnd base rates'!E$114) +($I43*'fnd base rates'!E$115) +($J43*'fnd base rates'!E$119) +($K43*'fnd base rates'!E$120) +($M43*'fnd base rates'!E$122) +($N43*'fnd base rates'!E$123) +($O43*'fnd base rates'!E$124) +($P43*VLOOKUP($S43+15,rate_basefnd,5))) *$R43 -> 59674.00338 | X43: =(($D43*'fnd base rates'!F$110) +($E43*'fnd base rates'!F$111) +($F43*'fnd base rates'!F$112) +($G43*'fnd base rates'!F$113) +($H43*'fnd base rates'!F$114) +($I43*'fnd base rates'!F$115) +($J43*'fnd base rates'!F$119) +($K43*'fnd base rates'!F$120) +($M43*'fnd base rates'!F$122) +($N43*'fnd base rates'!F$123) +($O43*'fnd base rates'!F$124) +($P43*VLOOKUP($S43+15,rate_basefnd,6))) *$R43 -> 8426.36931 | Y43: =(($D43*'fnd base rates'!G$110) +($E43*'fnd base rates'!G$111) +($F43*'fnd base rates'!G$112) +($G43*'fnd base rates'!G$113) +($H43*'fnd base rates'!G$114) +($I43*'fnd base rates'!G$115) +($J43*'fnd base rates'!G$119) +($K43*'fnd base rates'!G$120) +($M43*'fnd base rates'!G$122) +($N43*'fnd base rates'!G$123) +($O43*'fnd base rates'!G$124) +($P43*VLOOKUP($S43+15,rate_basefnd,7))) *$R43 -> 2260.562799 | Z43: =(($D43*'fnd base rates'!H$110) +($E43*'fnd base rates'!H$111) +($F43*'fnd base rates'!H$112) +($G43*'fnd base rates'!H$113) +($H43*'fnd base rates'!H$114) +($I43*'fnd base rates'!H$115) +($J43*'fnd base rates'!H$119) +($K43*'fnd base rates'!H$120) +($M43*'fnd base rates'!H$122) +($N43*'fnd base rates'!H$123) +($O43*'fnd base rates'!H$124) +($P43*VLOOKUP($S43+15,rate_basefnd,8))) -> 6810.302202 | AA43: =(($D43*'fnd base rates'!I$110) +($E43*'fnd base rates'!I$111) +($F43*'fnd base rates'!I$112) +($G43*'fnd base rates'!I$113) +($H43*'fnd base rates'!I$114) +($I43*'fnd base rates'!I$115) +($J43*'fnd base rates'!I$119) +($K43*'fnd base rates'!I$120) +($M43*'fnd base rates'!I$122) +($N43*'fnd base rates'!I$123) +($O43*'fnd base rates'!I$124) +($P43*VLOOKUP($S43+15,rate_basefnd,9))) *$R43 -> 4353.78155 | AB43: =(($D43*'fnd base rates'!J$110) +($E43*'fnd base rates'!J$111) +($F43*'fnd base rates'!J$112) +($G43*'fnd base rates'!J$113) +($H43*'fnd base rates'!J$114) +($I43*'fnd base rates'!J$115) +($J43*'fnd base rates'!J$119) +($K43*'fnd base rates'!J$120) +($M43*'fnd base rates'!J$122) +($N43*'fnd base rates'!J$123) +($O43*'fnd base rates'!J$124) +($P43*VLOOKUP($S43+15,rate_basefnd,10))) *$R43 -> 8040.24018 | AC43: =(($D43*'fnd base rates'!K$110) +($E43*'fnd base rates'!K$111) +($F43*'fnd base rates'!K$112) +($G43*'fnd base rates'!K$113) +($H43*'fnd base rates'!K$114) +($I43*'fnd base rates'!K$115) +($J43*'fnd base rates'!K$119) +($K43*'fnd base rates'!K$120) +($M43*'fnd base rates'!K$122) +($N43*'fnd base rates'!K$123) +($O43*'fnd base rates'!K$124) +($P43*VLOOKUP($S43+15,rate_basefnd,11))) *$R43 -> 10520.48047 | AD43: =(($D43*'fnd base rates'!L$110) +($E43*'fnd base rates'!L$111) +($F43*'fnd base rates'!L$112) +($G43*'fnd base rates'!L$113) +($H43*'fnd base rates'!L$114) +($I43*'fnd base rates'!L$115) +($J43*'fnd base rates'!L$119) +($K43*'fnd base rates'!L$120) +($M43*'fnd base rates'!L$122) +($N43*'fnd base rates'!L$123) +($O43*'fnd base rates'!L$124) +($P43*VLOOKUP($S43+15,rate_basefnd,12))) -> 12465.78804 | AE43: =(($D43*'fnd base rates'!M$110) +($E43*'fnd base rates'!M$111) +($F43*'fnd base rates'!M$112) +($G43*'fnd base rates'!M$113) +($H43*'fnd base rates'!M$114) +($I43*'fnd base rates'!M$115) +($J43*'fnd base rates'!M$119) +($K43*'fnd base rates'!M$120) +($M43*'fnd base rates'!M$122) +($N43*'fnd base rates'!M$123) +($O43*'fnd base rates'!M$124) +($P43*VLOOKUP($S43+15,rate_basefnd,13))) -> 0 | AF43: 126399.7959 | AH43: 412035244 | AI43: 412 | AJ43: 035 | AK43: 244 | AL43: 1 | AM43: 9 | AN43: 126399.7959 | AO43: 14044 | AP43: 0 | AQ43: 14044 | AW43: 14044 | AX43: 0 | AY43: 14044 | AZ43: 59 | BA43: 13985 | BB43: 19 | BC43: 13966
A44: 412 | B44: 412035285 | C44: ACADEMY OF THE PACIFIC RIM | D44: ='fnd enro'!D44 -> 0 | E44: ='fnd enro'!E44 -> 0 | F44: ='fnd enro'!F44 -> 0 | G44: ='fnd enro'!G44 -> 0 | H44: ='fnd enro'!H44 -> 3 | I44: ='fnd enro'!I44 -> 3 | J44: ='fnd enro'!J44 -> 0 | K44: ='fnd enro'!K44 -> 0.2274 | L44: ='fnd enro'!L44 -> 0 | M44: ='fnd enro'!M44+'fnd enro'!N44 -> 0 | N44: ='fnd enro'!O44 -> 0 | O44: ='fnd enro'!P44 -> 0 | P44: ='fnd enro'!Q44+'fnd enro'!R44 -> 0 | Q44: ='fnd enro'!T44 -> 6 | R44: 1.081 | S44: =VALUE('fnd enro'!S44) -> 1 | U44: =(($D44*'fnd base rates'!C$110) +($E44*'fnd base rates'!C$111) +($F44*'fnd base rates'!C$112) +($G44*'fnd base rates'!C$113) +($H44*'fnd base rates'!C$114) +($I44*'fnd base rates'!C$115) +($J44*'fnd base rates'!C$119) +($K44*'fnd base rates'!C$120) +($M44*'fnd base rates'!C$122) +($N44*'fnd base rates'!C$123) +($O44*'fnd base rates'!C$124) +($P44*VLOOKUP($S44+15,rate_basefnd,3))) *$R44 -> 3206.994541 | V44: =(($D44*'fnd base rates'!D$110) +($E44*'fnd base rates'!D$111) +($F44*'fnd base rates'!D$112) +($G44*'fnd base rates'!D$113) +($H44*'fnd base rates'!D$114) +($I44*'fnd base rates'!D$115) +($J44*'fnd base rates'!D$119) +($K44*'fnd base rates'!D$120) +($M44*'fnd base rates'!D$122) +($N44*'fnd base rates'!D$123) +($O44*'fnd base rates'!D$124) +($P44*VLOOKUP($S44+15,rate_basefnd,4))) *$R44 -> 4591.17996 | W44: =(($D44*'fnd base rates'!E$110) +($E44*'fnd base rates'!E$111) +($F44*'fnd base rates'!E$112) +($G44*'fnd base rates'!E$113) +($H44*'fnd base rates'!E$114) +($I44*'fnd base rates'!E$115) +($J44*'fnd base rates'!E$119) +($K44*'fnd base rates'!E$120) +($M44*'fnd base rates'!E$122) +($N44*'fnd base rates'!E$123) +($O44*'fnd base rates'!E$124) +($P44*VLOOKUP($S44+15,rate_basefnd,5))) *$R44 -> 25078.64388 | X44: =(($D44*'fnd base rates'!F$110) +($E44*'fnd base rates'!F$111) +($F44*'fnd base rates'!F$112) +($G44*'fnd base rates'!F$113) +($H44*'fnd base rates'!F$114) +($I44*'fnd base rates'!F$115) +($J44*'fnd base rates'!F$119) +($K44*'fnd base rates'!F$120) +($M44*'fnd base rates'!F$122) +($N44*'fnd base rates'!F$123) +($O44*'fnd base rates'!F$124) +($P44*VLOOKUP($S44+15,rate_basefnd,6))) *$R44 -> 5609.857597 | Y44: =(($D44*'fnd base rates'!G$110) +($E44*'fnd base rates'!G$111) +($F44*'fnd base rates'!G$112) +($G44*'fnd base rates'!G$113) +($H44*'fnd base rates'!G$114) +($I44*'fnd base rates'!G$115) +($J44*'fnd base rates'!G$119) +($K44*'fnd base rates'!G$120) +($M44*'fnd base rates'!G$122) +($N44*'fnd base rates'!G$123) +($O44*'fnd base rates'!G$124) +($P44*VLOOKUP($S44+15,rate_basefnd,7))) *$R44 -> 995.2352091 | Z44: =(($D44*'fnd base rates'!H$110) +($E44*'fnd base rates'!H$111) +($F44*'fnd base rates'!H$112) +($G44*'fnd base rates'!H$113) +($H44*'fnd base rates'!H$114) +($I44*'fnd base rates'!H$115) +($J44*'fnd base rates'!H$119) +($K44*'fnd base rates'!H$120) +($M44*'fnd base rates'!H$122) +($N44*'fnd base rates'!H$123) +($O44*'fnd base rates'!H$124) +($P44*VLOOKUP($S44+15,rate_basefnd,8))) -> 3749.751468 | AA44: =(($D44*'fnd base rates'!I$110) +($E44*'fnd base rates'!I$111) +($F44*'fnd base rates'!I$112) +($G44*'fnd base rates'!I$113) +($H44*'fnd base rates'!I$114) +($I44*'fnd base rates'!I$115) +($J44*'fnd base rates'!I$119) +($K44*'fnd base rates'!I$120) +($M44*'fnd base rates'!I$122) +($N44*'fnd base rates'!I$123) +($O44*'fnd base rates'!I$124) +($P44*VLOOKUP($S44+15,rate_basefnd,9))) *$R44 -> 2297.56821 | AB44: =(($D44*'fnd base rates'!J$110) +($E44*'fnd base rates'!J$111) +($F44*'fnd base rates'!J$112) +($G44*'fnd base rates'!J$113) +($H44*'fnd base rates'!J$114) +($I44*'fnd base rates'!J$115) +($J44*'fnd base rates'!J$119) +($K44*'fnd base rates'!J$120) +($M44*'fnd base rates'!J$122) +($N44*'fnd base rates'!J$123) +($O44*'fnd base rates'!J$124) +($P44*VLOOKUP($S44+15,rate_basefnd,10))) *$R44 -> 2468.11758 | AC44: =(($D44*'fnd base rates'!K$110) +($E44*'fnd base rates'!K$111) +($F44*'fnd base rates'!K$112) +($G44*'fnd base rates'!K$113) +($H44*'fnd base rates'!K$114) +($I44*'fnd base rates'!K$115) +($J44*'fnd base rates'!K$119) +($K44*'fnd base rates'!K$120) +($M44*'fnd base rates'!K$122) +($N44*'fnd base rates'!K$123) +($O44*'fnd base rates'!K$124) +($P44*VLOOKUP($S44+15,rate_basefnd,11))) *$R44 -> 6984.113521 | AD44: =(($D44*'fnd base rates'!L$110) +($E44*'fnd base rates'!L$111) +($F44*'fnd base rates'!L$112) +($G44*'fnd base rates'!L$113) +($H44*'fnd base rates'!L$114) +($I44*'fnd base rates'!L$115) +($J44*'fnd base rates'!L$119) +($K44*'fnd base rates'!L$120) +($M44*'fnd base rates'!L$122) +($N44*'fnd base rates'!L$123) +($O44*'fnd base rates'!L$124) +($P44*VLOOKUP($S44+15,rate_basefnd,12))) -> 6880.353366 | AE44: =(($D44*'fnd base rates'!M$110) +($E44*'fnd base rates'!M$111) +($F44*'fnd base rates'!M$112) +($G44*'fnd base rates'!M$113) +($H44*'fnd base rates'!M$114) +($I44*'fnd base rates'!M$115) +($J44*'fnd base rates'!M$119) +($K44*'fnd base rates'!M$120) +($M44*'fnd base rates'!M$122) +($N44*'fnd base rates'!M$123) +($O44*'fnd base rates'!M$124) +($P44*VLOOKUP($S44+15,rate_basefnd,13))) -> 0 | AF44: 61861.81533 | AH44: 412035285 | AI44: 412 | AJ44: 035 | AK44: 285 | AL44: 1 | AM44: 6 | AN44: 61861.81533 | AO44: 10310 | AP44: 0 | AQ44: 10310 | AW44: 10310 | AX44: 0 | AY44: 10310 | AZ44: -3 | BA44: 10313 | BB44: 14 | BC44: 10299
A45: 412 | B45: 412035293 | C45: ACADEMY OF THE PACIFIC RIM | D45: ='fnd enro'!D45 -> 0 | E45: ='fnd enro'!E45 -> 0 | F45: ='fnd enro'!F45 -> 0 | G45: ='fnd enro'!G45 -> 0 | H45: ='fnd enro'!H45 -> 1 | I45: ='fnd enro'!I45 -> 0 | J45: ='fnd enro'!J45 -> 0 | K45: ='fnd enro'!K45 -> 0.0379 | L45: ='fnd enro'!L45 -> 0 | M45: ='fnd enro'!M45+'fnd enro'!N45 -> 0 | N45: ='fnd enro'!O45 -> 0 | O45: ='fnd enro'!P45 -> 0 | P45: ='fnd enro'!Q45+'fnd enro'!R45 -> 0 | Q45: ='fnd enro'!T45 -> 1 | R45: 1.081 | S45: =VALUE('fnd enro'!S45) -> 1 | U45: =(($D45*'fnd base rates'!C$110) +($E45*'fnd base rates'!C$111) +($F45*'fnd base rates'!C$112) +($G45*'fnd base rates'!C$113) +($H45*'fnd base rates'!C$114) +($I45*'fnd base rates'!C$115) +($J45*'fnd base rates'!C$119) +($K45*'fnd base rates'!C$120) +($M45*'fnd base rates'!C$122) +($N45*'fnd base rates'!C$123) +($O45*'fnd base rates'!C$124) +($P45*VLOOKUP($S45+15,rate_basefnd,3))) *$R45 -> 534.4990901 | V45: =(($D45*'fnd base rates'!D$110) +($E45*'fnd base rates'!D$111) +($F45*'fnd base rates'!D$112) +($G45*'fnd base rates'!D$113) +($H45*'fnd base rates'!D$114) +($I45*'fnd base rates'!D$115) +($J45*'fnd base rates'!D$119) +($K45*'fnd base rates'!D$120) +($M45*'fnd base rates'!D$122) +($N45*'fnd base rates'!D$123) +($O45*'fnd base rates'!D$124) +($P45*VLOOKUP($S45+15,rate_basefnd,4))) *$R45 -> 765.19666 | W45: =(($D45*'fnd base rates'!E$110) +($E45*'fnd base rates'!E$111) +($F45*'fnd base rates'!E$112) +($G45*'fnd base rates'!E$113) +($H45*'fnd base rates'!E$114) +($I45*'fnd base rates'!E$115) +($J45*'fnd base rates'!E$119) +($K45*'fnd base rates'!E$120) +($M45*'fnd base rates'!E$122) +($N45*'fnd base rates'!E$123) +($O45*'fnd base rates'!E$124) +($P45*VLOOKUP($S45+15,rate_basefnd,5))) *$R45 -> 3453.293335 | X45: =(($D45*'fnd base rates'!F$110) +($E45*'fnd base rates'!F$111) +($F45*'fnd base rates'!F$112) +($G45*'fnd base rates'!F$113) +($H45*'fnd base rates'!F$114) +($I45*'fnd base rates'!F$115) +($J45*'fnd base rates'!F$119) +($K45*'fnd base rates'!F$120) +($M45*'fnd base rates'!F$122) +($N45*'fnd base rates'!F$123) +($O45*'fnd base rates'!F$124) +($P45*VLOOKUP($S45+15,rate_basefnd,6))) *$R45 -> 989.2262511 | Y45: =(($D45*'fnd base rates'!G$110) +($E45*'fnd base rates'!G$111) +($F45*'fnd base rates'!G$112) +($G45*'fnd base rates'!G$113) +($H45*'fnd base rates'!G$114) +($I45*'fnd base rates'!G$115) +($J45*'fnd base rates'!G$119) +($K45*'fnd base rates'!G$120) +($M45*'fnd base rates'!G$122) +($N45*'fnd base rates'!G$123) +($O45*'fnd base rates'!G$124) +($P45*VLOOKUP($S45+15,rate_basefnd,7))) *$R45 -> 168.1588498 | Z45: =(($D45*'fnd base rates'!H$110) +($E45*'fnd base rates'!H$111) +($F45*'fnd base rates'!H$112) +($G45*'fnd base rates'!H$113) +($H45*'fnd base rates'!H$114) +($I45*'fnd base rates'!H$115) +($J45*'fnd base rates'!H$119) +($K45*'fnd base rates'!H$120) +($M45*'fnd base rates'!H$122) +($N45*'fnd base rates'!H$123) +($O45*'fnd base rates'!H$124) +($P45*VLOOKUP($S45+15,rate_basefnd,8))) -> 484.023578 | AA45: =(($D45*'fnd base rates'!I$110) +($E45*'fnd base rates'!I$111) +($F45*'fnd base rates'!I$112) +($G45*'fnd base rates'!I$113) +($H45*'fnd base rates'!I$114) +($I45*'fnd base rates'!I$115) +($J45*'fnd base rates'!I$119) +($K45*'fnd base rates'!I$120) +($M45*'fnd base rates'!I$122) +($N45*'fnd base rates'!I$123) +($O45*'fnd base rates'!I$124) +($P45*VLOOKUP($S45+15,rate_basefnd,9))) *$R45 -> 339.84478 | AB45: =(($D45*'fnd base rates'!J$110) +($E45*'fnd base rates'!J$111) +($F45*'fnd base rates'!J$112) +($G45*'fnd base rates'!J$113) +($H45*'fnd base rates'!J$114) +($I45*'fnd base rates'!J$115) +($J45*'fnd base rates'!J$119) +($K45*'fnd base rates'!J$120) +($M45*'fnd base rates'!J$122) +($N45*'fnd base rates'!J$123) +($O45*'fnd base rates'!J$124) +($P45*VLOOKUP($S45+15,rate_basefnd,10))) *$R45 -> 248.85701 | AC45: =(($D45*'fnd base rates'!K$110) +($E45*'fnd base rates'!K$111) +($F45*'fnd base rates'!K$112) +($G45*'fnd base rates'!K$113) +($H45*'fnd base rates'!K$114) +($I45*'fnd base rates'!K$115) +($J45*'fnd base rates'!K$119) +($K45*'fnd base rates'!K$120) +($M45*'fnd base rates'!K$122) +($N45*'fnd base rates'!K$123) +($O45*'fnd base rates'!K$124) +($P45*VLOOKUP($S45+15,rate_basefnd,11))) *$R45 -> 1180.07177 | AD45: =(($D45*'fnd base rates'!L$110) +($E45*'fnd base rates'!L$111) +($F45*'fnd base rates'!L$112) +($G45*'fnd base rates'!L$113) +($H45*'fnd base rates'!L$114) +($I45*'fnd base rates'!L$115) +($J45*'fnd base rates'!L$119) +($K45*'fnd base rates'!L$120) +($M45*'fnd base rates'!L$122) +($N45*'fnd base rates'!L$123) +($O45*'fnd base rates'!L$124) +($P45*VLOOKUP($S45+15,rate_basefnd,12))) -> 1197.691427 | AE45: =(($D45*'fnd base rates'!M$110) +($E45*'fnd base rates'!M$111) +($F45*'fnd base rates'!M$112) +($G45*'fnd base rates'!M$113) +($H45*'fnd base rates'!M$114) +($I45*'fnd base rates'!M$115) +($J45*'fnd base rates'!M$119) +($K45*'fnd base rates'!M$120) +($M45*'fnd base rates'!M$122) +($N45*'fnd base rates'!M$123) +($O45*'fnd base rates'!M$124) +($P45*VLOOKUP($S45+15,rate_basefnd,13))) -> 0 | AF45: 9360.862752 | AH45: 412035293 | AI45: 412 | AJ45: 035 | AK45: 293 | AL45: 1 | AM45: 1 | AN45: 9360.862752 | AO45: 9361 | AP45: 0 | AQ45: 9361 | AW45: 9361 | AX45: 0 | AY45: 9361 | AZ45: -3 | BA45: 9364 | BB45: 15 | BC45: 9349
A46: 412 | B46: 412035314 | C46: ACADEMY OF THE PACIFIC RIM | D46: ='fnd enro'!D46 -> 0 | E46: ='fnd enro'!E46 -> 0 | F46: ='fnd enro'!F46 -> 0 | G46: ='fnd enro'!G46 -> 0 | H46: ='fnd enro'!H46 -> 0 | I46: ='fnd enro'!I46 -> 1 | J46: ='fnd enro'!J46 -> 0 | K46: ='fnd enro'!K46 -> 0.0379 | L46: ='fnd enro'!L46 -> 0 | M46: ='fnd enro'!M46+'fnd enro'!N46 -> 0 | N46: ='fnd enro'!O46 -> 0 | O46: ='fnd enro'!P46 -> 0 | P46: ='fnd enro'!Q46+'fnd enro'!R46 -> 0 | Q46: ='fnd enro'!T46 -> 1 | R46: 1.081 | S46: =VALUE('fnd enro'!S46) -> 1 | U46: =(($D46*'fnd base rates'!C$110) +($E46*'fnd base rates'!C$111) +($F46*'fnd base rates'!C$112) +($G46*'fnd base rates'!C$113) +($H46*'fnd base rates'!C$114) +($I46*'fnd base rates'!C$115) +($J46*'fnd base rates'!C$119) +($K46*'fnd base rates'!C$120) +($M46*'fnd base rates'!C$122) +($N46*'fnd base rates'!C$123) +($O46*'fnd base rates'!C$124) +($P46*VLOOKUP($S46+15,rate_basefnd,3))) *$R46 -> 534.4990901 | V46: =(($D46*'fnd base rates'!D$110) +($E46*'fnd base rates'!D$111) +($F46*'fnd base rates'!D$112) +($G46*'fnd base rates'!D$113) +($H46*'fnd base rates'!D$114) +($I46*'fnd base rates'!D$115) +($J46*'fnd base rates'!D$119) +($K46*'fnd base rates'!D$120) +($M46*'fnd base rates'!D$122) +($N46*'fnd base rates'!D$123) +($O46*'fnd base rates'!D$124) +($P46*VLOOKUP($S46+15,rate_basefnd,4))) *$R46 -> 765.19666 | W46: =(($D46*'fnd base rates'!E$110) +($E46*'fnd base rates'!E$111) +($F46*'fnd base rates'!E$112) +($G46*'fnd base rates'!E$113) +($H46*'fnd base rates'!E$114) +($I46*'fnd base rates'!E$115) +($J46*'fnd base rates'!E$119) +($K46*'fnd base rates'!E$120) +($M46*'fnd base rates'!E$122) +($N46*'fnd base rates'!E$123) +($O46*'fnd base rates'!E$124) +($P46*VLOOKUP($S46+15,rate_basefnd,5))) *$R46 -> 4906.254625 | X46: =(($D46*'fnd base rates'!F$110) +($E46*'fnd base rates'!F$111) +($F46*'fnd base rates'!F$112) +($G46*'fnd base rates'!F$113) +($H46*'fnd base rates'!F$114) +($I46*'fnd base rates'!F$115) +($J46*'fnd base rates'!F$119) +($K46*'fnd base rates'!F$120) +($M46*'fnd base rates'!F$122) +($N46*'fnd base rates'!F$123) +($O46*'fnd base rates'!F$124) +($P46*VLOOKUP($S46+15,rate_basefnd,6))) *$R46 -> 880.7262811 | Y46: =(($D46*'fnd base rates'!G$110) +($E46*'fnd base rates'!G$111) +($F46*'fnd base rates'!G$112) +($G46*'fnd base rates'!G$113) +($H46*'fnd base rates'!G$114) +($I46*'fnd base rates'!G$115) +($J46*'fnd base rates'!G$119) +($K46*'fnd base rates'!G$120) +($M46*'fnd base rates'!G$122) +($N46*'fnd base rates'!G$123) +($O46*'fnd base rates'!G$124) +($P46*VLOOKUP($S46+15,rate_basefnd,7))) *$R46 -> 163.5862198 | Z46: =(($D46*'fnd base rates'!H$110) +($E46*'fnd base rates'!H$111) +($F46*'fnd base rates'!H$112) +($G46*'fnd base rates'!H$113) +($H46*'fnd base rates'!H$114) +($I46*'fnd base rates'!H$115) +($J46*'fnd base rates'!H$119) +($K46*'fnd base rates'!H$120) +($M46*'fnd base rates'!H$122) +($N46*'fnd base rates'!H$123) +($O46*'fnd base rates'!H$124) +($P46*VLOOKUP($S46+15,rate_basefnd,8))) -> 765.893578 | AA46: =(($D46*'fnd base rates'!I$110) +($E46*'fnd base rates'!I$111) +($F46*'fnd base rates'!I$112) +($G46*'fnd base rates'!I$113) +($H46*'fnd base rates'!I$114) +($I46*'fnd base rates'!I$115) +($J46*'fnd base rates'!I$119) +($K46*'fnd base rates'!I$120) +($M46*'fnd base rates'!I$122) +($N46*'fnd base rates'!I$123) +($O46*'fnd base rates'!I$124) +($P46*VLOOKUP($S46+15,rate_basefnd,9))) *$R46 -> 426.01129 | AB46: =(($D46*'fnd base rates'!J$110) +($E46*'fnd base rates'!J$111) +($F46*'fnd base rates'!J$112) +($G46*'fnd base rates'!J$113) +($H46*'fnd base rates'!J$114) +($I46*'fnd base rates'!J$115) +($J46*'fnd base rates'!J$119) +($K46*'fnd base rates'!J$120) +($M46*'fnd base rates'!J$122) +($N46*'fnd base rates'!J$123) +($O46*'fnd base rates'!J$124) +($P46*VLOOKUP($S46+15,rate_basefnd,10))) *$R46 -> 573.84885 | AC46: =(($D46*'fnd base rates'!K$110) +($E46*'fnd base rates'!K$111) +($F46*'fnd base rates'!K$112) +($G46*'fnd base rates'!K$113) +($H46*'fnd base rates'!K$114) +($I46*'fnd base rates'!K$115) +($J46*'fnd base rates'!K$119) +($K46*'fnd base rates'!K$120) +($M46*'fnd base rates'!K$122) +($N46*'fnd base rates'!K$123) +($O46*'fnd base rates'!K$124) +($P46*VLOOKUP($S46+15,rate_basefnd,11))) *$R46 -> 1147.96607 | AD46: =(($D46*'fnd base rates'!L$110) +($E46*'fnd base rates'!L$111) +($F46*'fnd base rates'!L$112) +($G46*'fnd base rates'!L$113) +($H46*'fnd base rates'!L$114) +($I46*'fnd base rates'!L$115) +($J46*'fnd base rates'!L$119) +($K46*'fnd base rates'!L$120) +($M46*'fnd base rates'!L$122) +($N46*'fnd base rates'!L$123) +($O46*'fnd base rates'!L$124) +($P46*VLOOKUP($S46+15,rate_basefnd,12))) -> 1095.759695 | AE46: =(($D46*'fnd base rates'!M$110) +($E46*'fnd base rates'!M$111) +($F46*'fnd base rates'!M$112) +($G46*'fnd base rates'!M$113) +($H46*'fnd base rates'!M$114) +($I46*'fnd base rates'!M$115) +($J46*'fnd base rates'!M$119) +($K46*'fnd base rates'!M$120) +($M46*'fnd base rates'!M$122) +($N46*'fnd base rates'!M$123) +($O46*'fnd base rates'!M$124) +($P46*VLOOKUP($S46+15,rate_basefnd,13))) -> 0 | AF46: 11259.74236 | AH46: 412035314 | AI46: 412 | AJ46: 035 | AK46: 314 | AL46: 1 | AM46: 1 | AN46: 11259.74236 | AO46: 11260 | AP46: 0 | AQ46: 11260 | AW46: 11260 | AX46: 0 | AY46: 11260 | AZ46: -1 | BA46: 11261 | BB46: 13 | BC46: 11248
A47: 412 | B47: 412035335 | C47: ACADEMY OF THE PACIFIC RIM | D47: ='fnd enro'!D47 -> 0 | E47: ='fnd enro'!E47 -> 0 | F47: ='fnd enro'!F47 -> 0 | G47: ='fnd enro'!G47 -> 0 | H47: ='fnd enro'!H47 -> 0 | I47: ='fnd enro'!I47 -> 1 | J47: ='fnd enro'!J47 -> 0 | K47: ='fnd enro'!K47 -> 0.0379 | L47: ='fnd enro'!L47 -> 0 | M47: ='fnd enro'!M47+'fnd enro'!N47 -> 0 | N47: ='fnd enro'!O47 -> 0 | O47: ='fnd enro'!P47 -> 0 | P47: ='fnd enro'!Q47+'fnd enro'!R47 -> 0 | Q47: ='fnd enro'!T47 -> 1 | R47: 1.081 | S47: =VALUE('fnd enro'!S47) -> 1 | U47: =(($D47*'fnd base rates'!C$110) +($E47*'fnd base rates'!C$111) +($F47*'fnd base rates'!C$112) +($G47*'fnd base rates'!C$113) +($H47*'fnd base rates'!C$114) +($I47*'fnd base rates'!C$115) +($J47*'fnd base rates'!C$119) +($K47*'fnd base rates'!C$120) +($M47*'fnd base rates'!C$122) +($N47*'fnd base rates'!C$123) +($O47*'fnd base rates'!C$124) +($P47*VLOOKUP($S47+15,rate_basefnd,3))) *$R47 -> 534.4990901 | V47: =(($D47*'fnd base rates'!D$110) +($E47*'fnd base rates'!D$111) +($F47*'fnd base rates'!D$112) +($G47*'fnd base rates'!D$113) +($H47*'fnd base rates'!D$114) +($I47*'fnd base rates'!D$115) +($J47*'fnd base rates'!D$119) +($K47*'fnd base rates'!D$120) +($M47*'fnd base rates'!D$122) +($N47*'fnd base rates'!D$123) +($O47*'fnd base rates'!D$124) +($P47*VLOOKUP($S47+15,rate_basefnd,4))) *$R47 -> 765.19666 | W47: =(($D47*'fnd base rates'!E$110) +($E47*'fnd base rates'!E$111) +($F47*'fnd base rates'!E$112) +($G47*'fnd base rates'!E$113) +($H47*'fnd base rates'!E$114) +($I47*'fnd base rates'!E$115) +($J47*'fnd base rates'!E$119) +($K47*'fnd base rates'!E$120) +($M47*'fnd base rates'!E$122) +($N47*'fnd base rates'!E$123) +($O47*'fnd base rates'!E$124) +($P47*VLOOKUP($S47+15,rate_basefnd,5))) *$R47 -> 4906.254625 | X47: =(($D47*'fnd base rates'!F$110) +($E47*'fnd base rates'!F$111) +($F47*'fnd base rates'!F$112) +($G47*'fnd base rates'!F$113) +($H47*'fnd base rates'!F$114) +($I47*'fnd base rates'!F$115) +($J47*'fnd base rates'!F$119) +($K47*'fnd base rates'!F$120) +($M47*'fnd base rates'!F$122) +($N47*'fnd base rates'!F$123) +($O47*'fnd base rates'!F$124) +($P47*VLOOKUP($S47+15,rate_basefnd,6))) *$R47 -> 880.7262811 | Y47: =(($D47*'fnd base rates'!G$110) +($E47*'fnd base rates'!G$111) +($F47*'fnd base rates'!G$112) +($G47*'fnd base rates'!G$113) +($H47*'fnd base rates'!G$114) +($I47*'fnd base rates'!G$115) +($J47*'fnd base rates'!G$119) +($K47*'fnd base rates'!G$120) +($M47*'fnd base rates'!G$122) +($N47*'fnd base rates'!G$123) +($O47*'fnd base rates'!G$124) +($P47*VLOOKUP($S47+15,rate_basefnd,7))) *$R47 -> 163.5862198 | Z47: =(($D47*'fnd base rates'!H$110) +($E47*'fnd base rates'!H$111) +($F47*'fnd base rates'!H$112) +($G47*'fnd base rates'!H$113) +($H47*'fnd base rates'!H$114) +($I47*'fnd base rates'!H$115) +($J47*'fnd base rates'!H$119) +($K47*'fnd base rates'!H$120) +($M47*'fnd base rates'!H$122) +($N47*'fnd base rates'!H$123) +($O47*'fnd base rates'!H$124) +($P47*VLOOKUP($S47+15,rate_basefnd,8))) -> 765.893578 | AA47: =(($D47*'fnd base rates'!I$110) +($E47*'fnd base rates'!I$111) +($F47*'fnd base rates'!I$112) +($G47*'fnd base rates'!I$113) +($H47*'fnd base rates'!I$114) +($I47*'fnd base rates'!I$115) +($J47*'fnd base rates'!I$119) +($K47*'fnd base rates'!I$120) +($M47*'fnd base rates'!I$122) +($N47*'fnd base rates'!I$123) +($O47*'fnd base rates'!I$124) +($P47*VLOOKUP($S47+15,rate_basefnd,9))) *$R47 -> 426.01129 | AB47: =(($D47*'fnd base rates'!J$110) +($E47*'fnd base rates'!J$111) +($F47*'fnd base rates'!J$112) +($G47*'fnd base rates'!J$113) +($H47*'fnd base rates'!J$114) +($I47*'fnd base rates'!J$115) +($J47*'fnd base rates'!J$119) +($K47*'fnd base rates'!J$120) +($M47*'fnd base rates'!J$122) +($N47*'fnd base rates'!J$123) +($O47*'fnd base rates'!J$124) +($P47*VLOOKUP($S47+15,rate_basefnd,10))) *$R47 -> 573.84885 | AC47: =(($D47*'fnd base rates'!K$110) +($E47*'fnd base rates'!K$111) +($F47*'fnd base rates'!K$112) +($G47*'fnd base rates'!K$113) +($H47*'fnd base rates'!K$114) +($I47*'fnd base rates'!K$115) +($J47*'fnd base rates'!K$119) +($K47*'fnd base rates'!K$120) +($M47*'fnd base rates'!K$122) +($N47*'fnd base rates'!K$123) +($O47*'fnd base rates'!K$124) +($P47*VLOOKUP($S47+15,rate_basefnd,11))) *$R47 -> 1147.96607 | AD47: =(($D47*'fnd base rates'!L$110) +($E47*'fnd base rates'!L$111) +($F47*'fnd base rates'!L$112) +($G47*'fnd base rates'!L$113) +($H47*'fnd base rates'!L$114) +($I47*'fnd base rates'!L$115) +($J47*'fnd base rates'!L$119) +($K47*'fnd base rates'!L$120) +($M47*'fnd base rates'!L$122) +($N47*'fnd base rates'!L$123) +($O47*'fnd base rates'!L$124) +($P47*VLOOKUP($S47+15,rate_basefnd,12))) -> 1095.759695 | AE47: =(($D47*'fnd base rates'!M$110) +($E47*'fnd base rates'!M$111) +($F47*'fnd base rates'!M$112) +($G47*'fnd base rates'!M$113) +($H47*'fnd base rates'!M$114) +($I47*'fnd base rates'!M$115) +($J47*'fnd base rates'!M$119) +($K47*'fnd base rates'!M$120) +($M47*'fnd base rates'!M$122) +($N47*'fnd base rates'!M$123) +($O47*'fnd base rates'!M$124) +($P47*VLOOKUP($S47+15,rate_basefnd,13))) -> 0 | AF47: 11259.74236 | AH47: 412035335 | AI47: 412 | AJ47: 035 | AK47: 335 | AL47: 1 | AM47: 1 | AN47: 11259.74236 | AO47: 11260 | AP47: 0 | AQ47: 11260 | AW47: 11260 | AX47: 0 | AY47: 11260 | AZ47: -1 | BA47: 11261 | BB47: 13 | BC47: 11248
A48: 412 | B48: 412035336 | C48: ACADEMY OF THE PACIFIC RIM | D48: ='fnd enro'!D48 -> 0 | E48: ='fnd enro'!E48 -> 0 | F48: ='fnd enro'!F48 -> 0 | G48: ='fnd enro'!G48 -> 0 | H48: ='fnd enro'!H48 -> 0 | I48: ='fnd enro'!I48 -> 1 | J48: ='fnd enro'!J48 -> 0 | K48: ='fnd enro'!K48 -> 0.0379 | L48: ='fnd enro'!L48 -> 0 | M48: ='fnd enro'!M48+'fnd enro'!N48 -> 0 | N48: ='fnd enro'!O48 -> 0 | O48: ='fnd enro'!P48 -> 0 | P48: ='fnd enro'!Q48+'fnd enro'!R48 -> 0 | Q48: ='fnd enro'!T48 -> 1 | R48: 1.081 | S48: =VALUE('fnd enro'!S48) -> 1 | U48: =(($D48*'fnd base rates'!C$110) +($E48*'fnd base rates'!C$111) +($F48*'fnd base rates'!C$112) +($G48*'fnd base rates'!C$113) +($H48*'fnd base rates'!C$114) +($I48*'fnd base rates'!C$115) +($J48*'fnd base rates'!C$119) +($K48*'fnd base rates'!C$120) +($M48*'fnd base rates'!C$122) +($N48*'fnd base rates'!C$123) +($O48*'fnd base rates'!C$124) +($P48*VLOOKUP($S48+15,rate_basefnd,3))) *$R48 -> 534.4990901 | V48: =(($D48*'fnd base rates'!D$110) +($E48*'fnd base rates'!D$111) +($F48*'fnd base rates'!D$112) +($G48*'fnd base rates'!D$113) +($H48*'fnd base rates'!D$114) +($I48*'fnd base rates'!D$115) +($J48*'fnd base rates'!D$119) +($K48*'fnd base rates'!D$120) +($M48*'fnd base rates'!D$122) +($N48*'fnd base rates'!D$123) +($O48*'fnd base rates'!D$124) +($P48*VLOOKUP($S48+15,rate_basefnd,4))) *$R48 -> 765.19666 | W48: =(($D48*'fnd base rates'!E$110) +($E48*'fnd base rates'!E$111) +($F48*'fnd base rates'!E$112) +($G48*'fnd base rates'!E$113) +($H48*'fnd base rates'!E$114) +($I48*'fnd base rates'!E$115) +($J48*'fnd base rates'!E$119) +($K48*'fnd base rates'!E$120) +($M48*'fnd base rates'!E$122) +($N48*'fnd base rates'!E$123) +($O48*'fnd base rates'!E$124) +($P48*VLOOKUP($S48+15,rate_basefnd,5))) *$R48 -> 4906.254625 | X48: =(($D48*'fnd base rates'!F$110) +($E48*'fnd base rates'!F$111) +($F48*'fnd base rates'!F$112) +($G48*'fnd base rates'!F$113) +($H48*'fnd base rates'!F$114) +($I48*'fnd base rates'!F$115) +($J48*'fnd base rates'!F$119) +($K48*'fnd base rates'!F$120) +($M48*'fnd base rates'!F$122) +($N48*'fnd base rates'!F$123) +($O48*'fnd base rates'!F$124) +($P48*VLOOKUP($S48+15,rate_basefnd,6))) *$R48 -> 880.7262811 | Y48: =(($D48*'fnd base rates'!G$110) +($E48*'fnd base rates'!G$111) +($F48*'fnd base rates'!G$112) +($G48*'fnd base rates'!G$113) +($H48*'fnd base rates'!G$114) +($I48*'fnd base rates'!G$115) +($J48*'fnd base rates'!G$119) +($K48*'fnd base rates'!G$120) +($M48*'fnd base rates'!G$122) +($N48*'fnd base rates'!G$123) +($O48*'fnd base rates'!G$124) +($P48*VLOOKUP($S48+15,rate_basefnd,7))) *$R48 -> 163.5862198 | Z48: =(($D48*'fnd base rates'!H$110) +($E48*'fnd base rates'!H$111) +($F48*'fnd base rates'!H$112) +($G48*'fnd base rates'!H$113) +($H48*'fnd base rates'!H$114) +($I48*'fnd base rates'!H$115) +($J48*'fnd base rates'!H$119) +($K48*'fnd base rates'!H$120) +($M48*'fnd base rates'!H$122) +($N48*'fnd base rates'!H$123) +($O48*'fnd base rates'!H$124) +($P48*VLOOKUP($S48+15,rate_basefnd,8))) -> 765.893578 | AA48: =(($D48*'fnd base rates'!I$110) +($E48*'fnd base rates'!I$111) +($F48*'fnd base rates'!I$112) +($G48*'fnd base rates'!I$113) +($H48*'fnd base rates'!I$114) +($I48*'fnd base rates'!I$115) +($J48*'fnd base rates'!I$119) +($K48*'fnd base rates'!I$120) +($M48*'fnd base rates'!I$122) +($N48*'fnd base rates'!I$123) +($O48*'fnd base rates'!I$124) +($P48*VLOOKUP($S48+15,rate_basefnd,9))) *$R48 -> 426.01129 | AB48: =(($D48*'fnd base rates'!J$110) +($E48*'fnd base rates'!J$111) +($F48*'fnd base rates'!J$112) +($G48*'fnd base rates'!J$113) +($H48*'fnd base rates'!J$114) +($I48*'fnd base rates'!J$115) +($J48*'fnd base rates'!J$119) +($K48*'fnd base rates'!J$120) +($M48*'fnd base rates'!J$122) +($N48*'fnd base rates'!J$123) +($O48*'fnd base rates'!J$124) +($P48*VLOOKUP($S48+15,rate_basefnd,10))) *$R48 -> 573.84885 | AC48: =(($D48*'fnd base rates'!K$110) +($E48*'fnd base rates'!K$111) +($F48*'fnd base rates'!K$112) +($G48*'fnd base rates'!K$113) +($H48*'fnd base rates'!K$114) +($I48*'fnd base rates'!K$115) +($J48*'fnd base rates'!K$119) +($K48*'fnd base rates'!K$120) +($M48*'fnd base rates'!K$122) +($N48*'fnd base rates'!K$123) +($O48*'fnd base rates'!K$124) +($P48*VLOOKUP($S48+15,rate_basefnd,11))) *$R48 -> 1147.96607 | AD48: =(($D48*'fnd base rates'!L$110) +($E48*'fnd base rates'!L$111) +($F48*'fnd base rates'!L$112) +($G48*'fnd base rates'!L$113) +($H48*'fnd base rates'!L$114) +($I48*'fnd base rates'!L$115) +($J48*'fnd base rates'!L$119) +($K48*'fnd base rates'!L$120) +($M48*'fnd base rates'!L$122) +($N48*'fnd base rates'!L$123) +($O48*'fnd base rates'!L$124) +($P48*VLOOKUP($S48+15,rate_basefnd,12))) -> 1095.759695 | AE48: =(($D48*'fnd base rates'!M$110) +($E48*'fnd base rates'!M$111) +($F48*'fnd base rates'!M$112) +($G48*'fnd base rates'!M$113) +($H48*'fnd base rates'!M$114) +($I48*'fnd base rates'!M$115) +($J48*'fnd base rates'!M$119) +($K48*'fnd base rates'!M$120) +($M48*'fnd base rates'!M$122) +($N48*'fnd base rates'!M$123) +($O48*'fnd base rates'!M$124) +($P48*VLOOKUP($S48+15,rate_basefnd,13))) -> 0 | AF48: 11259.74236 | AH48: 412035336 | AI48: 412 | AJ48: 035 | AK48: 336 | AL48: 1 | AM48: 1 | AN48: 11259.74236 | AO48: 11260 | AP48: 0 | AQ48: 11260 | AW48: 11260 | AX48: 0 | AY48: 11260 | AZ48: -1 | BA48: 11261 | BB48: 13 | BC48: 11248
A49: 413 | B49: 413114091 | C49: FOUR RIVERS | D49: ='fnd enro'!D49 -> 0 | E49: ='fnd enro'!E49 -> 0 | F49: ='fnd enro'!F49 -> 0 | G49: ='fnd enro'!G49 -> 0 | H49: ='fnd enro'!H49 -> 0 | I49: ='fnd enro'!I49 -> 4 | J49: ='fnd enro'!J49 -> 0 | K49: ='fnd enro'!K49 -> 0.1516 | L49: ='fnd enro'!L49 -> 0 | M49: ='fnd enro'!M49+'fnd enro'!N49 -> 0 | N49: ='fnd enro'!O49 -> 0 | O49: ='fnd enro'!P49 -> 0 | P49: ='fnd enro'!Q49+'fnd enro'!R49 -> 2 | Q49: ='fnd enro'!T49 -> 4 | R49: 1 | S49: =VALUE('fnd enro'!S49) -> 10 | U49: =(($D49*'fnd base rates'!C$110) +($E49*'fnd base rates'!C$111) +($F49*'fnd base rates'!C$112) +($G49*'fnd base rates'!C$113) +($H49*'fnd base rates'!C$114) +($I49*'fnd base rates'!C$115) +($J49*'fnd base rates'!C$119) +($K49*'fnd base rates'!C$120) +($M49*'fnd base rates'!C$122) +($N49*'fnd base rates'!C$123) +($O49*'fnd base rates'!C$124) +($P49*VLOOKUP($S49+15,rate_basefnd,3))) *$R49 -> 2102.394968 | V49: =(($D49*'fnd base rates'!D$110) +($E49*'fnd base rates'!D$111) +($F49*'fnd base rates'!D$112) +($G49*'fnd base rates'!D$113) +($H49*'fnd base rates'!D$114) +($I49*'fnd base rates'!D$115) +($J49*'fnd base rates'!D$119) +($K49*'fnd base rates'!D$120) +($M49*'fnd base rates'!D$122) +($N49*'fnd base rates'!D$123) +($O49*'fnd base rates'!D$124) +($P49*VLOOKUP($S49+15,rate_basefnd,4))) *$R49 -> 3421.82 | W49: =(($D49*'fnd base rates'!E$110) +($E49*'fnd base rates'!E$111) +($F49*'fnd base rates'!E$112) +($G49*'fnd base rates'!E$113) +($H49*'fnd base rates'!E$114) +($I49*'fnd base rates'!E$115) +($J49*'fnd base rates'!E$119) +($K49*'fnd base rates'!E$120) +($M49*'fnd base rates'!E$122) +($N49*'fnd base rates'!E$123) +($O49*'fnd base rates'!E$124) +($P49*VLOOKUP($S49+15,rate_basefnd,5))) *$R49 -> 23917.7437 | X49: =(($D49*'fnd base rates'!F$110) +($E49*'fnd base rates'!F$111) +($F49*'fnd base rates'!F$112) +($G49*'fnd base rates'!F$113) +($H49*'fnd base rates'!F$114) +($I49*'fnd base rates'!F$115) +($J49*'fnd base rates'!F$119) +($K49*'fnd base rates'!F$120) +($M49*'fnd base rates'!F$122) +($N49*'fnd base rates'!F$123) +($O49*'fnd base rates'!F$124) +($P49*VLOOKUP($S49+15,rate_basefnd,6))) *$R49 -> 3258.93166 | Y49: =(($D49*'fnd base rates'!G$110) +($E49*'fnd base rates'!G$111) +($F49*'fnd base rates'!G$112) +($G49*'fnd base rates'!G$113) +($H49*'fnd base rates'!G$114) +($I49*'fnd base rates'!G$115) +($J49*'fnd base rates'!G$119) +($K49*'fnd base rates'!G$120) +($M49*'fnd base rates'!G$122) +($N49*'fnd base rates'!G$123) +($O49*'fnd base rates'!G$124) +($P49*VLOOKUP($S49+15,rate_basefnd,7))) *$R49 -> 884.914412 | Z49: =(($D49*'fnd base rates'!H$110) +($E49*'fnd base rates'!H$111) +($F49*'fnd base rates'!H$112) +($G49*'fnd base rates'!H$113) +($H49*'fnd base rates'!H$114) +($I49*'fnd base rates'!H$115) +($J49*'fnd base rates'!H$119) +($K49*'fnd base rates'!H$120) +($M49*'fnd base rates'!H$122) +($N49*'fnd base rates'!H$123) +($O49*'fnd base rates'!H$124) +($P49*VLOOKUP($S49+15,rate_basefnd,8))) -> 3106.434312 | AA49: =(($D49*'fnd base rates'!I$110) +($E49*'fnd base rates'!I$111) +($F49*'fnd base rates'!I$112) +($G49*'fnd base rates'!I$113) +($H49*'fnd base rates'!I$114) +($I49*'fnd base rates'!I$115) +($J49*'fnd base rates'!I$119) +($K49*'fnd base rates'!I$120) +($M49*'fnd base rates'!I$122) +($N49*'fnd base rates'!I$123) +($O49*'fnd base rates'!I$124) +($P49*VLOOKUP($S49+15,rate_basefnd,9))) *$R49 -> 1809.74 | AB49: =(($D49*'fnd base rates'!J$110) +($E49*'fnd base rates'!J$111) +($F49*'fnd base rates'!J$112) +($G49*'fnd base rates'!J$113) +($H49*'fnd base rates'!J$114) +($I49*'fnd base rates'!J$115) +($J49*'fnd base rates'!J$119) +($K49*'fnd base rates'!J$120) +($M49*'fnd base rates'!J$122) +($N49*'fnd base rates'!J$123) +($O49*'fnd base rates'!J$124) +($P49*VLOOKUP($S49+15,rate_basefnd,10))) *$R49 -> 3336.06 | AC49: =(($D49*'fnd base rates'!K$110) +($E49*'fnd base rates'!K$111) +($F49*'fnd base rates'!K$112) +($G49*'fnd base rates'!K$113) +($H49*'fnd base rates'!K$114) +($I49*'fnd base rates'!K$115) +($J49*'fnd base rates'!K$119) +($K49*'fnd base rates'!K$120) +($M49*'fnd base rates'!K$122) +($N49*'fnd base rates'!K$123) +($O49*'fnd base rates'!K$124) +($P49*VLOOKUP($S49+15,rate_basefnd,11))) *$R49 -> 4247.793044 | AD49: =(($D49*'fnd base rates'!L$110) +($E49*'fnd base rates'!L$111) +($F49*'fnd base rates'!L$112) +($G49*'fnd base rates'!L$113) +($H49*'fnd base rates'!L$114) +($I49*'fnd base rates'!L$115) +($J49*'fnd base rates'!L$119) +($K49*'fnd base rates'!L$120) +($M49*'fnd base rates'!L$122) +($N49*'fnd base rates'!L$123) +($O49*'fnd base rates'!L$124) +($P49*VLOOKUP($S49+15,rate_basefnd,12))) -> 5315.298779 | AE49: =(($D49*'fnd base rates'!M$110) +($E49*'fnd base rates'!M$111) +($F49*'fnd base rates'!M$112) +($G49*'fnd base rates'!M$113) +($H49*'fnd base rates'!M$114) +($I49*'fnd base rates'!M$115) +($J49*'fnd base rates'!M$119) +($K49*'fnd base rates'!M$120) +($M49*'fnd base rates'!M$122) +($N49*'fnd base rates'!M$123) +($O49*'fnd base rates'!M$124) +($P49*VLOOKUP($S49+15,rate_basefnd,13))) -> 0 | AF49: 51401.13087 | AH49: 413114091 | AI49: 413 | AJ49: 114 | AK49: 091 | AL49: 1 | AM49: 4 | AN49: 51401.13087 | AO49: 12850 | AP49: 0 | AQ49: 12850 | AW49: 12850 | AX49: 0 | AY49: 12850 | AZ49: 189 | BA49: 12661 | BB49: 18 | BC49: 12643
A50: 413 | B50: 413114114 | C50: FOUR RIVERS | D50: ='fnd enro'!D50 -> 0 | E50: ='fnd enro'!E50 -> 0 | F50: ='fnd enro'!F50 -> 0 | G50: ='fnd enro'!G50 -> 0 | H50: ='fnd enro'!H50 -> 27 | I50: ='fnd enro'!I50 -> 38 | J50: ='fnd enro'!J50 -> 0 | K50: ='fnd enro'!K50 -> 2.4635 | L50: ='fnd enro'!L50 -> 0 | M50: ='fnd enro'!M50+'fnd enro'!N50 -> 0 | N50: ='fnd enro'!O50 -> 0 | O50: ='fnd enro'!P50 -> 0 | P50: ='fnd enro'!Q50+'fnd enro'!R50 -> 24 | Q50: ='fnd enro'!T50 -> 65 | R50: 1 | S50: =VALUE('fnd enro'!S50) -> 8 | U50: =(($D50*'fnd base rates'!C$110) +($E50*'fnd base rates'!C$111) +($F50*'fnd base rates'!C$112) +($G50*'fnd base rates'!C$113) +($H50*'fnd base rates'!C$114) +($I50*'fnd base rates'!C$115) +($J50*'fnd base rates'!C$119) +($K50*'fnd base rates'!C$120) +($M50*'fnd base rates'!C$122) +($N50*'fnd base rates'!C$123) +($O50*'fnd base rates'!C$124) +($P50*VLOOKUP($S50+15,rate_basefnd,3))) *$R50 -> 33569.32823 | V50: =(($D50*'fnd base rates'!D$110) +($E50*'fnd base rates'!D$111) +($F50*'fnd base rates'!D$112) +($G50*'fnd base rates'!D$113) +($H50*'fnd base rates'!D$114) +($I50*'fnd base rates'!D$115) +($J50*'fnd base rates'!D$119) +($K50*'fnd base rates'!D$120) +($M50*'fnd base rates'!D$122) +($N50*'fnd base rates'!D$123) +($O50*'fnd base rates'!D$124) +($P50*VLOOKUP($S50+15,rate_basefnd,4))) *$R50 -> 52787.54 | W50: =(($D50*'fnd base rates'!E$110) +($E50*'fnd base rates'!E$111) +($F50*'fnd base rates'!E$112) +($G50*'fnd base rates'!E$113) +($H50*'fnd base rates'!E$114) +($I50*'fnd base rates'!E$115) +($J50*'fnd base rates'!E$119) +($K50*'fnd base rates'!E$120) +($M50*'fnd base rates'!E$122) +($N50*'fnd base rates'!E$123) +($O50*'fnd base rates'!E$124) +($P50*VLOOKUP($S50+15,rate_basefnd,5))) *$R50 -> 324872.8951 | X50: =(($D50*'fnd base rates'!F$110) +($E50*'fnd base rates'!F$111) +($F50*'fnd base rates'!F$112) +($G50*'fnd base rates'!F$113) +($H50*'fnd base rates'!F$114) +($I50*'fnd base rates'!F$115) +($J50*'fnd base rates'!F$119) +($K50*'fnd base rates'!F$120) +($M50*'fnd base rates'!F$122) +($N50*'fnd base rates'!F$123) +($O50*'fnd base rates'!F$124) +($P50*VLOOKUP($S50+15,rate_basefnd,6))) *$R50 -> 55667.62948 | Y50: =(($D50*'fnd base rates'!G$110) +($E50*'fnd base rates'!G$111) +($F50*'fnd base rates'!G$112) +($G50*'fnd base rates'!G$113) +($H50*'fnd base rates'!G$114) +($I50*'fnd base rates'!G$115) +($J50*'fnd base rates'!G$119) +($K50*'fnd base rates'!G$120) +($M50*'fnd base rates'!G$122) +($N50*'fnd base rates'!G$123) +($O50*'fnd base rates'!G$124) +($P50*VLOOKUP($S50+15,rate_basefnd,7))) *$R50 -> 13159.84919 | Z50: =(($D50*'fnd base rates'!H$110) +($E50*'fnd base rates'!H$111) +($F50*'fnd base rates'!H$112) +($G50*'fnd base rates'!H$113) +($H50*'fnd base rates'!H$114) +($I50*'fnd base rates'!H$115) +($J50*'fnd base rates'!H$119) +($K50*'fnd base rates'!H$120) +($M50*'fnd base rates'!H$122) +($N50*'fnd base rates'!H$123) +($O50*'fnd base rates'!H$124) +($P50*VLOOKUP($S50+15,rate_basefnd,8))) -> 42664.59257 | AA50: =(($D50*'fnd base rates'!I$110) +($E50*'fnd base rates'!I$111) +($F50*'fnd base rates'!I$112) +($G50*'fnd base rates'!I$113) +($H50*'fnd base rates'!I$114) +($I50*'fnd base rates'!I$115) +($J50*'fnd base rates'!I$119) +($K50*'fnd base rates'!I$120) +($M50*'fnd base rates'!I$122) +($N50*'fnd base rates'!I$123) +($O50*'fnd base rates'!I$124) +($P50*VLOOKUP($S50+15,rate_basefnd,9))) *$R50 -> 26142.32 | AB50: =(($D50*'fnd base rates'!J$110) +($E50*'fnd base rates'!J$111) +($F50*'fnd base rates'!J$112) +($G50*'fnd base rates'!J$113) +($H50*'fnd base rates'!J$114) +($I50*'fnd base rates'!J$115) +($J50*'fnd base rates'!J$119) +($K50*'fnd base rates'!J$120) +($M50*'fnd base rates'!J$122) +($N50*'fnd base rates'!J$123) +($O50*'fnd base rates'!J$124) +($P50*VLOOKUP($S50+15,rate_basefnd,10))) *$R50 -> 40307.25 | AC50: =(($D50*'fnd base rates'!K$110) +($E50*'fnd base rates'!K$111) +($F50*'fnd base rates'!K$112) +($G50*'fnd base rates'!K$113) +($H50*'fnd base rates'!K$114) +($I50*'fnd base rates'!K$115) +($J50*'fnd base rates'!K$119) +($K50*'fnd base rates'!K$120) +($M50*'fnd base rates'!K$122) +($N50*'fnd base rates'!K$123) +($O50*'fnd base rates'!K$124) +($P50*VLOOKUP($S50+15,rate_basefnd,11))) *$R50 -> 69828.53696 | AD50: =(($D50*'fnd base rates'!L$110) +($E50*'fnd base rates'!L$111) +($F50*'fnd base rates'!L$112) +($G50*'fnd base rates'!L$113) +($H50*'fnd base rates'!L$114) +($I50*'fnd base rates'!L$115) +($J50*'fnd base rates'!L$119) +($K50*'fnd base rates'!L$120) +($M50*'fnd base rates'!L$122) +($N50*'fnd base rates'!L$123) +($O50*'fnd base rates'!L$124) +($P50*VLOOKUP($S50+15,rate_basefnd,12))) -> 84677.17694 | AE50: =(($D50*'fnd base rates'!M$110) +($E50*'fnd base rates'!M$111) +($F50*'fnd base rates'!M$112) +($G50*'fnd base rates'!M$113) +($H50*'fnd base rates'!M$114) +($I50*'fnd base rates'!M$115) +($J50*'fnd base rates'!M$119) +($K50*'fnd base rates'!M$120) +($M50*'fnd base rates'!M$122) +($N50*'fnd base rates'!M$123) +($O50*'fnd base rates'!M$124) +($P50*VLOOKUP($S50+15,rate_basefnd,13))) -> 0 | AF50: 743677.1185 | AH50: 413114114 | AI50: 413 | AJ50: 114 | AK50: 114 | AL50: 1 | AM50: 65 | AN50: 743677.1185 | AO50: 11441 | AP50: 0 | AQ50: 11441 | AW50: 11441 | AX50: 0 | AY50: 11441 | AZ50: 110 | BA50: 11331 | BB50: 16 | BC50: 11315
A51: 413 | B51: 413114210 | C51: FOUR RIVERS | D51: ='fnd enro'!D51 -> 0 | E51: ='fnd enro'!E51 -> 0 | F51: ='fnd enro'!F51 -> 0 | G51: ='fnd enro'!G51 -> 0 | H51: ='fnd enro'!H51 -> 0 | I51: ='fnd enro'!I51 -> 1 | J51: ='fnd enro'!J51 -> 0 | K51: ='fnd enro'!K51 -> 0.0379 | L51: ='fnd enro'!L51 -> 0 | M51: ='fnd enro'!M51+'fnd enro'!N51 -> 0 | N51: ='fnd enro'!O51 -> 0 | O51: ='fnd enro'!P51 -> 0 | P51: ='fnd enro'!Q51+'fnd enro'!R51 -> 0 | Q51: ='fnd enro'!T51 -> 1 | R51: 1 | S51: =VALUE('fnd enro'!S51) -> 1 | U51: =(($D51*'fnd base rates'!C$110) +($E51*'fnd base rates'!C$111) +($F51*'fnd base rates'!C$112) +($G51*'fnd base rates'!C$113) +($H51*'fnd base rates'!C$114) +($I51*'fnd base rates'!C$115) +($J51*'fnd base rates'!C$119) +($K51*'fnd base rates'!C$120) +($M51*'fnd base rates'!C$122) +($N51*'fnd base rates'!C$123) +($O51*'fnd base rates'!C$124) +($P51*VLOOKUP($S51+15,rate_basefnd,3))) *$R51 -> 494.448742 | V51: =(($D51*'fnd base rates'!D$110) +($E51*'fnd base rates'!D$111) +($F51*'fnd base rates'!D$112) +($G51*'fnd base rates'!D$113) +($H51*'fnd base rates'!D$114) +($I51*'fnd base rates'!D$115) +($J51*'fnd base rates'!D$119) +($K51*'fnd base rates'!D$120) +($M51*'fnd base rates'!D$122) +($N51*'fnd base rates'!D$123) +($O51*'fnd base rates'!D$124) +($P51*VLOOKUP($S51+15,rate_basefnd,4))) *$R51 -> 707.86 | W51: =(($D51*'fnd base rates'!E$110) +($E51*'fnd base rates'!E$111) +($F51*'fnd base rates'!E$112) +($G51*'fnd base rates'!E$113) +($H51*'fnd base rates'!E$114) +($I51*'fnd base rates'!E$115) +($J51*'fnd base rates'!E$119) +($K51*'fnd base rates'!E$120) +($M51*'fnd base rates'!E$122) +($N51*'fnd base rates'!E$123) +($O51*'fnd base rates'!E$124) +($P51*VLOOKUP($S51+15,rate_basefnd,5))) *$R51 -> 4538.625925 | X51: =(($D51*'fnd base rates'!F$110) +($E51*'fnd base rates'!F$111) +($F51*'fnd base rates'!F$112) +($G51*'fnd base rates'!F$113) +($H51*'fnd base rates'!F$114) +($I51*'fnd base rates'!F$115) +($J51*'fnd base rates'!F$119) +($K51*'fnd base rates'!F$120) +($M51*'fnd base rates'!F$122) +($N51*'fnd base rates'!F$123) +($O51*'fnd base rates'!F$124) +($P51*VLOOKUP($S51+15,rate_basefnd,6))) *$R51 -> 814.732915 | Y51: =(($D51*'fnd base rates'!G$110) +($E51*'fnd base rates'!G$111) +($F51*'fnd base rates'!G$112) +($G51*'fnd base rates'!G$113) +($H51*'fnd base rates'!G$114) +($I51*'fnd base rates'!G$115) +($J51*'fnd base rates'!G$119) +($K51*'fnd base rates'!G$120) +($M51*'fnd base rates'!G$122) +($N51*'fnd base rates'!G$123) +($O51*'fnd base rates'!G$124) +($P51*VLOOKUP($S51+15,rate_basefnd,7))) *$R51 -> 151.328603 | Z51: =(($D51*'fnd base rates'!H$110) +($E51*'fnd base rates'!H$111) +($F51*'fnd base rates'!H$112) +($G51*'fnd base rates'!H$113) +($H51*'fnd base rates'!H$114) +($I51*'fnd base rates'!H$115) +($J51*'fnd base rates'!H$119) +($K51*'fnd base rates'!H$120) +($M51*'fnd base rates'!H$122) +($N51*'fnd base rates'!H$123) +($O51*'fnd base rates'!H$124) +($P51*VLOOKUP($S51+15,rate_basefnd,8))) -> 765.893578 | AA51: =(($D51*'fnd base rates'!I$110) +($E51*'fnd base rates'!I$111) +($F51*'fnd base rates'!I$112) +($G51*'fnd base rates'!I$113) +($H51*'fnd base rates'!I$114) +($I51*'fnd base rates'!I$115) +($J51*'fnd base rates'!I$119) +($K51*'fnd base rates'!I$120) +($M51*'fnd base rates'!I$122) +($N51*'fnd base rates'!I$123) +($O51*'fnd base rates'!I$124) +($P51*VLOOKUP($S51+15,rate_basefnd,9))) *$R51 -> 394.09 | AB51: =(($D51*'fnd base rates'!J$110) +($E51*'fnd base rates'!J$111) +($F51*'fnd base rates'!J$112) +($G51*'fnd base rates'!J$113) +($H51*'fnd base rates'!J$114) +($I51*'fnd base rates'!J$115) +($J51*'fnd base rates'!J$119) +($K51*'fnd base rates'!J$120) +($M51*'fnd base rates'!J$122) +($N51*'fnd base rates'!J$123) +($O51*'fnd base rates'!J$124) +($P51*VLOOKUP($S51+15,rate_basefnd,10))) *$R51 -> 530.85 | AC51: =(($D51*'fnd base rates'!K$110) +($E51*'fnd base rates'!K$111) +($F51*'fnd base rates'!K$112) +($G51*'fnd base rates'!K$113) +($H51*'fnd base rates'!K$114) +($I51*'fnd base rates'!K$115) +($J51*'fnd base rates'!K$119) +($K51*'fnd base rates'!K$120) +($M51*'fnd base rates'!K$122) +($N51*'fnd base rates'!K$123) +($O51*'fnd base rates'!K$124) +($P51*VLOOKUP($S51+15,rate_basefnd,11))) *$R51 -> 1061.948261 | AD51: =(($D51*'fnd base rates'!L$110) +($E51*'fnd base rates'!L$111) +($F51*'fnd base rates'!L$112) +($G51*'fnd base rates'!L$113) +($H51*'fnd base rates'!L$114) +($I51*'fnd base rates'!L$115) +($J51*'fnd base rates'!L$119) +($K51*'fnd base rates'!L$120) +($M51*'fnd base rates'!L$122) +($N51*'fnd base rates'!L$123) +($O51*'fnd base rates'!L$124) +($P51*VLOOKUP($S51+15,rate_basefnd,12))) -> 1095.759695 | AE51: =(($D51*'fnd base rates'!M$110) +($E51*'fnd base rates'!M$111) +($F51*'fnd base rates'!M$112) +($G51*'fnd base rates'!M$113) +($H51*'fnd base rates'!M$114) +($I51*'fnd base rates'!M$115) +($J51*'fnd base rates'!M$119) +($K51*'fnd base rates'!M$120) +($M51*'fnd base rates'!M$122) +($N51*'fnd base rates'!M$123) +($O51*'fnd base rates'!M$124) +($P51*VLOOKUP($S51+15,rate_basefnd,13))) -> 0 | AF51: 10555.53772 | AH51: 413114210 | AI51: 413 | AJ51: 114 | AK51: 210 | AL51: 1 | AM51: 1 | AN51: 10555.53772 | AO51: 10556 | AP51: 0 | AQ51: 10556 | AW51: 10556 | AX51: 0 | AY51: 10556 | AZ51: -1 | BA51: 10557 | BB51: 12 | BC51: 10545
A52: 413 | B52: 413114253 | C52: FOUR RIVERS | D52: ='fnd enro'!D52 -> 0 | E52: ='fnd enro'!E52 -> 0 | F52: ='fnd enro'!F52 -> 0 | G52: ='fnd enro'!G52 -> 0 | H52: ='fnd enro'!H52 -> 1 | I52: ='fnd enro'!I52 -> 2 | J52: ='fnd enro'!J52 -> 0 | K52: ='fnd enro'!K52 -> 0.1137 | L52: ='fnd enro'!L52 -> 0 | M52: ='fnd enro'!M52+'fnd enro'!N52 -> 0 | N52: ='fnd enro'!O52 -> 0 | O52: ='fnd enro'!P52 -> 0 | P52: ='fnd enro'!Q52+'fnd enro'!R52 -> 0 | Q52: ='fnd enro'!T52 -> 3 | R52: 1 | S52: =VALUE('fnd enro'!S52) -> 1 | U52: =(($D52*'fnd base rates'!C$110) +($E52*'fnd base rates'!C$111) +($F52*'fnd base rates'!C$112) +($G52*'fnd base rates'!C$113) +($H52*'fnd base rates'!C$114) +($I52*'fnd base rates'!C$115) +($J52*'fnd base rates'!C$119) +($K52*'fnd base rates'!C$120) +($M52*'fnd base rates'!C$122) +($N52*'fnd base rates'!C$123) +($O52*'fnd base rates'!C$124) +($P52*VLOOKUP($S52+15,rate_basefnd,3))) *$R52 -> 1483.346226 | V52: =(($D52*'fnd base rates'!D$110) +($E52*'fnd base rates'!D$111) +($F52*'fnd base rates'!D$112) +($G52*'fnd base rates'!D$113) +($H52*'fnd base rates'!D$114) +($I52*'fnd base rates'!D$115) +($J52*'fnd base rates'!D$119) +($K52*'fnd base rates'!D$120) +($M52*'fnd base rates'!D$122) +($N52*'fnd base rates'!D$123) +($O52*'fnd base rates'!D$124) +($P52*VLOOKUP($S52+15,rate_basefnd,4))) *$R52 -> 2123.58 | W52: =(($D52*'fnd base rates'!E$110) +($E52*'fnd base rates'!E$111) +($F52*'fnd base rates'!E$112) +($G52*'fnd base rates'!E$113) +($H52*'fnd base rates'!E$114) +($I52*'fnd base rates'!E$115) +($J52*'fnd base rates'!E$119) +($K52*'fnd base rates'!E$120) +($M52*'fnd base rates'!E$122) +($N52*'fnd base rates'!E$123) +($O52*'fnd base rates'!E$124) +($P52*VLOOKUP($S52+15,rate_basefnd,5))) *$R52 -> 12271.78778 | X52: =(($D52*'fnd base rates'!F$110) +($E52*'fnd base rates'!F$111) +($F52*'fnd base rates'!F$112) +($G52*'fnd base rates'!F$113) +($H52*'fnd base rates'!F$114) +($I52*'fnd base rates'!F$115) +($J52*'fnd base rates'!F$119) +($K52*'fnd base rates'!F$120) +($M52*'fnd base rates'!F$122) +($N52*'fnd base rates'!F$123) +($O52*'fnd base rates'!F$124) +($P52*VLOOKUP($S52+15,rate_basefnd,6))) *$R52 -> 2544.568745 | Y52: =(($D52*'fnd base rates'!G$110) +($E52*'fnd base rates'!G$111) +($F52*'fnd base rates'!G$112) +($G52*'fnd base rates'!G$113) +($H52*'fnd base rates'!G$114) +($I52*'fnd base rates'!G$115) +($J52*'fnd base rates'!G$119) +($K52*'fnd base rates'!G$120) +($M52*'fnd base rates'!G$122) +($N52*'fnd base rates'!G$123) +($O52*'fnd base rates'!G$124) +($P52*VLOOKUP($S52+15,rate_basefnd,7))) *$R52 -> 458.215809 | Z52: =(($D52*'fnd base rates'!H$110) +($E52*'fnd base rates'!H$111) +($F52*'fnd base rates'!H$112) +($G52*'fnd base rates'!H$113) +($H52*'fnd base rates'!H$114) +($I52*'fnd base rates'!H$115) +($J52*'fnd base rates'!H$119) +($K52*'fnd base rates'!H$120) +($M52*'fnd base rates'!H$122) +($N52*'fnd base rates'!H$123) +($O52*'fnd base rates'!H$124) +($P52*VLOOKUP($S52+15,rate_basefnd,8))) -> 2015.810734 | AA52: =(($D52*'fnd base rates'!I$110) +($E52*'fnd base rates'!I$111) +($F52*'fnd base rates'!I$112) +($G52*'fnd base rates'!I$113) +($H52*'fnd base rates'!I$114) +($I52*'fnd base rates'!I$115) +($J52*'fnd base rates'!I$119) +($K52*'fnd base rates'!I$120) +($M52*'fnd base rates'!I$122) +($N52*'fnd base rates'!I$123) +($O52*'fnd base rates'!I$124) +($P52*VLOOKUP($S52+15,rate_basefnd,9))) *$R52 -> 1102.56 | AB52: =(($D52*'fnd base rates'!J$110) +($E52*'fnd base rates'!J$111) +($F52*'fnd base rates'!J$112) +($G52*'fnd base rates'!J$113) +($H52*'fnd base rates'!J$114) +($I52*'fnd base rates'!J$115) +($J52*'fnd base rates'!J$119) +($K52*'fnd base rates'!J$120) +($M52*'fnd base rates'!J$122) +($N52*'fnd base rates'!J$123) +($O52*'fnd base rates'!J$124) +($P52*VLOOKUP($S52+15,rate_basefnd,10))) *$R52 -> 1291.91 | AC52: =(($D52*'fnd base rates'!K$110) +($E52*'fnd base rates'!K$111) +($F52*'fnd base rates'!K$112) +($G52*'fnd base rates'!K$113) +($H52*'fnd base rates'!K$114) +($I52*'fnd base rates'!K$115) +($J52*'fnd base rates'!K$119) +($K52*'fnd base rates'!K$120) +($M52*'fnd base rates'!K$122) +($N52*'fnd base rates'!K$123) +($O52*'fnd base rates'!K$124) +($P52*VLOOKUP($S52+15,rate_basefnd,11))) *$R52 -> 3215.544783 | AD52: =(($D52*'fnd base rates'!L$110) +($E52*'fnd base rates'!L$111) +($F52*'fnd base rates'!L$112) +($G52*'fnd base rates'!L$113) +($H52*'fnd base rates'!L$114) +($I52*'fnd base rates'!L$115) +($J52*'fnd base rates'!L$119) +($K52*'fnd base rates'!L$120) +($M52*'fnd base rates'!L$122) +($N52*'fnd base rates'!L$123) +($O52*'fnd base rates'!L$124) +($P52*VLOOKUP($S52+15,rate_basefnd,12))) -> 3389.210817 | AE52: =(($D52*'fnd base rates'!M$110) +($E52*'fnd base rates'!M$111) +($F52*'fnd base rates'!M$112) +($G52*'fnd base rates'!M$113) +($H52*'fnd base rates'!M$114) +($I52*'fnd base rates'!M$115) +($J52*'fnd base rates'!M$119) +($K52*'fnd base rates'!M$120) +($M52*'fnd base rates'!M$122) +($N52*'fnd base rates'!M$123) +($O52*'fnd base rates'!M$124) +($P52*VLOOKUP($S52+15,rate_basefnd,13))) -> 0 | AF52: 29896.53489 | AH52: 413114253 | AI52: 413 | AJ52: 114 | AK52: 253 | AL52: 1 | AM52: 3 | AN52: 29896.53489 | AO52: 9966 | AP52: 0 | AQ52: 9966 | AW52: 9966 | AX52: 0 | AY52: 9966 | AZ52: -2 | BA52: 9968 | BB52: 13 | BC52: 9955
A53: 413 | B53: 413114670 | C53: FOUR RIVERS | D53: ='fnd enro'!D53 -> 0 | E53: ='fnd enro'!E53 -> 0 | F53: ='fnd enro'!F53 -> 0 | G53: ='fnd enro'!G53 -> 0 | H53: ='fnd enro'!H53 -> 10 | I53: ='fnd enro'!I53 -> 18 | J53: ='fnd enro'!J53 -> 0 | K53: ='fnd enro'!K53 -> 1.0612 | L53: ='fnd enro'!L53 -> 0 | M53: ='fnd enro'!M53+'fnd enro'!N53 -> 0 | N53: ='fnd enro'!O53 -> 0 | O53: ='fnd enro'!P53 -> 0 | P53: ='fnd enro'!Q53+'fnd enro'!R53 -> 3 | Q53: ='fnd enro'!T53 -> 28 | R53: 1 | S53: =VALUE('fnd enro'!S53) -> 2 | U53: =(($D53*'fnd base rates'!C$110) +($E53*'fnd base rates'!C$111) +($F53*'fnd base rates'!C$112) +($G53*'fnd base rates'!C$113) +($H53*'fnd base rates'!C$114) +($I53*'fnd base rates'!C$115) +($J53*'fnd base rates'!C$119) +($K53*'fnd base rates'!C$120) +($M53*'fnd base rates'!C$122) +($N53*'fnd base rates'!C$123) +($O53*'fnd base rates'!C$124) +($P53*VLOOKUP($S53+15,rate_basefnd,3))) *$R53 -> 13999.18478 | V53: =(($D53*'fnd base rates'!D$110) +($E53*'fnd base rates'!D$111) +($F53*'fnd base rates'!D$112) +($G53*'fnd base rates'!D$113) +($H53*'fnd base rates'!D$114) +($I53*'fnd base rates'!D$115) +($J53*'fnd base rates'!D$119) +($K53*'fnd base rates'!D$120) +($M53*'fnd base rates'!D$122) +($N53*'fnd base rates'!D$123) +($O53*'fnd base rates'!D$124) +($P53*VLOOKUP($S53+15,rate_basefnd,4))) *$R53 -> 20552.68 | W53: =(($D53*'fnd base rates'!E$110) +($E53*'fnd base rates'!E$111) +($F53*'fnd base rates'!E$112) +($G53*'fnd base rates'!E$113) +($H53*'fnd base rates'!E$114) +($I53*'fnd base rates'!E$115) +($J53*'fnd base rates'!E$119) +($K53*'fnd base rates'!E$120) +($M53*'fnd base rates'!E$122) +($N53*'fnd base rates'!E$123) +($O53*'fnd base rates'!E$124) +($P53*VLOOKUP($S53+15,rate_basefnd,5))) *$R53 -> 120792.3859 | X53: =(($D53*'fnd base rates'!F$110) +($E53*'fnd base rates'!F$111) +($F53*'fnd base rates'!F$112) +($G53*'fnd base rates'!F$113) +($H53*'fnd base rates'!F$114) +($I53*'fnd base rates'!F$115) +($J53*'fnd base rates'!F$119) +($K53*'fnd base rates'!F$120) +($M53*'fnd base rates'!F$122) +($N53*'fnd base rates'!F$123) +($O53*'fnd base rates'!F$124) +($P53*VLOOKUP($S53+15,rate_basefnd,6))) *$R53 -> 23816.22162 | Y53: =(($D53*'fnd base rates'!G$110) +($E53*'fnd base rates'!G$111) +($F53*'fnd base rates'!G$112) +($G53*'fnd base rates'!G$113) +($H53*'fnd base rates'!G$114) +($I53*'fnd base rates'!G$115) +($J53*'fnd base rates'!G$119) +($K53*'fnd base rates'!G$120) +($M53*'fnd base rates'!G$122) +($N53*'fnd base rates'!G$123) +($O53*'fnd base rates'!G$124) +($P53*VLOOKUP($S53+15,rate_basefnd,7))) *$R53 -> 4626.480884 | Z53: =(($D53*'fnd base rates'!H$110) +($E53*'fnd base rates'!H$111) +($F53*'fnd base rates'!H$112) +($G53*'fnd base rates'!H$113) +($H53*'fnd base rates'!H$114) +($I53*'fnd base rates'!H$115) +($J53*'fnd base rates'!H$119) +($K53*'fnd base rates'!H$120) +($M53*'fnd base rates'!H$122) +($N53*'fnd base rates'!H$123) +($O53*'fnd base rates'!H$124) +($P53*VLOOKUP($S53+15,rate_basefnd,8))) -> 18679.51018 | AA53: =(($D53*'fnd base rates'!I$110) +($E53*'fnd base rates'!I$111) +($F53*'fnd base rates'!I$112) +($G53*'fnd base rates'!I$113) +($H53*'fnd base rates'!I$114) +($I53*'fnd base rates'!I$115) +($J53*'fnd base rates'!I$119) +($K53*'fnd base rates'!I$120) +($M53*'fnd base rates'!I$122) +($N53*'fnd base rates'!I$123) +($O53*'fnd base rates'!I$124) +($P53*VLOOKUP($S53+15,rate_basefnd,9))) *$R53 -> 10527.01 | AB53: =(($D53*'fnd base rates'!J$110) +($E53*'fnd base rates'!J$111) +($F53*'fnd base rates'!J$112) +($G53*'fnd base rates'!J$113) +($H53*'fnd base rates'!J$114) +($I53*'fnd base rates'!J$115) +($J53*'fnd base rates'!J$119) +($K53*'fnd base rates'!J$120) +($M53*'fnd base rates'!J$122) +($N53*'fnd base rates'!J$123) +($O53*'fnd base rates'!J$124) +($P53*VLOOKUP($S53+15,rate_basefnd,10))) *$R53 -> 13362.23 | AC53: =(($D53*'fnd base rates'!K$110) +($E53*'fnd base rates'!K$111) +($F53*'fnd base rates'!K$112) +($G53*'fnd base rates'!K$113) +($H53*'fnd base rates'!K$114) +($I53*'fnd base rates'!K$115) +($J53*'fnd base rates'!K$119) +($K53*'fnd base rates'!K$120) +($M53*'fnd base rates'!K$122) +($N53*'fnd base rates'!K$123) +($O53*'fnd base rates'!K$124) +($P53*VLOOKUP($S53+15,rate_basefnd,11))) *$R53 -> 30031.55131 | AD53: =(($D53*'fnd base rates'!L$110) +($E53*'fnd base rates'!L$111) +($F53*'fnd base rates'!L$112) +($G53*'fnd base rates'!L$113) +($H53*'fnd base rates'!L$114) +($I53*'fnd base rates'!L$115) +($J53*'fnd base rates'!L$119) +($K53*'fnd base rates'!L$120) +($M53*'fnd base rates'!L$122) +($N53*'fnd base rates'!L$123) +($O53*'fnd base rates'!L$124) +($P53*VLOOKUP($S53+15,rate_basefnd,12))) -> 32857.44878 | AE53: =(($D53*'fnd base rates'!M$110) +($E53*'fnd base rates'!M$111) +($F53*'fnd base rates'!M$112) +($G53*'fnd base rates'!M$113) +($H53*'fnd base rates'!M$114) +($I53*'fnd base rates'!M$115) +($J53*'fnd base rates'!M$119) +($K53*'fnd base rates'!M$120) +($M53*'fnd base rates'!M$122) +($N53*'fnd base rates'!M$123) +($O53*'fnd base rates'!M$124) +($P53*VLOOKUP($S53+15,rate_basefnd,13))) -> 0 | AF53: 289244.7034 | AH53: 413114670 | AI53: 413 | AJ53: 114 | AK53: 670 | AL53: 1 | AM53: 28 | AN53: 289244.7034 | AO53: 10330 | AP53: 0 | AQ53: 10330 | AW53: 10330 | AX53: 0 | AY53: 10330 | AZ53: -3 | BA53: 10333 | BB53: 14 | BC53: 10319
A54: 413 | B54: 413114674 | C54: FOUR RIVERS | D54: ='fnd enro'!D54 -> 0 | E54: ='fnd enro'!E54 -> 0 | F54: ='fnd enro'!F54 -> 0 | G54: ='fnd enro'!G54 -> 0 | H54: ='fnd enro'!H54 -> 14 | I54: ='fnd enro'!I54 -> 27 | J54: ='fnd enro'!J54 -> 0 | K54: ='fnd enro'!K54 -> 1.5539 | L54: ='fnd enro'!L54 -> 0 | M54: ='fnd enro'!M54+'fnd enro'!N54 -> 0 | N54: ='fnd enro'!O54 -> 0 | O54: ='fnd enro'!P54 -> 0 | P54: ='fnd enro'!Q54+'fnd enro'!R54 -> 12 | Q54: ='fnd enro'!T54 -> 41 | R54: 1 | S54: =VALUE('fnd enro'!S54) -> 6 | U54: =(($D54*'fnd base rates'!C$110) +($E54*'fnd base rates'!C$111) +($F54*'fnd base rates'!C$112) +($G54*'fnd base rates'!C$113) +($H54*'fnd base rates'!C$114) +($I54*'fnd base rates'!C$115) +($J54*'fnd base rates'!C$119) +($K54*'fnd base rates'!C$120) +($M54*'fnd base rates'!C$122) +($N54*'fnd base rates'!C$123) +($O54*'fnd base rates'!C$124) +($P54*VLOOKUP($S54+15,rate_basefnd,3))) *$R54 -> 20955.07842 | V54: =(($D54*'fnd base rates'!D$110) +($E54*'fnd base rates'!D$111) +($F54*'fnd base rates'!D$112) +($G54*'fnd base rates'!D$113) +($H54*'fnd base rates'!D$114) +($I54*'fnd base rates'!D$115) +($J54*'fnd base rates'!D$119) +($K54*'fnd base rates'!D$120) +($M54*'fnd base rates'!D$122) +($N54*'fnd base rates'!D$123) +($O54*'fnd base rates'!D$124) +($P54*VLOOKUP($S54+15,rate_basefnd,4))) *$R54 -> 32256.5 | W54: =(($D54*'fnd base rates'!E$110) +($E54*'fnd base rates'!E$111) +($F54*'fnd base rates'!E$112) +($G54*'fnd base rates'!E$113) +($H54*'fnd base rates'!E$114) +($I54*'fnd base rates'!E$115) +($J54*'fnd base rates'!E$119) +($K54*'fnd base rates'!E$120) +($M54*'fnd base rates'!E$122) +($N54*'fnd base rates'!E$123) +($O54*'fnd base rates'!E$124) +($P54*VLOOKUP($S54+15,rate_basefnd,5))) *$R54 -> 198839.4829 | X54: =(($D54*'fnd base rates'!F$110) +($E54*'fnd base rates'!F$111) +($F54*'fnd base rates'!F$112) +($G54*'fnd base rates'!F$113) +($H54*'fnd base rates'!F$114) +($I54*'fnd base rates'!F$115) +($J54*'fnd base rates'!F$119) +($K54*'fnd base rates'!F$120) +($M54*'fnd base rates'!F$122) +($N54*'fnd base rates'!F$123) +($O54*'fnd base rates'!F$124) +($P54*VLOOKUP($S54+15,rate_basefnd,6))) *$R54 -> 34809.22951 | Y54: =(($D54*'fnd base rates'!G$110) +($E54*'fnd base rates'!G$111) +($F54*'fnd base rates'!G$112) +($G54*'fnd base rates'!G$113) +($H54*'fnd base rates'!G$114) +($I54*'fnd base rates'!G$115) +($J54*'fnd base rates'!G$119) +($K54*'fnd base rates'!G$120) +($M54*'fnd base rates'!G$122) +($N54*'fnd base rates'!G$123) +($O54*'fnd base rates'!G$124) +($P54*VLOOKUP($S54+15,rate_basefnd,7))) *$R54 -> 7795.492723 | Z54: =(($D54*'fnd base rates'!H$110) +($E54*'fnd base rates'!H$111) +($F54*'fnd base rates'!H$112) +($G54*'fnd base rates'!H$113) +($H54*'fnd base rates'!H$114) +($I54*'fnd base rates'!H$115) +($J54*'fnd base rates'!H$119) +($K54*'fnd base rates'!H$120) +($M54*'fnd base rates'!H$122) +($N54*'fnd base rates'!H$123) +($O54*'fnd base rates'!H$124) +($P54*VLOOKUP($S54+15,rate_basefnd,8))) -> 27690.2967 | AA54: =(($D54*'fnd base rates'!I$110) +($E54*'fnd base rates'!I$111) +($F54*'fnd base rates'!I$112) +($G54*'fnd base rates'!I$113) +($H54*'fnd base rates'!I$114) +($I54*'fnd base rates'!I$115) +($J54*'fnd base rates'!I$119) +($K54*'fnd base rates'!I$120) +($M54*'fnd base rates'!I$122) +($N54*'fnd base rates'!I$123) +($O54*'fnd base rates'!I$124) +($P54*VLOOKUP($S54+15,rate_basefnd,9))) *$R54 -> 16320.23 | AB54: =(($D54*'fnd base rates'!J$110) +($E54*'fnd base rates'!J$111) +($F54*'fnd base rates'!J$112) +($G54*'fnd base rates'!J$113) +($H54*'fnd base rates'!J$114) +($I54*'fnd base rates'!J$115) +($J54*'fnd base rates'!J$119) +($K54*'fnd base rates'!J$120) +($M54*'fnd base rates'!J$122) +($N54*'fnd base rates'!J$123) +($O54*'fnd base rates'!J$124) +($P54*VLOOKUP($S54+15,rate_basefnd,10))) *$R54 -> 24199.33 | AC54: =(($D54*'fnd base rates'!K$110) +($E54*'fnd base rates'!K$111) +($F54*'fnd base rates'!K$112) +($G54*'fnd base rates'!K$113) +($H54*'fnd base rates'!K$114) +($I54*'fnd base rates'!K$115) +($J54*'fnd base rates'!K$119) +($K54*'fnd base rates'!K$120) +($M54*'fnd base rates'!K$122) +($N54*'fnd base rates'!K$123) +($O54*'fnd base rates'!K$124) +($P54*VLOOKUP($S54+15,rate_basefnd,11))) *$R54 -> 43955.6787 | AD54: =(($D54*'fnd base rates'!L$110) +($E54*'fnd base rates'!L$111) +($F54*'fnd base rates'!L$112) +($G54*'fnd base rates'!L$113) +($H54*'fnd base rates'!L$114) +($I54*'fnd base rates'!L$115) +($J54*'fnd base rates'!L$119) +($K54*'fnd base rates'!L$120) +($M54*'fnd base rates'!L$122) +($N54*'fnd base rates'!L$123) +($O54*'fnd base rates'!L$124) +($P54*VLOOKUP($S54+15,rate_basefnd,12))) -> 51460.39174 | AE54: =(($D54*'fnd base rates'!M$110) +($E54*'fnd base rates'!M$111) +($F54*'fnd base rates'!M$112) +($G54*'fnd base rates'!M$113) +($H54*'fnd base rates'!M$114) +($I54*'fnd base rates'!M$115) +($J54*'fnd base rates'!M$119) +($K54*'fnd base rates'!M$120) +($M54*'fnd base rates'!M$122) +($N54*'fnd base rates'!M$123) +($O54*'fnd base rates'!M$124) +($P54*VLOOKUP($S54+15,rate_basefnd,13))) -> 0 | AF54: 458281.7107 | AH54: 413114674 | AI54: 413 | AJ54: 114 | AK54: 674 | AL54: 1 | AM54: 41 | AN54: 458281.7107 | AO54: 11178 | AP54: 0 | AQ54: 11178 | AW54: 11178 | AX54: 0 | AY54: 11178 | AZ54: 62 | BA54: 11116 | BB54: 14 | BC54: 11102
A55: 413 | B55: 413114683 | C55: FOUR RIVERS | D55: ='fnd enro'!D55 -> 0 | E55: ='fnd enro'!E55 -> 0 | F55: ='fnd enro'!F55 -> 0 | G55: ='fnd enro'!G55 -> 0 | H55: ='fnd enro'!H55 -> 1 | I55: ='fnd enro'!I55 -> 1 | J55: ='fnd enro'!J55 -> 0 | K55: ='fnd enro'!K55 -> 0.0758 | L55: ='fnd enro'!L55 -> 0 | M55: ='fnd enro'!M55+'fnd enro'!N55 -> 0 | N55: ='fnd enro'!O55 -> 0 | O55: ='fnd enro'!P55 -> 0 | P55: ='fnd enro'!Q55+'fnd enro'!R55 -> 0 | Q55: ='fnd enro'!T55 -> 2 | R55: 1 | S55: =VALUE('fnd enro'!S55) -> 1 | U55: =(($D55*'fnd base rates'!C$110) +($E55*'fnd base rates'!C$111) +($F55*'fnd base rates'!C$112) +($G55*'fnd base rates'!C$113) +($H55*'fnd base rates'!C$114) +($I55*'fnd base rates'!C$115) +($J55*'fnd base rates'!C$119) +($K55*'fnd base rates'!C$120) +($M55*'fnd base rates'!C$122) +($N55*'fnd base rates'!C$123) +($O55*'fnd base rates'!C$124) +($P55*VLOOKUP($S55+15,rate_basefnd,3))) *$R55 -> 988.897484 | V55: =(($D55*'fnd base rates'!D$110) +($E55*'fnd base rates'!D$111) +($F55*'fnd base rates'!D$112) +($G55*'fnd base rates'!D$113) +($H55*'fnd base rates'!D$114) +($I55*'fnd base rates'!D$115) +($J55*'fnd base rates'!D$119) +($K55*'fnd base rates'!D$120) +($M55*'fnd base rates'!D$122) +($N55*'fnd base rates'!D$123) +($O55*'fnd base rates'!D$124) +($P55*VLOOKUP($S55+15,rate_basefnd,4))) *$R55 -> 1415.72 | W55: =(($D55*'fnd base rates'!E$110) +($E55*'fnd base rates'!E$111) +($F55*'fnd base rates'!E$112) +($G55*'fnd base rates'!E$113) +($H55*'fnd base rates'!E$114) +($I55*'fnd base rates'!E$115) +($J55*'fnd base rates'!E$119) +($K55*'fnd base rates'!E$120) +($M55*'fnd base rates'!E$122) +($N55*'fnd base rates'!E$123) +($O55*'fnd base rates'!E$124) +($P55*VLOOKUP($S55+15,rate_basefnd,5))) *$R55 -> 7733.16185 | X55: =(($D55*'fnd base rates'!F$110) +($E55*'fnd base rates'!F$111) +($F55*'fnd base rates'!F$112) +($G55*'fnd base rates'!F$113) +($H55*'fnd base rates'!F$114) +($I55*'fnd base rates'!F$115) +($J55*'fnd base rates'!F$119) +($K55*'fnd base rates'!F$120) +($M55*'fnd base rates'!F$122) +($N55*'fnd base rates'!F$123) +($O55*'fnd base rates'!F$124) +($P55*VLOOKUP($S55+15,rate_basefnd,6))) *$R55 -> 1729.83583 | Y55: =(($D55*'fnd base rates'!G$110) +($E55*'fnd base rates'!G$111) +($F55*'fnd base rates'!G$112) +($G55*'fnd base rates'!G$113) +($H55*'fnd base rates'!G$114) +($I55*'fnd base rates'!G$115) +($J55*'fnd base rates'!G$119) +($K55*'fnd base rates'!G$120) +($M55*'fnd base rates'!G$122) +($N55*'fnd base rates'!G$123) +($O55*'fnd base rates'!G$124) +($P55*VLOOKUP($S55+15,rate_basefnd,7))) *$R55 -> 306.887206 | Z55: =(($D55*'fnd base rates'!H$110) +($E55*'fnd base rates'!H$111) +($F55*'fnd base rates'!H$112) +($G55*'fnd base rates'!H$113) +($H55*'fnd base rates'!H$114) +($I55*'fnd base rates'!H$115) +($J55*'fnd base rates'!H$119) +($K55*'fnd base rates'!H$120) +($M55*'fnd base rates'!H$122) +($N55*'fnd base rates'!H$123) +($O55*'fnd base rates'!H$124) +($P55*VLOOKUP($S55+15,rate_basefnd,8))) -> 1249.917156 | AA55: =(($D55*'fnd base rates'!I$110) +($E55*'fnd base rates'!I$111) +($F55*'fnd base rates'!I$112) +($G55*'fnd base rates'!I$113) +($H55*'fnd base rates'!I$114) +($I55*'fnd base rates'!I$115) +($J55*'fnd base rates'!I$119) +($K55*'fnd base rates'!I$120) +($M55*'fnd base rates'!I$122) +($N55*'fnd base rates'!I$123) +($O55*'fnd base rates'!I$124) +($P55*VLOOKUP($S55+15,rate_basefnd,9))) *$R55 -> 708.47 | AB55: =(($D55*'fnd base rates'!J$110) +($E55*'fnd base rates'!J$111) +($F55*'fnd base rates'!J$112) +($G55*'fnd base rates'!J$113) +($H55*'fnd base rates'!J$114) +($I55*'fnd base rates'!J$115) +($J55*'fnd base rates'!J$119) +($K55*'fnd base rates'!J$120) +($M55*'fnd base rates'!J$122) +($N55*'fnd base rates'!J$123) +($O55*'fnd base rates'!J$124) +($P55*VLOOKUP($S55+15,rate_basefnd,10))) *$R55 -> 761.06 | AC55: =(($D55*'fnd base rates'!K$110) +($E55*'fnd base rates'!K$111) +($F55*'fnd base rates'!K$112) +($G55*'fnd base rates'!K$113) +($H55*'fnd base rates'!K$114) +($I55*'fnd base rates'!K$115) +($J55*'fnd base rates'!K$119) +($K55*'fnd base rates'!K$120) +($M55*'fnd base rates'!K$122) +($N55*'fnd base rates'!K$123) +($O55*'fnd base rates'!K$124) +($P55*VLOOKUP($S55+15,rate_basefnd,11))) *$R55 -> 2153.596522 | AD55: =(($D55*'fnd base rates'!L$110) +($E55*'fnd base rates'!L$111) +($F55*'fnd base rates'!L$112) +($G55*'fnd base rates'!L$113) +($H55*'fnd base rates'!L$114) +($I55*'fnd base rates'!L$115) +($J55*'fnd base rates'!L$119) +($K55*'fnd base rates'!L$120) +($M55*'fnd base rates'!L$122) +($N55*'fnd base rates'!L$123) +($O55*'fnd base rates'!L$124) +($P55*VLOOKUP($S55+15,rate_basefnd,12))) -> 2293.451122 | AE55: =(($D55*'fnd base rates'!M$110) +($E55*'fnd base rates'!M$111) +($F55*'fnd base rates'!M$112) +($G55*'fnd base rates'!M$113) +($H55*'fnd base rates'!M$114) +($I55*'fnd base rates'!M$115) +($J55*'fnd base rates'!M$119) +($K55*'fnd base rates'!M$120) +($M55*'fnd base rates'!M$122) +($N55*'fnd base rates'!M$123) +($O55*'fnd base rates'!M$124) +($P55*VLOOKUP($S55+15,rate_basefnd,13))) -> 0 | AF55: 19340.99717 | AH55: 413114683 | AI55: 413 | AJ55: 114 | AK55: 683 | AL55: 1 | AM55: 2 | AN55: 19340.99717 | AO55: 9670 | AP55: 0 | AQ55: 9670 | AW55: 9670 | AX55: 0 | AY55: 9670 | AZ55: -3 | BA55: 9673 | BB55: 13 | BC55: 9660
A56: 413 | B56: 413114717 | C56: FOUR RIVERS | D56: ='fnd enro'!D56 -> 0 | E56: ='fnd enro'!E56 -> 0 | F56: ='fnd enro'!F56 -> 0 | G56: ='fnd enro'!G56 -> 0 | H56: ='fnd enro'!H56 -> 10 | I56: ='fnd enro'!I56 -> 37 | J56: ='fnd enro'!J56 -> 0 | K56: ='fnd enro'!K56 -> 1.7813 | L56: ='fnd enro'!L56 -> 0 | M56: ='fnd enro'!M56+'fnd enro'!N56 -> 0 | N56: ='fnd enro'!O56 -> 0 | O56: ='fnd enro'!P56 -> 0 | P56: ='fnd enro'!Q56+'fnd enro'!R56 -> 18 | Q56: ='fnd enro'!T56 -> 47 | R56: 1 | S56: =VALUE('fnd enro'!S56) -> 8 | U56: =(($D56*'fnd base rates'!C$110) +($E56*'fnd base rates'!C$111) +($F56*'fnd base rates'!C$112) +($G56*'fnd base rates'!C$113) +($H56*'fnd base rates'!C$114) +($I56*'fnd base rates'!C$115) +($J56*'fnd base rates'!C$119) +($K56*'fnd base rates'!C$120) +($M56*'fnd base rates'!C$122) +($N56*'fnd base rates'!C$123) +($O56*'fnd base rates'!C$124) +($P56*VLOOKUP($S56+15,rate_basefnd,3))) *$R56 -> 24311.71087 | V56: =(($D56*'fnd base rates'!D$110) +($E56*'fnd base rates'!D$111) +($F56*'fnd base rates'!D$112) +($G56*'fnd base rates'!D$113) +($H56*'fnd base rates'!D$114) +($I56*'fnd base rates'!D$115) +($J56*'fnd base rates'!D$119) +($K56*'fnd base rates'!D$120) +($M56*'fnd base rates'!D$122) +($N56*'fnd base rates'!D$123) +($O56*'fnd base rates'!D$124) +($P56*VLOOKUP($S56+15,rate_basefnd,4))) *$R56 -> 38351.9 | W56: =(($D56*'fnd base rates'!E$110) +($E56*'fnd base rates'!E$111) +($F56*'fnd base rates'!E$112) +($G56*'fnd base rates'!E$113) +($H56*'fnd base rates'!E$114) +($I56*'fnd base rates'!E$115) +($J56*'fnd base rates'!E$119) +($K56*'fnd base rates'!E$120) +($M56*'fnd base rates'!E$122) +($N56*'fnd base rates'!E$123) +($O56*'fnd base rates'!E$124) +($P56*VLOOKUP($S56+15,rate_basefnd,5))) *$R56 -> 249488.9985 | X56: =(($D56*'fnd base rates'!F$110) +($E56*'fnd base rates'!F$111) +($F56*'fnd base rates'!F$112) +($G56*'fnd base rates'!F$113) +($H56*'fnd base rates'!F$114) +($I56*'fnd base rates'!F$115) +($J56*'fnd base rates'!F$119) +($K56*'fnd base rates'!F$120) +($M56*'fnd base rates'!F$122) +($N56*'fnd base rates'!F$123) +($O56*'fnd base rates'!F$124) +($P56*VLOOKUP($S56+15,rate_basefnd,6))) *$R56 -> 39296.14701 | Y56: =(($D56*'fnd base rates'!G$110) +($E56*'fnd base rates'!G$111) +($F56*'fnd base rates'!G$112) +($G56*'fnd base rates'!G$113) +($H56*'fnd base rates'!G$114) +($I56*'fnd base rates'!G$115) +($J56*'fnd base rates'!G$119) +($K56*'fnd base rates'!G$120) +($M56*'fnd base rates'!G$122) +($N56*'fnd base rates'!G$123) +($O56*'fnd base rates'!G$124) +($P56*VLOOKUP($S56+15,rate_basefnd,7))) *$R56 -> 9561.704341 | Z56: =(($D56*'fnd base rates'!H$110) +($E56*'fnd base rates'!H$111) +($F56*'fnd base rates'!H$112) +($G56*'fnd base rates'!H$113) +($H56*'fnd base rates'!H$114) +($I56*'fnd base rates'!H$115) +($J56*'fnd base rates'!H$119) +($K56*'fnd base rates'!H$120) +($M56*'fnd base rates'!H$122) +($N56*'fnd base rates'!H$123) +($O56*'fnd base rates'!H$124) +($P56*VLOOKUP($S56+15,rate_basefnd,8))) -> 33547.29817 | AA56: =(($D56*'fnd base rates'!I$110) +($E56*'fnd base rates'!I$111) +($F56*'fnd base rates'!I$112) +($G56*'fnd base rates'!I$113) +($H56*'fnd base rates'!I$114) +($I56*'fnd base rates'!I$115) +($J56*'fnd base rates'!I$119) +($K56*'fnd base rates'!I$120) +($M56*'fnd base rates'!I$122) +($N56*'fnd base rates'!I$123) +($O56*'fnd base rates'!I$124) +($P56*VLOOKUP($S56+15,rate_basefnd,9))) *$R56 -> 19734.11 | AB56: =(($D56*'fnd base rates'!J$110) +($E56*'fnd base rates'!J$111) +($F56*'fnd base rates'!J$112) +($G56*'fnd base rates'!J$113) +($H56*'fnd base rates'!J$114) +($I56*'fnd base rates'!J$115) +($J56*'fnd base rates'!J$119) +($K56*'fnd base rates'!J$120) +($M56*'fnd base rates'!J$122) +($N56*'fnd base rates'!J$123) +($O56*'fnd base rates'!J$124) +($P56*VLOOKUP($S56+15,rate_basefnd,10))) *$R56 -> 32383.01 | AC56: =(($D56*'fnd base rates'!K$110) +($E56*'fnd base rates'!K$111) +($F56*'fnd base rates'!K$112) +($G56*'fnd base rates'!K$113) +($H56*'fnd base rates'!K$114) +($I56*'fnd base rates'!K$115) +($J56*'fnd base rates'!K$119) +($K56*'fnd base rates'!K$120) +($M56*'fnd base rates'!K$122) +($N56*'fnd base rates'!K$123) +($O56*'fnd base rates'!K$124) +($P56*VLOOKUP($S56+15,rate_basefnd,11))) *$R56 -> 50208.56827 | AD56: =(($D56*'fnd base rates'!L$110) +($E56*'fnd base rates'!L$111) +($F56*'fnd base rates'!L$112) +($G56*'fnd base rates'!L$113) +($H56*'fnd base rates'!L$114) +($I56*'fnd base rates'!L$115) +($J56*'fnd base rates'!L$119) +($K56*'fnd base rates'!L$120) +($M56*'fnd base rates'!L$122) +($N56*'fnd base rates'!L$123) +($O56*'fnd base rates'!L$124) +($P56*VLOOKUP($S56+15,rate_basefnd,12))) -> 60545.50298 | AE56: =(($D56*'fnd base rates'!M$110) +($E56*'fnd base rates'!M$111) +($F56*'fnd base rates'!M$112) +($G56*'fnd base rates'!M$113) +($H56*'fnd base rates'!M$114) +($I56*'fnd base rates'!M$115) +($J56*'fnd base rates'!M$119) +($K56*'fnd base rates'!M$120) +($M56*'fnd base rates'!M$122) +($N56*'fnd base rates'!M$123) +($O56*'fnd base rates'!M$124) +($P56*VLOOKUP($S56+15,rate_basefnd,13))) -> 0 | AF56: 557428.9501 | AH56: 413114717 | AI56: 413 | AJ56: 114 | AK56: 717 | AL56: 1 | AM56: 47 | AN56: 557428.9501 | AO56: 11860 | AP56: 0 | AQ56: 11860 | AW56: 11860 | AX56: 0 | AY56: 11860 | AZ56: 115 | BA56: 11745 | BB56: 15 | BC56: 11730
A57: 413 | B57: 413114720 | C57: FOUR RIVERS | D57: ='fnd enro'!D57 -> 0 | E57: ='fnd enro'!E57 -> 0 | F57: ='fnd enro'!F57 -> 0 | G57: ='fnd enro'!G57 -> 0 | H57: ='fnd enro'!H57 -> 0 | I57: ='fnd enro'!I57 -> 1 | J57: ='fnd enro'!J57 -> 0 | K57: ='fnd enro'!K57 -> 0.0379 | L57: ='fnd enro'!L57 -> 0 | M57: ='fnd enro'!M57+'fnd enro'!N57 -> 0 | N57: ='fnd enro'!O57 -> 0 | O57: ='fnd enro'!P57 -> 0 | P57: ='fnd enro'!Q57+'fnd enro'!R57 -> 0 | Q57: ='fnd enro'!T57 -> 1 | R57: 1 | S57: =VALUE('fnd enro'!S57) -> 1 | U57: =(($D57*'fnd base rates'!C$110) +($E57*'fnd base rates'!C$111) +($F57*'fnd base rates'!C$112) +($G57*'fnd base rates'!C$113) +($H57*'fnd base rates'!C$114) +($I57*'fnd base rates'!C$115) +($J57*'fnd base rates'!C$119) +($K57*'fnd base rates'!C$120) +($M57*'fnd base rates'!C$122) +($N57*'fnd base rates'!C$123) +($O57*'fnd base rates'!C$124) +($P57*VLOOKUP($S57+15,rate_basefnd,3))) *$R57 -> 494.448742 | V57: =(($D57*'fnd base rates'!D$110) +($E57*'fnd base rates'!D$111) +($F57*'fnd base rates'!D$112) +($G57*'fnd base rates'!D$113) +($H57*'fnd base rates'!D$114) +($I57*'fnd base rates'!D$115) +($J57*'fnd base rates'!D$119) +($K57*'fnd base rates'!D$120) +($M57*'fnd base rates'!D$122) +($N57*'fnd base rates'!D$123) +($O57*'fnd base rates'!D$124) +($P57*VLOOKUP($S57+15,rate_basefnd,4))) *$R57 -> 707.86 | W57: =(($D57*'fnd base rates'!E$110) +($E57*'fnd base rates'!E$111) +($F57*'fnd base rates'!E$112) +($G57*'fnd base rates'!E$113) +($H57*'fnd base rates'!E$114) +($I57*'fnd base rates'!E$115) +($J57*'fnd base rates'!E$119) +($K57*'fnd base rates'!E$120) +($M57*'fnd base rates'!E$122) +($N57*'fnd base rates'!E$123) +($O57*'fnd base rates'!E$124) +($P57*VLOOKUP($S57+15,rate_basefnd,5))) *$R57 -> 4538.625925 | X57: =(($D57*'fnd base rates'!F$110) +($E57*'fnd base rates'!F$111) +($F57*'fnd base rates'!F$112) +($G57*'fnd base rates'!F$113) +($H57*'fnd base rates'!F$114) +($I57*'fnd base rates'!F$115) +($J57*'fnd base rates'!F$119) +($K57*'fnd base rates'!F$120) +($M57*'fnd base rates'!F$122) +($N57*'fnd base rates'!F$123) +($O57*'fnd base rates'!F$124) +($P57*VLOOKUP($S57+15,rate_basefnd,6))) *$R57 -> 814.732915 | Y57: =(($D57*'fnd base rates'!G$110) +($E57*'fnd base rates'!G$111) +($F57*'fnd base rates'!G$112) +($G57*'fnd base rates'!G$113) +($H57*'fnd base rates'!G$114) +($I57*'fnd base rates'!G$115) +($J57*'fnd base rates'!G$119) +($K57*'fnd base rates'!G$120) +($M57*'fnd base rates'!G$122) +($N57*'fnd base rates'!G$123) +($O57*'fnd base rates'!G$124) +($P57*VLOOKUP($S57+15,rate_basefnd,7))) *$R57 -> 151.328603 | Z57: =(($D57*'fnd base rates'!H$110) +($E57*'fnd base rates'!H$111) +($F57*'fnd base rates'!H$112) +($G57*'fnd base rates'!H$113) +($H57*'fnd base rates'!H$114) +($I57*'fnd base rates'!H$115) +($J57*'fnd base rates'!H$119) +($K57*'fnd base rates'!H$120) +($M57*'fnd base rates'!H$122) +($N57*'fnd base rates'!H$123) +($O57*'fnd base rates'!H$124) +($P57*VLOOKUP($S57+15,rate_basefnd,8))) -> 765.893578 | AA57: =(($D57*'fnd base rates'!I$110) +($E57*'fnd base rates'!I$111) +($F57*'fnd base rates'!I$112) +($G57*'fnd base rates'!I$113) +($H57*'fnd base rates'!I$114) +($I57*'fnd base rates'!I$115) +($J57*'fnd base rates'!I$119) +($K57*'fnd base rates'!I$120) +($M57*'fnd base rates'!I$122) +($N57*'fnd base rates'!I$123) +($O57*'fnd base rates'!I$124) +($P57*VLOOKUP($S57+15,rate_basefnd,9))) *$R57 -> 394.09 | AB57: =(($D57*'fnd base rates'!J$110) +($E57*'fnd base rates'!J$111) +($F57*'fnd base rates'!J$112) +($G57*'fnd base rates'!J$113) +($H57*'fnd base rates'!J$114) +($I57*'fnd base rates'!J$115) +($J57*'fnd base rates'!J$119) +($K57*'fnd base rates'!J$120) +($M57*'fnd base rates'!J$122) +($N57*'fnd base rates'!J$123) +($O57*'fnd base rates'!J$124) +($P57*VLOOKUP($S57+15,rate_basefnd,10))) *$R57 -> 530.85 | AC57: =(($D57*'fnd base rates'!K$110) +($E57*'fnd base rates'!K$111) +($F57*'fnd base rates'!K$112) +($G57*'fnd base rates'!K$113) +($H57*'fnd base rates'!K$114) +($I57*'fnd base rates'!K$115) +($J57*'fnd base rates'!K$119) +($K57*'fnd base rates'!K$120) +($M57*'fnd base rates'!K$122) +($N57*'fnd base rates'!K$123) +($O57*'fnd base rates'!K$124) +($P57*VLOOKUP($S57+15,rate_basefnd,11))) *$R57 -> 1061.948261 | AD57: =(($D57*'fnd base rates'!L$110) +($E57*'fnd base rates'!L$111) +($F57*'fnd base rates'!L$112) +($G57*'fnd base rates'!L$113) +($H57*'fnd base rates'!L$114) +($I57*'fnd base rates'!L$115) +($J57*'fnd base rates'!L$119) +($K57*'fnd base rates'!L$120) +($M57*'fnd base rates'!L$122) +($N57*'fnd base rates'!L$123) +($O57*'fnd base rates'!L$124) +($P57*VLOOKUP($S57+15,rate_basefnd,12))) -> 1095.759695 | AE57: =(($D57*'fnd base rates'!M$110) +($E57*'fnd base rates'!M$111) +($F57*'fnd base rates'!M$112) +($G57*'fnd base rates'!M$113) +($H57*'fnd base rates'!M$114) +($I57*'fnd base rates'!M$115) +($J57*'fnd base rates'!M$119) +($K57*'fnd base rates'!M$120) +($M57*'fnd base rates'!M$122) +($N57*'fnd base rates'!M$123) +($O57*'fnd base rates'!M$124) +($P57*VLOOKUP($S57+15,rate_basefnd,13))) -> 0 | AF57: 10555.53772 | AH57: 413114720 | AI57: 413 | AJ57: 114 | AK57: 720 | AL57: 1 | AM57: 1 | AN57: 10555.53772 | AO57: 10556 | AP57: 0 | AQ57: 10556 | AW57: 10556 | AX57: 0 | AY57: 10556 | AZ57: -1 | BA57: 10557 | BB57: 12 | BC57: 10545
A58: 413 | B58: 413114750 | C58: FOUR RIVERS | D58: ='fnd enro'!D58 -> 0 | E58: ='fnd enro'!E58 -> 0 | F58: ='fnd enro'!F58 -> 0 | G58: ='fnd enro'!G58 -> 0 | H58: ='fnd enro'!H58 -> 10 | I58: ='fnd enro'!I58 -> 11 | J58: ='fnd enro'!J58 -> 0 | K58: ='fnd enro'!K58 -> 0.7959 | L58: ='fnd enro'!L58 -> 0 | M58: ='fnd enro'!M58+'fnd enro'!N58 -> 0 | N58: ='fnd enro'!O58 -> 0 | O58: ='fnd enro'!P58 -> 0 | P58: ='fnd enro'!Q58+'fnd enro'!R58 -> 4 | Q58: ='fnd enro'!T58 -> 21 | R58: 1 | S58: =VALUE('fnd enro'!S58) -> 4 | U58: =(($D58*'fnd base rates'!C$110) +($E58*'fnd base rates'!C$111) +($F58*'fnd base rates'!C$112) +($G58*'fnd base rates'!C$113) +($H58*'fnd base rates'!C$114) +($I58*'fnd base rates'!C$115) +($J58*'fnd base rates'!C$119) +($K58*'fnd base rates'!C$120) +($M58*'fnd base rates'!C$122) +($N58*'fnd base rates'!C$123) +($O58*'fnd base rates'!C$124) +($P58*VLOOKUP($S58+15,rate_basefnd,3))) *$R58 -> 10594.10358 | V58: =(($D58*'fnd base rates'!D$110) +($E58*'fnd base rates'!D$111) +($F58*'fnd base rates'!D$112) +($G58*'fnd base rates'!D$113) +($H58*'fnd base rates'!D$114) +($I58*'fnd base rates'!D$115) +($J58*'fnd base rates'!D$119) +($K58*'fnd base rates'!D$120) +($M58*'fnd base rates'!D$122) +($N58*'fnd base rates'!D$123) +($O58*'fnd base rates'!D$124) +($P58*VLOOKUP($S58+15,rate_basefnd,4))) *$R58 -> 15863.22 | W58: =(($D58*'fnd base rates'!E$110) +($E58*'fnd base rates'!E$111) +($F58*'fnd base rates'!E$112) +($G58*'fnd base rates'!E$113) +($H58*'fnd base rates'!E$114) +($I58*'fnd base rates'!E$115) +($J58*'fnd base rates'!E$119) +($K58*'fnd base rates'!E$120) +($M58*'fnd base rates'!E$122) +($N58*'fnd base rates'!E$123) +($O58*'fnd base rates'!E$124) +($P58*VLOOKUP($S58+15,rate_basefnd,5))) *$R58 -> 91614.36443 | X58: =(($D58*'fnd base rates'!F$110) +($E58*'fnd base rates'!F$111) +($F58*'fnd base rates'!F$112) +($G58*'fnd base rates'!F$113) +($H58*'fnd base rates'!F$114) +($I58*'fnd base rates'!F$115) +($J58*'fnd base rates'!F$119) +($K58*'fnd base rates'!F$120) +($M58*'fnd base rates'!F$122) +($N58*'fnd base rates'!F$123) +($O58*'fnd base rates'!F$124) +($P58*VLOOKUP($S58+15,rate_basefnd,6))) *$R58 -> 18113.09122 | Y58: =(($D58*'fnd base rates'!G$110) +($E58*'fnd base rates'!G$111) +($F58*'fnd base rates'!G$112) +($G58*'fnd base rates'!G$113) +($H58*'fnd base rates'!G$114) +($I58*'fnd base rates'!G$115) +($J58*'fnd base rates'!G$119) +($K58*'fnd base rates'!G$120) +($M58*'fnd base rates'!G$122) +($N58*'fnd base rates'!G$123) +($O58*'fnd base rates'!G$124) +($P58*VLOOKUP($S58+15,rate_basefnd,7))) *$R58 -> 3692.920663 | Z58: =(($D58*'fnd base rates'!H$110) +($E58*'fnd base rates'!H$111) +($F58*'fnd base rates'!H$112) +($G58*'fnd base rates'!H$113) +($H58*'fnd base rates'!H$114) +($I58*'fnd base rates'!H$115) +($J58*'fnd base rates'!H$119) +($K58*'fnd base rates'!H$120) +($M58*'fnd base rates'!H$122) +($N58*'fnd base rates'!H$123) +($O58*'fnd base rates'!H$124) +($P58*VLOOKUP($S58+15,rate_basefnd,8))) -> 13337.54514 | AA58: =(($D58*'fnd base rates'!I$110) +($E58*'fnd base rates'!I$111) +($F58*'fnd base rates'!I$112) +($G58*'fnd base rates'!I$113) +($H58*'fnd base rates'!I$114) +($I58*'fnd base rates'!I$115) +($J58*'fnd base rates'!I$119) +($K58*'fnd base rates'!I$120) +($M58*'fnd base rates'!I$122) +($N58*'fnd base rates'!I$123) +($O58*'fnd base rates'!I$124) +($P58*VLOOKUP($S58+15,rate_basefnd,9))) *$R58 -> 7873.35 | AB58: =(($D58*'fnd base rates'!J$110) +($E58*'fnd base rates'!J$111) +($F58*'fnd base rates'!J$112) +($G58*'fnd base rates'!J$113) +($H58*'fnd base rates'!J$114) +($I58*'fnd base rates'!J$115) +($J58*'fnd base rates'!J$119) +($K58*'fnd base rates'!J$120) +($M58*'fnd base rates'!J$122) +($N58*'fnd base rates'!J$123) +($O58*'fnd base rates'!J$124) +($P58*VLOOKUP($S58+15,rate_basefnd,10))) *$R58 -> 10191.73 | AC58: =(($D58*'fnd base rates'!K$110) +($E58*'fnd base rates'!K$111) +($F58*'fnd base rates'!K$112) +($G58*'fnd base rates'!K$113) +($H58*'fnd base rates'!K$114) +($I58*'fnd base rates'!K$115) +($J58*'fnd base rates'!K$119) +($K58*'fnd base rates'!K$120) +($M58*'fnd base rates'!K$122) +($N58*'fnd base rates'!K$123) +($O58*'fnd base rates'!K$124) +($P58*VLOOKUP($S58+15,rate_basefnd,11))) *$R58 -> 22597.91348 | AD58: =(($D58*'fnd base rates'!L$110) +($E58*'fnd base rates'!L$111) +($F58*'fnd base rates'!L$112) +($G58*'fnd base rates'!L$113) +($H58*'fnd base rates'!L$114) +($I58*'fnd base rates'!L$115) +($J58*'fnd base rates'!L$119) +($K58*'fnd base rates'!L$120) +($M58*'fnd base rates'!L$122) +($N58*'fnd base rates'!L$123) +($O58*'fnd base rates'!L$124) +($P58*VLOOKUP($S58+15,rate_basefnd,12))) -> 25606.47092 | AE58: =(($D58*'fnd base rates'!M$110) +($E58*'fnd base rates'!M$111) +($F58*'fnd base rates'!M$112) +($G58*'fnd base rates'!M$113) +($H58*'fnd base rates'!M$114) +($I58*'fnd base rates'!M$115) +($J58*'fnd base rates'!M$119) +($K58*'fnd base rates'!M$120) +($M58*'fnd base rates'!M$122) +($N58*'fnd base rates'!M$123) +($O58*'fnd base rates'!M$124) +($P58*VLOOKUP($S58+15,rate_basefnd,13))) -> 0 | AF58: 219484.7094 | AH58: 413114750 | AI58: 413 | AJ58: 114 | AK58: 750 | AL58: 1 | AM58: 21 | AN58: 219484.7094 | AO58: 10452 | AP58: 0 | AQ58: 10452 | AW58: 10452 | AX58: 0 | AY58: 10452 | AZ58: -3 | BA58: 10455 | BB58: 14 | BC58: 10441
A59: 413 | B59: 413114755 | C59: FOUR RIVERS | D59: ='fnd enro'!D59 -> 0 | E59: ='fnd enro'!E59 -> 0 | F59: ='fnd enro'!F59 -> 0 | G59: ='fnd enro'!G59 -> 0 | H59: ='fnd enro'!H59 -> 2 | I59: ='fnd enro'!I59 -> 4 | J59: ='fnd enro'!J59 -> 0 | K59: ='fnd enro'!K59 -> 0.2274 | L59: ='fnd enro'!L59 -> 0 | M59: ='fnd enro'!M59+'fnd enro'!N59 -> 0 | N59: ='fnd enro'!O59 -> 0 | O59: ='fnd enro'!P59 -> 0 | P59: ='fnd enro'!Q59+'fnd enro'!R59 -> 2 | Q59: ='fnd enro'!T59 -> 6 | R59: 1 | S59: =VALUE('fnd enro'!S59) -> 7 | U59: =(($D59*'fnd base rates'!C$110) +($E59*'fnd base rates'!C$111) +($F59*'fnd base rates'!C$112) +($G59*'fnd base rates'!C$113) +($H59*'fnd base rates'!C$114) +($I59*'fnd base rates'!C$115) +($J59*'fnd base rates'!C$119) +($K59*'fnd base rates'!C$120) +($M59*'fnd base rates'!C$122) +($N59*'fnd base rates'!C$123) +($O59*'fnd base rates'!C$124) +($P59*VLOOKUP($S59+15,rate_basefnd,3))) *$R59 -> 3083.172452 | V59: =(($D59*'fnd base rates'!D$110) +($E59*'fnd base rates'!D$111) +($F59*'fnd base rates'!D$112) +($G59*'fnd base rates'!D$113) +($H59*'fnd base rates'!D$114) +($I59*'fnd base rates'!D$115) +($J59*'fnd base rates'!D$119) +($K59*'fnd base rates'!D$120) +($M59*'fnd base rates'!D$122) +($N59*'fnd base rates'!D$123) +($O59*'fnd base rates'!D$124) +($P59*VLOOKUP($S59+15,rate_basefnd,4))) *$R59 -> 4799.04 | W59: =(($D59*'fnd base rates'!E$110) +($E59*'fnd base rates'!E$111) +($F59*'fnd base rates'!E$112) +($G59*'fnd base rates'!E$113) +($H59*'fnd base rates'!E$114) +($I59*'fnd base rates'!E$115) +($J59*'fnd base rates'!E$119) +($K59*'fnd base rates'!E$120) +($M59*'fnd base rates'!E$122) +($N59*'fnd base rates'!E$123) +($O59*'fnd base rates'!E$124) +($P59*VLOOKUP($S59+15,rate_basefnd,5))) *$R59 -> 29931.01555 | X59: =(($D59*'fnd base rates'!F$110) +($E59*'fnd base rates'!F$111) +($F59*'fnd base rates'!F$112) +($G59*'fnd base rates'!F$113) +($H59*'fnd base rates'!F$114) +($I59*'fnd base rates'!F$115) +($J59*'fnd base rates'!F$119) +($K59*'fnd base rates'!F$120) +($M59*'fnd base rates'!F$122) +($N59*'fnd base rates'!F$123) +($O59*'fnd base rates'!F$124) +($P59*VLOOKUP($S59+15,rate_basefnd,6))) *$R59 -> 5089.13749 | Y59: =(($D59*'fnd base rates'!G$110) +($E59*'fnd base rates'!G$111) +($F59*'fnd base rates'!G$112) +($G59*'fnd base rates'!G$113) +($H59*'fnd base rates'!G$114) +($I59*'fnd base rates'!G$115) +($J59*'fnd base rates'!G$119) +($K59*'fnd base rates'!G$120) +($M59*'fnd base rates'!G$122) +($N59*'fnd base rates'!G$123) +($O59*'fnd base rates'!G$124) +($P59*VLOOKUP($S59+15,rate_basefnd,7))) *$R59 -> 1177.811618 | Z59: =(($D59*'fnd base rates'!H$110) +($E59*'fnd base rates'!H$111) +($F59*'fnd base rates'!H$112) +($G59*'fnd base rates'!H$113) +($H59*'fnd base rates'!H$114) +($I59*'fnd base rates'!H$115) +($J59*'fnd base rates'!H$119) +($K59*'fnd base rates'!H$120) +($M59*'fnd base rates'!H$122) +($N59*'fnd base rates'!H$123) +($O59*'fnd base rates'!H$124) +($P59*VLOOKUP($S59+15,rate_basefnd,8))) -> 4071.681468 | AA59: =(($D59*'fnd base rates'!I$110) +($E59*'fnd base rates'!I$111) +($F59*'fnd base rates'!I$112) +($G59*'fnd base rates'!I$113) +($H59*'fnd base rates'!I$114) +($I59*'fnd base rates'!I$115) +($J59*'fnd base rates'!I$119) +($K59*'fnd base rates'!I$120) +($M59*'fnd base rates'!I$122) +($N59*'fnd base rates'!I$123) +($O59*'fnd base rates'!I$124) +($P59*VLOOKUP($S59+15,rate_basefnd,9))) *$R59 -> 2423.28 | AB59: =(($D59*'fnd base rates'!J$110) +($E59*'fnd base rates'!J$111) +($F59*'fnd base rates'!J$112) +($G59*'fnd base rates'!J$113) +($H59*'fnd base rates'!J$114) +($I59*'fnd base rates'!J$115) +($J59*'fnd base rates'!J$119) +($K59*'fnd base rates'!J$120) +($M59*'fnd base rates'!J$122) +($N59*'fnd base rates'!J$123) +($O59*'fnd base rates'!J$124) +($P59*VLOOKUP($S59+15,rate_basefnd,10))) *$R59 -> 3717.42 | AC59: =(($D59*'fnd base rates'!K$110) +($E59*'fnd base rates'!K$111) +($F59*'fnd base rates'!K$112) +($G59*'fnd base rates'!K$113) +($H59*'fnd base rates'!K$114) +($I59*'fnd base rates'!K$115) +($J59*'fnd base rates'!K$119) +($K59*'fnd base rates'!K$120) +($M59*'fnd base rates'!K$122) +($N59*'fnd base rates'!K$123) +($O59*'fnd base rates'!K$124) +($P59*VLOOKUP($S59+15,rate_basefnd,11))) *$R59 -> 6431.089566 | AD59: =(($D59*'fnd base rates'!L$110) +($E59*'fnd base rates'!L$111) +($F59*'fnd base rates'!L$112) +($G59*'fnd base rates'!L$113) +($H59*'fnd base rates'!L$114) +($I59*'fnd base rates'!L$115) +($J59*'fnd base rates'!L$119) +($K59*'fnd base rates'!L$120) +($M59*'fnd base rates'!L$122) +($N59*'fnd base rates'!L$123) +($O59*'fnd base rates'!L$124) +($P59*VLOOKUP($S59+15,rate_basefnd,12))) -> 7649.881633 | AE59: =(($D59*'fnd base rates'!M$110) +($E59*'fnd base rates'!M$111) +($F59*'fnd base rates'!M$112) +($G59*'fnd base rates'!M$113) +($H59*'fnd base rates'!M$114) +($I59*'fnd base rates'!M$115) +($J59*'fnd base rates'!M$119) +($K59*'fnd base rates'!M$120) +($M59*'fnd base rates'!M$122) +($N59*'fnd base rates'!M$123) +($O59*'fnd base rates'!M$124) +($P59*VLOOKUP($S59+15,rate_basefnd,13))) -> 0 | AF59: 68373.52978 | AH59: 413114755 | AI59: 413 | AJ59: 114 | AK59: 755 | AL59: 1 | AM59: 6 | AN59: 68373.52978 | AO59: 11396 | AP59: 0 | AQ59: 11396 | AW59: 11396 | AX59: 0 | AY59: 11396 | AZ59: 86 | BA59: 11310 | BB59: 14 | BC59: 11296
